Workbook

Sheet Instruções
B1: RENDA FIXA PRÁTICA
B2: Jefferson Figueiredo CGA®
B3: www.rendafixapratica.com.br
A4: A aba Histórico VNA IPCA deve ser atualizada com os dados da Anbima para Valor Nominal Atualizado (VNA)
A5: https://www.anbima.com.br/pt_br/informar/valor-nominal-atualizado.htm
A6: A Anbima só disponibiliza dos último dias, para intervalos maiores baixe a Planilha de VNA do Renda Fixa Prática | K6: https://rendafixapratica.com.br/planilhas/
A7: Na aba Cenários preencha as células verdes claras com inflação mensal esperada para o IPCA
A13: Na aba Resultados preencha as células verdes claras com as Datas de Vencimento ou os Períodos desejados.
A14: Atenção: os resultados serão calculados até o limite de Projeção que definiu na aba Cenários.
A15: Caso deseje juntar o VNA Histórico com o seu VNA Projetado vá a aba Histórico + Projeção e clique no botão.
A16: Vídeo: | B16: https://www.youtube.com/watch?v=VqmqaUlPOkE&list=PLbrmLsPrVGSsV58I5nQ5NK_Hb_5oDmW63&index=2&t=3594s
A18: Artigos: | B18: https://rendafixapratica.com.br/como-investir-usando-o-sistema-de-expectativas-do-bacen/
B19: https://rendafixapratica.com.br/o-que-e-inflacao-implicita/
B20: https://rendafixapratica.com.br/o-que-e-vna-valor-nominal-atualizado/
B21: https://rendafixapratica.com.br/taxas-dos-tesouro-direto-porque-variam/
A23: Qualquer problema ou dúvida não hesite: contato@rendafixapratica.com.br.

Sheet Histórico VNA IPCA
A1: Atualizado até | C1: =MAX(B9:B1048568) -> 2023-11-07 | D1: Linha: | E1: =COUNTA(A10:A5155)+10 -> 5156
A2: https://www.anbima.com.br/pt_br/informar/valor-nominal-atualizado.htm
A3: Só dos último dias, para intervalos maiores aba Instruções
C4: Data | D4: VNA | E4: IPCA (%) | F4: Ref Mês
A5: Último IPCA | C5: =MAX(IF("F"=$E$10:$E$100002,$B$10:$B$100002)) -> 2023-10-16 | D5: =VLOOKUP(C5,B9:D100002,2,FALSE) -> 4149.991948 | E5: =VLOOKUP(C5,B9:D100002,3,FALSE) -> 0.26 | F5: =DATEVALUE("15/"&IF(MONTH(EOMONTH(C5,-1))<10,"0"&MONTH(EOMONTH(C5,-1)),MONTH(EOMONTH(C5,-1)))&"/"&YEAR(EOMONTH(C5,-1))) -> 2023-09-15
A7: TESOURO IPCA
A8: NTN-B
A9: Código Selic | B9: Data Referência | C9: VNA | D9: IPCA (%) | E9: P/F | F9: Válido a partir de
A10: 760199 | B10: 2000-07-17 | C10: 1000
A11: 760199 | B11: 2000-07-18 | C11: 1000.760984
A12: 760199 | B12: 2000-07-19 | C12: 1001.522547
A13: 760199 | B13: 2000-07-20 | C13: 1002.284689
A14: 760199 | B14: 2000-07-21 | C14: 1003.047412
A15: 760199 | B15: 2000-07-24 | C15: 1003.810715
A16: 760199 | B16: 2000-07-25 | C16: 1004.574599
A17: 760199 | B17: 2000-07-26 | C17: 1005.339064
A18: 760199 | B18: 2000-07-27 | C18: 1006.104111
A19: 760199 | B19: 2000-07-28 | C19: 1006.86974
A20: 760199 | B20: 2000-07-31 | C20: 1007.635951
A21: 760199 | B21: 2000-08-01 | C21: 1008.402746
A22: 760199 | B22: 2000-08-02 | C22: 1009.170124
A23: 760199 | B23: 2000-08-03 | C23: 1009.938086
A24: 760199 | B24: 2000-08-04 | C24: 1010.706633
A25: 760199 | B25: 2000-08-07 | C25: 1011.475764
A26: 760199 | B26: 2000-08-08 | C26: 1012.245481
A27: 760199 | B27: 2000-08-09 | C27: 1013.015784
A28: 760199 | B28: 2000-08-10 | C28: 1013.786672
A29: 760199 | B29: 2000-08-11 | C29: 1014.558148
A30: 760199 | B30: 2000-08-14 | C30: 1015.33021
A31: 760199 | B31: 2000-08-15 | C31: 1016.10286
A32: 760199 | B32: 2000-08-16 | C32: 1016.704093
A33: 760199 | B33: 2000-08-17 | C33: 1017.305682
A34: 760199 | B34: 2000-08-18 | C34: 1017.907627
A35: 760199 | B35: 2000-08-21 | C35: 1018.509928
A36: 760199 | B36: 2000-08-22 | C36: 1019.112585
A37: 760199 | B37: 2000-08-23 | C37: 1019.7156
A38: 760199 | B38: 2000-08-24 | C38: 1020.31897
A39: 760199 | B39: 2000-08-25 | C39: 1020.922698
A40: 760199 | B40: 2000-08-28 | C40: 1021.526783
A41: 760199 | B41: 2000-08-29 | C41: 1022.131226
A42: 760199 | B42: 2000-08-30 | C42: 1022.736026
A43: 760199 | B43: 2000-08-31 | C43: 1023.341184
A44: 760199 | B44: 2000-09-01 | C44: 1023.9467
A45: 760199 | B45: 2000-09-04 | C45: 1024.552574
A46: 760199 | B46: 2000-09-05 | C46: 1025.158807
A47: 760199 | B47: 2000-09-06 | C47: 1025.765399
A48: 760199 | B48: 2000-09-08 | C48: 1026.372349
A49: 760199 | B49: 2000-09-11 | C49: 1026.979659
A50: 760199 | B50: 2000-09-12 | C50: 1027.587328
A51: 760199 | B51: 2000-09-13 | C51: 1028.195357
A52: 760199 | B52: 2000-09-14 | C52: 1028.803745
A53: 760199 | B53: 2000-09-15 | C53: 1029.412493
A54: 760199 | B54: 2000-09-18 | C54: 1029.530658
A55: 760199 | B55: 2000-09-19 | C55: 1029.648837
A56: 760199 | B56: 2000-09-20 | C56: 1029.767029
A57: 760199 | B57: 2000-09-21 | C57: 1029.885235
A58: 760199 | B58: 2000-09-22 | C58: 1030.003455
A59: 760199 | B59: 2000-09-25 | C59: 1030.121688
A60: 760199 | B60: 2000-09-26 | C60: 1030.239934
A61: 760199 | B61: 2000-09-27 | C61: 1030.358194
A62: 760199 | B62: 2000-09-28 | C62: 1030.476468
A63: 760199 | B63: 2000-09-29 | C63: 1030.594755
A64: 760199 | B64: 2000-10-03 | C64: 1030.831371
A65: 760199 | B65: 2000-10-02 | C65: 1030.713056
A66: 760199 | B66: 2000-10-04 | C66: 1030.949699
A67: 760199 | B67: 2000-10-05 | C67: 1031.06804
A68: 760199 | B68: 2000-10-06 | C68: 1031.186395
A69: 760199 | B69: 2000-10-09 | C69: 1031.304764
A70: 760199 | B70: 2000-10-10 | C70: 1031.423147
A71: 760199 | B71: 2000-10-11 | C71: 1031.541542
A72: 760199 | B72: 2000-10-13 | C72: 1031.659952
A73: 760199 | B73: 2000-10-16 | C73: 1031.778375
A74: 760199 | B74: 2000-10-17 | C74: 1031.847047
A75: 760199 | B75: 2000-10-18 | C75: 1031.915723
A76: 760199 | B76: 2000-10-19 | C76: 1031.984404
A77: 760199 | B77: 2000-10-20 | C77: 1032.053089
A78: 760199 | B78: 2000-10-23 | C78: 1032.121779
A79: 760199 | B79: 2000-10-24 | C79: 1032.190473
A80: 760199 | B80: 2000-10-25 | C80: 1032.259172
A81: 760199 | B81: 2000-10-26 | C81: 1032.327876
A82: 760199 | B82: 2000-10-27 | C82: 1032.396584
A83: 760199 | B83: 2000-10-30 | C83: 1032.465297
A84: 760199 | B84: 2000-10-31 | C84: 1032.534014
A85: 760199 | B85: 2000-11-01 | C85: 1032.602736
A86: 760199 | B86: 2000-11-03 | C86: 1032.671463
A87: 760199 | B87: 2000-11-06 | C87: 1032.740194
A88: 760199 | B88: 2000-11-07 | C88: 1032.808929
A89: 760199 | B89: 2000-11-08 | C89: 1032.877669
A90: 760199 | B90: 2000-11-09 | C90: 1032.946414
A91: 760199 | B91: 2000-11-10 | C91: 1033.015164
A92: 760199 | B92: 2000-11-13 | C92: 1033.083918
A93: 760199 | B93: 2000-11-14 | C93: 1033.152676
A94: 760199 | B94: 2000-11-16 | C94: 1033.221439
A95: 760199 | B95: 2000-11-17 | C95: 1033.378689
A96: 760199 | B96: 2000-11-20 | C96: 1033.535963
A97: 760199 | B97: 2000-11-21 | C97: 1033.693261
A98: 760199 | B98: 2000-11-22 | C98: 1033.850583
A99: 760199 | B99: 2000-11-23 | C99: 1034.007928
A100: 760199 | B100: 2000-11-24 | C100: 1034.165298
A101: 760199 | B101: 2000-11-27 | C101: 1034.322691
A102: 760199 | B102: 2000-11-28 | C102: 1034.480109
A103: 760199 | B103: 2000-11-29 | C103: 1034.637551
A104: 760199 | B104: 2000-11-30 | C104: 1034.795016
A105: 760199 | B105: 2000-12-01 | C105: 1034.952505
A106: 760199 | B106: 2000-12-04 | C106: 1035.110019
A107: 760199 | B107: 2000-12-05 | C107: 1035.267556
A108: 760199 | B108: 2000-12-06 | C108: 1035.425118
A109: 760199 | B109: 2000-12-07 | C109: 1035.582703
A110: 760199 | B110: 2000-12-08 | C110: 1035.740312
A111: 760199 | B111: 2000-12-11 | C111: 1035.897946
A112: 760199 | B112: 2000-12-12 | C112: 1036.055603
A113: 760199 | B113: 2000-12-13 | C113: 1036.213284
A114: 760199 | B114: 2000-12-14 | C114: 1036.37099
A115: 760199 | B115: 2000-12-15 | C115: 1036.528719
A116: 760199 | B116: 2000-12-18 | C116: 1036.849555
A117: 760199 | B117: 2000-12-19 | C117: 1037.17049
A118: 760199 | B118: 2000-12-20 | C118: 1037.491524
A119: 760199 | B119: 2000-12-21 | C119: 1037.812658
A120: 760199 | B120: 2000-12-22 | C120: 1038.133892
A121: 760199 | B121: 2000-12-26 | C121: 1038.455224
A122: 760199 | B122: 2000-12-27 | C122: 1038.776657
A123: 760199 | B123: 2000-12-28 | C123: 1039.098188
A124: 760199 | B124: 2000-12-29 | C124: 1039.41982
A125: 760199 | B125: 2001-01-02 | C125: 1039.74155
A126: 760199 | B126: 2001-01-03 | C126: 1040.063381
A127: 760199 | B127: 2001-01-04 | C127: 1040.385311
A128: 760199 | B128: 2001-01-05 | C128: 1040.70734
A129: 760199 | B129: 2001-01-08 | C129: 1041.02947
A130: 760199 | B130: 2001-01-09 | C130: 1041.351699
A131: 760199 | B131: 2001-01-10 | C131: 1041.674027
A132: 760199 | B132: 2001-01-11 | C132: 1041.996456
A133: 760199 | B133: 2001-01-12 | C133: 1042.318984
A134: 760199 | B134: 2001-01-15 | C134: 1042.641612
A135: 760199 | B135: 2001-01-16 | C135: 1042.899417
A136: 760199 | B136: 2001-01-17 | C136: 1043.157286
A137: 760199 | B137: 2001-01-18 | C137: 1043.415219
A138: 760199 | B138: 2001-01-19 | C138: 1043.673215
A139: 760199 | B139: 2001-01-22 | C139: 1043.931275
A140: 760199 | B140: 2001-01-23 | C140: 1044.189399
A141: 760199 | B141: 2001-01-24 | C141: 1044.447587
A142: 760199 | B142: 2001-01-25 | C142: 1044.705838
A143: 760199 | B143: 2001-01-26 | C143: 1044.964154
A144: 760199 | B144: 2001-01-29 | C144: 1045.222533
A145: 760199 | B145: 2001-01-30 | C145: 1045.480976
A146: 760199 | B146: 2001-01-31 | C146: 1045.739483
A147: 760199 | B147: 2001-02-01 | C147: 1045.998054
A148: 760199 | B148: 2001-02-02 | C148: 1046.256689
A149: 760199 | B149: 2001-02-05 | C149: 1046.515388
A150: 760199 | B150: 2001-02-06 | C150: 1046.774151
A151: 760199 | B151: 2001-02-07 | C151: 1047.032978
A152: 760199 | B152: 2001-02-08 | C152: 1047.291869
A153: 760199 | B153: 2001-02-09 | C153: 1047.550824
A154: 760199 | B154: 2001-02-12 | C154: 1047.809843
A155: 760199 | B155: 2001-02-13 | C155: 1048.068926
A156: 760199 | B156: 2001-02-14 | C156: 1048.328073
A157: 760199 | B157: 2001-02-15 | C157: 1048.587284
A158: 760199 | B158: 2001-02-16 | C158: 1048.85474
A159: 760199 | B159: 2001-02-19 | C159: 1049.122264
A160: 760199 | B160: 2001-02-20 | C160: 1049.389857
A161: 760199 | B161: 2001-02-21 | C161: 1049.657518
A162: 760199 | B162: 2001-02-22 | C162: 1049.925247
A163: 760199 | B163: 2001-02-23 | C163: 1050.193045
A164: 760199 | B164: 2001-02-28 | C164: 1050.460911
A165: 760199 | B165: 2001-03-01 | C165: 1050.728845
A166: 760199 | B166: 2001-03-02 | C166: 1050.996848
A167: 760199 | B167: 2001-03-05 | C167: 1051.264918
A168: 760199 | B168: 2001-03-06 | C168: 1051.533058
A169: 760199 | B169: 2001-03-07 | C169: 1051.801265
A170: 760199 | B170: 2001-03-08 | C170: 1052.069541
A171: 760199 | B171: 2001-03-09 | C171: 1052.337886
A172: 760199 | B172: 2001-03-12 | C172: 1052.606299
A173: 760199 | B173: 2001-03-13 | C173: 1052.87478
A174: 760199 | B174: 2001-03-14 | C174: 1053.14333
A175: 760199 | B175: 2001-03-15 | C175: 1053.411948
A176: 760199 | B176: 2001-03-16 | C176: 1053.602126
A177: 760199 | B177: 2001-03-19 | C177: 1053.792337
A178: 760199 | B178: 2001-03-20 | C178: 1053.982583
A179: 760199 | B179: 2001-03-21 | C179: 1054.172864
A180: 760199 | B180: 2001-03-22 | C180: 1054.363178
A181: 760199 | B181: 2001-03-23 | C181: 1054.553527
A182: 760199 | B182: 2001-03-26 | C182: 1054.743911
A183: 760199 | B183: 2001-03-27 | C183: 1054.934328
A184: 760199 | B184: 2001-03-28 | C184: 1055.12478
A185: 760199 | B185: 2001-03-29 | C185: 1055.315267
A186: 760199 | B186: 2001-03-30 | C186: 1055.505788
A187: 760199 | B187: 2001-04-02 | C187: 1055.696343
A188: 760199 | B188: 2001-04-03 | C188: 1055.886933
A189: 760199 | B189: 2001-04-04 | C189: 1056.077557
A190: 760199 | B190: 2001-04-05 | C190: 1056.268216
A191: 760199 | B191: 2001-04-06 | C191: 1056.458908
A192: 760199 | B192: 2001-04-09 | C192: 1056.649636
A193: 760199 | B193: 2001-04-10 | C193: 1056.840398
A194: 760199 | B194: 2001-04-11 | C194: 1057.031194
A195: 760199 | B195: 2001-04-12 | C195: 1057.222025
A196: 760199 | B196: 2001-04-16 | C196: 1057.41289
A197: 760199 | B197: 2001-04-17 | C197: 1057.718622
A198: 760199 | B198: 2001-04-18 | C198: 1058.024443
A199: 760199 | B199: 2001-04-19 | C199: 1058.330352
A200: 760199 | B200: 2001-04-20 | C200: 1058.63635
A201: 760199 | B201: 2001-04-23 | C201: 1058.942436
... 5664 more rows

Sheet Cenários
B1: ='Histórico VNA IPCA'!C4 -> Data | C1: ='Histórico VNA IPCA'!E4 -> IPCA (%) | D1: ='Histórico VNA IPCA'!D4 -> VNA | E1: ='Histórico VNA IPCA'!F4 -> Ref Mês
A2: Último divulgado | B2: ='Histórico VNA IPCA'!C5 -> 2023-10-16 | C2: ='Histórico VNA IPCA'!E5 -> 0.26 | D2: ='Histórico VNA IPCA'!D5 -> 4149.991948 | E2: ='Histórico VNA IPCA'!F5 -> 2023-09-15
A4: Projeção vai até: | C4: =MAX(IF(""<>Cenários!C7:C1000,Cenários!B7:B1000)) -> 2035-12-17 | G4: =IF(C4<(WORKDAY(WORKDAY(DATEVALUE("31/12/"&YEAR(C4)),1,Feriados!$A$2:$A$10000),-1,Feriados!$A$2:$A$10000)),YEAR(C4)-1,YEAR(C4)) -> 2034
K5: Média | L5: Mediana | M5: Mínimo | N5: Máximo
G6: Ano | H6: =IF(G7="","",WORKDAY(WORKDAY(DATEVALUE("01/01/"&G7),-1,Feriados!$A$2:$A$10000),1,Feriados!$A$2:$A$10000)) -> 2015-01-02 | I6: =IF(G7="","",WORKDAY(WORKDAY(DATEVALUE("31/12/"&G7),1,Feriados!$A$2:$A$10000),-1,Feriados!$A$2:$A$10000)) -> 2015-12-31 | J6: % Período | K6: (P/F) % Mês | L6: (P/F) % Mês | M6: (P/F) % Mês | N6: (P/F) % Mês
A7: Referência | B7: Data Base | C7: Variação no Mês (%) | D7: VNA Projetado | G7: 2015 | H7: =IF(G7="","",IF(H6<$B$2,VLOOKUP(H6,'Histórico VNA IPCA'!$B$9:$C$100000,2,FALSE),VLOOKUP(H6,'Projeção VNA'!A:B,2,FALSE))) -> 2506.22119 | I7: =IF(G7="","",IF(I6<$B$2,VLOOKUP(I6,'Histórico VNA IPCA'!$B$9:$C$100000,2,FALSE),VLOOKUP(I6,'Projeção VNA'!A:B,2,FALSE))) -> 2771.036317 | J7: =IF(G7="","",((I7/H7)-1)*100) -> 10.56631107 | K7: =IF(G7="","",AVERAGE(IF(H6<='Histórico + Projeção'!A:A,IF(I6>='Histórico + Projeção'!A:A,'Histórico + Projeção'!C:C)))) -> 0.80708 | L7: =IF(G7="","",MEDIAN(IF(H6<='Histórico + Projeção'!A:A,IF(I6>='Histórico + Projeção'!A:A,'Histórico + Projeção'!C:C)))) -> 0.78 | M7: =IF(G7="","",MIN(IF(H6<='Histórico + Projeção'!A:A,IF(I6>='Histórico + Projeção'!A:A,'Histórico + Projeção'!C:C)))) -> 0.22 | N7: =IF(G7="","",MAX(IF(H6<='Histórico + Projeção'!A:A,IF(I6>='Histórico + Projeção'!A:A,'Histórico + Projeção'!C:C)))) -> 1.41
A8: =EDATE(E2,-1) -> 2023-08-15 | B8: =+WORKDAY(+EDATE(+A8,1)-1,1,Feriados!$A$2:$A$1059) -> 2023-09-15 | C8: =VLOOKUP(B8,'Histórico VNA IPCA'!B:F,3,FALSE) -> 0.23 | D8: =VLOOKUP(B8,'Histórico VNA IPCA'!B:F,2,FALSE) -> 4139.227805 | H8: =IF(G9="","",WORKDAY(WORKDAY(DATEVALUE("01/01/"&G9),-1,Feriados!$A$2:$A$10000),1,Feriados!$A$2:$A$10000)) -> 2016-01-04 | I8: =IF(G9="","",WORKDAY(WORKDAY(DATEVALUE("31/12/"&G9),1,Feriados!$A$2:$A$10000),-1,Feriados!$A$2:$A$10000)) -> 2016-12-30
A9: =+E2 -> 2023-09-15 | B9: =+WORKDAY(+EDATE(+A9,1)-1,1,Feriados!$A$2:$A$1059) -> 2023-10-16 | C9: =+C2 -> 0.26 | D9: =+ROUND(D8*(1+C9/100),6) -> 4149.989797 | G9: 2016 | H9: =IF(G9="","",IF(H8<$B$2,VLOOKUP(H8,'Histórico VNA IPCA'!$B$9:$C$100000,2,FALSE),VLOOKUP(H8,'Projeção VNA'!A:B,2,FALSE))) -> 2772.375755 | I9: =IF(G9="","",IF(I8<$B$2,VLOOKUP(I8,'Histórico VNA IPCA'!$B$9:$C$100000,2,FALSE),VLOOKUP(I8,'Projeção VNA'!A:B,2,FALSE))) -> 2953.508868 | J9: =IF(G9="","",((I9/H9)-1)*100) -> 6.533497946 | K9: =IF(G9="","",AVERAGE(IF(H8<='Histórico + Projeção'!A:A,IF(I8>='Histórico + Projeção'!A:A,'Histórico + Projeção'!C:C)))) -> 0.5365338645 | L9: =IF(G9="","",MEDIAN(IF(H8<='Histórico + Projeção'!A:A,IF(I8>='Histórico + Projeção'!A:A,'Histórico + Projeção'!C:C)))) -> 0.43 | M9: =IF(G9="","",MIN(IF(H8<='Histórico + Projeção'!A:A,IF(I8>='Histórico + Projeção'!A:A,'Histórico + Projeção'!C:C)))) -> 0.08 | N9: =IF(G9="","",MAX(IF(H8<='Histórico + Projeção'!A:A,IF(I8>='Histórico + Projeção'!A:A,'Histórico + Projeção'!C:C)))) -> 1.27
A10: =EDATE(E2,1) -> 2023-10-15 | B10: =+WORKDAY(+EDATE(+A10,1)-1,1,Feriados!$A$2:$A$1059) -> 2023-11-16 | C10: 0.2664 | D10: =+ROUND(D9*(1+C10/100),6) -> 4161.04537 | H10: =IF(G11="","",WORKDAY(WORKDAY(DATEVALUE("01/01/"&G11),-1,Feriados!$A$2:$A$10000),1,Feriados!$A$2:$A$10000)) -> 2017-01-02 | I10: =IF(G11="","",WORKDAY(WORKDAY(DATEVALUE("31/12/"&G11),1,Feriados!$A$2:$A$10000),-1,Feriados!$A$2:$A$10000)) -> 2017-12-29
A11: =IF(C11="","",EDATE(A10,1)) -> 2023-11-15 | B11: =IF(C11="","",WORKDAY(+EDATE(+A11,1)-1,1,Feriados!$A$2:$A$1059)) -> 2023-12-15 | C11: 0.42 | D11: =IF(C11="","",ROUND(D10*(1+C11/100),6)) -> 4178.521761 | G11: 2017 | H11: =IF(G11="","",IF(H10<$B$2,VLOOKUP(H10,'Histórico VNA IPCA'!$B$9:$C$100000,2,FALSE),VLOOKUP(H10,'Projeção VNA'!A:B,2,FALSE))) -> 2953.92443 | I11: =IF(G11="","",IF(I10<$B$2,VLOOKUP(I10,'Histórico VNA IPCA'!$B$9:$C$100000,2,FALSE),VLOOKUP(I10,'Projeção VNA'!A:B,2,FALSE))) -> 3035.354671 | J11: =IF(G11="","",((I11/H11)-1)*100) -> 2.756679899 | K11: =IF(G11="","",AVERAGE(IF(H10<='Histórico + Projeção'!A:A,IF(I10>='Histórico + Projeção'!A:A,'Histórico + Projeção'!C:C)))) -> 0.2808433735 | L11: =IF(G11="","",MEDIAN(IF(H10<='Histórico + Projeção'!A:A,IF(I10>='Histórico + Projeção'!A:A,'Histórico + Projeção'!C:C)))) -> 0.3 | M11: =IF(G11="","",MIN(IF(H10<='Histórico + Projeção'!A:A,IF(I10>='Histórico + Projeção'!A:A,'Histórico + Projeção'!C:C)))) -> -0.23 | N11: =IF(G11="","",MAX(IF(H10<='Histórico + Projeção'!A:A,IF(I10>='Histórico + Projeção'!A:A,'Histórico + Projeção'!C:C)))) -> 0.56
A12: =IF(C12="","",EDATE(A11,1)) -> 2023-12-15 | B12: =IF(C12="","",WORKDAY(+EDATE(+A12,1)-1,1,Feriados!$A$2:$A$1059)) -> 2024-01-15 | C12: 0.39 | D12: =IF(C12="","",ROUND(D11*(1+C12/100),6)) -> 4194.817996 | H12: =IF(G13="","",WORKDAY(WORKDAY(DATEVALUE("01/01/"&G13),-1,Feriados!$A$2:$A$10000),1,Feriados!$A$2:$A$10000)) -> 2018-01-02 | I12: =IF(G13="","",WORKDAY(WORKDAY(DATEVALUE("31/12/"&G13),1,Feriados!$A$2:$A$10000),-1,Feriados!$A$2:$A$10000)) -> 2018-12-31
A13: 2024-01-15 | B13: =IF(C13="","",WORKDAY(+EDATE(+A13,1)-1,1,Feriados!$A$2:$A$1059)) -> 2024-02-15 | C13: 0.296 | D13: 4207.234657 | G13: 2018 | H13: =IF(G13="","",IF(H12<$B$2,VLOOKUP(H12,'Histórico VNA IPCA'!$B$9:$C$100000,2,FALSE),VLOOKUP(H12,'Projeção VNA'!A:B,2,FALSE))) -> 3035.769525 | I13: =IF(G13="","",IF(I12<$B$2,VLOOKUP(I12,'Histórico VNA IPCA'!$B$9:$C$100000,2,FALSE),VLOOKUP(I12,'Projeção VNA'!A:B,2,FALSE))) -> 3155.777721 | J13: =IF(G13="","",((I13/H13)-1)*100) -> 3.953139229 | K13: =IF(G13="","",AVERAGE(IF(H12<='Histórico + Projeção'!A:A,IF(I12>='Histórico + Projeção'!A:A,'Histórico + Projeção'!C:C)))) -> 0.32556 | L13: =IF(G13="","",MEDIAN(IF(H12<='Histórico + Projeção'!A:A,IF(I12>='Histórico + Projeção'!A:A,'Histórico + Projeção'!C:C)))) -> 0.32 | M13: =IF(G13="","",MIN(IF(H12<='Histórico + Projeção'!A:A,IF(I12>='Histórico + Projeção'!A:A,'Histórico + Projeção'!C:C)))) -> -0.21 | N13: =IF(G13="","",MAX(IF(H12<='Histórico + Projeção'!A:A,IF(I12>='Histórico + Projeção'!A:A,'Histórico + Projeção'!C:C)))) -> 1.26
A14: 2024-02-15 | B14: =IF(C14="","",WORKDAY(+EDATE(+A14,1)-1,1,Feriados!$A$2:$A$1059)) -> 2024-03-15 | C14: 0.52 | D14: 4229.112277 | H14: =IF(G15="","",WORKDAY(WORKDAY(DATEVALUE("01/01/"&G15),-1,Feriados!$A$2:$A$10000),1,Feriados!$A$2:$A$10000)) -> 2019-01-02 | I14: =IF(G15="","",WORKDAY(WORKDAY(DATEVALUE("31/12/"&G15),1,Feriados!$A$2:$A$10000),-1,Feriados!$A$2:$A$10000)) -> 2019-12-31
A15: 2024-03-15 | B15: =IF(C15="","",WORKDAY(+EDATE(+A15,1)-1,1,Feriados!$A$2:$A$1059)) -> 2024-04-15 | C15: 0.42 | D15: 4246.874549 | G15: 2019 | H15: =IF(G15="","",IF(H14<$B$2,VLOOKUP(H14,'Histórico VNA IPCA'!$B$9:$C$100000,2,FALSE),VLOOKUP(H14,'Projeção VNA'!A:B,2,FALSE))) -> 3155.943736 | I15: =IF(G15="","",IF(I14<$B$2,VLOOKUP(I14,'Histórico VNA IPCA'!$B$9:$C$100000,2,FALSE),VLOOKUP(I14,'Projeção VNA'!A:B,2,FALSE))) -> 3274.641482 | J15: =IF(G15="","",((I15/H15)-1)*100) -> 3.761085619 | K15: =IF(G15="","",AVERAGE(IF(H14<='Histórico + Projeção'!A:A,IF(I14>='Histórico + Projeção'!A:A,'Histórico + Projeção'!C:C)))) -> 0.2908300395 | L15: =IF(G15="","",MEDIAN(IF(H14<='Histórico + Projeção'!A:A,IF(I14>='Histórico + Projeção'!A:A,'Histórico + Projeção'!C:C)))) -> 0.24 | M15: =IF(G15="","",MIN(IF(H14<='Histórico + Projeção'!A:A,IF(I14>='Histórico + Projeção'!A:A,'Histórico + Projeção'!C:C)))) -> -0.04 | N15: =IF(G15="","",MAX(IF(H14<='Histórico + Projeção'!A:A,IF(I14>='Histórico + Projeção'!A:A,'Histórico + Projeção'!C:C)))) -> 1.05
A16: 2024-04-15 | B16: =IF(C16="","",WORKDAY(+EDATE(+A16,1)-1,1,Feriados!$A$2:$A$1059)) -> 2024-05-15 | C16: 0.5 | D16: 4268.108922 | H16: =IF(G17="","",WORKDAY(WORKDAY(DATEVALUE("01/01/"&G17),-1,Feriados!$A$2:$A$10000),1,Feriados!$A$2:$A$10000)) -> 2020-01-02 | I16: =IF(G17="","",WORKDAY(WORKDAY(DATEVALUE("31/12/"&G17),1,Feriados!$A$2:$A$10000),-1,Feriados!$A$2:$A$10000)) -> 2020-12-31
A17: 2024-05-15 | B17: =IF(C17="","",WORKDAY(+EDATE(+A17,1)-1,1,Feriados!$A$2:$A$1059)) -> 2024-06-17 | C17: 0.344 | D17: 4282.791217 | G17: 2020 | H17: =IF(G17="","",IF(H16<$B$2,VLOOKUP(H16,'Histórico VNA IPCA'!$B$9:$C$100000,2,FALSE),VLOOKUP(H16,'Projeção VNA'!A:B,2,FALSE))) -> 3276.352153 | I17: =IF(G17="","",IF(I16<$B$2,VLOOKUP(I16,'Histórico VNA IPCA'!$B$9:$C$100000,2,FALSE),VLOOKUP(I16,'Projeção VNA'!A:B,2,FALSE))) -> 3419.50087 | J17: =IF(G17="","",((I17/H17)-1)*100) -> 4.369149295 | K17: =IF(G17="","",AVERAGE(IF(H16<='Histórico + Projeção'!A:A,IF(I16>='Histórico + Projeção'!A:A,'Histórico + Projeção'!C:C)))) -> 0.3359760956 | L17: =IF(G17="","",MEDIAN(IF(H16<='Histórico + Projeção'!A:A,IF(I16>='Histórico + Projeção'!A:A,'Histórico + Projeção'!C:C)))) -> 0.27 | M17: =IF(G17="","",MIN(IF(H16<='Histórico + Projeção'!A:A,IF(I16>='Histórico + Projeção'!A:A,'Histórico + Projeção'!C:C)))) -> -0.45 | N17: =IF(G17="","",MAX(IF(H16<='Histórico + Projeção'!A:A,IF(I16>='Histórico + Projeção'!A:A,'Histórico + Projeção'!C:C)))) -> 1.26
A18: 2024-06-15 | B18: =IF(C18="","",WORKDAY(+EDATE(+A18,1)-1,1,Feriados!$A$2:$A$1059)) -> 2024-07-15 | C18: 0.35 | D18: 4297.780986 | H18: =IF(G19="","",WORKDAY(WORKDAY(DATEVALUE("01/01/"&G19),-1,Feriados!$A$2:$A$10000),1,Feriados!$A$2:$A$10000)) -> 2021-01-04 | I18: =IF(G19="","",WORKDAY(WORKDAY(DATEVALUE("31/12/"&G19),1,Feriados!$A$2:$A$10000),-1,Feriados!$A$2:$A$10000)) -> 2021-12-31
A19: 2024-07-15 | B19: =IF(C19="","",WORKDAY(+EDATE(+A19,1)-1,1,Feriados!$A$2:$A$1059)) -> 2024-08-15 | C19: 0.258 | D19: 4308.869261 | G19: 2021 | H19: =IF(G19="","",IF(H18<$B$2,VLOOKUP(H18,'Histórico VNA IPCA'!$B$9:$C$100000,2,FALSE),VLOOKUP(H18,'Projeção VNA'!A:B,2,FALSE))) -> 3421.459889 | I19: =IF(G19="","",IF(I18<$B$2,VLOOKUP(I18,'Histórico VNA IPCA'!$B$9:$C$100000,2,FALSE),VLOOKUP(I18,'Projeção VNA'!A:B,2,FALSE))) -> 3775.076789 | J19: =IF(G19="","",((I19/H19)-1)*100) -> 10.33526364 | K19: =IF(G19="","",AVERAGE(IF(H18<='Histórico + Projeção'!A:A,IF(I18>='Histórico + Projeção'!A:A,'Histórico + Projeção'!C:C)))) -> 0.7656175299 | L19: =IF(G19="","",MEDIAN(IF(H18<='Histórico + Projeção'!A:A,IF(I18>='Histórico + Projeção'!A:A,'Histórico + Projeção'!C:C)))) -> 0.71 | M19: =IF(G19="","",MIN(IF(H18<='Histórico + Projeção'!A:A,IF(I18>='Histórico + Projeção'!A:A,'Histórico + Projeção'!C:C)))) -> 0.25 | N19: =IF(G19="","",MAX(IF(H18<='Histórico + Projeção'!A:A,IF(I18>='Histórico + Projeção'!A:A,'Histórico + Projeção'!C:C)))) -> 1.35
A20: 2024-08-15 | B20: =IF(C20="","",WORKDAY(+EDATE(+A20,1)-1,1,Feriados!$A$2:$A$1059)) -> 2024-09-16 | C20: 0.205 | D20: 4317.702443 | H20: =IF(G21="","",WORKDAY(WORKDAY(DATEVALUE("01/01/"&G21),-1,Feriados!$A$2:$A$10000),1,Feriados!$A$2:$A$10000)) -> 2022-01-03 | I20: =IF(G21="","",WORKDAY(WORKDAY(DATEVALUE("31/12/"&G21),1,Feriados!$A$2:$A$10000),-1,Feriados!$A$2:$A$10000)) -> 2022-12-30
A21: 2024-09-15 | B21: =IF(C21="","",WORKDAY(+EDATE(+A21,1)-1,1,Feriados!$A$2:$A$1059)) -> 2024-10-15 | C21: 0.1965 | D21: 4326.186728 | G21: 2022 | H21: =IF(G21="","",IF(H20<$B$2,VLOOKUP(H20,'Histórico VNA IPCA'!$B$9:$C$100000,2,FALSE),VLOOKUP(H20,'Projeção VNA'!A:B,2,FALSE))) -> 3776.091413 | I21: =IF(G21="","",IF(I20<$B$2,VLOOKUP(I20,'Histórico VNA IPCA'!$B$9:$C$100000,2,FALSE),VLOOKUP(I20,'Projeção VNA'!A:B,2,FALSE))) -> 3993.520884 | J21: =IF(G21="","",((I21/H21)-1)*100) -> 5.75805634 | K21: =IF(G21="","",AVERAGE(IF(H20<='Histórico + Projeção'!A:A,IF(I20>='Histórico + Projeção'!A:A,'Histórico + Projeção'!C:C)))) -> 0.4224302789 | L21: =IF(G21="","",MEDIAN(IF(H20<='Histórico + Projeção'!A:A,IF(I20>='Histórico + Projeção'!A:A,'Histórico + Projeção'!C:C)))) -> 0.55 | M21: =IF(G21="","",MIN(IF(H20<='Histórico + Projeção'!A:A,IF(I20>='Histórico + Projeção'!A:A,'Histórico + Projeção'!C:C)))) -> -0.68 | N21: =IF(G21="","",MAX(IF(H20<='Histórico + Projeção'!A:A,IF(I20>='Histórico + Projeção'!A:A,'Histórico + Projeção'!C:C)))) -> 1.62
A22: 2024-10-15 | B22: =IF(C22="","",WORKDAY(+EDATE(+A22,1)-1,1,Feriados!$A$2:$A$1059)) -> 2024-11-18 | C22: 0.1642 | D22: 4333.290327 | H22: =IF(G23="","",WORKDAY(WORKDAY(DATEVALUE("01/01/"&G23),-1,Feriados!$A$2:$A$10000),1,Feriados!$A$2:$A$10000)) -> 2023-01-02 | I22: =IF(G23="","",WORKDAY(WORKDAY(DATEVALUE("31/12/"&G23),1,Feriados!$A$2:$A$10000),-1,Feriados!$A$2:$A$10000)) -> 2023-12-29
A23: 2024-11-15 | B23: =IF(C23="","",WORKDAY(+EDATE(+A23,1)-1,1,Feriados!$A$2:$A$1059)) -> 2024-12-16 | C23: 0.23 | D23: 4343.256895 | G23: 2023 | H23: =IF(G23="","",IF(H22<$B$2,VLOOKUP(H22,'Histórico VNA IPCA'!$B$9:$C$100000,2,FALSE),VLOOKUP(H22,'Projeção VNA'!A:B,2,FALSE))) -> 3994.299839 | I23: =IF(G23="","",IF(I22<$B$2,VLOOKUP(I22,'Histórico VNA IPCA'!$B$9:$C$100000,2,FALSE),VLOOKUP(I22,'Projeção VNA'!A:B,2,FALSE))) -> 4186.233123 | J23: =IF(G23="","",((I23/H23)-1)*100) -> 4.805179687 | K23: =IF(G23="","",AVERAGE(IF(H22<='Histórico + Projeção'!A:A,IF(I22>='Histórico + Projeção'!A:A,'Histórico + Projeção'!C:C)))) -> 0.3888690763 | L23: =IF(G23="","",MEDIAN(IF(H22<='Histórico + Projeção'!A:A,IF(I22>='Histórico + Projeção'!A:A,'Histórico + Projeção'!C:C)))) -> 0.39 | M23: =IF(G23="","",MIN(IF(H22<='Histórico + Projeção'!A:A,IF(I22>='Histórico + Projeção'!A:A,'Histórico + Projeção'!C:C)))) -> -0.09 | N23: =IF(G23="","",MAX(IF(H22<='Histórico + Projeção'!A:A,IF(I22>='Histórico + Projeção'!A:A,'Histórico + Projeção'!C:C)))) -> 0.84
A24: 2024-12-15 | B24: =IF(C24="","",WORKDAY(+EDATE(+A24,1)-1,1,Feriados!$A$2:$A$1059)) -> 2025-01-15 | C24: 0.34 | D24: 4358.023968 | H24: =IF(G25="","",WORKDAY(WORKDAY(DATEVALUE("01/01/"&G25),-1,Feriados!$A$2:$A$10000),1,Feriados!$A$2:$A$10000)) -> 2024-01-02 | I24: =IF(G25="","",WORKDAY(WORKDAY(DATEVALUE("31/12/"&G25),1,Feriados!$A$2:$A$10000),-1,Feriados!$A$2:$A$10000)) -> 2024-12-31
A25: 2025-01-15 | B25: =IF(C25="","",WORKDAY(+EDATE(+A25,1)-1,1,Feriados!$A$2:$A$1059)) -> 2025-02-17 | C25: 0.3 | D25: 4371.09804 | G25: 2024 | H25: =IF(G25="","",IF(H24<$B$2,VLOOKUP(H24,'Histórico VNA IPCA'!$B$9:$C$100000,2,FALSE),VLOOKUP(H24,'Projeção VNA'!A:B,2,FALSE))) -> 4187.09082 | I25: =IF(G25="","",IF(I24<$B$2,VLOOKUP(I24,'Histórico VNA IPCA'!$B$9:$C$100000,2,FALSE),VLOOKUP(I24,'Projeção VNA'!A:B,2,FALSE))) -> 4350.634166 | J25: =IF(G25="","",((I25/H25)-1)*100) -> 3.905894419 | K25: =IF(G25="","",AVERAGE(IF(H24<='Histórico + Projeção'!A:A,IF(I24>='Histórico + Projeção'!A:A,'Histórico + Projeção'!C:C)))) -> 0.3183114173 | L25: =IF(G25="","",MEDIAN(IF(H24<='Histórico + Projeção'!A:A,IF(I24>='Histórico + Projeção'!A:A,'Histórico + Projeção'!C:C)))) -> 0.296 | M25: =IF(G25="","",MIN(IF(H24<='Histórico + Projeção'!A:A,IF(I24>='Histórico + Projeção'!A:A,'Histórico + Projeção'!C:C)))) -> 0.1642 | N25: =IF(G25="","",MAX(IF(H24<='Histórico + Projeção'!A:A,IF(I24>='Histórico + Projeção'!A:A,'Histórico + Projeção'!C:C)))) -> 0.52
A26: 2025-02-15 | B26: =IF(C26="","",WORKDAY(+EDATE(+A26,1)-1,1,Feriados!$A$2:$A$1059)) -> 2025-03-17 | C26: 0.46 | D26: 4391.205091 | H26: =IF(G27="","",WORKDAY(WORKDAY(DATEVALUE("01/01/"&G27),-1,Feriados!$A$2:$A$10000),1,Feriados!$A$2:$A$10000)) -> 2025-01-02 | I26: =IF(G27="","",WORKDAY(WORKDAY(DATEVALUE("31/12/"&G27),1,Feriados!$A$2:$A$10000),-1,Feriados!$A$2:$A$10000)) -> 2025-12-31
A27: 2025-03-15 | B27: =IF(C27="","",WORKDAY(+EDATE(+A27,1)-1,1,Feriados!$A$2:$A$1059)) -> 2025-04-15 | C27: 0.4 | D27: 4408.769911 | G27: 2025 | H27: =IF(G27="","",IF(H26<$B$2,VLOOKUP(H26,'Histórico VNA IPCA'!$B$9:$C$100000,2,FALSE),VLOOKUP(H26,'Projeção VNA'!A:B,2,FALSE))) -> 4351.372582 | I27: =IF(G27="","",IF(I26<$B$2,VLOOKUP(I26,'Histórico VNA IPCA'!$B$9:$C$100000,2,FALSE),VLOOKUP(I26,'Projeção VNA'!A:B,2,FALSE))) -> 4513.487877 | J27: =IF(G27="","",((I27/H27)-1)*100) -> 3.725612829 | K27: =IF(G27="","",AVERAGE(IF(H26<='Histórico + Projeção'!A:A,IF(I26>='Histórico + Projeção'!A:A,'Histórico + Projeção'!C:C)))) -> 0.3014711462 | L27: =IF(G27="","",MEDIAN(IF(H26<='Histórico + Projeção'!A:A,IF(I26>='Histórico + Projeção'!A:A,'Histórico + Projeção'!C:C)))) -> 0.3 | M27: =IF(G27="","",MIN(IF(H26<='Histórico + Projeção'!A:A,IF(I26>='Histórico + Projeção'!A:A,'Histórico + Projeção'!C:C)))) -> 0.17 | N27: =IF(G27="","",MAX(IF(H26<='Histórico + Projeção'!A:A,IF(I26>='Histórico + Projeção'!A:A,'Histórico + Projeção'!C:C)))) -> 0.46
A28: 2025-04-15 | B28: =IF(C28="","",WORKDAY(+EDATE(+A28,1)-1,1,Feriados!$A$2:$A$1059)) -> 2025-05-15 | C28: 0.45 | D28: 4428.609376 | H28: =IF(G29="","",WORKDAY(WORKDAY(DATEVALUE("01/01/"&G29),-1,Feriados!$A$2:$A$10000),1,Feriados!$A$2:$A$10000)) -> 2026-01-02 | I28: =IF(G29="","",WORKDAY(WORKDAY(DATEVALUE("31/12/"&G29),1,Feriados!$A$2:$A$10000),-1,Feriados!$A$2:$A$10000)) -> 2026-12-31
A29: 2025-05-15 | B29: =IF(C29="","",WORKDAY(+EDATE(+A29,1)-1,1,Feriados!$A$2:$A$1059)) -> 2025-06-16 | C29: 0.33 | D29: 4443.223787 | G29: 2026 | H29: =IF(G29="","",IF(H28<$B$2,VLOOKUP(H28,'Histórico VNA IPCA'!$B$9:$C$100000,2,FALSE),VLOOKUP(H28,'Projeção VNA'!A:B,2,FALSE))) -> 4514.217452 | I29: =IF(G29="","",IF(I28<$B$2,VLOOKUP(I28,'Histórico VNA IPCA'!$B$9:$C$100000,2,FALSE),VLOOKUP(I28,'Projeção VNA'!A:B,2,FALSE))) -> 4682.059161 | J29: =IF(G29="","",((I29/H29)-1)*100) -> 3.718068767 | K29: =IF(G29="","",AVERAGE(IF(H28<='Histórico + Projeção'!A:A,IF(I28>='Histórico + Projeção'!A:A,'Histórico + Projeção'!C:C)))) -> 0.3036016 | L29: =IF(G29="","",MEDIAN(IF(H28<='Histórico + Projeção'!A:A,IF(I28>='Histórico + Projeção'!A:A,'Histórico + Projeção'!C:C)))) -> 0.3 | M29: =IF(G29="","",MIN(IF(H28<='Histórico + Projeção'!A:A,IF(I28>='Histórico + Projeção'!A:A,'Histórico + Projeção'!C:C)))) -> 0.17 | N29: =IF(G29="","",MAX(IF(H28<='Histórico + Projeção'!A:A,IF(I28>='Histórico + Projeção'!A:A,'Histórico + Projeção'!C:C)))) -> 0.46
A30: 2025-06-15 | B30: =IF(C30="","",WORKDAY(+EDATE(+A30,1)-1,1,Feriados!$A$2:$A$1059)) -> 2025-07-15 | C30: 0.3287 | D30: 4457.828664 | H30: =IF(G31="","",WORKDAY(WORKDAY(DATEVALUE("01/01/"&G31),-1,Feriados!$A$2:$A$10000),1,Feriados!$A$2:$A$10000)) -> 2027-01-04 | I30: =IF(G31="","",WORKDAY(WORKDAY(DATEVALUE("31/12/"&G31),1,Feriados!$A$2:$A$10000),-1,Feriados!$A$2:$A$10000)) -> 2027-12-31
A31: 2025-07-15 | B31: =IF(C31="","",WORKDAY(+EDATE(+A31,1)-1,1,Feriados!$A$2:$A$1059)) -> 2025-08-15 | C31: 0.255 | D31: 4469.196127 | G31: 2027 | H31: =IF(G31="","",IF(H30<$B$2,VLOOKUP(H30,'Histórico VNA IPCA'!$B$9:$C$100000,2,FALSE),VLOOKUP(H30,'Projeção VNA'!A:B,2,FALSE))) -> 4682.815984 | I31: =IF(G31="","",IF(I30<$B$2,VLOOKUP(I30,'Histórico VNA IPCA'!$B$9:$C$100000,2,FALSE),VLOOKUP(I30,'Projeção VNA'!A:B,2,FALSE))) -> 4856.892172 | J31: =IF(G31="","",((I31/H31)-1)*100) -> 3.717339912 | K31: =IF(G31="","",AVERAGE(IF(H30<='Histórico + Projeção'!A:A,IF(I30>='Histórico + Projeção'!A:A,'Histórico + Projeção'!C:C)))) -> 0.306352988 | L31: =IF(G31="","",MEDIAN(IF(H30<='Histórico + Projeção'!A:A,IF(I30>='Histórico + Projeção'!A:A,'Histórico + Projeção'!C:C)))) -> 0.3287 | M31: =IF(G31="","",MIN(IF(H30<='Histórico + Projeção'!A:A,IF(I30>='Histórico + Projeção'!A:A,'Histórico + Projeção'!C:C)))) -> 0.17 | N31: =IF(G31="","",MAX(IF(H30<='Histórico + Projeção'!A:A,IF(I30>='Histórico + Projeção'!A:A,'Histórico + Projeção'!C:C)))) -> 0.46
A32: 2025-08-15 | B32: =IF(C32="","",WORKDAY(+EDATE(+A32,1)-1,1,Feriados!$A$2:$A$1059)) -> 2025-09-15 | C32: 0.2092 | D32: 4478.545685 | H32: =IF(G33="","",WORKDAY(WORKDAY(DATEVALUE("01/01/"&G33),-1,Feriados!$A$2:$A$10000),1,Feriados!$A$2:$A$10000)) -> 2030-01-02 | I32: =IF(G33="","",WORKDAY(WORKDAY(DATEVALUE("31/12/"&G33),1,Feriados!$A$2:$A$10000),-1,Feriados!$A$2:$A$10000)) -> 2030-12-31
A33: 2025-09-15 | B33: =IF(C33="","",WORKDAY(+EDATE(+A33,1)-1,1,Feriados!$A$2:$A$1059)) -> 2025-10-15 | C33: 0.2 | D33: 4487.502776 | G33: 2030 | H33: =IF(G33="","",IF(H32<$B$2,VLOOKUP(H32,'Histórico VNA IPCA'!$B$9:$C$100000,2,FALSE),VLOOKUP(H32,'Projeção VNA'!A:B,2,FALSE))) -> 5226.541962 | I33: =IF(G33="","",IF(I32<$B$2,VLOOKUP(I32,'Histórico VNA IPCA'!$B$9:$C$100000,2,FALSE),VLOOKUP(I32,'Projeção VNA'!A:B,2,FALSE))) -> 5421.260373 | J33: =IF(G33="","",((I33/H33)-1)*100) -> 3.725568691 | K33: =IF(G33="","",AVERAGE(IF(H32<='Histórico + Projeção'!A:A,IF(I32>='Histórico + Projeção'!A:A,'Histórico + Projeção'!C:C)))) -> 0.3019474308 | L33: =IF(G33="","",MEDIAN(IF(H32<='Histórico + Projeção'!A:A,IF(I32>='Histórico + Projeção'!A:A,'Histórico + Projeção'!C:C)))) -> 0.3 | M33: =IF(G33="","",MIN(IF(H32<='Histórico + Projeção'!A:A,IF(I32>='Histórico + Projeção'!A:A,'Histórico + Projeção'!C:C)))) -> 0.17 | N33: =IF(G33="","",MAX(IF(H32<='Histórico + Projeção'!A:A,IF(I32>='Histórico + Projeção'!A:A,'Histórico + Projeção'!C:C)))) -> 0.46
A34: 2025-10-15 | B34: =IF(C34="","",WORKDAY(+EDATE(+A34,1)-1,1,Feriados!$A$2:$A$1059)) -> 2025-11-17 | C34: 0.17 | D34: 4495.131531 | H34: =IF(G35="","",WORKDAY(WORKDAY(DATEVALUE("01/01/"&G35),-1,Feriados!$A$2:$A$10000),1,Feriados!$A$2:$A$10000)) ->  | I34: =IF(G35="","",WORKDAY(WORKDAY(DATEVALUE("31/12/"&G35),1,Feriados!$A$2:$A$10000),-1,Feriados!$A$2:$A$10000)) -> 
A35: 2025-11-15 | B35: =IF(C35="","",WORKDAY(+EDATE(+A35,1)-1,1,Feriados!$A$2:$A$1059)) -> 2025-12-15 | C35: =+C23 -> 0.23 | D35: 4505.470334 | H35: =IF(G35="","",IF(H34<$B$2,VLOOKUP(H34,'Histórico VNA IPCA'!$B$9:$C$100000,2,FALSE),VLOOKUP(H34,'Projeção VNA'!A:B,2,FALSE))) ->  | I35: =IF(G35="","",IF(I34<$B$2,VLOOKUP(I34,'Histórico VNA IPCA'!$B$9:$C$100000,2,FALSE),VLOOKUP(I34,'Projeção VNA'!A:B,2,FALSE))) ->  | J35: =IF(G35="","",((I35/H35)-1)*100) ->  | K35: =IF(G35="","",AVERAGE(IF(H34<='Histórico + Projeção'!A:A,IF(I34>='Histórico + Projeção'!A:A,'Histórico + Projeção'!C:C)))) ->  | L35: =IF(G35="","",MEDIAN(IF(H34<='Histórico + Projeção'!A:A,IF(I34>='Histórico + Projeção'!A:A,'Histórico + Projeção'!C:C)))) ->  | M35: =IF(G35="","",MIN(IF(H34<='Histórico + Projeção'!A:A,IF(I34>='Histórico + Projeção'!A:A,'Histórico + Projeção'!C:C)))) ->  | N35: =IF(G35="","",MAX(IF(H34<='Histórico + Projeção'!A:A,IF(I34>='Histórico + Projeção'!A:A,'Histórico + Projeção'!C:C)))) -> 
A36: 2025-12-15 | B36: =IF(C36="","",WORKDAY(+EDATE(+A36,1)-1,1,Feriados!$A$2:$A$1059)) -> 2026-01-15 | C36: =+C24 -> 0.34 | D36: 4520.788933 | H36: =IF(G37="","",WORKDAY(WORKDAY(DATEVALUE("01/01/"&G37),-1,Feriados!$A$2:$A$10000),1,Feriados!$A$2:$A$10000)) ->  | I36: =IF(G37="","",WORKDAY(WORKDAY(DATEVALUE("31/12/"&G37),1,Feriados!$A$2:$A$10000),-1,Feriados!$A$2:$A$10000)) -> 
A37: 2026-01-15 | B37: =IF(C37="","",WORKDAY(+EDATE(+A37,1)-1,1,Feriados!$A$2:$A$1059)) -> 2026-02-18 | C37: 0.3 | D37: 4534.3513 | H37: =IF(G37="","",IF(H36<$B$2,VLOOKUP(H36,'Histórico VNA IPCA'!$B$9:$C$100000,2,FALSE),VLOOKUP(H36,'Projeção VNA'!A:B,2,FALSE))) ->  | I37: =IF(G37="","",IF(I36<$B$2,VLOOKUP(I36,'Histórico VNA IPCA'!$B$9:$C$100000,2,FALSE),VLOOKUP(I36,'Projeção VNA'!A:B,2,FALSE))) ->  | J37: =IF(G37="","",((I37/H37)-1)*100) ->  | K37: =IF(G37="","",AVERAGE(IF(H36<='Histórico + Projeção'!A:A,IF(I36>='Histórico + Projeção'!A:A,'Histórico + Projeção'!C:C)))) ->  | L37: =IF(G37="","",MEDIAN(IF(H36<='Histórico + Projeção'!A:A,IF(I36>='Histórico + Projeção'!A:A,'Histórico + Projeção'!C:C)))) ->  | M37: =IF(G37="","",MIN(IF(H36<='Histórico + Projeção'!A:A,IF(I36>='Histórico + Projeção'!A:A,'Histórico + Projeção'!C:C)))) ->  | N37: =IF(G37="","",MAX(IF(H36<='Histórico + Projeção'!A:A,IF(I36>='Histórico + Projeção'!A:A,'Histórico + Projeção'!C:C)))) -> 
A38: 2026-02-15 | B38: =IF(C38="","",WORKDAY(+EDATE(+A38,1)-1,1,Feriados!$A$2:$A$1059)) -> 2026-03-16 | C38: 0.46 | D38: 4555.209316 | H38: =IF(G39="","",WORKDAY(WORKDAY(DATEVALUE("01/01/"&G39),-1,Feriados!$A$2:$A$10000),1,Feriados!$A$2:$A$10000)) ->  | I38: =IF(G39="","",WORKDAY(WORKDAY(DATEVALUE("31/12/"&G39),1,Feriados!$A$2:$A$10000),-1,Feriados!$A$2:$A$10000)) -> 
A39: 2026-03-15 | B39: =IF(C39="","",WORKDAY(+EDATE(+A39,1)-1,1,Feriados!$A$2:$A$1059)) -> 2026-04-15 | C39: 0.4 | D39: 4573.430153 | H39: =IF(G39="","",IF(H38<$B$2,VLOOKUP(H38,'Histórico VNA IPCA'!$B$9:$C$100000,2,FALSE),VLOOKUP(H38,'Projeção VNA'!A:B,2,FALSE))) ->  | I39: =IF(G39="","",IF(I38<$B$2,VLOOKUP(I38,'Histórico VNA IPCA'!$B$9:$C$100000,2,FALSE),VLOOKUP(I38,'Projeção VNA'!A:B,2,FALSE))) ->  | J39: =IF(G39="","",((I39/H39)-1)*100) ->  | K39: =IF(G39="","",AVERAGE(IF(H38<='Histórico + Projeção'!A:A,IF(I38>='Histórico + Projeção'!A:A,'Histórico + Projeção'!C:C)))) ->  | L39: =IF(G39="","",MEDIAN(IF(H38<='Histórico + Projeção'!A:A,IF(I38>='Histórico + Projeção'!A:A,'Histórico + Projeção'!C:C)))) ->  | M39: =IF(G39="","",MIN(IF(H38<='Histórico + Projeção'!A:A,IF(I38>='Histórico + Projeção'!A:A,'Histórico + Projeção'!C:C)))) ->  | N39: =IF(G39="","",MAX(IF(H38<='Histórico + Projeção'!A:A,IF(I38>='Histórico + Projeção'!A:A,'Histórico + Projeção'!C:C)))) -> 
A40: 2026-04-15 | B40: =IF(C40="","",WORKDAY(+EDATE(+A40,1)-1,1,Feriados!$A$2:$A$1059)) -> 2026-05-15 | C40: 0.45 | D40: 4594.010589 | H40: =IF(G41="","",WORKDAY(WORKDAY(DATEVALUE("01/01/"&G41),-1,Feriados!$A$2:$A$10000),1,Feriados!$A$2:$A$10000)) ->  | I40: =IF(G41="","",WORKDAY(WORKDAY(DATEVALUE("31/12/"&G41),1,Feriados!$A$2:$A$10000),-1,Feriados!$A$2:$A$10000)) -> 
A41: 2026-05-15 | B41: =IF(C41="","",WORKDAY(+EDATE(+A41,1)-1,1,Feriados!$A$2:$A$1059)) -> 2026-06-15 | C41: 0.33 | D41: 4609.170824 | H41: =IF(G41="","",IF(H40<$B$2,VLOOKUP(H40,'Histórico VNA IPCA'!$B$9:$C$100000,2,FALSE),VLOOKUP(H40,'Projeção VNA'!A:B,2,FALSE))) ->  | I41: =IF(G41="","",IF(I40<$B$2,VLOOKUP(I40,'Histórico VNA IPCA'!$B$9:$C$100000,2,FALSE),VLOOKUP(I40,'Projeção VNA'!A:B,2,FALSE))) ->  | J41: =IF(G41="","",((I41/H41)-1)*100) ->  | K41: =IF(G41="","",AVERAGE(IF(H40<='Histórico + Projeção'!A:A,IF(I40>='Histórico + Projeção'!A:A,'Histórico + Projeção'!C:C)))) ->  | L41: =IF(G41="","",MEDIAN(IF(H40<='Histórico + Projeção'!A:A,IF(I40>='Histórico + Projeção'!A:A,'Histórico + Projeção'!C:C)))) ->  | M41: =IF(G41="","",MIN(IF(H40<='Histórico + Projeção'!A:A,IF(I40>='Histórico + Projeção'!A:A,'Histórico + Projeção'!C:C)))) ->  | N41: =IF(G41="","",MAX(IF(H40<='Histórico + Projeção'!A:A,IF(I40>='Histórico + Projeção'!A:A,'Histórico + Projeção'!C:C)))) -> 
A42: 2026-06-15 | B42: =IF(C42="","",WORKDAY(+EDATE(+A42,1)-1,1,Feriados!$A$2:$A$1059)) -> 2026-07-15 | C42: 0.3287 | D42: 4624.321168
A43: 2026-07-15 | B43: =IF(C43="","",WORKDAY(+EDATE(+A43,1)-1,1,Feriados!$A$2:$A$1059)) -> 2026-08-17 | C43: 0.255 | D43: 4636.113187
A44: 2026-08-15 | B44: =IF(C44="","",WORKDAY(+EDATE(+A44,1)-1,1,Feriados!$A$2:$A$1059)) -> 2026-09-15 | C44: 0.2092 | D44: 4645.811936
A45: 2026-09-15 | B45: =IF(C45="","",WORKDAY(+EDATE(+A45,1)-1,1,Feriados!$A$2:$A$1059)) -> 2026-10-15 | C45: 0.2 | D45: 4655.10356
A46: 2026-10-15 | B46: =IF(C46="","",WORKDAY(+EDATE(+A46,1)-1,1,Feriados!$A$2:$A$1059)) -> 2026-11-16 | C46: 0.17 | D46: 4663.017236
A47: 2026-11-15 | B47: =IF(C47="","",WORKDAY(+EDATE(+A47,1)-1,1,Feriados!$A$2:$A$1059)) -> 2026-12-15 | C47: 0.23 | D47: 4673.742176
A48: 2026-12-15 | B48: =IF(C48="","",WORKDAY(+EDATE(+A48,1)-1,1,Feriados!$A$2:$A$1059)) -> 2027-01-15 | C48: 0.34 | D48: 4689.632899
A49: 2027-01-15 | B49: =IF(C49="","",WORKDAY(+EDATE(+A49,1)-1,1,Feriados!$A$2:$A$1059)) -> 2027-02-15 | C49: 0.3 | D49: 4703.701798
A50: 2027-02-15 | B50: =IF(C50="","",WORKDAY(+EDATE(+A50,1)-1,1,Feriados!$A$2:$A$1059)) -> 2027-03-15 | C50: 0.46 | D50: 4725.338826
A51: 2027-03-15 | B51: =IF(C51="","",WORKDAY(+EDATE(+A51,1)-1,1,Feriados!$A$2:$A$1059)) -> 2027-04-15 | C51: 0.4 | D51: 4744.240181
A52: 2027-04-15 | B52: =IF(C52="","",WORKDAY(+EDATE(+A52,1)-1,1,Feriados!$A$2:$A$1059)) -> 2027-05-17 | C52: 0.45 | D52: 4765.589262
A53: 2027-05-15 | B53: =IF(C53="","",WORKDAY(+EDATE(+A53,1)-1,1,Feriados!$A$2:$A$1059)) -> 2027-06-15 | C53: 0.33 | D53: 4781.315707
A54: 2027-06-15 | B54: =IF(C54="","",WORKDAY(+EDATE(+A54,1)-1,1,Feriados!$A$2:$A$1059)) -> 2027-07-15 | C54: 0.3287 | D54: 4797.031892
A55: 2027-07-15 | B55: =IF(C55="","",WORKDAY(+EDATE(+A55,1)-1,1,Feriados!$A$2:$A$1059)) -> 2027-08-16 | C55: 0.255 | D55: 4809.264323
A56: 2027-08-15 | B56: =IF(C56="","",WORKDAY(+EDATE(+A56,1)-1,1,Feriados!$A$2:$A$1059)) -> 2027-09-15 | C56: 0.2092 | D56: 4819.325304
A57: 2027-09-15 | B57: =IF(C57="","",WORKDAY(+EDATE(+A57,1)-1,1,Feriados!$A$2:$A$1059)) -> 2027-10-15 | C57: 0.2 | D57: 4828.963955
A58: 2027-10-15 | B58: =IF(C58="","",WORKDAY(+EDATE(+A58,1)-1,1,Feriados!$A$2:$A$1059)) -> 2027-11-16 | C58: 0.17 | D58: 4837.173194
A59: 2027-11-15 | B59: =IF(C59="","",WORKDAY(+EDATE(+A59,1)-1,1,Feriados!$A$2:$A$1059)) -> 2027-12-15 | C59: 0.23 | D59: 4848.298692
A60: 2027-12-15 | B60: =IF(C60="","",WORKDAY(+EDATE(+A60,1)-1,1,Feriados!$A$2:$A$1059)) -> 2028-01-17 | C60: 0.34 | D60: 4864.782908
A61: 2028-01-15 | B61: =IF(C61="","",WORKDAY(+EDATE(+A61,1)-1,1,Feriados!$A$2:$A$1059)) -> 2028-02-15 | C61: 0.3 | D61: 4879.377257
A62: 2028-02-15 | B62: =IF(C62="","",WORKDAY(+EDATE(+A62,1)-1,1,Feriados!$A$2:$A$1059)) -> 2028-03-15 | C62: 0.46 | D62: 4901.822392
A63: 2028-03-15 | B63: =IF(C63="","",WORKDAY(+EDATE(+A63,1)-1,1,Feriados!$A$2:$A$1059)) -> 2028-04-17 | C63: 0.4 | D63: 4921.429682
A64: 2028-04-15 | B64: =IF(C64="","",WORKDAY(+EDATE(+A64,1)-1,1,Feriados!$A$2:$A$1059)) -> 2028-05-15 | C64: 0.45 | D64: 4943.576116
A65: 2028-05-15 | B65: =IF(C65="","",WORKDAY(+EDATE(+A65,1)-1,1,Feriados!$A$2:$A$1059)) -> 2028-06-16 | C65: 0.33 | D65: 4959.889917
A66: 2028-06-15 | B66: =IF(C66="","",WORKDAY(+EDATE(+A66,1)-1,1,Feriados!$A$2:$A$1059)) -> 2028-07-17 | C66: 0.3287 | D66: 4976.193075
A67: 2028-07-15 | B67: =IF(C67="","",WORKDAY(+EDATE(+A67,1)-1,1,Feriados!$A$2:$A$1059)) -> 2028-08-15 | C67: 0.255 | D67: 4988.882367
A68: 2028-08-15 | B68: =IF(C68="","",WORKDAY(+EDATE(+A68,1)-1,1,Feriados!$A$2:$A$1059)) -> 2028-09-15 | C68: 0.2092 | D68: 4999.319109
A69: 2028-09-15 | B69: =IF(C69="","",WORKDAY(+EDATE(+A69,1)-1,1,Feriados!$A$2:$A$1059)) -> 2028-10-16 | C69: 0.2 | D69: 5009.317747
A70: 2028-10-15 | B70: =IF(C70="","",WORKDAY(+EDATE(+A70,1)-1,1,Feriados!$A$2:$A$1059)) -> 2028-11-16 | C70: 0.17 | D70: 5017.833587
A71: 2028-11-15 | B71: =IF(C71="","",WORKDAY(+EDATE(+A71,1)-1,1,Feriados!$A$2:$A$1059)) -> 2028-12-15 | C71: 0.23 | D71: 5029.374604
A72: 2028-12-15 | B72: =IF(C72="","",WORKDAY(+EDATE(+A72,1)-1,1,Feriados!$A$2:$A$1059)) -> 2029-01-15 | C72: 0.34 | D72: 5046.474478
A73: 2029-01-15 | B73: =IF(C73="","",WORKDAY(+EDATE(+A73,1)-1,1,Feriados!$A$2:$A$1059)) -> 2029-02-15 | C73: 0.3 | D73: 5061.613901
A74: 2029-02-15 | B74: =IF(C74="","",WORKDAY(+EDATE(+A74,1)-1,1,Feriados!$A$2:$A$1059)) -> 2029-03-15 | C74: 0.46 | D74: 5084.897325
A75: 2029-03-15 | B75: =IF(C75="","",WORKDAY(+EDATE(+A75,1)-1,1,Feriados!$A$2:$A$1059)) -> 2029-04-16 | C75: 0.4 | D75: 5105.236914
A76: =IF(C76="","",EDATE(A75,1)) -> 2029-04-15 | B76: =IF(C76="","",WORKDAY(+EDATE(+A76,1)-1,1,Feriados!$A$2:$A$1059)) -> 2029-05-15 | C76: 0.45 | D76: =IF(C76="","",ROUND(D75*(1+C76/100),6)) -> 5128.21048
A77: 2029-05-15 | B77: =IF(C77="","",WORKDAY(+EDATE(+A77,1)-1,1,Feriados!$A$2:$A$1059)) -> 2029-06-15 | C77: 0.33 | D77: 5145.133575
A78: 2029-06-15 | B78: =IF(C78="","",WORKDAY(+EDATE(+A78,1)-1,1,Feriados!$A$2:$A$1059)) -> 2029-07-16 | C78: 0.3287 | D78: 5162.045629
A79: 2029-07-15 | B79: =IF(C79="","",WORKDAY(+EDATE(+A79,1)-1,1,Feriados!$A$2:$A$1059)) -> 2029-08-15 | C79: 0.255 | D79: 5175.208845
A80: 2029-08-15 | B80: =IF(C80="","",WORKDAY(+EDATE(+A80,1)-1,1,Feriados!$A$2:$A$1059)) -> 2029-09-17 | C80: 0.2092 | D80: 5186.035382
A81: 2029-09-15 | B81: =IF(C81="","",WORKDAY(+EDATE(+A81,1)-1,1,Feriados!$A$2:$A$1059)) -> 2029-10-15 | C81: 0.2 | D81: 5196.407453
A82: 2029-10-15 | B82: =IF(C82="","",WORKDAY(+EDATE(+A82,1)-1,1,Feriados!$A$2:$A$1059)) -> 2029-11-16 | C82: 0.17 | D82: 5205.241346
A83: 2029-11-15 | B83: =IF(C83="","",WORKDAY(+EDATE(+A83,1)-1,1,Feriados!$A$2:$A$1059)) -> 2029-12-17 | C83: 0.23 | D83: 5217.213401
A84: 2029-12-15 | B84: =IF(C84="","",WORKDAY(+EDATE(+A84,1)-1,1,Feriados!$A$2:$A$1059)) -> 2030-01-15 | C84: 0.34 | D84: 5234.951927
A85: 2030-01-15 | B85: =IF(C85="","",WORKDAY(+EDATE(+A85,1)-1,1,Feriados!$A$2:$A$1059)) -> 2030-02-15 | C85: 0.3 | D85: 5250.656783
A86: 2030-02-15 | B86: =IF(C86="","",WORKDAY(+EDATE(+A86,1)-1,1,Feriados!$A$2:$A$1059)) -> 2030-03-15 | C86: 0.46 | D86: 5274.809804
A87: 2030-03-15 | B87: =IF(C87="","",WORKDAY(+EDATE(+A87,1)-1,1,Feriados!$A$2:$A$1059)) -> 2030-04-15 | C87: 0.4 | D87: 5295.909043
A88: 2030-04-15 | B88: =IF(C88="","",WORKDAY(+EDATE(+A88,1)-1,1,Feriados!$A$2:$A$1059)) -> 2030-05-15 | C88: 0.45 | D88: 5319.740634
A89: 2030-05-15 | B89: =IF(C89="","",WORKDAY(+EDATE(+A89,1)-1,1,Feriados!$A$2:$A$1059)) -> 2030-06-17 | C89: 0.33 | D89: 5337.295778
A90: 2030-06-15 | B90: =IF(C90="","",WORKDAY(+EDATE(+A90,1)-1,1,Feriados!$A$2:$A$1059)) -> 2030-07-15 | C90: 0.3287 | D90: 5354.839469
A91: 2030-07-15 | B91: =IF(C91="","",WORKDAY(+EDATE(+A91,1)-1,1,Feriados!$A$2:$A$1059)) -> 2030-08-15 | C91: 0.255 | D91: 5368.49431
A92: 2030-08-15 | B92: =IF(C92="","",WORKDAY(+EDATE(+A92,1)-1,1,Feriados!$A$2:$A$1059)) -> 2030-09-16 | C92: 0.2092 | D92: 5379.7252
A93: 2030-09-15 | B93: =IF(C93="","",WORKDAY(+EDATE(+A93,1)-1,1,Feriados!$A$2:$A$1059)) -> 2030-10-15 | C93: 0.2 | D93: 5390.48465
A94: 2030-10-15 | B94: =IF(C94="","",WORKDAY(+EDATE(+A94,1)-1,1,Feriados!$A$2:$A$1059)) -> 2030-11-18 | C94: 0.17 | D94: 5399.648474
A95: 2030-11-15 | B95: =IF(C95="","",WORKDAY(+EDATE(+A95,1)-1,1,Feriados!$A$2:$A$1059)) -> 2030-12-16 | C95: 0.23 | D95: 5412.067665
A96: 2030-12-15 | B96: =IF(C96="","",WORKDAY(+EDATE(+A96,1)-1,1,Feriados!$A$2:$A$1059)) -> 2031-01-15 | C96: 0.34 | D96: 5430.468695
A97: 2031-01-15 | B97: =IF(C97="","",WORKDAY(+EDATE(+A97,1)-1,1,Feriados!$A$2:$A$1059)) -> 2031-02-17 | C97: 0.3 | D97: 5446.760101
A98: 2031-02-15 | B98: =IF(C98="","",WORKDAY(+EDATE(+A98,1)-1,1,Feriados!$A$2:$A$1059)) -> 2031-03-17 | C98: 0.46 | D98: 5471.815197
A99: 2031-03-15 | B99: =IF(C99="","",WORKDAY(+EDATE(+A99,1)-1,1,Feriados!$A$2:$A$1059)) -> 2031-04-15 | C99: 0.4 | D99: 5493.702458
A100: 2031-04-15 | B100: =IF(C100="","",WORKDAY(+EDATE(+A100,1)-1,1,Feriados!$A$2:$A$1059)) -> 2031-05-15 | C100: =+C88 -> 0.45 | D100: 5518.424119
A101: 2031-05-15 | B101: =IF(C101="","",WORKDAY(+EDATE(+A101,1)-1,1,Feriados!$A$2:$A$1059)) -> 2031-06-16 | C101: 0.33 | D101: 5536.634919
A102: 2031-06-15 | B102: =IF(C102="","",WORKDAY(+EDATE(+A102,1)-1,1,Feriados!$A$2:$A$1059)) -> 2031-07-15 | C102: 0.3287 | D102: 5554.833838
A103: 2031-07-15 | B103: =IF(C103="","",WORKDAY(+EDATE(+A103,1)-1,1,Feriados!$A$2:$A$1059)) -> 2031-08-15 | C103: 0.255 | D103: 5568.998664
A104: 2031-08-15 | B104: =IF(C104="","",WORKDAY(+EDATE(+A104,1)-1,1,Feriados!$A$2:$A$1059)) -> 2031-09-15 | C104: 0.2092 | D104: 5580.649009
A105: 2031-09-15 | B105: =IF(C105="","",WORKDAY(+EDATE(+A105,1)-1,1,Feriados!$A$2:$A$1059)) -> 2031-10-15 | C105: 0.2 | D105: 5591.810307
A106: 2031-10-15 | B106: =IF(C106="","",WORKDAY(+EDATE(+A106,1)-1,1,Feriados!$A$2:$A$1059)) -> 2031-11-17 | C106: 0.17 | D106: 5601.316385
A107: 2031-11-15 | B107: =IF(C107="","",WORKDAY(+EDATE(+A107,1)-1,1,Feriados!$A$2:$A$1059)) -> 2031-12-15 | C107: 0.23 | D107: 5614.199413
A108: 2031-12-15 | B108: =IF(C108="","",WORKDAY(+EDATE(+A108,1)-1,1,Feriados!$A$2:$A$1059)) -> 2032-01-15 | C108: 0.34 | D108: 5633.287691
A109: 2032-01-15 | B109: =IF(C109="","",WORKDAY(+EDATE(+A109,1)-1,1,Feriados!$A$2:$A$1059)) -> 2032-02-16 | C109: 0.3 | D109: 5650.187554
A110: 2032-02-15 | B110: =IF(C110="","",WORKDAY(+EDATE(+A110,1)-1,1,Feriados!$A$2:$A$1059)) -> 2032-03-15 | C110: 0.46 | D110: 5676.178417
A111: 2032-03-15 | B111: =IF(C111="","",WORKDAY(+EDATE(+A111,1)-1,1,Feriados!$A$2:$A$1059)) -> 2032-04-15 | C111: 0.4 | D111: 5698.883131
A112: 2032-04-15 | B112: =IF(C112="","",WORKDAY(+EDATE(+A112,1)-1,1,Feriados!$A$2:$A$1059)) -> 2032-05-17 | C112: 0.45 | D112: 5724.528105
A113: 2032-05-15 | B113: =IF(C113="","",WORKDAY(+EDATE(+A113,1)-1,1,Feriados!$A$2:$A$1059)) -> 2032-06-15 | C113: 0.33 | D113: 5743.419048
A114: 2032-06-15 | B114: =IF(C114="","",WORKDAY(+EDATE(+A114,1)-1,1,Feriados!$A$2:$A$1059)) -> 2032-07-15 | C114: 0.3287 | D114: 5762.297666
A115: 2032-07-15 | B115: =IF(C115="","",WORKDAY(+EDATE(+A115,1)-1,1,Feriados!$A$2:$A$1059)) -> 2032-08-16 | C115: 0.255 | D115: 5776.991525
A116: 2032-08-15 | B116: =IF(C116="","",WORKDAY(+EDATE(+A116,1)-1,1,Feriados!$A$2:$A$1059)) -> 2032-09-15 | C116: 0.2092 | D116: 5789.076991
A117: 2032-09-15 | B117: =IF(C117="","",WORKDAY(+EDATE(+A117,1)-1,1,Feriados!$A$2:$A$1059)) -> 2032-10-15 | C117: 0.2 | D117: 5800.655145
A118: 2032-10-15 | B118: =IF(C118="","",WORKDAY(+EDATE(+A118,1)-1,1,Feriados!$A$2:$A$1059)) -> 2032-11-16 | C118: 0.17 | D118: 5810.516259
A119: 2032-11-15 | B119: =IF(C119="","",WORKDAY(+EDATE(+A119,1)-1,1,Feriados!$A$2:$A$1059)) -> 2032-12-15 | C119: 0.23 | D119: 5823.880446
A120: 2032-12-15 | B120: =IF(C120="","",WORKDAY(+EDATE(+A120,1)-1,1,Feriados!$A$2:$A$1059)) -> 2033-01-17 | C120: 0.34 | D120: 5843.68164
A121: 2033-01-15 | B121: =IF(C121="","",WORKDAY(+EDATE(+A121,1)-1,1,Feriados!$A$2:$A$1059)) -> 2033-02-15 | C121: 0.3 | D121: 5861.212685
A122: 2033-02-15 | B122: =IF(C122="","",WORKDAY(+EDATE(+A122,1)-1,1,Feriados!$A$2:$A$1059)) -> 2033-03-15 | C122: 0.46 | D122: 5888.174263
A123: 2033-03-15 | B123: =IF(C123="","",WORKDAY(+EDATE(+A123,1)-1,1,Feriados!$A$2:$A$1059)) -> 2033-04-18 | C123: 0.4 | D123: 5911.72696
A124: 2033-04-15 | B124: =IF(C124="","",WORKDAY(+EDATE(+A124,1)-1,1,Feriados!$A$2:$A$1059)) -> 2033-05-16 | C124: 0.45 | D124: 5938.329731
A125: 2033-05-15 | B125: =IF(C125="","",WORKDAY(+EDATE(+A125,1)-1,1,Feriados!$A$2:$A$1059)) -> 2033-06-15 | C125: 0.33 | D125: 5957.926219
A126: 2033-06-15 | B126: =IF(C126="","",WORKDAY(+EDATE(+A126,1)-1,1,Feriados!$A$2:$A$1059)) -> 2033-07-15 | C126: 0.3287 | D126: 5977.509922
A127: 2033-07-15 | B127: =IF(C127="","",WORKDAY(+EDATE(+A127,1)-1,1,Feriados!$A$2:$A$1059)) -> 2033-08-15 | C127: 0.255 | D127: 5992.752572
A128: 2033-08-15 | B128: =IF(C128="","",WORKDAY(+EDATE(+A128,1)-1,1,Feriados!$A$2:$A$1059)) -> 2033-09-15 | C128: 0.2092 | D128: 6005.28941
A129: 2033-09-15 | B129: =IF(C129="","",WORKDAY(+EDATE(+A129,1)-1,1,Feriados!$A$2:$A$1059)) -> 2033-10-17 | C129: 0.2 | D129: 6017.299989
A130: 2033-10-15 | B130: =IF(C130="","",WORKDAY(+EDATE(+A130,1)-1,1,Feriados!$A$2:$A$1059)) -> 2033-11-16 | C130: 0.17 | D130: 6027.529399
A131: 2033-11-15 | B131: =IF(C131="","",WORKDAY(+EDATE(+A131,1)-1,1,Feriados!$A$2:$A$1059)) -> 2033-12-15 | C131: 0.23 | D131: 6041.392717
A132: 2033-12-15 | B132: =IF(C132="","",WORKDAY(+EDATE(+A132,1)-1,1,Feriados!$A$2:$A$1059)) -> 2034-01-16 | C132: 0.34 | D132: 6061.933452
A133: 2034-01-15 | B133: =IF(C133="","",WORKDAY(+EDATE(+A133,1)-1,1,Feriados!$A$2:$A$1059)) -> 2034-02-15 | C133: 0.3 | D133: 6080.119252
A134: 2034-02-15 | B134: =IF(C134="","",WORKDAY(+EDATE(+A134,1)-1,1,Feriados!$A$2:$A$1059)) -> 2034-03-15 | C134: 0.46 | D134: 6108.087801
A135: 2034-03-15 | B135: =IF(C135="","",WORKDAY(+EDATE(+A135,1)-1,1,Feriados!$A$2:$A$1059)) -> 2034-04-17 | C135: 0.4 | D135: 6132.520152
A136: 2034-04-15 | B136: =IF(C136="","",WORKDAY(+EDATE(+A136,1)-1,1,Feriados!$A$2:$A$1059)) -> 2034-05-15 | C136: 0.45 | D136: =IF(C136="","",ROUND(D135*(1+C136/100),6)) -> 6160.116493
A137: 2034-05-15 | B137: =IF(C137="","",WORKDAY(+EDATE(+A137,1)-1,1,Feriados!$A$2:$A$1059)) -> 2034-06-15 | C137: 0.33 | D137: 6180.444877
A138: 2034-06-15 | B138: =IF(C138="","",WORKDAY(+EDATE(+A138,1)-1,1,Feriados!$A$2:$A$1059)) -> 2034-07-17 | C138: 0.3287 | D138: 6200.759999
A139: 2034-07-15 | B139: =IF(C139="","",WORKDAY(+EDATE(+A139,1)-1,1,Feriados!$A$2:$A$1059)) -> 2034-08-15 | C139: 0.255 | D139: 6216.571937
A140: =IF(C140="","",EDATE(A139,1)) -> 2034-08-15 | B140: =IF(C140="","",WORKDAY(+EDATE(+A140,1)-1,1,Feriados!$A$2:$A$1059)) -> 2034-09-15 | C140: 0.2092 | D140: 6229.577005
A141: 2034-09-15 | B141: =IF(C141="","",WORKDAY(+EDATE(+A141,1)-1,1,Feriados!$A$2:$A$1059)) -> 2034-10-16 | C141: 0.2 | D141: 6242.036159
A142: 2034-10-15 | B142: =IF(C142="","",WORKDAY(+EDATE(+A142,1)-1,1,Feriados!$A$2:$A$1059)) -> 2034-11-16 | C142: 0.17 | D142: 6252.64762
A143: 2034-11-15 | B143: =IF(C143="","",WORKDAY(+EDATE(+A143,1)-1,1,Feriados!$A$2:$A$1059)) -> 2034-12-15 | C143: 0.23 | D143: 6267.02871
A144: 2034-12-15 | B144: =IF(C144="","",WORKDAY(+EDATE(+A144,1)-1,1,Feriados!$A$2:$A$1059)) -> 2035-01-15 | C144: 0.34 | D144: 6288.336608
A145: 2035-01-15 | B145: =IF(C145="","",WORKDAY(+EDATE(+A145,1)-1,1,Feriados!$A$2:$A$1059)) -> 2035-02-15 | C145: 0.3 | D145: 6307.201618
A146: 2035-02-15 | B146: =IF(C146="","",WORKDAY(+EDATE(+A146,1)-1,1,Feriados!$A$2:$A$1059)) -> 2035-03-15 | C146: 0.46 | D146: 6336.214745
A147: 2035-03-15 | B147: =IF(C147="","",WORKDAY(+EDATE(+A147,1)-1,1,Feriados!$A$2:$A$1059)) -> 2035-04-16 | C147: 0.4 | D147: 6361.559604
A148: 2035-04-15 | B148: =IF(C148="","",WORKDAY(+EDATE(+A148,1)-1,1,Feriados!$A$2:$A$1059)) -> 2035-05-15 | C148: 0.45 | D148: 6390.186622
A149: 2035-05-15 | B149: =IF(C149="","",WORKDAY(+EDATE(+A149,1)-1,1,Feriados!$A$2:$A$1059)) -> 2035-06-15 | C149: 0.33 | D149: 6411.274238
A150: 2035-06-15 | B150: =IF(C150="","",WORKDAY(+EDATE(+A150,1)-1,1,Feriados!$A$2:$A$1059)) -> 2035-07-16 | C150: 0.3287 | D150: 6432.348096
A151: 2035-07-15 | B151: =IF(C151="","",WORKDAY(+EDATE(+A151,1)-1,1,Feriados!$A$2:$A$1059)) -> 2035-08-15 | C151: 0.255 | D151: 6448.750584
A152: 2035-08-15 | B152: =IF(C152="","",WORKDAY(+EDATE(+A152,1)-1,1,Feriados!$A$2:$A$1059)) -> 2035-09-17 | C152: 0.2092 | D152: 6462.24137
A153: 2035-09-15 | B153: =IF(C153="","",WORKDAY(+EDATE(+A153,1)-1,1,Feriados!$A$2:$A$1059)) -> 2035-10-15 | C153: 0.2 | D153: 6475.165853
A154: 2035-10-15 | B154: =IF(C154="","",WORKDAY(+EDATE(+A154,1)-1,1,Feriados!$A$2:$A$1059)) -> 2035-11-16 | C154: 0.17 | D154: 6486.173635
A155: 2035-11-15 | B155: =IF(C155="","",WORKDAY(+EDATE(+A155,1)-1,1,Feriados!$A$2:$A$1059)) -> 2035-12-17 | C155: 0.23 | D155: 6501.091834
B156: =IF(C156="","",WORKDAY(+EDATE(+A156,1)-1,1,Feriados!$A$2:$A$1059)) ->  | D156: =IF(C156="","",ROUND(D155*(1+C156/100),6)) -> 
B157: =IF(C157="","",WORKDAY(+EDATE(+A157,1)-1,1,Feriados!$A$2:$A$1059)) -> 
B158: =IF(C158="","",WORKDAY(+EDATE(+A158,1)-1,1,Feriados!$A$2:$A$1059)) -> 
B159: =IF(C159="","",WORKDAY(+EDATE(+A159,1)-1,1,Feriados!$A$2:$A$1059)) -> 
B160: =IF(C160="","",WORKDAY(+EDATE(+A160,1)-1,1,Feriados!$A$2:$A$1059)) -> 
B161: =IF(C161="","",WORKDAY(+EDATE(+A161,1)-1,1,Feriados!$A$2:$A$1059)) -> 
B162: =IF(C162="","",WORKDAY(+EDATE(+A162,1)-1,1,Feriados!$A$2:$A$1059)) -> 
B163: =IF(C163="","",WORKDAY(+EDATE(+A163,1)-1,1,Feriados!$A$2:$A$1059)) -> 
B164: =IF(C164="","",WORKDAY(+EDATE(+A164,1)-1,1,Feriados!$A$2:$A$1059)) -> 
B165: =IF(C165="","",WORKDAY(+EDATE(+A165,1)-1,1,Feriados!$A$2:$A$1059)) -> 
B166: =IF(C166="","",WORKDAY(+EDATE(+A166,1)-1,1,Feriados!$A$2:$A$1059)) -> 
B167: =IF(C167="","",WORKDAY(+EDATE(+A167,1)-1,1,Feriados!$A$2:$A$1059)) -> 
B168: =IF(C168="","",WORKDAY(+EDATE(+A168,1)-1,1,Feriados!$A$2:$A$1059)) -> 
B169: =IF(C169="","",WORKDAY(+EDATE(+A169,1)-1,1,Feriados!$A$2:$A$1059)) -> 
B170: =IF(C170="","",WORKDAY(+EDATE(+A170,1)-1,1,Feriados!$A$2:$A$1059)) -> 
B171: =IF(C171="","",WORKDAY(+EDATE(+A171,1)-1,1,Feriados!$A$2:$A$1059)) -> 
B172: =IF(C172="","",WORKDAY(+EDATE(+A172,1)-1,1,Feriados!$A$2:$A$1059)) -> 
B173: =IF(C173="","",WORKDAY(+EDATE(+A173,1)-1,1,Feriados!$A$2:$A$1059)) -> 
B174: =IF(C174="","",WORKDAY(+EDATE(+A174,1)-1,1,Feriados!$A$2:$A$1059)) -> 
B175: =IF(C175="","",WORKDAY(+EDATE(+A175,1)-1,1,Feriados!$A$2:$A$1059)) -> 
B176: =IF(C176="","",WORKDAY(+EDATE(+A176,1)-1,1,Feriados!$A$2:$A$1059)) -> 
B177: =IF(C177="","",WORKDAY(+EDATE(+A177,1)-1,1,Feriados!$A$2:$A$1059)) -> 
B178: =IF(C178="","",WORKDAY(+EDATE(+A178,1)-1,1,Feriados!$A$2:$A$1059)) -> 
B179: =IF(C179="","",WORKDAY(+EDATE(+A179,1)-1,1,Feriados!$A$2:$A$1059)) -> 
B180: =IF(C180="","",WORKDAY(+EDATE(+A180,1)-1,1,Feriados!$A$2:$A$1059)) -> 
B181: =IF(C181="","",WORKDAY(+EDATE(+A181,1)-1,1,Feriados!$A$2:$A$1059)) -> 
B182: =IF(C182="","",WORKDAY(+EDATE(+A182,1)-1,1,Feriados!$A$2:$A$1059)) -> 
B183: =IF(C183="","",WORKDAY(+EDATE(+A183,1)-1,1,Feriados!$A$2:$A$1059)) -> 
B184: =IF(C184="","",WORKDAY(+EDATE(+A184,1)-1,1,Feriados!$A$2:$A$1059)) -> 
B185: =IF(C185="","",WORKDAY(+EDATE(+A185,1)-1,1,Feriados!$A$2:$A$1059)) -> 
B186: =IF(C186="","",WORKDAY(+EDATE(+A186,1)-1,1,Feriados!$A$2:$A$1059)) -> 
B187: =IF(C187="","",WORKDAY(+EDATE(+A187,1)-1,1,Feriados!$A$2:$A$1059)) -> 
B188: =IF(C188="","",WORKDAY(+EDATE(+A188,1)-1,1,Feriados!$A$2:$A$1059)) -> 
B189: =IF(C189="","",WORKDAY(+EDATE(+A189,1)-1,1,Feriados!$A$2:$A$1059)) -> 
B190: =IF(C190="","",WORKDAY(+EDATE(+A190,1)-1,1,Feriados!$A$2:$A$1059)) -> 
B191: =IF(C191="","",WORKDAY(+EDATE(+A191,1)-1,1,Feriados!$A$2:$A$1059)) -> 
B192: =IF(C192="","",WORKDAY(+EDATE(+A192,1)-1,1,Feriados!$A$2:$A$1059)) -> 
B193: =IF(C193="","",WORKDAY(+EDATE(+A193,1)-1,1,Feriados!$A$2:$A$1059)) -> 
B194: =IF(C194="","",WORKDAY(+EDATE(+A194,1)-1,1,Feriados!$A$2:$A$1059)) -> 
B195: =IF(C195="","",WORKDAY(+EDATE(+A195,1)-1,1,Feriados!$A$2:$A$1059)) -> 
B196: =IF(C196="","",WORKDAY(+EDATE(+A196,1)-1,1,Feriados!$A$2:$A$1059)) -> 
B197: =IF(C197="","",WORKDAY(+EDATE(+A197,1)-1,1,Feriados!$A$2:$A$1059)) -> 
B198: =IF(C198="","",WORKDAY(+EDATE(+A198,1)-1,1,Feriados!$A$2:$A$1059)) -> 
B199: =IF(C199="","",WORKDAY(+EDATE(+A199,1)-1,1,Feriados!$A$2:$A$1059)) -> 
B200: =IF(C200="","",WORKDAY(+EDATE(+A200,1)-1,1,Feriados!$A$2:$A$1059)) -> 
B201: =IF(C201="","",WORKDAY(+EDATE(+A201,1)-1,1,Feriados!$A$2:$A$1059)) -> 
... 289 more rows

Sheet Resultados
A1: VNA Histórico | C1: Data | D1: VNA
A2: Data Base | C2: =+'Histórico VNA IPCA'!B10 -> 2000-07-17 | D2: =+'Histórico VNA IPCA'!C10 -> 1000 | E2: Duração | F2: IPCA Período (%) | G2: IPCA (%) a.a.
A3: Máximo Histórico | C3: =+'Histórico VNA IPCA'!C1 -> 2023-11-07 | D3: =VLOOKUP(C3,'Histórico VNA IPCA'!B9:C100000,2,FALSE) -> 4157.99242 | E3: =NETWORKDAYS(C2,C3-1,Feriados!$A$2:$A$1037) -> 5854 | F3: =+(D3/D2-1)*100 -> 315.799242 | G3: =((1+F3/100)^(252/E3)-1)*100 -> 6.326468339
A5: VNA Projeção | C5: Data | D5: VNA
A6: Data Base Projeção | C6: =+'Projeção VNA'!A6 -> 2023-11-08 | D6: =+'Projeção VNA'!B6 -> 4158.410935 | E6: Duração | F6: IPCA Período (%) | G6: IPCA (%) a.a.
A7: Máximo Projeção | C7: =+'Projeção VNA'!C2 -> 2035-12-17 | D7: =VLOOKUP(C7,'Projeção VNA'!$A:$B,2,FALSE) -> 6501.091834 | E7: =NETWORKDAYS(C6,C7-1,Feriados!$A$2:$A$1037) -> 3041 | F7: =+(D7/D6-1)*100 -> 56.33596426 | G7: =((1+F7/100)^(252/E7)-1)*100 -> 3.7722352
D9: Construa suas Projeções
B11: Base | C11: =+C6 -> 2023-11-08 | E11: Máximo para Projetar: | F11: =+C7 -> 2035-12-17
B12: Venc. Dia Útil | C12: VNA | D12: Duração | E12: VNA IPCA Período | F12: VNA IPCA a.a.
B13: 2025-11-07 | C13: =IF(B13="","",VLOOKUP(WORKDAY(WORKDAY(B13,-1,Feriados!$A$2:$A$10000),1,Feriados!$A$2:$A$10000),'Projeção VNA'!A:B,2,FALSE)) -> 4493.140172 | D13: =IF(B13="","",NETWORKDAYS($C$11,B13-1,Feriados!$A$2:$A$1037)) -> 505 | E13: =IF(B13="","",+(C13/$D$6-1)*100) -> 8.049450652 | F13: =IF(B13="","",((1+E13/100)^(252/D13)-1)*100) -> 3.938870229
C14: =IF(B14="","",VLOOKUP(WORKDAY(WORKDAY(B14,-1,Feriados!$A$2:$A$10000),1,Feriados!$A$2:$A$10000),'Projeção VNA'!A:B,2,FALSE)) ->  | D14: =IF(B14="","",NETWORKDAYS($C$11,B14-1,Feriados!$A$2:$A$1037)) ->  | E14: =IF(B14="","",+(C14/$D$6-1)*100) ->  | F14: =IF(B14="","",((1+E14/100)^(252/D14)-1)*100) -> 
C15: =IF(B15="","",VLOOKUP(WORKDAY(WORKDAY(B15,-1,Feriados!$A$2:$A$10000),1,Feriados!$A$2:$A$10000),'Projeção VNA'!A:B,2,FALSE)) ->  | D15: =IF(B15="","",NETWORKDAYS($C$11,B15-1,Feriados!$A$2:$A$1037)) -> 
C16: =IF(B16="","",VLOOKUP(WORKDAY(WORKDAY(B16,-1,Feriados!$A$2:$A$10000),1,Feriados!$A$2:$A$10000),'Projeção VNA'!A:B,2,FALSE)) ->  | D16: =IF(B16="","",NETWORKDAYS($C$11,B16-1,Feriados!$A$2:$A$1037)) -> 
C17: =IF(B17="","",VLOOKUP(WORKDAY(WORKDAY(B17,-1,Feriados!$A$2:$A$10000),1,Feriados!$A$2:$A$10000),'Projeção VNA'!A:B,2,FALSE)) ->  | D17: =IF(B17="","",NETWORKDAYS($C$11,B17-1,Feriados!$A$2:$A$1037)) -> 
C18: =IF(B18="","",VLOOKUP(WORKDAY(WORKDAY(B18,-1,Feriados!$A$2:$A$10000),1,Feriados!$A$2:$A$10000),'Projeção VNA'!A:B,2,FALSE)) ->  | D18: =IF(B18="","",NETWORKDAYS($C$11,B18-1,Feriados!$A$2:$A$1037)) -> 
C19: =IF(B19="","",VLOOKUP(WORKDAY(WORKDAY(B19,-1,Feriados!$A$2:$A$10000),1,Feriados!$A$2:$A$10000),'Projeção VNA'!A:B,2,FALSE)) ->  | D19: =IF(B19="","",NETWORKDAYS($C$11,B19-1,Feriados!$A$2:$A$1037)) -> 
C20: =IF(B20="","",VLOOKUP(WORKDAY(WORKDAY(B20,-1,Feriados!$A$2:$A$10000),1,Feriados!$A$2:$A$10000),'Projeção VNA'!A:B,2,FALSE)) ->  | D20: =IF(B20="","",NETWORKDAYS($C$11,B20-1,Feriados!$A$2:$A$1037)) -> 
C21: =IF(B21="","",VLOOKUP(WORKDAY(WORKDAY(B21,-1,Feriados!$A$2:$A$10000),1,Feriados!$A$2:$A$10000),'Projeção VNA'!A:B,2,FALSE)) ->  | D21: =IF(B21="","",NETWORKDAYS($C$11,B21-1,Feriados!$A$2:$A$1037)) -> 
C22: =IF(B22="","",VLOOKUP(WORKDAY(WORKDAY(B22,-1,Feriados!$A$2:$A$10000),1,Feriados!$A$2:$A$10000),'Projeção VNA'!A:B,2,FALSE)) ->  | D22: =IF(B22="","",NETWORKDAYS($C$11,B22-1,Feriados!$A$2:$A$1037)) -> 
C23: =IF(B23="","",VLOOKUP(WORKDAY(WORKDAY(B23,-1,Feriados!$A$2:$A$10000),1,Feriados!$A$2:$A$10000),'Projeção VNA'!A:B,2,FALSE)) ->  | D23: =IF(B23="","",NETWORKDAYS($C$11,B23-1,Feriados!$A$2:$A$1037)) -> 
C24: =IF(B24="","",VLOOKUP(WORKDAY(WORKDAY(B24,-1,Feriados!$A$2:$A$10000),1,Feriados!$A$2:$A$10000),'Projeção VNA'!A:B,2,FALSE)) ->  | D24: =IF(B24="","",NETWORKDAYS($C$11,B24-1,Feriados!$A$2:$A$1037)) -> 
E26: Máximo para Projetar: | F26: =+F11 -> 2035-12-17
B27: Período | C27: Datas | D27: VNA | E27: Duração | F27: IPCA Período (%) | G27: IPCA (%) a.a.
B28: Ínicio | C28: 2022-01-01 | D28: =IF(OR(C28="",C29=""),"",IF(C28>$C$3,VLOOKUP(WORKDAY(WORKDAY(C28,-1,Feriados!$A$2:$A$10000),1,Feriados!$A$2:$A$10000),'Projeção VNA'!$A:$B,2,FALSE),VLOOKUP(WORKDAY(WORKDAY(C28,-1,Feriados!$A$2:$A$10000),1,Feriados!$A$2:$A$10000),'Histórico VNA IPCA'!$B:$C,2,FALSE))) -> 3776.091413
B29: Fim | C29: 2023-01-01 | D29: =IF(OR(C29="",C28=""),"",IF(C29>$C$3,VLOOKUP(WORKDAY(WORKDAY(C29,-1,Feriados!$A$2:$A$10000),1,Feriados!$A$2:$A$10000),'Projeção VNA'!$A:$B,2,FALSE),VLOOKUP(WORKDAY(WORKDAY(C29,-1,Feriados!$A$2:$A$10000),1,Feriados!$A$2:$A$10000),'Histórico VNA IPCA'!$B:$C,2,FALSE))) -> 3994.299839 | E29: =IF(OR(C28="",C29=""),"",NETWORKDAYS(C28,C29-1,Feriados!$A$2:$A$1037)) -> 251 | F29: =IF(OR(C28="",C29=""),"",+(D29/D28-1)*100) -> 5.778684945 | G29: =IF(OR(C28="",C29=""),"",((1+F29/100)^(252/E29)-1)*100) -> 5.802362992
B30: Ínicio | C30: 2023-01-01 | D30: =IF(OR(C30="",C31=""),"",IF(C30>$C$3,VLOOKUP(WORKDAY(WORKDAY(C30,-1,Feriados!$A$2:$A$10000),1,Feriados!$A$2:$A$10000),'Projeção VNA'!$A:$B,2,FALSE),VLOOKUP(WORKDAY(WORKDAY(C30,-1,Feriados!$A$2:$A$10000),1,Feriados!$A$2:$A$10000),'Histórico VNA IPCA'!$B:$C,2,FALSE))) -> 3994.299839
B31: Fim | C31: 2023-07-01 | D31: =IF(OR(C31="",C30=""),"",IF(C31>$C$3,VLOOKUP(WORKDAY(WORKDAY(C31,-1,Feriados!$A$2:$A$10000),1,Feriados!$A$2:$A$10000),'Projeção VNA'!$A:$B,2,FALSE),VLOOKUP(WORKDAY(WORKDAY(C31,-1,Feriados!$A$2:$A$10000),1,Feriados!$A$2:$A$10000),'Histórico VNA IPCA'!$B:$C,2,FALSE))) -> 4126.052744 | E31: =IF(OR(C30="",C31=""),"",NETWORKDAYS(C30,C31-1,Feriados!$A$2:$A$1037)) -> 124 | F31: =IF(OR(C30="",C31=""),"",+(D31/D30-1)*100) -> 3.298523153 | G31: =IF(OR(C30="",C31=""),"",((1+F31/100)^(252/E31)-1)*100) -> 6.817614236
B32: Ínicio | C32: 2020-01-10 | D32: =IF(OR(C32="",C33=""),"",IF(C32>$C$3,VLOOKUP(WORKDAY(WORKDAY(C32,-1,Feriados!$A$2:$A$10000),1,Feriados!$A$2:$A$10000),'Projeção VNA'!$A:$B,2,FALSE),VLOOKUP(WORKDAY(WORKDAY(C32,-1,Feriados!$A$2:$A$10000),1,Feriados!$A$2:$A$10000),'Histórico VNA IPCA'!$B:$C,2,FALSE))) -> 3289.400815
B33: Fim | C33: 2021-04-30 | D33: =IF(OR(C33="",C32=""),"",IF(C33>$C$3,VLOOKUP(WORKDAY(WORKDAY(C33,-1,Feriados!$A$2:$A$10000),1,Feriados!$A$2:$A$10000),'Projeção VNA'!$A:$B,2,FALSE),VLOOKUP(WORKDAY(WORKDAY(C33,-1,Feriados!$A$2:$A$10000),1,Feriados!$A$2:$A$10000),'Histórico VNA IPCA'!$B:$C,2,FALSE))) -> 3519.435269 | E33: =IF(OR(C32="",C33=""),"",NETWORKDAYS(C32,C33-1,Feriados!$A$2:$A$1037)) -> 325 | F33: =IF(OR(C32="",C33=""),"",+(D33/D32-1)*100) -> 6.993202317 | G33: =IF(OR(C32="",C33=""),"",((1+F33/100)^(252/E33)-1)*100) -> 5.381004779
B34: Ínicio | C34: 2019-01-02 | D34: =IF(OR(C34="",C35=""),"",IF(C34>$C$3,VLOOKUP(WORKDAY(WORKDAY(C34,-1,Feriados!$A$2:$A$10000),1,Feriados!$A$2:$A$10000),'Projeção VNA'!$A:$B,2,FALSE),VLOOKUP(WORKDAY(WORKDAY(C34,-1,Feriados!$A$2:$A$10000),1,Feriados!$A$2:$A$10000),'Histórico VNA IPCA'!$B:$C,2,FALSE))) -> 3155.943736
B35: Fim | C35: 2023-01-02 | D35: =IF(OR(C35="",C34=""),"",IF(C35>$C$3,VLOOKUP(WORKDAY(WORKDAY(C35,-1,Feriados!$A$2:$A$10000),1,Feriados!$A$2:$A$10000),'Projeção VNA'!$A:$B,2,FALSE),VLOOKUP(WORKDAY(WORKDAY(C35,-1,Feriados!$A$2:$A$10000),1,Feriados!$A$2:$A$10000),'Histórico VNA IPCA'!$B:$C,2,FALSE))) -> 3994.299839 | E35: =IF(OR(C34="",C35=""),"",NETWORKDAYS(C34,C35-1,Feriados!$A$2:$A$1037)) -> 1006 | F35: =IF(OR(C34="",C35=""),"",+(D35/D34-1)*100) -> 26.56435517 | G35: =IF(OR(C34="",C35=""),"",((1+F35/100)^(252/E35)-1)*100) -> 6.078825672
B36: Ínicio | D36: =IF(OR(C36="",C37=""),"",IF(C36>$C$3,VLOOKUP(WORKDAY(WORKDAY(C36,-1,Feriados!$A$2:$A$10000),1,Feriados!$A$2:$A$10000),'Projeção VNA'!$A:$B,2,FALSE),VLOOKUP(WORKDAY(WORKDAY(C36,-1,Feriados!$A$2:$A$10000),1,Feriados!$A$2:$A$10000),'Histórico VNA IPCA'!$B:$C,2,FALSE))) -> 
B37: Fim | D37: =IF(OR(C37="",C36=""),"",IF(C37>$C$3,VLOOKUP(WORKDAY(WORKDAY(C37,-1,Feriados!$A$2:$A$10000),1,Feriados!$A$2:$A$10000),'Projeção VNA'!$A:$B,2,FALSE),VLOOKUP(WORKDAY(WORKDAY(C37,-1,Feriados!$A$2:$A$10000),1,Feriados!$A$2:$A$10000),'Histórico VNA IPCA'!$B:$C,2,FALSE))) ->  | E37: =IF(OR(C36="",C37=""),"",NETWORKDAYS(C36,C37-1,Feriados!$A$2:$A$1037)) ->  | F37: =IF(OR(C36="",C37=""),"",+(D37/D36-1)*100) ->  | G37: =IF(OR(C36="",C37=""),"",((1+F37/100)^(252/E37)-1)*100) -> 
B38: Ínicio | D38: =IF(OR(C38="",C39=""),"",IF(C38>$C$3,VLOOKUP(WORKDAY(WORKDAY(C38,-1,Feriados!$A$2:$A$10000),1,Feriados!$A$2:$A$10000),'Projeção VNA'!$A:$B,2,FALSE),VLOOKUP(WORKDAY(WORKDAY(C38,-1,Feriados!$A$2:$A$10000),1,Feriados!$A$2:$A$10000),'Histórico VNA IPCA'!$B:$C,2,FALSE))) -> 
B39: Fim | D39: =IF(OR(C39="",C38=""),"",IF(C39>$C$3,VLOOKUP(WORKDAY(WORKDAY(C39,-1,Feriados!$A$2:$A$10000),1,Feriados!$A$2:$A$10000),'Projeção VNA'!$A:$B,2,FALSE),VLOOKUP(WORKDAY(WORKDAY(C39,-1,Feriados!$A$2:$A$10000),1,Feriados!$A$2:$A$10000),'Histórico VNA IPCA'!$B:$C,2,FALSE))) ->  | E39: =IF(OR(C38="",C39=""),"",NETWORKDAYS(C38,C39-1,Feriados!$A$2:$A$1037)) ->  | F39: =IF(OR(C38="",C39=""),"",+(D39/D38-1)*100) ->  | G39: =IF(OR(C38="",C39=""),"",((1+F39/100)^(252/E39)-1)*100) -> 
B40: Ínicio | D40: =IF(OR(C40="",C41=""),"",IF(C40>$C$3,VLOOKUP(WORKDAY(WORKDAY(C40,-1,Feriados!$A$2:$A$10000),1,Feriados!$A$2:$A$10000),'Projeção VNA'!$A:$B,2,FALSE),VLOOKUP(WORKDAY(WORKDAY(C40,-1,Feriados!$A$2:$A$10000),1,Feriados!$A$2:$A$10000),'Histórico VNA IPCA'!$B:$C,2,FALSE))) -> 
B41: Fim | D41: =IF(OR(C41="",C40=""),"",IF(C41>$C$3,VLOOKUP(WORKDAY(WORKDAY(C41,-1,Feriados!$A$2:$A$10000),1,Feriados!$A$2:$A$10000),'Projeção VNA'!$A:$B,2,FALSE),VLOOKUP(WORKDAY(WORKDAY(C41,-1,Feriados!$A$2:$A$10000),1,Feriados!$A$2:$A$10000),'Histórico VNA IPCA'!$B:$C,2,FALSE))) ->  | E41: =IF(OR(C40="",C41=""),"",NETWORKDAYS(C40,C41-1,Feriados!$A$2:$A$1037)) ->  | F41: =IF(OR(C40="",C41=""),"",+(D41/D40-1)*100) ->  | G41: =IF(OR(C40="",C41=""),"",((1+F41/100)^(252/E41)-1)*100) -> 
B42: Ínicio | D42: =IF(OR(C42="",C43=""),"",IF(C42>$C$3,VLOOKUP(WORKDAY(WORKDAY(C42,-1,Feriados!$A$2:$A$10000),1,Feriados!$A$2:$A$10000),'Projeção VNA'!$A:$B,2,FALSE),VLOOKUP(WORKDAY(WORKDAY(C42,-1,Feriados!$A$2:$A$10000),1,Feriados!$A$2:$A$10000),'Histórico VNA IPCA'!$B:$C,2,FALSE))) -> 
B43: Fim | D43: =IF(OR(C43="",C42=""),"",IF(C43>$C$3,VLOOKUP(WORKDAY(WORKDAY(C43,-1,Feriados!$A$2:$A$10000),1,Feriados!$A$2:$A$10000),'Projeção VNA'!$A:$B,2,FALSE),VLOOKUP(WORKDAY(WORKDAY(C43,-1,Feriados!$A$2:$A$10000),1,Feriados!$A$2:$A$10000),'Histórico VNA IPCA'!$B:$C,2,FALSE))) ->  | E43: =IF(OR(C42="",C43=""),"",NETWORKDAYS(C42,C43-1,Feriados!$A$2:$A$1037)) ->  | F43: =IF(OR(C42="",C43=""),"",+(D43/D42-1)*100) ->  | G43: =IF(OR(C42="",C43=""),"",((1+F43/100)^(252/E43)-1)*100) -> 

Sheet Histórico + Projeção
A1: Data Referência | B1: VNA | C1: IPCA
A2: 2000-07-17 | B2: 1000
A3: 2000-07-18 | B3: 1000.760984
A4: 2000-07-19 | B4: 1001.522547
A5: 2000-07-20 | B5: 1002.284689
A6: 2000-07-21 | B6: 1003.047412
A7: 2000-07-24 | B7: 1003.810715
A8: 2000-07-25 | B8: 1004.574599
A9: 2000-07-26 | B9: 1005.339064
A10: 2000-07-27 | B10: 1006.104111
A11: 2000-07-28 | B11: 1006.86974
A12: 2000-07-31 | B12: 1007.635951
A13: 2000-08-01 | B13: 1008.402746
A14: 2000-08-02 | B14: 1009.170124
A15: 2000-08-03 | B15: 1009.938086
A16: 2000-08-04 | B16: 1010.706633
A17: 2000-08-07 | B17: 1011.475764
A18: 2000-08-08 | B18: 1012.245481
A19: 2000-08-09 | B19: 1013.015784
A20: 2000-08-10 | B20: 1013.786672
A21: 2000-08-11 | B21: 1014.558148
A22: 2000-08-14 | B22: 1015.33021
A23: 2000-08-15 | B23: 1016.10286
A24: 2000-08-16 | B24: 1016.704093
A25: 2000-08-17 | B25: 1017.305682
A26: 2000-08-18 | B26: 1017.907627
A27: 2000-08-21 | B27: 1018.509928
A28: 2000-08-22 | B28: 1019.112585
A29: 2000-08-23 | B29: 1019.7156
A30: 2000-08-24 | B30: 1020.31897
A31: 2000-08-25 | B31: 1020.922698
A32: 2000-08-28 | B32: 1021.526783
A33: 2000-08-29 | B33: 1022.131226
A34: 2000-08-30 | B34: 1022.736026
A35: 2000-08-31 | B35: 1023.341184
A36: 2000-09-01 | B36: 1023.9467
A37: 2000-09-04 | B37: 1024.552574
A38: 2000-09-05 | B38: 1025.158807
A39: 2000-09-06 | B39: 1025.765399
A40: 2000-09-08 | B40: 1026.372349
A41: 2000-09-11 | B41: 1026.979659
A42: 2000-09-12 | B42: 1027.587328
A43: 2000-09-13 | B43: 1028.195357
A44: 2000-09-14 | B44: 1028.803745
A45: 2000-09-15 | B45: 1029.412493
A46: 2000-09-18 | B46: 1029.530658
A47: 2000-09-19 | B47: 1029.648837
A48: 2000-09-20 | B48: 1029.767029
A49: 2000-09-21 | B49: 1029.885235
A50: 2000-09-22 | B50: 1030.003455
A51: 2000-09-25 | B51: 1030.121688
A52: 2000-09-26 | B52: 1030.239934
A53: 2000-09-27 | B53: 1030.358194
A54: 2000-09-28 | B54: 1030.476468
A55: 2000-09-29 | B55: 1030.594755
A56: 2000-10-03 | B56: 1030.831371
A57: 2000-10-02 | B57: 1030.713056
A58: 2000-10-04 | B58: 1030.949699
A59: 2000-10-05 | B59: 1031.06804
A60: 2000-10-06 | B60: 1031.186395
A61: 2000-10-09 | B61: 1031.304764
A62: 2000-10-10 | B62: 1031.423147
A63: 2000-10-11 | B63: 1031.541542
A64: 2000-10-13 | B64: 1031.659952
A65: 2000-10-16 | B65: 1031.778375
A66: 2000-10-17 | B66: 1031.847047
A67: 2000-10-18 | B67: 1031.915723
A68: 2000-10-19 | B68: 1031.984404
A69: 2000-10-20 | B69: 1032.053089
A70: 2000-10-23 | B70: 1032.121779
A71: 2000-10-24 | B71: 1032.190473
A72: 2000-10-25 | B72: 1032.259172
A73: 2000-10-26 | B73: 1032.327876
A74: 2000-10-27 | B74: 1032.396584
A75: 2000-10-30 | B75: 1032.465297
A76: 2000-10-31 | B76: 1032.534014
A77: 2000-11-01 | B77: 1032.602736
A78: 2000-11-03 | B78: 1032.671463
A79: 2000-11-06 | B79: 1032.740194
A80: 2000-11-07 | B80: 1032.808929
A81: 2000-11-08 | B81: 1032.877669
A82: 2000-11-09 | B82: 1032.946414
A83: 2000-11-10 | B83: 1033.015164
A84: 2000-11-13 | B84: 1033.083918
A85: 2000-11-14 | B85: 1033.152676
A86: 2000-11-16 | B86: 1033.221439
A87: 2000-11-17 | B87: 1033.378689
A88: 2000-11-20 | B88: 1033.535963
A89: 2000-11-21 | B89: 1033.693261
A90: 2000-11-22 | B90: 1033.850583
A91: 2000-11-23 | B91: 1034.007928
A92: 2000-11-24 | B92: 1034.165298
A93: 2000-11-27 | B93: 1034.322691
A94: 2000-11-28 | B94: 1034.480109
A95: 2000-11-29 | B95: 1034.637551
A96: 2000-11-30 | B96: 1034.795016
A97: 2000-12-01 | B97: 1034.952505
A98: 2000-12-04 | B98: 1035.110019
A99: 2000-12-05 | B99: 1035.267556
A100: 2000-12-06 | B100: 1035.425118
A101: 2000-12-07 | B101: 1035.582703
A102: 2000-12-08 | B102: 1035.740312
A103: 2000-12-11 | B103: 1035.897946
A104: 2000-12-12 | B104: 1036.055603
A105: 2000-12-13 | B105: 1036.213284
A106: 2000-12-14 | B106: 1036.37099
A107: 2000-12-15 | B107: 1036.528719
A108: 2000-12-18 | B108: 1036.849555
A109: 2000-12-19 | B109: 1037.17049
A110: 2000-12-20 | B110: 1037.491524
A111: 2000-12-21 | B111: 1037.812658
A112: 2000-12-22 | B112: 1038.133892
A113: 2000-12-26 | B113: 1038.455224
A114: 2000-12-27 | B114: 1038.776657
A115: 2000-12-28 | B115: 1039.098188
A116: 2000-12-29 | B116: 1039.41982
A117: 2001-01-02 | B117: 1039.74155
A118: 2001-01-03 | B118: 1040.063381
A119: 2001-01-04 | B119: 1040.385311
A120: 2001-01-05 | B120: 1040.70734
A121: 2001-01-08 | B121: 1041.02947
A122: 2001-01-09 | B122: 1041.351699
A123: 2001-01-10 | B123: 1041.674027
A124: 2001-01-11 | B124: 1041.996456
A125: 2001-01-12 | B125: 1042.318984
A126: 2001-01-15 | B126: 1042.641612
A127: 2001-01-16 | B127: 1042.899417
A128: 2001-01-17 | B128: 1043.157286
A129: 2001-01-18 | B129: 1043.415219
A130: 2001-01-19 | B130: 1043.673215
A131: 2001-01-22 | B131: 1043.931275
A132: 2001-01-23 | B132: 1044.189399
A133: 2001-01-24 | B133: 1044.447587
A134: 2001-01-25 | B134: 1044.705838
A135: 2001-01-26 | B135: 1044.964154
A136: 2001-01-29 | B136: 1045.222533
A137: 2001-01-30 | B137: 1045.480976
A138: 2001-01-31 | B138: 1045.739483
A139: 2001-02-01 | B139: 1045.998054
A140: 2001-02-02 | B140: 1046.256689
A141: 2001-02-05 | B141: 1046.515388
A142: 2001-02-06 | B142: 1046.774151
A143: 2001-02-07 | B143: 1047.032978
A144: 2001-02-08 | B144: 1047.291869
A145: 2001-02-09 | B145: 1047.550824
A146: 2001-02-12 | B146: 1047.809843
A147: 2001-02-13 | B147: 1048.068926
A148: 2001-02-14 | B148: 1048.328073
A149: 2001-02-15 | B149: 1048.587284
A150: 2001-02-16 | B150: 1048.85474
A151: 2001-02-19 | B151: 1049.122264
A152: 2001-02-20 | B152: 1049.389857
A153: 2001-02-21 | B153: 1049.657518
A154: 2001-02-22 | B154: 1049.925247
A155: 2001-02-23 | B155: 1050.193045
A156: 2001-02-28 | B156: 1050.460911
A157: 2001-03-01 | B157: 1050.728845
A158: 2001-03-02 | B158: 1050.996848
A159: 2001-03-05 | B159: 1051.264918
A160: 2001-03-06 | B160: 1051.533058
A161: 2001-03-07 | B161: 1051.801265
A162: 2001-03-08 | B162: 1052.069541
A163: 2001-03-09 | B163: 1052.337886
A164: 2001-03-12 | B164: 1052.606299
A165: 2001-03-13 | B165: 1052.87478
A166: 2001-03-14 | B166: 1053.14333
A167: 2001-03-15 | B167: 1053.411948
A168: 2001-03-16 | B168: 1053.602126
A169: 2001-03-19 | B169: 1053.792337
A170: 2001-03-20 | B170: 1053.982583
A171: 2001-03-21 | B171: 1054.172864
A172: 2001-03-22 | B172: 1054.363178
A173: 2001-03-23 | B173: 1054.553527
A174: 2001-03-26 | B174: 1054.743911
A175: 2001-03-27 | B175: 1054.934328
A176: 2001-03-28 | B176: 1055.12478
A177: 2001-03-29 | B177: 1055.315267
A178: 2001-03-30 | B178: 1055.505788
A179: 2001-04-02 | B179: 1055.696343
A180: 2001-04-03 | B180: 1055.886933
A181: 2001-04-04 | B181: 1056.077557
A182: 2001-04-05 | B182: 1056.268216
A183: 2001-04-06 | B183: 1056.458908
A184: 2001-04-09 | B184: 1056.649636
A185: 2001-04-10 | B185: 1056.840398
A186: 2001-04-11 | B186: 1057.031194
A187: 2001-04-12 | B187: 1057.222025
A188: 2001-04-16 | B188: 1057.41289
A189: 2001-04-17 | B189: 1057.718622
A190: 2001-04-18 | B190: 1058.024443
A191: 2001-04-19 | B191: 1058.330352
A192: 2001-04-20 | B192: 1058.63635
A193: 2001-04-23 | B193: 1058.942436
A194: 2001-04-24 | B194: 1059.248611
A195: 2001-04-25 | B195: 1059.554874
A196: 2001-04-26 | B196: 1059.861226
A197: 2001-04-27 | B197: 1060.167666
A198: 2001-04-30 | B198: 1060.474195
A199: 2001-05-02 | B199: 1060.780813
A200: 2001-05-03 | B200: 1061.087519
... 8698 more rows

Sheet Projeção VNA
A2: Cenário até: | C2: =MAX(IF(""<>Cenários!C7:C1000,Cenários!B7:B1000)) -> 2035-12-17
A4: Data Referência | B4: VNA | C4: IPCA | D4: Data Mês -1 | E4: VNA ant | F4: Data Mês | G4: VNA atual
A5: =+'Histórico VNA IPCA'!C1 -> 2023-11-07 | B5: =VLOOKUP(A5,'Histórico VNA IPCA'!B9:C100000,2,FALSE) -> 4157.99242 | C5: =VLOOKUP(A5,'Histórico VNA IPCA'!B9:D100000,3,FALSE) -> 0.27 | D5: =+VLOOKUP(+EOMONTH(+F5,-3)+15,Cenários!$A:$D,2,FALSE) -> 2023-10-16 | E5: =VLOOKUP(D5,Cenários!$B:$D,3,FALSE) -> 4149.991948 | F5: =+IF(+VLOOKUP(+EOMONTH(+A5,-2)+15,Cenários!$A:$D,2,FALSE)>A5,+VLOOKUP(+EOMONTH(+A5,-2)+15,Cenários!$A:$D,2,FALSE),+VLOOKUP(+EOMONTH(+A5,-1)+15,Cenários!$A:$D,2,FALSE)) -> 2023-11-16 | G5: =VLOOKUP(F5,Cenários!$B:$D,3,FALSE) -> 4161.04537
A6: =IF(A5="","",IF(WORKDAY(+A5,1,Feriados!$A$2:$A$1071)<=$C$2,WORKDAY(+A5,1,Feriados!$A$2:$A$1071),"")) -> 2023-11-08 | B6: =IF(A6="","",+IF(+A6=D6,+E6,((+G6/E6)^+((NETWORKDAYS(+D6,A6,Feriados!$A$2:$A$1058)-1)/(NETWORKDAYS(+D6,F6,Feriados!$A$2:$A$1058)-1))*E6))) -> 4158.410935 | C6: =IF(A6="","",+IF(+A6=D6,+VLOOKUP(D6,Cenários!$B$7:$C$1000,2,FALSE),VLOOKUP(F6,Cenários!$B$7:$C$1000,2,FALSE))) -> 0.2664 | D6: =IF(A6="","",+VLOOKUP(+EOMONTH(+F6,-3)+15,Cenários!$A:$D,2,FALSE)) -> 2023-10-16 | E6: =IF(A6="","",VLOOKUP(D6,Cenários!$B:$D,3,FALSE)) -> 4149.991948 | F6: =IF(A6="","",IF(A6=$C$2,$C$2,+IF(+VLOOKUP(+EOMONTH(+A6,-2)+15,Cenários!$A:$D,2,FALSE)>A6,+VLOOKUP(+EOMONTH(+A6,-2)+15,Cenários!$A:$D,2,FALSE),+VLOOKUP(+EOMONTH(+A6,-1)+15,Cenários!$A:$D,2,FALSE)))) -> 2023-11-16 | G6: =IF(A6="","",VLOOKUP(F6,Cenários!$B:$D,3,FALSE)) -> 4161.04537
A7: =IF(A6="","",IF(WORKDAY(+A6,1,Feriados!$A$2:$A$1071)<=$C$2,WORKDAY(+A6,1,Feriados!$A$2:$A$1071),"")) -> 2023-11-09 | B7: =IF(A7="","",+IF(+A7=D7,+E7,((+G7/E7)^+((NETWORKDAYS(+D7,A7,Feriados!$A$2:$A$1058)-1)/(NETWORKDAYS(+D7,F7,Feriados!$A$2:$A$1058)-1))*E7))) -> 4158.937689 | C7: =IF(A7="","",+IF(+A7=D7,+VLOOKUP(D7,Cenários!$B$7:$C$1000,2,FALSE),VLOOKUP(F7,Cenários!$B$7:$C$1000,2,FALSE))) -> 0.2664 | D7: =IF(A7="","",+VLOOKUP(+EOMONTH(+F7,-3)+15,Cenários!$A:$D,2,FALSE)) -> 2023-10-16 | E7: =IF(A7="","",VLOOKUP(D7,Cenários!$B:$D,3,FALSE)) -> 4149.991948 | F7: =IF(A7="","",IF(A7=$C$2,$C$2,+IF(+VLOOKUP(+EOMONTH(+A7,-2)+15,Cenários!$A:$D,2,FALSE)>A7,+VLOOKUP(+EOMONTH(+A7,-2)+15,Cenários!$A:$D,2,FALSE),+VLOOKUP(+EOMONTH(+A7,-1)+15,Cenários!$A:$D,2,FALSE)))) -> 2023-11-16 | G7: =IF(A7="","",VLOOKUP(F7,Cenários!$B:$D,3,FALSE)) -> 4161.04537
A8: =IF(A7="","",IF(WORKDAY(+A7,1,Feriados!$A$2:$A$1071)<=$C$2,WORKDAY(+A7,1,Feriados!$A$2:$A$1071),"")) -> 2023-11-10 | B8: =IF(A8="","",+IF(+A8=D8,+E8,((+G8/E8)^+((NETWORKDAYS(+D8,A8,Feriados!$A$2:$A$1058)-1)/(NETWORKDAYS(+D8,F8,Feriados!$A$2:$A$1058)-1))*E8))) -> 4159.464509 | C8: =IF(A8="","",+IF(+A8=D8,+VLOOKUP(D8,Cenários!$B$7:$C$1000,2,FALSE),VLOOKUP(F8,Cenários!$B$7:$C$1000,2,FALSE))) -> 0.2664 | D8: =IF(A8="","",+VLOOKUP(+EOMONTH(+F8,-3)+15,Cenários!$A:$D,2,FALSE)) -> 2023-10-16 | E8: =IF(A8="","",VLOOKUP(D8,Cenários!$B:$D,3,FALSE)) -> 4149.991948 | F8: =IF(A8="","",IF(A8=$C$2,$C$2,+IF(+VLOOKUP(+EOMONTH(+A8,-2)+15,Cenários!$A:$D,2,FALSE)>A8,+VLOOKUP(+EOMONTH(+A8,-2)+15,Cenários!$A:$D,2,FALSE),+VLOOKUP(+EOMONTH(+A8,-1)+15,Cenários!$A:$D,2,FALSE)))) -> 2023-11-16 | G8: =IF(A8="","",VLOOKUP(F8,Cenários!$B:$D,3,FALSE)) -> 4161.04537
A9: =IF(A8="","",IF(WORKDAY(+A8,1,Feriados!$A$2:$A$1071)<=$C$2,WORKDAY(+A8,1,Feriados!$A$2:$A$1071),"")) -> 2023-11-13 | B9: =IF(A9="","",+IF(+A9=D9,+E9,((+G9/E9)^+((NETWORKDAYS(+D9,A9,Feriados!$A$2:$A$1058)-1)/(NETWORKDAYS(+D9,F9,Feriados!$A$2:$A$1058)-1))*E9))) -> 4159.991396 | C9: =IF(A9="","",+IF(+A9=D9,+VLOOKUP(D9,Cenários!$B$7:$C$1000,2,FALSE),VLOOKUP(F9,Cenários!$B$7:$C$1000,2,FALSE))) -> 0.2664 | D9: =IF(A9="","",+VLOOKUP(+EOMONTH(+F9,-3)+15,Cenários!$A:$D,2,FALSE)) -> 2023-10-16 | E9: =IF(A9="","",VLOOKUP(D9,Cenários!$B:$D,3,FALSE)) -> 4149.991948 | F9: =IF(A9="","",IF(A9=$C$2,$C$2,+IF(+VLOOKUP(+EOMONTH(+A9,-2)+15,Cenários!$A:$D,2,FALSE)>A9,+VLOOKUP(+EOMONTH(+A9,-2)+15,Cenários!$A:$D,2,FALSE),+VLOOKUP(+EOMONTH(+A9,-1)+15,Cenários!$A:$D,2,FALSE)))) -> 2023-11-16 | G9: =IF(A9="","",VLOOKUP(F9,Cenários!$B:$D,3,FALSE)) -> 4161.04537
A10: =IF(A9="","",IF(WORKDAY(+A9,1,Feriados!$A$2:$A$1071)<=$C$2,WORKDAY(+A9,1,Feriados!$A$2:$A$1071),"")) -> 2023-11-14 | B10: =IF(A10="","",+IF(+A10=D10,+E10,((+G10/E10)^+((NETWORKDAYS(+D10,A10,Feriados!$A$2:$A$1058)-1)/(NETWORKDAYS(+D10,F10,Feriados!$A$2:$A$1058)-1))*E10))) -> 4160.51835 | C10: =IF(A10="","",+IF(+A10=D10,+VLOOKUP(D10,Cenários!$B$7:$C$1000,2,FALSE),VLOOKUP(F10,Cenários!$B$7:$C$1000,2,FALSE))) -> 0.2664 | D10: =IF(A10="","",+VLOOKUP(+EOMONTH(+F10,-3)+15,Cenários!$A:$D,2,FALSE)) -> 2023-10-16 | E10: =IF(A10="","",VLOOKUP(D10,Cenários!$B:$D,3,FALSE)) -> 4149.991948 | F10: =IF(A10="","",IF(A10=$C$2,$C$2,+IF(+VLOOKUP(+EOMONTH(+A10,-2)+15,Cenários!$A:$D,2,FALSE)>A10,+VLOOKUP(+EOMONTH(+A10,-2)+15,Cenários!$A:$D,2,FALSE),+VLOOKUP(+EOMONTH(+A10,-1)+15,Cenários!$A:$D,2,FALSE)))) -> 2023-11-16 | G10: =IF(A10="","",VLOOKUP(F10,Cenários!$B:$D,3,FALSE)) -> 4161.04537
A11: =IF(A10="","",IF(WORKDAY(+A10,1,Feriados!$A$2:$A$1071)<=$C$2,WORKDAY(+A10,1,Feriados!$A$2:$A$1071),"")) -> 2023-11-16 | B11: =IF(A11="","",+IF(+A11=D11,+E11,((+G11/E11)^+((NETWORKDAYS(+D11,A11,Feriados!$A$2:$A$1058)-1)/(NETWORKDAYS(+D11,F11,Feriados!$A$2:$A$1058)-1))*E11))) -> 4161.04537 | C11: =IF(A11="","",+IF(+A11=D11,+VLOOKUP(D11,Cenários!$B$7:$C$1000,2,FALSE),VLOOKUP(F11,Cenários!$B$7:$C$1000,2,FALSE))) -> 0.2664 | D11: =IF(A11="","",+VLOOKUP(+EOMONTH(+F11,-3)+15,Cenários!$A:$D,2,FALSE)) -> 2023-11-16 | E11: =IF(A11="","",VLOOKUP(D11,Cenários!$B:$D,3,FALSE)) -> 4161.04537 | F11: =IF(A11="","",IF(A11=$C$2,$C$2,+IF(+VLOOKUP(+EOMONTH(+A11,-2)+15,Cenários!$A:$D,2,FALSE)>A11,+VLOOKUP(+EOMONTH(+A11,-2)+15,Cenários!$A:$D,2,FALSE),+VLOOKUP(+EOMONTH(+A11,-1)+15,Cenários!$A:$D,2,FALSE)))) -> 2023-12-15 | G11: =IF(A11="","",VLOOKUP(F11,Cenários!$B:$D,3,FALSE)) -> 4178.521761
A12: =IF(A11="","",IF(WORKDAY(+A11,1,Feriados!$A$2:$A$1071)<=$C$2,WORKDAY(+A11,1,Feriados!$A$2:$A$1071),"")) -> 2023-11-17 | B12: =IF(A12="","",+IF(+A12=D12,+E12,((+G12/E12)^+((NETWORKDAYS(+D12,A12,Feriados!$A$2:$A$1058)-1)/(NETWORKDAYS(+D12,F12,Feriados!$A$2:$A$1058)-1))*E12))) -> 4161.875919 | C12: =IF(A12="","",+IF(+A12=D12,+VLOOKUP(D12,Cenários!$B$7:$C$1000,2,FALSE),VLOOKUP(F12,Cenários!$B$7:$C$1000,2,FALSE))) -> 0.42 | D12: =IF(A12="","",+VLOOKUP(+EOMONTH(+F12,-3)+15,Cenários!$A:$D,2,FALSE)) -> 2023-11-16 | E12: =IF(A12="","",VLOOKUP(D12,Cenários!$B:$D,3,FALSE)) -> 4161.04537 | F12: =IF(A12="","",IF(A12=$C$2,$C$2,+IF(+VLOOKUP(+EOMONTH(+A12,-2)+15,Cenários!$A:$D,2,FALSE)>A12,+VLOOKUP(+EOMONTH(+A12,-2)+15,Cenários!$A:$D,2,FALSE),+VLOOKUP(+EOMONTH(+A12,-1)+15,Cenários!$A:$D,2,FALSE)))) -> 2023-12-15 | G12: =IF(A12="","",VLOOKUP(F12,Cenários!$B:$D,3,FALSE)) -> 4178.521761
A13: =IF(A12="","",IF(WORKDAY(+A12,1,Feriados!$A$2:$A$1071)<=$C$2,WORKDAY(+A12,1,Feriados!$A$2:$A$1071),"")) -> 2023-11-20 | B13: =IF(A13="","",+IF(+A13=D13,+E13,((+G13/E13)^+((NETWORKDAYS(+D13,A13,Feriados!$A$2:$A$1058)-1)/(NETWORKDAYS(+D13,F13,Feriados!$A$2:$A$1058)-1))*E13))) -> 4162.706634 | C13: =IF(A13="","",+IF(+A13=D13,+VLOOKUP(D13,Cenários!$B$7:$C$1000,2,FALSE),VLOOKUP(F13,Cenários!$B$7:$C$1000,2,FALSE))) -> 0.42 | D13: =IF(A13="","",+VLOOKUP(+EOMONTH(+F13,-3)+15,Cenários!$A:$D,2,FALSE)) -> 2023-11-16 | E13: =IF(A13="","",VLOOKUP(D13,Cenários!$B:$D,3,FALSE)) -> 4161.04537 | F13: =IF(A13="","",IF(A13=$C$2,$C$2,+IF(+VLOOKUP(+EOMONTH(+A13,-2)+15,Cenários!$A:$D,2,FALSE)>A13,+VLOOKUP(+EOMONTH(+A13,-2)+15,Cenários!$A:$D,2,FALSE),+VLOOKUP(+EOMONTH(+A13,-1)+15,Cenários!$A:$D,2,FALSE)))) -> 2023-12-15 | G13: =IF(A13="","",VLOOKUP(F13,Cenários!$B:$D,3,FALSE)) -> 4178.521761
A14: =IF(A13="","",IF(WORKDAY(+A13,1,Feriados!$A$2:$A$1071)<=$C$2,WORKDAY(+A13,1,Feriados!$A$2:$A$1071),"")) -> 2023-11-21 | B14: =IF(A14="","",+IF(+A14=D14,+E14,((+G14/E14)^+((NETWORKDAYS(+D14,A14,Feriados!$A$2:$A$1058)-1)/(NETWORKDAYS(+D14,F14,Feriados!$A$2:$A$1058)-1))*E14))) -> 4163.537515 | C14: =IF(A14="","",+IF(+A14=D14,+VLOOKUP(D14,Cenários!$B$7:$C$1000,2,FALSE),VLOOKUP(F14,Cenários!$B$7:$C$1000,2,FALSE))) -> 0.42 | D14: =IF(A14="","",+VLOOKUP(+EOMONTH(+F14,-3)+15,Cenários!$A:$D,2,FALSE)) -> 2023-11-16 | E14: =IF(A14="","",VLOOKUP(D14,Cenários!$B:$D,3,FALSE)) -> 4161.04537 | F14: =IF(A14="","",IF(A14=$C$2,$C$2,+IF(+VLOOKUP(+EOMONTH(+A14,-2)+15,Cenários!$A:$D,2,FALSE)>A14,+VLOOKUP(+EOMONTH(+A14,-2)+15,Cenários!$A:$D,2,FALSE),+VLOOKUP(+EOMONTH(+A14,-1)+15,Cenários!$A:$D,2,FALSE)))) -> 2023-12-15 | G14: =IF(A14="","",VLOOKUP(F14,Cenários!$B:$D,3,FALSE)) -> 4178.521761
A15: =IF(A14="","",IF(WORKDAY(+A14,1,Feriados!$A$2:$A$1071)<=$C$2,WORKDAY(+A14,1,Feriados!$A$2:$A$1071),"")) -> 2023-11-22 | B15: =IF(A15="","",+IF(+A15=D15,+E15,((+G15/E15)^+((NETWORKDAYS(+D15,A15,Feriados!$A$2:$A$1058)-1)/(NETWORKDAYS(+D15,F15,Feriados!$A$2:$A$1058)-1))*E15))) -> 4164.368562 | C15: =IF(A15="","",+IF(+A15=D15,+VLOOKUP(D15,Cenários!$B$7:$C$1000,2,FALSE),VLOOKUP(F15,Cenários!$B$7:$C$1000,2,FALSE))) -> 0.42 | D15: =IF(A15="","",+VLOOKUP(+EOMONTH(+F15,-3)+15,Cenários!$A:$D,2,FALSE)) -> 2023-11-16 | E15: =IF(A15="","",VLOOKUP(D15,Cenários!$B:$D,3,FALSE)) -> 4161.04537 | F15: =IF(A15="","",IF(A15=$C$2,$C$2,+IF(+VLOOKUP(+EOMONTH(+A15,-2)+15,Cenários!$A:$D,2,FALSE)>A15,+VLOOKUP(+EOMONTH(+A15,-2)+15,Cenários!$A:$D,2,FALSE),+VLOOKUP(+EOMONTH(+A15,-1)+15,Cenários!$A:$D,2,FALSE)))) -> 2023-12-15 | G15: =IF(A15="","",VLOOKUP(F15,Cenários!$B:$D,3,FALSE)) -> 4178.521761
A16: =IF(A15="","",IF(WORKDAY(+A15,1,Feriados!$A$2:$A$1071)<=$C$2,WORKDAY(+A15,1,Feriados!$A$2:$A$1071),"")) -> 2023-11-23 | B16: =IF(A16="","",+IF(+A16=D16,+E16,((+G16/E16)^+((NETWORKDAYS(+D16,A16,Feriados!$A$2:$A$1058)-1)/(NETWORKDAYS(+D16,F16,Feriados!$A$2:$A$1058)-1))*E16))) -> 4165.199774 | C16: =IF(A16="","",+IF(+A16=D16,+VLOOKUP(D16,Cenários!$B$7:$C$1000,2,FALSE),VLOOKUP(F16,Cenários!$B$7:$C$1000,2,FALSE))) -> 0.42 | D16: =IF(A16="","",+VLOOKUP(+EOMONTH(+F16,-3)+15,Cenários!$A:$D,2,FALSE)) -> 2023-11-16 | E16: =IF(A16="","",VLOOKUP(D16,Cenários!$B:$D,3,FALSE)) -> 4161.04537 | F16: =IF(A16="","",IF(A16=$C$2,$C$2,+IF(+VLOOKUP(+EOMONTH(+A16,-2)+15,Cenários!$A:$D,2,FALSE)>A16,+VLOOKUP(+EOMONTH(+A16,-2)+15,Cenários!$A:$D,2,FALSE),+VLOOKUP(+EOMONTH(+A16,-1)+15,Cenários!$A:$D,2,FALSE)))) -> 2023-12-15 | G16: =IF(A16="","",VLOOKUP(F16,Cenários!$B:$D,3,FALSE)) -> 4178.521761
A17: =IF(A16="","",IF(WORKDAY(+A16,1,Feriados!$A$2:$A$1071)<=$C$2,WORKDAY(+A16,1,Feriados!$A$2:$A$1071),"")) -> 2023-11-24 | B17: =IF(A17="","",+IF(+A17=D17,+E17,((+G17/E17)^+((NETWORKDAYS(+D17,A17,Feriados!$A$2:$A$1058)-1)/(NETWORKDAYS(+D17,F17,Feriados!$A$2:$A$1058)-1))*E17))) -> 4166.031153 | C17: =IF(A17="","",+IF(+A17=D17,+VLOOKUP(D17,Cenários!$B$7:$C$1000,2,FALSE),VLOOKUP(F17,Cenários!$B$7:$C$1000,2,FALSE))) -> 0.42 | D17: =IF(A17="","",+VLOOKUP(+EOMONTH(+F17,-3)+15,Cenários!$A:$D,2,FALSE)) -> 2023-11-16 | E17: =IF(A17="","",VLOOKUP(D17,Cenários!$B:$D,3,FALSE)) -> 4161.04537 | F17: =IF(A17="","",IF(A17=$C$2,$C$2,+IF(+VLOOKUP(+EOMONTH(+A17,-2)+15,Cenários!$A:$D,2,FALSE)>A17,+VLOOKUP(+EOMONTH(+A17,-2)+15,Cenários!$A:$D,2,FALSE),+VLOOKUP(+EOMONTH(+A17,-1)+15,Cenários!$A:$D,2,FALSE)))) -> 2023-12-15 | G17: =IF(A17="","",VLOOKUP(F17,Cenários!$B:$D,3,FALSE)) -> 4178.521761
A18: =IF(A17="","",IF(WORKDAY(+A17,1,Feriados!$A$2:$A$1071)<=$C$2,WORKDAY(+A17,1,Feriados!$A$2:$A$1071),"")) -> 2023-11-27 | B18: =IF(A18="","",+IF(+A18=D18,+E18,((+G18/E18)^+((NETWORKDAYS(+D18,A18,Feriados!$A$2:$A$1058)-1)/(NETWORKDAYS(+D18,F18,Feriados!$A$2:$A$1058)-1))*E18))) -> 4166.862697 | C18: =IF(A18="","",+IF(+A18=D18,+VLOOKUP(D18,Cenários!$B$7:$C$1000,2,FALSE),VLOOKUP(F18,Cenários!$B$7:$C$1000,2,FALSE))) -> 0.42 | D18: =IF(A18="","",+VLOOKUP(+EOMONTH(+F18,-3)+15,Cenários!$A:$D,2,FALSE)) -> 2023-11-16 | E18: =IF(A18="","",VLOOKUP(D18,Cenários!$B:$D,3,FALSE)) -> 4161.04537 | F18: =IF(A18="","",IF(A18=$C$2,$C$2,+IF(+VLOOKUP(+EOMONTH(+A18,-2)+15,Cenários!$A:$D,2,FALSE)>A18,+VLOOKUP(+EOMONTH(+A18,-2)+15,Cenários!$A:$D,2,FALSE),+VLOOKUP(+EOMONTH(+A18,-1)+15,Cenários!$A:$D,2,FALSE)))) -> 2023-12-15 | G18: =IF(A18="","",VLOOKUP(F18,Cenários!$B:$D,3,FALSE)) -> 4178.521761
A19: =IF(A18="","",IF(WORKDAY(+A18,1,Feriados!$A$2:$A$1071)<=$C$2,WORKDAY(+A18,1,Feriados!$A$2:$A$1071),"")) -> 2023-11-28 | B19: =IF(A19="","",+IF(+A19=D19,+E19,((+G19/E19)^+((NETWORKDAYS(+D19,A19,Feriados!$A$2:$A$1058)-1)/(NETWORKDAYS(+D19,F19,Feriados!$A$2:$A$1058)-1))*E19))) -> 4167.694407 | C19: =IF(A19="","",+IF(+A19=D19,+VLOOKUP(D19,Cenários!$B$7:$C$1000,2,FALSE),VLOOKUP(F19,Cenários!$B$7:$C$1000,2,FALSE))) -> 0.42 | D19: =IF(A19="","",+VLOOKUP(+EOMONTH(+F19,-3)+15,Cenários!$A:$D,2,FALSE)) -> 2023-11-16 | E19: =IF(A19="","",VLOOKUP(D19,Cenários!$B:$D,3,FALSE)) -> 4161.04537 | F19: =IF(A19="","",IF(A19=$C$2,$C$2,+IF(+VLOOKUP(+EOMONTH(+A19,-2)+15,Cenários!$A:$D,2,FALSE)>A19,+VLOOKUP(+EOMONTH(+A19,-2)+15,Cenários!$A:$D,2,FALSE),+VLOOKUP(+EOMONTH(+A19,-1)+15,Cenários!$A:$D,2,FALSE)))) -> 2023-12-15 | G19: =IF(A19="","",VLOOKUP(F19,Cenários!$B:$D,3,FALSE)) -> 4178.521761
A20: =IF(A19="","",IF(WORKDAY(+A19,1,Feriados!$A$2:$A$1071)<=$C$2,WORKDAY(+A19,1,Feriados!$A$2:$A$1071),"")) -> 2023-11-29 | B20: =IF(A20="","",+IF(+A20=D20,+E20,((+G20/E20)^+((NETWORKDAYS(+D20,A20,Feriados!$A$2:$A$1058)-1)/(NETWORKDAYS(+D20,F20,Feriados!$A$2:$A$1058)-1))*E20))) -> 4168.526284 | C20: =IF(A20="","",+IF(+A20=D20,+VLOOKUP(D20,Cenários!$B$7:$C$1000,2,FALSE),VLOOKUP(F20,Cenários!$B$7:$C$1000,2,FALSE))) -> 0.42 | D20: =IF(A20="","",+VLOOKUP(+EOMONTH(+F20,-3)+15,Cenários!$A:$D,2,FALSE)) -> 2023-11-16 | E20: =IF(A20="","",VLOOKUP(D20,Cenários!$B:$D,3,FALSE)) -> 4161.04537 | F20: =IF(A20="","",IF(A20=$C$2,$C$2,+IF(+VLOOKUP(+EOMONTH(+A20,-2)+15,Cenários!$A:$D,2,FALSE)>A20,+VLOOKUP(+EOMONTH(+A20,-2)+15,Cenários!$A:$D,2,FALSE),+VLOOKUP(+EOMONTH(+A20,-1)+15,Cenários!$A:$D,2,FALSE)))) -> 2023-12-15 | G20: =IF(A20="","",VLOOKUP(F20,Cenários!$B:$D,3,FALSE)) -> 4178.521761
A21: =IF(A20="","",IF(WORKDAY(+A20,1,Feriados!$A$2:$A$1071)<=$C$2,WORKDAY(+A20,1,Feriados!$A$2:$A$1071),"")) -> 2023-11-30 | B21: =IF(A21="","",+IF(+A21=D21,+E21,((+G21/E21)^+((NETWORKDAYS(+D21,A21,Feriados!$A$2:$A$1058)-1)/(NETWORKDAYS(+D21,F21,Feriados!$A$2:$A$1058)-1))*E21))) -> 4169.358326 | C21: =IF(A21="","",+IF(+A21=D21,+VLOOKUP(D21,Cenários!$B$7:$C$1000,2,FALSE),VLOOKUP(F21,Cenários!$B$7:$C$1000,2,FALSE))) -> 0.42 | D21: =IF(A21="","",+VLOOKUP(+EOMONTH(+F21,-3)+15,Cenários!$A:$D,2,FALSE)) -> 2023-11-16 | E21: =IF(A21="","",VLOOKUP(D21,Cenários!$B:$D,3,FALSE)) -> 4161.04537 | F21: =IF(A21="","",IF(A21=$C$2,$C$2,+IF(+VLOOKUP(+EOMONTH(+A21,-2)+15,Cenários!$A:$D,2,FALSE)>A21,+VLOOKUP(+EOMONTH(+A21,-2)+15,Cenários!$A:$D,2,FALSE),+VLOOKUP(+EOMONTH(+A21,-1)+15,Cenários!$A:$D,2,FALSE)))) -> 2023-12-15 | G21: =IF(A21="","",VLOOKUP(F21,Cenários!$B:$D,3,FALSE)) -> 4178.521761
A22: =IF(A21="","",IF(WORKDAY(+A21,1,Feriados!$A$2:$A$1071)<=$C$2,WORKDAY(+A21,1,Feriados!$A$2:$A$1071),"")) -> 2023-12-01 | B22: =IF(A22="","",+IF(+A22=D22,+E22,((+G22/E22)^+((NETWORKDAYS(+D22,A22,Feriados!$A$2:$A$1058)-1)/(NETWORKDAYS(+D22,F22,Feriados!$A$2:$A$1058)-1))*E22))) -> 4170.190535 | C22: =IF(A22="","",+IF(+A22=D22,+VLOOKUP(D22,Cenários!$B$7:$C$1000,2,FALSE),VLOOKUP(F22,Cenários!$B$7:$C$1000,2,FALSE))) -> 0.42 | D22: =IF(A22="","",+VLOOKUP(+EOMONTH(+F22,-3)+15,Cenários!$A:$D,2,FALSE)) -> 2023-11-16 | E22: =IF(A22="","",VLOOKUP(D22,Cenários!$B:$D,3,FALSE)) -> 4161.04537 | F22: =IF(A22="","",IF(A22=$C$2,$C$2,+IF(+VLOOKUP(+EOMONTH(+A22,-2)+15,Cenários!$A:$D,2,FALSE)>A22,+VLOOKUP(+EOMONTH(+A22,-2)+15,Cenários!$A:$D,2,FALSE),+VLOOKUP(+EOMONTH(+A22,-1)+15,Cenários!$A:$D,2,FALSE)))) -> 2023-12-15 | G22: =IF(A22="","",VLOOKUP(F22,Cenários!$B:$D,3,FALSE)) -> 4178.521761
A23: =IF(A22="","",IF(WORKDAY(+A22,1,Feriados!$A$2:$A$1071)<=$C$2,WORKDAY(+A22,1,Feriados!$A$2:$A$1071),"")) -> 2023-12-04 | B23: =IF(A23="","",+IF(+A23=D23,+E23,((+G23/E23)^+((NETWORKDAYS(+D23,A23,Feriados!$A$2:$A$1058)-1)/(NETWORKDAYS(+D23,F23,Feriados!$A$2:$A$1058)-1))*E23))) -> 4171.022909 | C23: =IF(A23="","",+IF(+A23=D23,+VLOOKUP(D23,Cenários!$B$7:$C$1000,2,FALSE),VLOOKUP(F23,Cenários!$B$7:$C$1000,2,FALSE))) -> 0.42 | D23: =IF(A23="","",+VLOOKUP(+EOMONTH(+F23,-3)+15,Cenários!$A:$D,2,FALSE)) -> 2023-11-16 | E23: =IF(A23="","",VLOOKUP(D23,Cenários!$B:$D,3,FALSE)) -> 4161.04537 | F23: =IF(A23="","",IF(A23=$C$2,$C$2,+IF(+VLOOKUP(+EOMONTH(+A23,-2)+15,Cenários!$A:$D,2,FALSE)>A23,+VLOOKUP(+EOMONTH(+A23,-2)+15,Cenários!$A:$D,2,FALSE),+VLOOKUP(+EOMONTH(+A23,-1)+15,Cenários!$A:$D,2,FALSE)))) -> 2023-12-15 | G23: =IF(A23="","",VLOOKUP(F23,Cenários!$B:$D,3,FALSE)) -> 4178.521761
A24: =IF(A23="","",IF(WORKDAY(+A23,1,Feriados!$A$2:$A$1071)<=$C$2,WORKDAY(+A23,1,Feriados!$A$2:$A$1071),"")) -> 2023-12-05 | B24: =IF(A24="","",+IF(+A24=D24,+E24,((+G24/E24)^+((NETWORKDAYS(+D24,A24,Feriados!$A$2:$A$1058)-1)/(NETWORKDAYS(+D24,F24,Feriados!$A$2:$A$1058)-1))*E24))) -> 4171.85545 | C24: =IF(A24="","",+IF(+A24=D24,+VLOOKUP(D24,Cenários!$B$7:$C$1000,2,FALSE),VLOOKUP(F24,Cenários!$B$7:$C$1000,2,FALSE))) -> 0.42 | D24: =IF(A24="","",+VLOOKUP(+EOMONTH(+F24,-3)+15,Cenários!$A:$D,2,FALSE)) -> 2023-11-16 | E24: =IF(A24="","",VLOOKUP(D24,Cenários!$B:$D,3,FALSE)) -> 4161.04537 | F24: =IF(A24="","",IF(A24=$C$2,$C$2,+IF(+VLOOKUP(+EOMONTH(+A24,-2)+15,Cenários!$A:$D,2,FALSE)>A24,+VLOOKUP(+EOMONTH(+A24,-2)+15,Cenários!$A:$D,2,FALSE),+VLOOKUP(+EOMONTH(+A24,-1)+15,Cenários!$A:$D,2,FALSE)))) -> 2023-12-15 | G24: =IF(A24="","",VLOOKUP(F24,Cenários!$B:$D,3,FALSE)) -> 4178.521761
A25: =IF(A24="","",IF(WORKDAY(+A24,1,Feriados!$A$2:$A$1071)<=$C$2,WORKDAY(+A24,1,Feriados!$A$2:$A$1071),"")) -> 2023-12-06 | B25: =IF(A25="","",+IF(+A25=D25,+E25,((+G25/E25)^+((NETWORKDAYS(+D25,A25,Feriados!$A$2:$A$1058)-1)/(NETWORKDAYS(+D25,F25,Feriados!$A$2:$A$1058)-1))*E25))) -> 4172.688157 | C25: =IF(A25="","",+IF(+A25=D25,+VLOOKUP(D25,Cenários!$B$7:$C$1000,2,FALSE),VLOOKUP(F25,Cenários!$B$7:$C$1000,2,FALSE))) -> 0.42 | D25: =IF(A25="","",+VLOOKUP(+EOMONTH(+F25,-3)+15,Cenários!$A:$D,2,FALSE)) -> 2023-11-16 | E25: =IF(A25="","",VLOOKUP(D25,Cenários!$B:$D,3,FALSE)) -> 4161.04537 | F25: =IF(A25="","",IF(A25=$C$2,$C$2,+IF(+VLOOKUP(+EOMONTH(+A25,-2)+15,Cenários!$A:$D,2,FALSE)>A25,+VLOOKUP(+EOMONTH(+A25,-2)+15,Cenários!$A:$D,2,FALSE),+VLOOKUP(+EOMONTH(+A25,-1)+15,Cenários!$A:$D,2,FALSE)))) -> 2023-12-15 | G25: =IF(A25="","",VLOOKUP(F25,Cenários!$B:$D,3,FALSE)) -> 4178.521761
A26: =IF(A25="","",IF(WORKDAY(+A25,1,Feriados!$A$2:$A$1071)<=$C$2,WORKDAY(+A25,1,Feriados!$A$2:$A$1071),"")) -> 2023-12-07 | B26: =IF(A26="","",+IF(+A26=D26,+E26,((+G26/E26)^+((NETWORKDAYS(+D26,A26,Feriados!$A$2:$A$1058)-1)/(NETWORKDAYS(+D26,F26,Feriados!$A$2:$A$1058)-1))*E26))) -> 4173.52103 | C26: =IF(A26="","",+IF(+A26=D26,+VLOOKUP(D26,Cenários!$B$7:$C$1000,2,FALSE),VLOOKUP(F26,Cenários!$B$7:$C$1000,2,FALSE))) -> 0.42 | D26: =IF(A26="","",+VLOOKUP(+EOMONTH(+F26,-3)+15,Cenários!$A:$D,2,FALSE)) -> 2023-11-16 | E26: =IF(A26="","",VLOOKUP(D26,Cenários!$B:$D,3,FALSE)) -> 4161.04537 | F26: =IF(A26="","",IF(A26=$C$2,$C$2,+IF(+VLOOKUP(+EOMONTH(+A26,-2)+15,Cenários!$A:$D,2,FALSE)>A26,+VLOOKUP(+EOMONTH(+A26,-2)+15,Cenários!$A:$D,2,FALSE),+VLOOKUP(+EOMONTH(+A26,-1)+15,Cenários!$A:$D,2,FALSE)))) -> 2023-12-15 | G26: =IF(A26="","",VLOOKUP(F26,Cenários!$B:$D,3,FALSE)) -> 4178.521761
A27: =IF(A26="","",IF(WORKDAY(+A26,1,Feriados!$A$2:$A$1071)<=$C$2,WORKDAY(+A26,1,Feriados!$A$2:$A$1071),"")) -> 2023-12-08 | B27: =IF(A27="","",+IF(+A27=D27,+E27,((+G27/E27)^+((NETWORKDAYS(+D27,A27,Feriados!$A$2:$A$1058)-1)/(NETWORKDAYS(+D27,F27,Feriados!$A$2:$A$1058)-1))*E27))) -> 4174.354069 | C27: =IF(A27="","",+IF(+A27=D27,+VLOOKUP(D27,Cenários!$B$7:$C$1000,2,FALSE),VLOOKUP(F27,Cenários!$B$7:$C$1000,2,FALSE))) -> 0.42 | D27: =IF(A27="","",+VLOOKUP(+EOMONTH(+F27,-3)+15,Cenários!$A:$D,2,FALSE)) -> 2023-11-16 | E27: =IF(A27="","",VLOOKUP(D27,Cenários!$B:$D,3,FALSE)) -> 4161.04537 | F27: =IF(A27="","",IF(A27=$C$2,$C$2,+IF(+VLOOKUP(+EOMONTH(+A27,-2)+15,Cenários!$A:$D,2,FALSE)>A27,+VLOOKUP(+EOMONTH(+A27,-2)+15,Cenários!$A:$D,2,FALSE),+VLOOKUP(+EOMONTH(+A27,-1)+15,Cenários!$A:$D,2,FALSE)))) -> 2023-12-15 | G27: =IF(A27="","",VLOOKUP(F27,Cenários!$B:$D,3,FALSE)) -> 4178.521761
A28: =IF(A27="","",IF(WORKDAY(+A27,1,Feriados!$A$2:$A$1071)<=$C$2,WORKDAY(+A27,1,Feriados!$A$2:$A$1071),"")) -> 2023-12-11 | B28: =IF(A28="","",+IF(+A28=D28,+E28,((+G28/E28)^+((NETWORKDAYS(+D28,A28,Feriados!$A$2:$A$1058)-1)/(NETWORKDAYS(+D28,F28,Feriados!$A$2:$A$1058)-1))*E28))) -> 4175.187275 | C28: =IF(A28="","",+IF(+A28=D28,+VLOOKUP(D28,Cenários!$B$7:$C$1000,2,FALSE),VLOOKUP(F28,Cenários!$B$7:$C$1000,2,FALSE))) -> 0.42 | D28: =IF(A28="","",+VLOOKUP(+EOMONTH(+F28,-3)+15,Cenários!$A:$D,2,FALSE)) -> 2023-11-16 | E28: =IF(A28="","",VLOOKUP(D28,Cenários!$B:$D,3,FALSE)) -> 4161.04537 | F28: =IF(A28="","",IF(A28=$C$2,$C$2,+IF(+VLOOKUP(+EOMONTH(+A28,-2)+15,Cenários!$A:$D,2,FALSE)>A28,+VLOOKUP(+EOMONTH(+A28,-2)+15,Cenários!$A:$D,2,FALSE),+VLOOKUP(+EOMONTH(+A28,-1)+15,Cenários!$A:$D,2,FALSE)))) -> 2023-12-15 | G28: =IF(A28="","",VLOOKUP(F28,Cenários!$B:$D,3,FALSE)) -> 4178.521761
A29: =IF(A28="","",IF(WORKDAY(+A28,1,Feriados!$A$2:$A$1071)<=$C$2,WORKDAY(+A28,1,Feriados!$A$2:$A$1071),"")) -> 2023-12-12 | B29: =IF(A29="","",+IF(+A29=D29,+E29,((+G29/E29)^+((NETWORKDAYS(+D29,A29,Feriados!$A$2:$A$1058)-1)/(NETWORKDAYS(+D29,F29,Feriados!$A$2:$A$1058)-1))*E29))) -> 4176.020647 | C29: =IF(A29="","",+IF(+A29=D29,+VLOOKUP(D29,Cenários!$B$7:$C$1000,2,FALSE),VLOOKUP(F29,Cenários!$B$7:$C$1000,2,FALSE))) -> 0.42 | D29: =IF(A29="","",+VLOOKUP(+EOMONTH(+F29,-3)+15,Cenários!$A:$D,2,FALSE)) -> 2023-11-16 | E29: =IF(A29="","",VLOOKUP(D29,Cenários!$B:$D,3,FALSE)) -> 4161.04537 | F29: =IF(A29="","",IF(A29=$C$2,$C$2,+IF(+VLOOKUP(+EOMONTH(+A29,-2)+15,Cenários!$A:$D,2,FALSE)>A29,+VLOOKUP(+EOMONTH(+A29,-2)+15,Cenários!$A:$D,2,FALSE),+VLOOKUP(+EOMONTH(+A29,-1)+15,Cenários!$A:$D,2,FALSE)))) -> 2023-12-15 | G29: =IF(A29="","",VLOOKUP(F29,Cenários!$B:$D,3,FALSE)) -> 4178.521761
A30: =IF(A29="","",IF(WORKDAY(+A29,1,Feriados!$A$2:$A$1071)<=$C$2,WORKDAY(+A29,1,Feriados!$A$2:$A$1071),"")) -> 2023-12-13 | B30: =IF(A30="","",+IF(+A30=D30,+E30,((+G30/E30)^+((NETWORKDAYS(+D30,A30,Feriados!$A$2:$A$1058)-1)/(NETWORKDAYS(+D30,F30,Feriados!$A$2:$A$1058)-1))*E30))) -> 4176.854185 | C30: =IF(A30="","",+IF(+A30=D30,+VLOOKUP(D30,Cenários!$B$7:$C$1000,2,FALSE),VLOOKUP(F30,Cenários!$B$7:$C$1000,2,FALSE))) -> 0.42 | D30: =IF(A30="","",+VLOOKUP(+EOMONTH(+F30,-3)+15,Cenários!$A:$D,2,FALSE)) -> 2023-11-16 | E30: =IF(A30="","",VLOOKUP(D30,Cenários!$B:$D,3,FALSE)) -> 4161.04537 | F30: =IF(A30="","",IF(A30=$C$2,$C$2,+IF(+VLOOKUP(+EOMONTH(+A30,-2)+15,Cenários!$A:$D,2,FALSE)>A30,+VLOOKUP(+EOMONTH(+A30,-2)+15,Cenários!$A:$D,2,FALSE),+VLOOKUP(+EOMONTH(+A30,-1)+15,Cenários!$A:$D,2,FALSE)))) -> 2023-12-15 | G30: =IF(A30="","",VLOOKUP(F30,Cenários!$B:$D,3,FALSE)) -> 4178.521761
A31: =IF(A30="","",IF(WORKDAY(+A30,1,Feriados!$A$2:$A$1071)<=$C$2,WORKDAY(+A30,1,Feriados!$A$2:$A$1071),"")) -> 2023-12-14 | B31: =IF(A31="","",+IF(+A31=D31,+E31,((+G31/E31)^+((NETWORKDAYS(+D31,A31,Feriados!$A$2:$A$1058)-1)/(NETWORKDAYS(+D31,F31,Feriados!$A$2:$A$1058)-1))*E31))) -> 4177.68789 | C31: =IF(A31="","",+IF(+A31=D31,+VLOOKUP(D31,Cenários!$B$7:$C$1000,2,FALSE),VLOOKUP(F31,Cenários!$B$7:$C$1000,2,FALSE))) -> 0.42 | D31: =IF(A31="","",+VLOOKUP(+EOMONTH(+F31,-3)+15,Cenários!$A:$D,2,FALSE)) -> 2023-11-16 | E31: =IF(A31="","",VLOOKUP(D31,Cenários!$B:$D,3,FALSE)) -> 4161.04537 | F31: =IF(A31="","",IF(A31=$C$2,$C$2,+IF(+VLOOKUP(+EOMONTH(+A31,-2)+15,Cenários!$A:$D,2,FALSE)>A31,+VLOOKUP(+EOMONTH(+A31,-2)+15,Cenários!$A:$D,2,FALSE),+VLOOKUP(+EOMONTH(+A31,-1)+15,Cenários!$A:$D,2,FALSE)))) -> 2023-12-15 | G31: =IF(A31="","",VLOOKUP(F31,Cenários!$B:$D,3,FALSE)) -> 4178.521761
A32: =IF(A31="","",IF(WORKDAY(+A31,1,Feriados!$A$2:$A$1071)<=$C$2,WORKDAY(+A31,1,Feriados!$A$2:$A$1071),"")) -> 2023-12-15 | B32: =IF(A32="","",+IF(+A32=D32,+E32,((+G32/E32)^+((NETWORKDAYS(+D32,A32,Feriados!$A$2:$A$1058)-1)/(NETWORKDAYS(+D32,F32,Feriados!$A$2:$A$1058)-1))*E32))) -> 4178.521761 | C32: =IF(A32="","",+IF(+A32=D32,+VLOOKUP(D32,Cenários!$B$7:$C$1000,2,FALSE),VLOOKUP(F32,Cenários!$B$7:$C$1000,2,FALSE))) -> 0.42 | D32: =IF(A32="","",+VLOOKUP(+EOMONTH(+F32,-3)+15,Cenários!$A:$D,2,FALSE)) -> 2023-12-15 | E32: =IF(A32="","",VLOOKUP(D32,Cenários!$B:$D,3,FALSE)) -> 4178.521761 | F32: =IF(A32="","",IF(A32=$C$2,$C$2,+IF(+VLOOKUP(+EOMONTH(+A32,-2)+15,Cenários!$A:$D,2,FALSE)>A32,+VLOOKUP(+EOMONTH(+A32,-2)+15,Cenários!$A:$D,2,FALSE),+VLOOKUP(+EOMONTH(+A32,-1)+15,Cenários!$A:$D,2,FALSE)))) -> 2024-01-15 | G32: =IF(A32="","",VLOOKUP(F32,Cenários!$B:$D,3,FALSE)) -> 4194.817996
A33: =IF(A32="","",IF(WORKDAY(+A32,1,Feriados!$A$2:$A$1071)<=$C$2,WORKDAY(+A32,1,Feriados!$A$2:$A$1071),"")) -> 2023-12-18 | B33: =IF(A33="","",+IF(+A33=D33,+E33,((+G33/E33)^+((NETWORKDAYS(+D33,A33,Feriados!$A$2:$A$1058)-1)/(NETWORKDAYS(+D33,F33,Feriados!$A$2:$A$1058)-1))*E33))) -> 4179.377877 | C33: =IF(A33="","",+IF(+A33=D33,+VLOOKUP(D33,Cenários!$B$7:$C$1000,2,FALSE),VLOOKUP(F33,Cenários!$B$7:$C$1000,2,FALSE))) -> 0.39 | D33: =IF(A33="","",+VLOOKUP(+EOMONTH(+F33,-3)+15,Cenários!$A:$D,2,FALSE)) -> 2023-12-15 | E33: =IF(A33="","",VLOOKUP(D33,Cenários!$B:$D,3,FALSE)) -> 4178.521761 | F33: =IF(A33="","",IF(A33=$C$2,$C$2,+IF(+VLOOKUP(+EOMONTH(+A33,-2)+15,Cenários!$A:$D,2,FALSE)>A33,+VLOOKUP(+EOMONTH(+A33,-2)+15,Cenários!$A:$D,2,FALSE),+VLOOKUP(+EOMONTH(+A33,-1)+15,Cenários!$A:$D,2,FALSE)))) -> 2024-01-15 | G33: =IF(A33="","",VLOOKUP(F33,Cenários!$B:$D,3,FALSE)) -> 4194.817996
A34: =IF(A33="","",IF(WORKDAY(+A33,1,Feriados!$A$2:$A$1071)<=$C$2,WORKDAY(+A33,1,Feriados!$A$2:$A$1071),"")) -> 2023-12-19 | B34: =IF(A34="","",+IF(+A34=D34,+E34,((+G34/E34)^+((NETWORKDAYS(+D34,A34,Feriados!$A$2:$A$1058)-1)/(NETWORKDAYS(+D34,F34,Feriados!$A$2:$A$1058)-1))*E34))) -> 4180.234169 | C34: =IF(A34="","",+IF(+A34=D34,+VLOOKUP(D34,Cenários!$B$7:$C$1000,2,FALSE),VLOOKUP(F34,Cenários!$B$7:$C$1000,2,FALSE))) -> 0.39 | D34: =IF(A34="","",+VLOOKUP(+EOMONTH(+F34,-3)+15,Cenários!$A:$D,2,FALSE)) -> 2023-12-15 | E34: =IF(A34="","",VLOOKUP(D34,Cenários!$B:$D,3,FALSE)) -> 4178.521761 | F34: =IF(A34="","",IF(A34=$C$2,$C$2,+IF(+VLOOKUP(+EOMONTH(+A34,-2)+15,Cenários!$A:$D,2,FALSE)>A34,+VLOOKUP(+EOMONTH(+A34,-2)+15,Cenários!$A:$D,2,FALSE),+VLOOKUP(+EOMONTH(+A34,-1)+15,Cenários!$A:$D,2,FALSE)))) -> 2024-01-15 | G34: =IF(A34="","",VLOOKUP(F34,Cenários!$B:$D,3,FALSE)) -> 4194.817996
A35: =IF(A34="","",IF(WORKDAY(+A34,1,Feriados!$A$2:$A$1071)<=$C$2,WORKDAY(+A34,1,Feriados!$A$2:$A$1071),"")) -> 2023-12-20 | B35: =IF(A35="","",+IF(+A35=D35,+E35,((+G35/E35)^+((NETWORKDAYS(+D35,A35,Feriados!$A$2:$A$1058)-1)/(NETWORKDAYS(+D35,F35,Feriados!$A$2:$A$1058)-1))*E35))) -> 4181.090636 | C35: =IF(A35="","",+IF(+A35=D35,+VLOOKUP(D35,Cenários!$B$7:$C$1000,2,FALSE),VLOOKUP(F35,Cenários!$B$7:$C$1000,2,FALSE))) -> 0.39 | D35: =IF(A35="","",+VLOOKUP(+EOMONTH(+F35,-3)+15,Cenários!$A:$D,2,FALSE)) -> 2023-12-15 | E35: =IF(A35="","",VLOOKUP(D35,Cenários!$B:$D,3,FALSE)) -> 4178.521761 | F35: =IF(A35="","",IF(A35=$C$2,$C$2,+IF(+VLOOKUP(+EOMONTH(+A35,-2)+15,Cenários!$A:$D,2,FALSE)>A35,+VLOOKUP(+EOMONTH(+A35,-2)+15,Cenários!$A:$D,2,FALSE),+VLOOKUP(+EOMONTH(+A35,-1)+15,Cenários!$A:$D,2,FALSE)))) -> 2024-01-15 | G35: =IF(A35="","",VLOOKUP(F35,Cenários!$B:$D,3,FALSE)) -> 4194.817996
A36: =IF(A35="","",IF(WORKDAY(+A35,1,Feriados!$A$2:$A$1071)<=$C$2,WORKDAY(+A35,1,Feriados!$A$2:$A$1071),"")) -> 2023-12-21 | B36: =IF(A36="","",+IF(+A36=D36,+E36,((+G36/E36)^+((NETWORKDAYS(+D36,A36,Feriados!$A$2:$A$1058)-1)/(NETWORKDAYS(+D36,F36,Feriados!$A$2:$A$1058)-1))*E36))) -> 4181.947278 | C36: =IF(A36="","",+IF(+A36=D36,+VLOOKUP(D36,Cenários!$B$7:$C$1000,2,FALSE),VLOOKUP(F36,Cenários!$B$7:$C$1000,2,FALSE))) -> 0.39 | D36: =IF(A36="","",+VLOOKUP(+EOMONTH(+F36,-3)+15,Cenários!$A:$D,2,FALSE)) -> 2023-12-15 | E36: =IF(A36="","",VLOOKUP(D36,Cenários!$B:$D,3,FALSE)) -> 4178.521761 | F36: =IF(A36="","",IF(A36=$C$2,$C$2,+IF(+VLOOKUP(+EOMONTH(+A36,-2)+15,Cenários!$A:$D,2,FALSE)>A36,+VLOOKUP(+EOMONTH(+A36,-2)+15,Cenários!$A:$D,2,FALSE),+VLOOKUP(+EOMONTH(+A36,-1)+15,Cenários!$A:$D,2,FALSE)))) -> 2024-01-15 | G36: =IF(A36="","",VLOOKUP(F36,Cenários!$B:$D,3,FALSE)) -> 4194.817996
A37: =IF(A36="","",IF(WORKDAY(+A36,1,Feriados!$A$2:$A$1071)<=$C$2,WORKDAY(+A36,1,Feriados!$A$2:$A$1071),"")) -> 2023-12-22 | B37: =IF(A37="","",+IF(+A37=D37,+E37,((+G37/E37)^+((NETWORKDAYS(+D37,A37,Feriados!$A$2:$A$1058)-1)/(NETWORKDAYS(+D37,F37,Feriados!$A$2:$A$1058)-1))*E37))) -> 4182.804096 | C37: =IF(A37="","",+IF(+A37=D37,+VLOOKUP(D37,Cenários!$B$7:$C$1000,2,FALSE),VLOOKUP(F37,Cenários!$B$7:$C$1000,2,FALSE))) -> 0.39 | D37: =IF(A37="","",+VLOOKUP(+EOMONTH(+F37,-3)+15,Cenários!$A:$D,2,FALSE)) -> 2023-12-15 | E37: =IF(A37="","",VLOOKUP(D37,Cenários!$B:$D,3,FALSE)) -> 4178.521761 | F37: =IF(A37="","",IF(A37=$C$2,$C$2,+IF(+VLOOKUP(+EOMONTH(+A37,-2)+15,Cenários!$A:$D,2,FALSE)>A37,+VLOOKUP(+EOMONTH(+A37,-2)+15,Cenários!$A:$D,2,FALSE),+VLOOKUP(+EOMONTH(+A37,-1)+15,Cenários!$A:$D,2,FALSE)))) -> 2024-01-15 | G37: =IF(A37="","",VLOOKUP(F37,Cenários!$B:$D,3,FALSE)) -> 4194.817996
A38: =IF(A37="","",IF(WORKDAY(+A37,1,Feriados!$A$2:$A$1071)<=$C$2,WORKDAY(+A37,1,Feriados!$A$2:$A$1071),"")) -> 2023-12-26 | B38: =IF(A38="","",+IF(+A38=D38,+E38,((+G38/E38)^+((NETWORKDAYS(+D38,A38,Feriados!$A$2:$A$1058)-1)/(NETWORKDAYS(+D38,F38,Feriados!$A$2:$A$1058)-1))*E38))) -> 4183.661089 | C38: =IF(A38="","",+IF(+A38=D38,+VLOOKUP(D38,Cenários!$B$7:$C$1000,2,FALSE),VLOOKUP(F38,Cenários!$B$7:$C$1000,2,FALSE))) -> 0.39 | D38: =IF(A38="","",+VLOOKUP(+EOMONTH(+F38,-3)+15,Cenários!$A:$D,2,FALSE)) -> 2023-12-15 | E38: =IF(A38="","",VLOOKUP(D38,Cenários!$B:$D,3,FALSE)) -> 4178.521761 | F38: =IF(A38="","",IF(A38=$C$2,$C$2,+IF(+VLOOKUP(+EOMONTH(+A38,-2)+15,Cenários!$A:$D,2,FALSE)>A38,+VLOOKUP(+EOMONTH(+A38,-2)+15,Cenários!$A:$D,2,FALSE),+VLOOKUP(+EOMONTH(+A38,-1)+15,Cenários!$A:$D,2,FALSE)))) -> 2024-01-15 | G38: =IF(A38="","",VLOOKUP(F38,Cenários!$B:$D,3,FALSE)) -> 4194.817996
A39: =IF(A38="","",IF(WORKDAY(+A38,1,Feriados!$A$2:$A$1071)<=$C$2,WORKDAY(+A38,1,Feriados!$A$2:$A$1071),"")) -> 2023-12-27 | B39: =IF(A39="","",+IF(+A39=D39,+E39,((+G39/E39)^+((NETWORKDAYS(+D39,A39,Feriados!$A$2:$A$1058)-1)/(NETWORKDAYS(+D39,F39,Feriados!$A$2:$A$1058)-1))*E39))) -> 4184.518258 | C39: =IF(A39="","",+IF(+A39=D39,+VLOOKUP(D39,Cenários!$B$7:$C$1000,2,FALSE),VLOOKUP(F39,Cenários!$B$7:$C$1000,2,FALSE))) -> 0.39 | D39: =IF(A39="","",+VLOOKUP(+EOMONTH(+F39,-3)+15,Cenários!$A:$D,2,FALSE)) -> 2023-12-15 | E39: =IF(A39="","",VLOOKUP(D39,Cenários!$B:$D,3,FALSE)) -> 4178.521761 | F39: =IF(A39="","",IF(A39=$C$2,$C$2,+IF(+VLOOKUP(+EOMONTH(+A39,-2)+15,Cenários!$A:$D,2,FALSE)>A39,+VLOOKUP(+EOMONTH(+A39,-2)+15,Cenários!$A:$D,2,FALSE),+VLOOKUP(+EOMONTH(+A39,-1)+15,Cenários!$A:$D,2,FALSE)))) -> 2024-01-15 | G39: =IF(A39="","",VLOOKUP(F39,Cenários!$B:$D,3,FALSE)) -> 4194.817996
A40: =IF(A39="","",IF(WORKDAY(+A39,1,Feriados!$A$2:$A$1071)<=$C$2,WORKDAY(+A39,1,Feriados!$A$2:$A$1071),"")) -> 2023-12-28 | B40: =IF(A40="","",+IF(+A40=D40,+E40,((+G40/E40)^+((NETWORKDAYS(+D40,A40,Feriados!$A$2:$A$1058)-1)/(NETWORKDAYS(+D40,F40,Feriados!$A$2:$A$1058)-1))*E40))) -> 4185.375603 | C40: =IF(A40="","",+IF(+A40=D40,+VLOOKUP(D40,Cenários!$B$7:$C$1000,2,FALSE),VLOOKUP(F40,Cenários!$B$7:$C$1000,2,FALSE))) -> 0.39 | D40: =IF(A40="","",+VLOOKUP(+EOMONTH(+F40,-3)+15,Cenários!$A:$D,2,FALSE)) -> 2023-12-15 | E40: =IF(A40="","",VLOOKUP(D40,Cenários!$B:$D,3,FALSE)) -> 4178.521761 | F40: =IF(A40="","",IF(A40=$C$2,$C$2,+IF(+VLOOKUP(+EOMONTH(+A40,-2)+15,Cenários!$A:$D,2,FALSE)>A40,+VLOOKUP(+EOMONTH(+A40,-2)+15,Cenários!$A:$D,2,FALSE),+VLOOKUP(+EOMONTH(+A40,-1)+15,Cenários!$A:$D,2,FALSE)))) -> 2024-01-15 | G40: =IF(A40="","",VLOOKUP(F40,Cenários!$B:$D,3,FALSE)) -> 4194.817996
A41: =IF(A40="","",IF(WORKDAY(+A40,1,Feriados!$A$2:$A$1071)<=$C$2,WORKDAY(+A40,1,Feriados!$A$2:$A$1071),"")) -> 2023-12-29 | B41: =IF(A41="","",+IF(+A41=D41,+E41,((+G41/E41)^+((NETWORKDAYS(+D41,A41,Feriados!$A$2:$A$1058)-1)/(NETWORKDAYS(+D41,F41,Feriados!$A$2:$A$1058)-1))*E41))) -> 4186.233123 | C41: =IF(A41="","",+IF(+A41=D41,+VLOOKUP(D41,Cenários!$B$7:$C$1000,2,FALSE),VLOOKUP(F41,Cenários!$B$7:$C$1000,2,FALSE))) -> 0.39 | D41: =IF(A41="","",+VLOOKUP(+EOMONTH(+F41,-3)+15,Cenários!$A:$D,2,FALSE)) -> 2023-12-15 | E41: =IF(A41="","",VLOOKUP(D41,Cenários!$B:$D,3,FALSE)) -> 4178.521761 | F41: =IF(A41="","",IF(A41=$C$2,$C$2,+IF(+VLOOKUP(+EOMONTH(+A41,-2)+15,Cenários!$A:$D,2,FALSE)>A41,+VLOOKUP(+EOMONTH(+A41,-2)+15,Cenários!$A:$D,2,FALSE),+VLOOKUP(+EOMONTH(+A41,-1)+15,Cenários!$A:$D,2,FALSE)))) -> 2024-01-15 | G41: =IF(A41="","",VLOOKUP(F41,Cenários!$B:$D,3,FALSE)) -> 4194.817996
A42: =IF(A41="","",IF(WORKDAY(+A41,1,Feriados!$A$2:$A$1071)<=$C$2,WORKDAY(+A41,1,Feriados!$A$2:$A$1071),"")) -> 2024-01-02 | B42: =IF(A42="","",+IF(+A42=D42,+E42,((+G42/E42)^+((NETWORKDAYS(+D42,A42,Feriados!$A$2:$A$1058)-1)/(NETWORKDAYS(+D42,F42,Feriados!$A$2:$A$1058)-1))*E42))) -> 4187.09082 | C42: =IF(A42="","",+IF(+A42=D42,+VLOOKUP(D42,Cenários!$B$7:$C$1000,2,FALSE),VLOOKUP(F42,Cenários!$B$7:$C$1000,2,FALSE))) -> 0.39 | D42: =IF(A42="","",+VLOOKUP(+EOMONTH(+F42,-3)+15,Cenários!$A:$D,2,FALSE)) -> 2023-12-15 | E42: =IF(A42="","",VLOOKUP(D42,Cenários!$B:$D,3,FALSE)) -> 4178.521761 | F42: =IF(A42="","",IF(A42=$C$2,$C$2,+IF(+VLOOKUP(+EOMONTH(+A42,-2)+15,Cenários!$A:$D,2,FALSE)>A42,+VLOOKUP(+EOMONTH(+A42,-2)+15,Cenários!$A:$D,2,FALSE),+VLOOKUP(+EOMONTH(+A42,-1)+15,Cenários!$A:$D,2,FALSE)))) -> 2024-01-15 | G42: =IF(A42="","",VLOOKUP(F42,Cenários!$B:$D,3,FALSE)) -> 4194.817996
A43: =IF(A42="","",IF(WORKDAY(+A42,1,Feriados!$A$2:$A$1071)<=$C$2,WORKDAY(+A42,1,Feriados!$A$2:$A$1071),"")) -> 2024-01-03 | B43: =IF(A43="","",+IF(+A43=D43,+E43,((+G43/E43)^+((NETWORKDAYS(+D43,A43,Feriados!$A$2:$A$1058)-1)/(NETWORKDAYS(+D43,F43,Feriados!$A$2:$A$1058)-1))*E43))) -> 4187.948691 | C43: =IF(A43="","",+IF(+A43=D43,+VLOOKUP(D43,Cenários!$B$7:$C$1000,2,FALSE),VLOOKUP(F43,Cenários!$B$7:$C$1000,2,FALSE))) -> 0.39 | D43: =IF(A43="","",+VLOOKUP(+EOMONTH(+F43,-3)+15,Cenários!$A:$D,2,FALSE)) -> 2023-12-15 | E43: =IF(A43="","",VLOOKUP(D43,Cenários!$B:$D,3,FALSE)) -> 4178.521761 | F43: =IF(A43="","",IF(A43=$C$2,$C$2,+IF(+VLOOKUP(+EOMONTH(+A43,-2)+15,Cenários!$A:$D,2,FALSE)>A43,+VLOOKUP(+EOMONTH(+A43,-2)+15,Cenários!$A:$D,2,FALSE),+VLOOKUP(+EOMONTH(+A43,-1)+15,Cenários!$A:$D,2,FALSE)))) -> 2024-01-15 | G43: =IF(A43="","",VLOOKUP(F43,Cenários!$B:$D,3,FALSE)) -> 4194.817996
A44: =IF(A43="","",IF(WORKDAY(+A43,1,Feriados!$A$2:$A$1071)<=$C$2,WORKDAY(+A43,1,Feriados!$A$2:$A$1071),"")) -> 2024-01-04 | B44: =IF(A44="","",+IF(+A44=D44,+E44,((+G44/E44)^+((NETWORKDAYS(+D44,A44,Feriados!$A$2:$A$1058)-1)/(NETWORKDAYS(+D44,F44,Feriados!$A$2:$A$1058)-1))*E44))) -> 4188.806739 | C44: =IF(A44="","",+IF(+A44=D44,+VLOOKUP(D44,Cenários!$B$7:$C$1000,2,FALSE),VLOOKUP(F44,Cenários!$B$7:$C$1000,2,FALSE))) -> 0.39 | D44: =IF(A44="","",+VLOOKUP(+EOMONTH(+F44,-3)+15,Cenários!$A:$D,2,FALSE)) -> 2023-12-15 | E44: =IF(A44="","",VLOOKUP(D44,Cenários!$B:$D,3,FALSE)) -> 4178.521761 | F44: =IF(A44="","",IF(A44=$C$2,$C$2,+IF(+VLOOKUP(+EOMONTH(+A44,-2)+15,Cenários!$A:$D,2,FALSE)>A44,+VLOOKUP(+EOMONTH(+A44,-2)+15,Cenários!$A:$D,2,FALSE),+VLOOKUP(+EOMONTH(+A44,-1)+15,Cenários!$A:$D,2,FALSE)))) -> 2024-01-15 | G44: =IF(A44="","",VLOOKUP(F44,Cenários!$B:$D,3,FALSE)) -> 4194.817996
A45: =IF(A44="","",IF(WORKDAY(+A44,1,Feriados!$A$2:$A$1071)<=$C$2,WORKDAY(+A44,1,Feriados!$A$2:$A$1071),"")) -> 2024-01-05 | B45: =IF(A45="","",+IF(+A45=D45,+E45,((+G45/E45)^+((NETWORKDAYS(+D45,A45,Feriados!$A$2:$A$1058)-1)/(NETWORKDAYS(+D45,F45,Feriados!$A$2:$A$1058)-1))*E45))) -> 4189.664962 | C45: =IF(A45="","",+IF(+A45=D45,+VLOOKUP(D45,Cenários!$B$7:$C$1000,2,FALSE),VLOOKUP(F45,Cenários!$B$7:$C$1000,2,FALSE))) -> 0.39 | D45: =IF(A45="","",+VLOOKUP(+EOMONTH(+F45,-3)+15,Cenários!$A:$D,2,FALSE)) -> 2023-12-15 | E45: =IF(A45="","",VLOOKUP(D45,Cenários!$B:$D,3,FALSE)) -> 4178.521761 | F45: =IF(A45="","",IF(A45=$C$2,$C$2,+IF(+VLOOKUP(+EOMONTH(+A45,-2)+15,Cenários!$A:$D,2,FALSE)>A45,+VLOOKUP(+EOMONTH(+A45,-2)+15,Cenários!$A:$D,2,FALSE),+VLOOKUP(+EOMONTH(+A45,-1)+15,Cenários!$A:$D,2,FALSE)))) -> 2024-01-15 | G45: =IF(A45="","",VLOOKUP(F45,Cenários!$B:$D,3,FALSE)) -> 4194.817996
A46: =IF(A45="","",IF(WORKDAY(+A45,1,Feriados!$A$2:$A$1071)<=$C$2,WORKDAY(+A45,1,Feriados!$A$2:$A$1071),"")) -> 2024-01-08 | B46: =IF(A46="","",+IF(+A46=D46,+E46,((+G46/E46)^+((NETWORKDAYS(+D46,A46,Feriados!$A$2:$A$1058)-1)/(NETWORKDAYS(+D46,F46,Feriados!$A$2:$A$1058)-1))*E46))) -> 4190.523361 | C46: =IF(A46="","",+IF(+A46=D46,+VLOOKUP(D46,Cenários!$B$7:$C$1000,2,FALSE),VLOOKUP(F46,Cenários!$B$7:$C$1000,2,FALSE))) -> 0.39 | D46: =IF(A46="","",+VLOOKUP(+EOMONTH(+F46,-3)+15,Cenários!$A:$D,2,FALSE)) -> 2023-12-15 | E46: =IF(A46="","",VLOOKUP(D46,Cenários!$B:$D,3,FALSE)) -> 4178.521761 | F46: =IF(A46="","",IF(A46=$C$2,$C$2,+IF(+VLOOKUP(+EOMONTH(+A46,-2)+15,Cenários!$A:$D,2,FALSE)>A46,+VLOOKUP(+EOMONTH(+A46,-2)+15,Cenários!$A:$D,2,FALSE),+VLOOKUP(+EOMONTH(+A46,-1)+15,Cenários!$A:$D,2,FALSE)))) -> 2024-01-15 | G46: =IF(A46="","",VLOOKUP(F46,Cenários!$B:$D,3,FALSE)) -> 4194.817996
A47: =IF(A46="","",IF(WORKDAY(+A46,1,Feriados!$A$2:$A$1071)<=$C$2,WORKDAY(+A46,1,Feriados!$A$2:$A$1071),"")) -> 2024-01-09 | B47: =IF(A47="","",+IF(+A47=D47,+E47,((+G47/E47)^+((NETWORKDAYS(+D47,A47,Feriados!$A$2:$A$1058)-1)/(NETWORKDAYS(+D47,F47,Feriados!$A$2:$A$1058)-1))*E47))) -> 4191.381936 | C47: =IF(A47="","",+IF(+A47=D47,+VLOOKUP(D47,Cenários!$B$7:$C$1000,2,FALSE),VLOOKUP(F47,Cenários!$B$7:$C$1000,2,FALSE))) -> 0.39 | D47: =IF(A47="","",+VLOOKUP(+EOMONTH(+F47,-3)+15,Cenários!$A:$D,2,FALSE)) -> 2023-12-15 | E47: =IF(A47="","",VLOOKUP(D47,Cenários!$B:$D,3,FALSE)) -> 4178.521761 | F47: =IF(A47="","",IF(A47=$C$2,$C$2,+IF(+VLOOKUP(+EOMONTH(+A47,-2)+15,Cenários!$A:$D,2,FALSE)>A47,+VLOOKUP(+EOMONTH(+A47,-2)+15,Cenários!$A:$D,2,FALSE),+VLOOKUP(+EOMONTH(+A47,-1)+15,Cenários!$A:$D,2,FALSE)))) -> 2024-01-15 | G47: =IF(A47="","",VLOOKUP(F47,Cenários!$B:$D,3,FALSE)) -> 4194.817996
A48: =IF(A47="","",IF(WORKDAY(+A47,1,Feriados!$A$2:$A$1071)<=$C$2,WORKDAY(+A47,1,Feriados!$A$2:$A$1071),"")) -> 2024-01-10 | B48: =IF(A48="","",+IF(+A48=D48,+E48,((+G48/E48)^+((NETWORKDAYS(+D48,A48,Feriados!$A$2:$A$1058)-1)/(NETWORKDAYS(+D48,F48,Feriados!$A$2:$A$1058)-1))*E48))) -> 4192.240687 | C48: =IF(A48="","",+IF(+A48=D48,+VLOOKUP(D48,Cenários!$B$7:$C$1000,2,FALSE),VLOOKUP(F48,Cenários!$B$7:$C$1000,2,FALSE))) -> 0.39 | D48: =IF(A48="","",+VLOOKUP(+EOMONTH(+F48,-3)+15,Cenários!$A:$D,2,FALSE)) -> 2023-12-15 | E48: =IF(A48="","",VLOOKUP(D48,Cenários!$B:$D,3,FALSE)) -> 4178.521761 | F48: =IF(A48="","",IF(A48=$C$2,$C$2,+IF(+VLOOKUP(+EOMONTH(+A48,-2)+15,Cenários!$A:$D,2,FALSE)>A48,+VLOOKUP(+EOMONTH(+A48,-2)+15,Cenários!$A:$D,2,FALSE),+VLOOKUP(+EOMONTH(+A48,-1)+15,Cenários!$A:$D,2,FALSE)))) -> 2024-01-15 | G48: =IF(A48="","",VLOOKUP(F48,Cenários!$B:$D,3,FALSE)) -> 4194.817996
A49: =IF(A48="","",IF(WORKDAY(+A48,1,Feriados!$A$2:$A$1071)<=$C$2,WORKDAY(+A48,1,Feriados!$A$2:$A$1071),"")) -> 2024-01-11 | B49: =IF(A49="","",+IF(+A49=D49,+E49,((+G49/E49)^+((NETWORKDAYS(+D49,A49,Feriados!$A$2:$A$1058)-1)/(NETWORKDAYS(+D49,F49,Feriados!$A$2:$A$1058)-1))*E49))) -> 4193.099614 | C49: =IF(A49="","",+IF(+A49=D49,+VLOOKUP(D49,Cenários!$B$7:$C$1000,2,FALSE),VLOOKUP(F49,Cenários!$B$7:$C$1000,2,FALSE))) -> 0.39 | D49: =IF(A49="","",+VLOOKUP(+EOMONTH(+F49,-3)+15,Cenários!$A:$D,2,FALSE)) -> 2023-12-15 | E49: =IF(A49="","",VLOOKUP(D49,Cenários!$B:$D,3,FALSE)) -> 4178.521761 | F49: =IF(A49="","",IF(A49=$C$2,$C$2,+IF(+VLOOKUP(+EOMONTH(+A49,-2)+15,Cenários!$A:$D,2,FALSE)>A49,+VLOOKUP(+EOMONTH(+A49,-2)+15,Cenários!$A:$D,2,FALSE),+VLOOKUP(+EOMONTH(+A49,-1)+15,Cenários!$A:$D,2,FALSE)))) -> 2024-01-15 | G49: =IF(A49="","",VLOOKUP(F49,Cenários!$B:$D,3,FALSE)) -> 4194.817996
A50: =IF(A49="","",IF(WORKDAY(+A49,1,Feriados!$A$2:$A$1071)<=$C$2,WORKDAY(+A49,1,Feriados!$A$2:$A$1071),"")) -> 2024-01-12 | B50: =IF(A50="","",+IF(+A50=D50,+E50,((+G50/E50)^+((NETWORKDAYS(+D50,A50,Feriados!$A$2:$A$1058)-1)/(NETWORKDAYS(+D50,F50,Feriados!$A$2:$A$1058)-1))*E50))) -> 4193.958717 | C50: =IF(A50="","",+IF(+A50=D50,+VLOOKUP(D50,Cenários!$B$7:$C$1000,2,FALSE),VLOOKUP(F50,Cenários!$B$7:$C$1000,2,FALSE))) -> 0.39 | D50: =IF(A50="","",+VLOOKUP(+EOMONTH(+F50,-3)+15,Cenários!$A:$D,2,FALSE)) -> 2023-12-15 | E50: =IF(A50="","",VLOOKUP(D50,Cenários!$B:$D,3,FALSE)) -> 4178.521761 | F50: =IF(A50="","",IF(A50=$C$2,$C$2,+IF(+VLOOKUP(+EOMONTH(+A50,-2)+15,Cenários!$A:$D,2,FALSE)>A50,+VLOOKUP(+EOMONTH(+A50,-2)+15,Cenários!$A:$D,2,FALSE),+VLOOKUP(+EOMONTH(+A50,-1)+15,Cenários!$A:$D,2,FALSE)))) -> 2024-01-15 | G50: =IF(A50="","",VLOOKUP(F50,Cenários!$B:$D,3,FALSE)) -> 4194.817996
A51: =IF(A50="","",IF(WORKDAY(+A50,1,Feriados!$A$2:$A$1071)<=$C$2,WORKDAY(+A50,1,Feriados!$A$2:$A$1071),"")) -> 2024-01-15 | B51: =IF(A51="","",+IF(+A51=D51,+E51,((+G51/E51)^+((NETWORKDAYS(+D51,A51,Feriados!$A$2:$A$1058)-1)/(NETWORKDAYS(+D51,F51,Feriados!$A$2:$A$1058)-1))*E51))) -> 4194.817996 | C51: =IF(A51="","",+IF(+A51=D51,+VLOOKUP(D51,Cenários!$B$7:$C$1000,2,FALSE),VLOOKUP(F51,Cenários!$B$7:$C$1000,2,FALSE))) -> 0.39 | D51: =IF(A51="","",+VLOOKUP(+EOMONTH(+F51,-3)+15,Cenários!$A:$D,2,FALSE)) -> 2024-01-15 | E51: =IF(A51="","",VLOOKUP(D51,Cenários!$B:$D,3,FALSE)) -> 4194.817996 | F51: =IF(A51="","",IF(A51=$C$2,$C$2,+IF(+VLOOKUP(+EOMONTH(+A51,-2)+15,Cenários!$A:$D,2,FALSE)>A51,+VLOOKUP(+EOMONTH(+A51,-2)+15,Cenários!$A:$D,2,FALSE),+VLOOKUP(+EOMONTH(+A51,-1)+15,Cenários!$A:$D,2,FALSE)))) -> 2024-02-15 | G51: =IF(A51="","",VLOOKUP(F51,Cenários!$B:$D,3,FALSE)) -> 4207.234657
A52: =IF(A51="","",IF(WORKDAY(+A51,1,Feriados!$A$2:$A$1071)<=$C$2,WORKDAY(+A51,1,Feriados!$A$2:$A$1071),"")) -> 2024-01-16 | B52: =IF(A52="","",+IF(+A52=D52,+E52,((+G52/E52)^+((NETWORKDAYS(+D52,A52,Feriados!$A$2:$A$1058)-1)/(NETWORKDAYS(+D52,F52,Feriados!$A$2:$A$1058)-1))*E52))) -> 4195.408434 | C52: =IF(A52="","",+IF(+A52=D52,+VLOOKUP(D52,Cenários!$B$7:$C$1000,2,FALSE),VLOOKUP(F52,Cenários!$B$7:$C$1000,2,FALSE))) -> 0.296 | D52: =IF(A52="","",+VLOOKUP(+EOMONTH(+F52,-3)+15,Cenários!$A:$D,2,FALSE)) -> 2024-01-15 | E52: =IF(A52="","",VLOOKUP(D52,Cenários!$B:$D,3,FALSE)) -> 4194.817996 | F52: =IF(A52="","",IF(A52=$C$2,$C$2,+IF(+VLOOKUP(+EOMONTH(+A52,-2)+15,Cenários!$A:$D,2,FALSE)>A52,+VLOOKUP(+EOMONTH(+A52,-2)+15,Cenários!$A:$D,2,FALSE),+VLOOKUP(+EOMONTH(+A52,-1)+15,Cenários!$A:$D,2,FALSE)))) -> 2024-02-15 | G52: =IF(A52="","",VLOOKUP(F52,Cenários!$B:$D,3,FALSE)) -> 4207.234657
A53: =IF(A52="","",IF(WORKDAY(+A52,1,Feriados!$A$2:$A$1071)<=$C$2,WORKDAY(+A52,1,Feriados!$A$2:$A$1071),"")) -> 2024-01-17 | B53: =IF(A53="","",+IF(+A53=D53,+E53,((+G53/E53)^+((NETWORKDAYS(+D53,A53,Feriados!$A$2:$A$1058)-1)/(NETWORKDAYS(+D53,F53,Feriados!$A$2:$A$1058)-1))*E53))) -> 4195.998955 | C53: =IF(A53="","",+IF(+A53=D53,+VLOOKUP(D53,Cenários!$B$7:$C$1000,2,FALSE),VLOOKUP(F53,Cenários!$B$7:$C$1000,2,FALSE))) -> 0.296 | D53: =IF(A53="","",+VLOOKUP(+EOMONTH(+F53,-3)+15,Cenários!$A:$D,2,FALSE)) -> 2024-01-15 | E53: =IF(A53="","",VLOOKUP(D53,Cenários!$B:$D,3,FALSE)) -> 4194.817996 | F53: =IF(A53="","",IF(A53=$C$2,$C$2,+IF(+VLOOKUP(+EOMONTH(+A53,-2)+15,Cenários!$A:$D,2,FALSE)>A53,+VLOOKUP(+EOMONTH(+A53,-2)+15,Cenários!$A:$D,2,FALSE),+VLOOKUP(+EOMONTH(+A53,-1)+15,Cenários!$A:$D,2,FALSE)))) -> 2024-02-15 | G53: =IF(A53="","",VLOOKUP(F53,Cenários!$B:$D,3,FALSE)) -> 4207.234657
A54: =IF(A53="","",IF(WORKDAY(+A53,1,Feriados!$A$2:$A$1071)<=$C$2,WORKDAY(+A53,1,Feriados!$A$2:$A$1071),"")) -> 2024-01-18 | B54: =IF(A54="","",+IF(+A54=D54,+E54,((+G54/E54)^+((NETWORKDAYS(+D54,A54,Feriados!$A$2:$A$1058)-1)/(NETWORKDAYS(+D54,F54,Feriados!$A$2:$A$1058)-1))*E54))) -> 4196.589559 | C54: =IF(A54="","",+IF(+A54=D54,+VLOOKUP(D54,Cenários!$B$7:$C$1000,2,FALSE),VLOOKUP(F54,Cenários!$B$7:$C$1000,2,FALSE))) -> 0.296 | D54: =IF(A54="","",+VLOOKUP(+EOMONTH(+F54,-3)+15,Cenários!$A:$D,2,FALSE)) -> 2024-01-15 | E54: =IF(A54="","",VLOOKUP(D54,Cenários!$B:$D,3,FALSE)) -> 4194.817996 | F54: =IF(A54="","",IF(A54=$C$2,$C$2,+IF(+VLOOKUP(+EOMONTH(+A54,-2)+15,Cenários!$A:$D,2,FALSE)>A54,+VLOOKUP(+EOMONTH(+A54,-2)+15,Cenários!$A:$D,2,FALSE),+VLOOKUP(+EOMONTH(+A54,-1)+15,Cenários!$A:$D,2,FALSE)))) -> 2024-02-15 | G54: =IF(A54="","",VLOOKUP(F54,Cenários!$B:$D,3,FALSE)) -> 4207.234657
A55: =IF(A54="","",IF(WORKDAY(+A54,1,Feriados!$A$2:$A$1071)<=$C$2,WORKDAY(+A54,1,Feriados!$A$2:$A$1071),"")) -> 2024-01-19 | B55: =IF(A55="","",+IF(+A55=D55,+E55,((+G55/E55)^+((NETWORKDAYS(+D55,A55,Feriados!$A$2:$A$1058)-1)/(NETWORKDAYS(+D55,F55,Feriados!$A$2:$A$1058)-1))*E55))) -> 4197.180246 | C55: =IF(A55="","",+IF(+A55=D55,+VLOOKUP(D55,Cenários!$B$7:$C$1000,2,FALSE),VLOOKUP(F55,Cenários!$B$7:$C$1000,2,FALSE))) -> 0.296 | D55: =IF(A55="","",+VLOOKUP(+EOMONTH(+F55,-3)+15,Cenários!$A:$D,2,FALSE)) -> 2024-01-15 | E55: =IF(A55="","",VLOOKUP(D55,Cenários!$B:$D,3,FALSE)) -> 4194.817996 | F55: =IF(A55="","",IF(A55=$C$2,$C$2,+IF(+VLOOKUP(+EOMONTH(+A55,-2)+15,Cenários!$A:$D,2,FALSE)>A55,+VLOOKUP(+EOMONTH(+A55,-2)+15,Cenários!$A:$D,2,FALSE),+VLOOKUP(+EOMONTH(+A55,-1)+15,Cenários!$A:$D,2,FALSE)))) -> 2024-02-15 | G55: =IF(A55="","",VLOOKUP(F55,Cenários!$B:$D,3,FALSE)) -> 4207.234657
A56: =IF(A55="","",IF(WORKDAY(+A55,1,Feriados!$A$2:$A$1071)<=$C$2,WORKDAY(+A55,1,Feriados!$A$2:$A$1071),"")) -> 2024-01-22 | B56: =IF(A56="","",+IF(+A56=D56,+E56,((+G56/E56)^+((NETWORKDAYS(+D56,A56,Feriados!$A$2:$A$1058)-1)/(NETWORKDAYS(+D56,F56,Feriados!$A$2:$A$1058)-1))*E56))) -> 4197.771016 | C56: =IF(A56="","",+IF(+A56=D56,+VLOOKUP(D56,Cenários!$B$7:$C$1000,2,FALSE),VLOOKUP(F56,Cenários!$B$7:$C$1000,2,FALSE))) -> 0.296 | D56: =IF(A56="","",+VLOOKUP(+EOMONTH(+F56,-3)+15,Cenários!$A:$D,2,FALSE)) -> 2024-01-15 | E56: =IF(A56="","",VLOOKUP(D56,Cenários!$B:$D,3,FALSE)) -> 4194.817996 | F56: =IF(A56="","",IF(A56=$C$2,$C$2,+IF(+VLOOKUP(+EOMONTH(+A56,-2)+15,Cenários!$A:$D,2,FALSE)>A56,+VLOOKUP(+EOMONTH(+A56,-2)+15,Cenários!$A:$D,2,FALSE),+VLOOKUP(+EOMONTH(+A56,-1)+15,Cenários!$A:$D,2,FALSE)))) -> 2024-02-15 | G56: =IF(A56="","",VLOOKUP(F56,Cenários!$B:$D,3,FALSE)) -> 4207.234657
A57: =IF(A56="","",IF(WORKDAY(+A56,1,Feriados!$A$2:$A$1071)<=$C$2,WORKDAY(+A56,1,Feriados!$A$2:$A$1071),"")) -> 2024-01-23 | B57: =IF(A57="","",+IF(+A57=D57,+E57,((+G57/E57)^+((NETWORKDAYS(+D57,A57,Feriados!$A$2:$A$1058)-1)/(NETWORKDAYS(+D57,F57,Feriados!$A$2:$A$1058)-1))*E57))) -> 4198.361869 | C57: =IF(A57="","",+IF(+A57=D57,+VLOOKUP(D57,Cenários!$B$7:$C$1000,2,FALSE),VLOOKUP(F57,Cenários!$B$7:$C$1000,2,FALSE))) -> 0.296 | D57: =IF(A57="","",+VLOOKUP(+EOMONTH(+F57,-3)+15,Cenários!$A:$D,2,FALSE)) -> 2024-01-15 | E57: =IF(A57="","",VLOOKUP(D57,Cenários!$B:$D,3,FALSE)) -> 4194.817996 | F57: =IF(A57="","",IF(A57=$C$2,$C$2,+IF(+VLOOKUP(+EOMONTH(+A57,-2)+15,Cenários!$A:$D,2,FALSE)>A57,+VLOOKUP(+EOMONTH(+A57,-2)+15,Cenários!$A:$D,2,FALSE),+VLOOKUP(+EOMONTH(+A57,-1)+15,Cenários!$A:$D,2,FALSE)))) -> 2024-02-15 | G57: =IF(A57="","",VLOOKUP(F57,Cenários!$B:$D,3,FALSE)) -> 4207.234657
A58: =IF(A57="","",IF(WORKDAY(+A57,1,Feriados!$A$2:$A$1071)<=$C$2,WORKDAY(+A57,1,Feriados!$A$2:$A$1071),"")) -> 2024-01-24 | B58: =IF(A58="","",+IF(+A58=D58,+E58,((+G58/E58)^+((NETWORKDAYS(+D58,A58,Feriados!$A$2:$A$1058)-1)/(NETWORKDAYS(+D58,F58,Feriados!$A$2:$A$1058)-1))*E58))) -> 4198.952806 | C58: =IF(A58="","",+IF(+A58=D58,+VLOOKUP(D58,Cenários!$B$7:$C$1000,2,FALSE),VLOOKUP(F58,Cenários!$B$7:$C$1000,2,FALSE))) -> 0.296 | D58: =IF(A58="","",+VLOOKUP(+EOMONTH(+F58,-3)+15,Cenários!$A:$D,2,FALSE)) -> 2024-01-15 | E58: =IF(A58="","",VLOOKUP(D58,Cenários!$B:$D,3,FALSE)) -> 4194.817996 | F58: =IF(A58="","",IF(A58=$C$2,$C$2,+IF(+VLOOKUP(+EOMONTH(+A58,-2)+15,Cenários!$A:$D,2,FALSE)>A58,+VLOOKUP(+EOMONTH(+A58,-2)+15,Cenários!$A:$D,2,FALSE),+VLOOKUP(+EOMONTH(+A58,-1)+15,Cenários!$A:$D,2,FALSE)))) -> 2024-02-15 | G58: =IF(A58="","",VLOOKUP(F58,Cenários!$B:$D,3,FALSE)) -> 4207.234657
A59: =IF(A58="","",IF(WORKDAY(+A58,1,Feriados!$A$2:$A$1071)<=$C$2,WORKDAY(+A58,1,Feriados!$A$2:$A$1071),"")) -> 2024-01-25 | B59: =IF(A59="","",+IF(+A59=D59,+E59,((+G59/E59)^+((NETWORKDAYS(+D59,A59,Feriados!$A$2:$A$1058)-1)/(NETWORKDAYS(+D59,F59,Feriados!$A$2:$A$1058)-1))*E59))) -> 4199.543826 | C59: =IF(A59="","",+IF(+A59=D59,+VLOOKUP(D59,Cenários!$B$7:$C$1000,2,FALSE),VLOOKUP(F59,Cenários!$B$7:$C$1000,2,FALSE))) -> 0.296 | D59: =IF(A59="","",+VLOOKUP(+EOMONTH(+F59,-3)+15,Cenários!$A:$D,2,FALSE)) -> 2024-01-15 | E59: =IF(A59="","",VLOOKUP(D59,Cenários!$B:$D,3,FALSE)) -> 4194.817996 | F59: =IF(A59="","",IF(A59=$C$2,$C$2,+IF(+VLOOKUP(+EOMONTH(+A59,-2)+15,Cenários!$A:$D,2,FALSE)>A59,+VLOOKUP(+EOMONTH(+A59,-2)+15,Cenários!$A:$D,2,FALSE),+VLOOKUP(+EOMONTH(+A59,-1)+15,Cenários!$A:$D,2,FALSE)))) -> 2024-02-15 | G59: =IF(A59="","",VLOOKUP(F59,Cenários!$B:$D,3,FALSE)) -> 4207.234657
A60: =IF(A59="","",IF(WORKDAY(+A59,1,Feriados!$A$2:$A$1071)<=$C$2,WORKDAY(+A59,1,Feriados!$A$2:$A$1071),"")) -> 2024-01-26 | B60: =IF(A60="","",+IF(+A60=D60,+E60,((+G60/E60)^+((NETWORKDAYS(+D60,A60,Feriados!$A$2:$A$1058)-1)/(NETWORKDAYS(+D60,F60,Feriados!$A$2:$A$1058)-1))*E60))) -> 4200.134929 | C60: =IF(A60="","",+IF(+A60=D60,+VLOOKUP(D60,Cenários!$B$7:$C$1000,2,FALSE),VLOOKUP(F60,Cenários!$B$7:$C$1000,2,FALSE))) -> 0.296 | D60: =IF(A60="","",+VLOOKUP(+EOMONTH(+F60,-3)+15,Cenários!$A:$D,2,FALSE)) -> 2024-01-15 | E60: =IF(A60="","",VLOOKUP(D60,Cenários!$B:$D,3,FALSE)) -> 4194.817996 | F60: =IF(A60="","",IF(A60=$C$2,$C$2,+IF(+VLOOKUP(+EOMONTH(+A60,-2)+15,Cenários!$A:$D,2,FALSE)>A60,+VLOOKUP(+EOMONTH(+A60,-2)+15,Cenários!$A:$D,2,FALSE),+VLOOKUP(+EOMONTH(+A60,-1)+15,Cenários!$A:$D,2,FALSE)))) -> 2024-02-15 | G60: =IF(A60="","",VLOOKUP(F60,Cenários!$B:$D,3,FALSE)) -> 4207.234657
A61: =IF(A60="","",IF(WORKDAY(+A60,1,Feriados!$A$2:$A$1071)<=$C$2,WORKDAY(+A60,1,Feriados!$A$2:$A$1071),"")) -> 2024-01-29 | B61: =IF(A61="","",+IF(+A61=D61,+E61,((+G61/E61)^+((NETWORKDAYS(+D61,A61,Feriados!$A$2:$A$1058)-1)/(NETWORKDAYS(+D61,F61,Feriados!$A$2:$A$1058)-1))*E61))) -> 4200.726115 | C61: =IF(A61="","",+IF(+A61=D61,+VLOOKUP(D61,Cenários!$B$7:$C$1000,2,FALSE),VLOOKUP(F61,Cenários!$B$7:$C$1000,2,FALSE))) -> 0.296 | D61: =IF(A61="","",+VLOOKUP(+EOMONTH(+F61,-3)+15,Cenários!$A:$D,2,FALSE)) -> 2024-01-15 | E61: =IF(A61="","",VLOOKUP(D61,Cenários!$B:$D,3,FALSE)) -> 4194.817996 | F61: =IF(A61="","",IF(A61=$C$2,$C$2,+IF(+VLOOKUP(+EOMONTH(+A61,-2)+15,Cenários!$A:$D,2,FALSE)>A61,+VLOOKUP(+EOMONTH(+A61,-2)+15,Cenários!$A:$D,2,FALSE),+VLOOKUP(+EOMONTH(+A61,-1)+15,Cenários!$A:$D,2,FALSE)))) -> 2024-02-15 | G61: =IF(A61="","",VLOOKUP(F61,Cenários!$B:$D,3,FALSE)) -> 4207.234657
A62: =IF(A61="","",IF(WORKDAY(+A61,1,Feriados!$A$2:$A$1071)<=$C$2,WORKDAY(+A61,1,Feriados!$A$2:$A$1071),"")) -> 2024-01-30 | B62: =IF(A62="","",+IF(+A62=D62,+E62,((+G62/E62)^+((NETWORKDAYS(+D62,A62,Feriados!$A$2:$A$1058)-1)/(NETWORKDAYS(+D62,F62,Feriados!$A$2:$A$1058)-1))*E62))) -> 4201.317384 | C62: =IF(A62="","",+IF(+A62=D62,+VLOOKUP(D62,Cenários!$B$7:$C$1000,2,FALSE),VLOOKUP(F62,Cenários!$B$7:$C$1000,2,FALSE))) -> 0.296 | D62: =IF(A62="","",+VLOOKUP(+EOMONTH(+F62,-3)+15,Cenários!$A:$D,2,FALSE)) -> 2024-01-15 | E62: =IF(A62="","",VLOOKUP(D62,Cenários!$B:$D,3,FALSE)) -> 4194.817996 | F62: =IF(A62="","",IF(A62=$C$2,$C$2,+IF(+VLOOKUP(+EOMONTH(+A62,-2)+15,Cenários!$A:$D,2,FALSE)>A62,+VLOOKUP(+EOMONTH(+A62,-2)+15,Cenários!$A:$D,2,FALSE),+VLOOKUP(+EOMONTH(+A62,-1)+15,Cenários!$A:$D,2,FALSE)))) -> 2024-02-15 | G62: =IF(A62="","",VLOOKUP(F62,Cenários!$B:$D,3,FALSE)) -> 4207.234657
A63: =IF(A62="","",IF(WORKDAY(+A62,1,Feriados!$A$2:$A$1071)<=$C$2,WORKDAY(+A62,1,Feriados!$A$2:$A$1071),"")) -> 2024-01-31 | B63: =IF(A63="","",+IF(+A63=D63,+E63,((+G63/E63)^+((NETWORKDAYS(+D63,A63,Feriados!$A$2:$A$1058)-1)/(NETWORKDAYS(+D63,F63,Feriados!$A$2:$A$1058)-1))*E63))) -> 4201.908737 | C63: =IF(A63="","",+IF(+A63=D63,+VLOOKUP(D63,Cenários!$B$7:$C$1000,2,FALSE),VLOOKUP(F63,Cenários!$B$7:$C$1000,2,FALSE))) -> 0.296 | D63: =IF(A63="","",+VLOOKUP(+EOMONTH(+F63,-3)+15,Cenários!$A:$D,2,FALSE)) -> 2024-01-15 | E63: =IF(A63="","",VLOOKUP(D63,Cenários!$B:$D,3,FALSE)) -> 4194.817996 | F63: =IF(A63="","",IF(A63=$C$2,$C$2,+IF(+VLOOKUP(+EOMONTH(+A63,-2)+15,Cenários!$A:$D,2,FALSE)>A63,+VLOOKUP(+EOMONTH(+A63,-2)+15,Cenários!$A:$D,2,FALSE),+VLOOKUP(+EOMONTH(+A63,-1)+15,Cenários!$A:$D,2,FALSE)))) -> 2024-02-15 | G63: =IF(A63="","",VLOOKUP(F63,Cenários!$B:$D,3,FALSE)) -> 4207.234657
A64: =IF(A63="","",IF(WORKDAY(+A63,1,Feriados!$A$2:$A$1071)<=$C$2,WORKDAY(+A63,1,Feriados!$A$2:$A$1071),"")) -> 2024-02-01 | B64: =IF(A64="","",+IF(+A64=D64,+E64,((+G64/E64)^+((NETWORKDAYS(+D64,A64,Feriados!$A$2:$A$1058)-1)/(NETWORKDAYS(+D64,F64,Feriados!$A$2:$A$1058)-1))*E64))) -> 4202.500173 | C64: =IF(A64="","",+IF(+A64=D64,+VLOOKUP(D64,Cenários!$B$7:$C$1000,2,FALSE),VLOOKUP(F64,Cenários!$B$7:$C$1000,2,FALSE))) -> 0.296 | D64: =IF(A64="","",+VLOOKUP(+EOMONTH(+F64,-3)+15,Cenários!$A:$D,2,FALSE)) -> 2024-01-15 | E64: =IF(A64="","",VLOOKUP(D64,Cenários!$B:$D,3,FALSE)) -> 4194.817996 | F64: =IF(A64="","",IF(A64=$C$2,$C$2,+IF(+VLOOKUP(+EOMONTH(+A64,-2)+15,Cenários!$A:$D,2,FALSE)>A64,+VLOOKUP(+EOMONTH(+A64,-2)+15,Cenários!$A:$D,2,FALSE),+VLOOKUP(+EOMONTH(+A64,-1)+15,Cenários!$A:$D,2,FALSE)))) -> 2024-02-15 | G64: =IF(A64="","",VLOOKUP(F64,Cenários!$B:$D,3,FALSE)) -> 4207.234657
A65: =IF(A64="","",IF(WORKDAY(+A64,1,Feriados!$A$2:$A$1071)<=$C$2,WORKDAY(+A64,1,Feriados!$A$2:$A$1071),"")) -> 2024-02-02 | B65: =IF(A65="","",+IF(+A65=D65,+E65,((+G65/E65)^+((NETWORKDAYS(+D65,A65,Feriados!$A$2:$A$1058)-1)/(NETWORKDAYS(+D65,F65,Feriados!$A$2:$A$1058)-1))*E65))) -> 4203.091692 | C65: =IF(A65="","",+IF(+A65=D65,+VLOOKUP(D65,Cenários!$B$7:$C$1000,2,FALSE),VLOOKUP(F65,Cenários!$B$7:$C$1000,2,FALSE))) -> 0.296 | D65: =IF(A65="","",+VLOOKUP(+EOMONTH(+F65,-3)+15,Cenários!$A:$D,2,FALSE)) -> 2024-01-15 | E65: =IF(A65="","",VLOOKUP(D65,Cenários!$B:$D,3,FALSE)) -> 4194.817996 | F65: =IF(A65="","",IF(A65=$C$2,$C$2,+IF(+VLOOKUP(+EOMONTH(+A65,-2)+15,Cenários!$A:$D,2,FALSE)>A65,+VLOOKUP(+EOMONTH(+A65,-2)+15,Cenários!$A:$D,2,FALSE),+VLOOKUP(+EOMONTH(+A65,-1)+15,Cenários!$A:$D,2,FALSE)))) -> 2024-02-15 | G65: =IF(A65="","",VLOOKUP(F65,Cenários!$B:$D,3,FALSE)) -> 4207.234657
A66: =IF(A65="","",IF(WORKDAY(+A65,1,Feriados!$A$2:$A$1071)<=$C$2,WORKDAY(+A65,1,Feriados!$A$2:$A$1071),"")) -> 2024-02-05 | B66: =IF(A66="","",+IF(+A66=D66,+E66,((+G66/E66)^+((NETWORKDAYS(+D66,A66,Feriados!$A$2:$A$1058)-1)/(NETWORKDAYS(+D66,F66,Feriados!$A$2:$A$1058)-1))*E66))) -> 4203.683294 | C66: =IF(A66="","",+IF(+A66=D66,+VLOOKUP(D66,Cenários!$B$7:$C$1000,2,FALSE),VLOOKUP(F66,Cenários!$B$7:$C$1000,2,FALSE))) -> 0.296 | D66: =IF(A66="","",+VLOOKUP(+EOMONTH(+F66,-3)+15,Cenários!$A:$D,2,FALSE)) -> 2024-01-15 | E66: =IF(A66="","",VLOOKUP(D66,Cenários!$B:$D,3,FALSE)) -> 4194.817996 | F66: =IF(A66="","",IF(A66=$C$2,$C$2,+IF(+VLOOKUP(+EOMONTH(+A66,-2)+15,Cenários!$A:$D,2,FALSE)>A66,+VLOOKUP(+EOMONTH(+A66,-2)+15,Cenários!$A:$D,2,FALSE),+VLOOKUP(+EOMONTH(+A66,-1)+15,Cenários!$A:$D,2,FALSE)))) -> 2024-02-15 | G66: =IF(A66="","",VLOOKUP(F66,Cenários!$B:$D,3,FALSE)) -> 4207.234657
A67: =IF(A66="","",IF(WORKDAY(+A66,1,Feriados!$A$2:$A$1071)<=$C$2,WORKDAY(+A66,1,Feriados!$A$2:$A$1071),"")) -> 2024-02-06 | B67: =IF(A67="","",+IF(+A67=D67,+E67,((+G67/E67)^+((NETWORKDAYS(+D67,A67,Feriados!$A$2:$A$1058)-1)/(NETWORKDAYS(+D67,F67,Feriados!$A$2:$A$1058)-1))*E67))) -> 4204.27498 | C67: =IF(A67="","",+IF(+A67=D67,+VLOOKUP(D67,Cenários!$B$7:$C$1000,2,FALSE),VLOOKUP(F67,Cenários!$B$7:$C$1000,2,FALSE))) -> 0.296 | D67: =IF(A67="","",+VLOOKUP(+EOMONTH(+F67,-3)+15,Cenários!$A:$D,2,FALSE)) -> 2024-01-15 | E67: =IF(A67="","",VLOOKUP(D67,Cenários!$B:$D,3,FALSE)) -> 4194.817996 | F67: =IF(A67="","",IF(A67=$C$2,$C$2,+IF(+VLOOKUP(+EOMONTH(+A67,-2)+15,Cenários!$A:$D,2,FALSE)>A67,+VLOOKUP(+EOMONTH(+A67,-2)+15,Cenários!$A:$D,2,FALSE),+VLOOKUP(+EOMONTH(+A67,-1)+15,Cenários!$A:$D,2,FALSE)))) -> 2024-02-15 | G67: =IF(A67="","",VLOOKUP(F67,Cenários!$B:$D,3,FALSE)) -> 4207.234657
A68: =IF(A67="","",IF(WORKDAY(+A67,1,Feriados!$A$2:$A$1071)<=$C$2,WORKDAY(+A67,1,Feriados!$A$2:$A$1071),"")) -> 2024-02-07 | B68: =IF(A68="","",+IF(+A68=D68,+E68,((+G68/E68)^+((NETWORKDAYS(+D68,A68,Feriados!$A$2:$A$1058)-1)/(NETWORKDAYS(+D68,F68,Feriados!$A$2:$A$1058)-1))*E68))) -> 4204.866748 | C68: =IF(A68="","",+IF(+A68=D68,+VLOOKUP(D68,Cenários!$B$7:$C$1000,2,FALSE),VLOOKUP(F68,Cenários!$B$7:$C$1000,2,FALSE))) -> 0.296 | D68: =IF(A68="","",+VLOOKUP(+EOMONTH(+F68,-3)+15,Cenários!$A:$D,2,FALSE)) -> 2024-01-15 | E68: =IF(A68="","",VLOOKUP(D68,Cenários!$B:$D,3,FALSE)) -> 4194.817996 | F68: =IF(A68="","",IF(A68=$C$2,$C$2,+IF(+VLOOKUP(+EOMONTH(+A68,-2)+15,Cenários!$A:$D,2,FALSE)>A68,+VLOOKUP(+EOMONTH(+A68,-2)+15,Cenários!$A:$D,2,FALSE),+VLOOKUP(+EOMONTH(+A68,-1)+15,Cenários!$A:$D,2,FALSE)))) -> 2024-02-15 | G68: =IF(A68="","",VLOOKUP(F68,Cenários!$B:$D,3,FALSE)) -> 4207.234657
A69: =IF(A68="","",IF(WORKDAY(+A68,1,Feriados!$A$2:$A$1071)<=$C$2,WORKDAY(+A68,1,Feriados!$A$2:$A$1071),"")) -> 2024-02-08 | B69: =IF(A69="","",+IF(+A69=D69,+E69,((+G69/E69)^+((NETWORKDAYS(+D69,A69,Feriados!$A$2:$A$1058)-1)/(NETWORKDAYS(+D69,F69,Feriados!$A$2:$A$1058)-1))*E69))) -> 4205.458601 | C69: =IF(A69="","",+IF(+A69=D69,+VLOOKUP(D69,Cenários!$B$7:$C$1000,2,FALSE),VLOOKUP(F69,Cenários!$B$7:$C$1000,2,FALSE))) -> 0.296 | D69: =IF(A69="","",+VLOOKUP(+EOMONTH(+F69,-3)+15,Cenários!$A:$D,2,FALSE)) -> 2024-01-15 | E69: =IF(A69="","",VLOOKUP(D69,Cenários!$B:$D,3,FALSE)) -> 4194.817996 | F69: =IF(A69="","",IF(A69=$C$2,$C$2,+IF(+VLOOKUP(+EOMONTH(+A69,-2)+15,Cenários!$A:$D,2,FALSE)>A69,+VLOOKUP(+EOMONTH(+A69,-2)+15,Cenários!$A:$D,2,FALSE),+VLOOKUP(+EOMONTH(+A69,-1)+15,Cenários!$A:$D,2,FALSE)))) -> 2024-02-15 | G69: =IF(A69="","",VLOOKUP(F69,Cenários!$B:$D,3,FALSE)) -> 4207.234657
A70: =IF(A69="","",IF(WORKDAY(+A69,1,Feriados!$A$2:$A$1071)<=$C$2,WORKDAY(+A69,1,Feriados!$A$2:$A$1071),"")) -> 2024-02-09 | B70: =IF(A70="","",+IF(+A70=D70,+E70,((+G70/E70)^+((NETWORKDAYS(+D70,A70,Feriados!$A$2:$A$1058)-1)/(NETWORKDAYS(+D70,F70,Feriados!$A$2:$A$1058)-1))*E70))) -> 4206.050536 | C70: =IF(A70="","",+IF(+A70=D70,+VLOOKUP(D70,Cenários!$B$7:$C$1000,2,FALSE),VLOOKUP(F70,Cenários!$B$7:$C$1000,2,FALSE))) -> 0.296 | D70: =IF(A70="","",+VLOOKUP(+EOMONTH(+F70,-3)+15,Cenários!$A:$D,2,FALSE)) -> 2024-01-15 | E70: =IF(A70="","",VLOOKUP(D70,Cenários!$B:$D,3,FALSE)) -> 4194.817996 | F70: =IF(A70="","",IF(A70=$C$2,$C$2,+IF(+VLOOKUP(+EOMONTH(+A70,-2)+15,Cenários!$A:$D,2,FALSE)>A70,+VLOOKUP(+EOMONTH(+A70,-2)+15,Cenários!$A:$D,2,FALSE),+VLOOKUP(+EOMONTH(+A70,-1)+15,Cenários!$A:$D,2,FALSE)))) -> 2024-02-15 | G70: =IF(A70="","",VLOOKUP(F70,Cenários!$B:$D,3,FALSE)) -> 4207.234657
A71: =IF(A70="","",IF(WORKDAY(+A70,1,Feriados!$A$2:$A$1071)<=$C$2,WORKDAY(+A70,1,Feriados!$A$2:$A$1071),"")) -> 2024-02-14 | B71: =IF(A71="","",+IF(+A71=D71,+E71,((+G71/E71)^+((NETWORKDAYS(+D71,A71,Feriados!$A$2:$A$1058)-1)/(NETWORKDAYS(+D71,F71,Feriados!$A$2:$A$1058)-1))*E71))) -> 4206.642555 | C71: =IF(A71="","",+IF(+A71=D71,+VLOOKUP(D71,Cenários!$B$7:$C$1000,2,FALSE),VLOOKUP(F71,Cenários!$B$7:$C$1000,2,FALSE))) -> 0.296 | D71: =IF(A71="","",+VLOOKUP(+EOMONTH(+F71,-3)+15,Cenários!$A:$D,2,FALSE)) -> 2024-01-15 | E71: =IF(A71="","",VLOOKUP(D71,Cenários!$B:$D,3,FALSE)) -> 4194.817996 | F71: =IF(A71="","",IF(A71=$C$2,$C$2,+IF(+VLOOKUP(+EOMONTH(+A71,-2)+15,Cenários!$A:$D,2,FALSE)>A71,+VLOOKUP(+EOMONTH(+A71,-2)+15,Cenários!$A:$D,2,FALSE),+VLOOKUP(+EOMONTH(+A71,-1)+15,Cenários!$A:$D,2,FALSE)))) -> 2024-02-15 | G71: =IF(A71="","",VLOOKUP(F71,Cenários!$B:$D,3,FALSE)) -> 4207.234657
A72: =IF(A71="","",IF(WORKDAY(+A71,1,Feriados!$A$2:$A$1071)<=$C$2,WORKDAY(+A71,1,Feriados!$A$2:$A$1071),"")) -> 2024-02-15 | B72: =IF(A72="","",+IF(+A72=D72,+E72,((+G72/E72)^+((NETWORKDAYS(+D72,A72,Feriados!$A$2:$A$1058)-1)/(NETWORKDAYS(+D72,F72,Feriados!$A$2:$A$1058)-1))*E72))) -> 4207.234657 | C72: =IF(A72="","",+IF(+A72=D72,+VLOOKUP(D72,Cenários!$B$7:$C$1000,2,FALSE),VLOOKUP(F72,Cenários!$B$7:$C$1000,2,FALSE))) -> 0.296 | D72: =IF(A72="","",+VLOOKUP(+EOMONTH(+F72,-3)+15,Cenários!$A:$D,2,FALSE)) -> 2024-02-15 | E72: =IF(A72="","",VLOOKUP(D72,Cenários!$B:$D,3,FALSE)) -> 4207.234657 | F72: =IF(A72="","",IF(A72=$C$2,$C$2,+IF(+VLOOKUP(+EOMONTH(+A72,-2)+15,Cenários!$A:$D,2,FALSE)>A72,+VLOOKUP(+EOMONTH(+A72,-2)+15,Cenários!$A:$D,2,FALSE),+VLOOKUP(+EOMONTH(+A72,-1)+15,Cenários!$A:$D,2,FALSE)))) -> 2024-03-15 | G72: =IF(A72="","",VLOOKUP(F72,Cenários!$B:$D,3,FALSE)) -> 4229.112277
A73: =IF(A72="","",IF(WORKDAY(+A72,1,Feriados!$A$2:$A$1071)<=$C$2,WORKDAY(+A72,1,Feriados!$A$2:$A$1071),"")) -> 2024-02-16 | B73: =IF(A73="","",+IF(+A73=D73,+E73,((+G73/E73)^+((NETWORKDAYS(+D73,A73,Feriados!$A$2:$A$1058)-1)/(NETWORKDAYS(+D73,F73,Feriados!$A$2:$A$1058)-1))*E73))) -> 4208.273877 | C73: =IF(A73="","",+IF(+A73=D73,+VLOOKUP(D73,Cenários!$B$7:$C$1000,2,FALSE),VLOOKUP(F73,Cenários!$B$7:$C$1000,2,FALSE))) -> 0.52 | D73: =IF(A73="","",+VLOOKUP(+EOMONTH(+F73,-3)+15,Cenários!$A:$D,2,FALSE)) -> 2024-02-15 | E73: =IF(A73="","",VLOOKUP(D73,Cenários!$B:$D,3,FALSE)) -> 4207.234657 | F73: =IF(A73="","",IF(A73=$C$2,$C$2,+IF(+VLOOKUP(+EOMONTH(+A73,-2)+15,Cenários!$A:$D,2,FALSE)>A73,+VLOOKUP(+EOMONTH(+A73,-2)+15,Cenários!$A:$D,2,FALSE),+VLOOKUP(+EOMONTH(+A73,-1)+15,Cenários!$A:$D,2,FALSE)))) -> 2024-03-15 | G73: =IF(A73="","",VLOOKUP(F73,Cenários!$B:$D,3,FALSE)) -> 4229.112277
A74: =IF(A73="","",IF(WORKDAY(+A73,1,Feriados!$A$2:$A$1071)<=$C$2,WORKDAY(+A73,1,Feriados!$A$2:$A$1071),"")) -> 2024-02-19 | B74: =IF(A74="","",+IF(+A74=D74,+E74,((+G74/E74)^+((NETWORKDAYS(+D74,A74,Feriados!$A$2:$A$1058)-1)/(NETWORKDAYS(+D74,F74,Feriados!$A$2:$A$1058)-1))*E74))) -> 4209.313355 | C74: =IF(A74="","",+IF(+A74=D74,+VLOOKUP(D74,Cenários!$B$7:$C$1000,2,FALSE),VLOOKUP(F74,Cenários!$B$7:$C$1000,2,FALSE))) -> 0.52 | D74: =IF(A74="","",+VLOOKUP(+EOMONTH(+F74,-3)+15,Cenários!$A:$D,2,FALSE)) -> 2024-02-15 | E74: =IF(A74="","",VLOOKUP(D74,Cenários!$B:$D,3,FALSE)) -> 4207.234657 | F74: =IF(A74="","",IF(A74=$C$2,$C$2,+IF(+VLOOKUP(+EOMONTH(+A74,-2)+15,Cenários!$A:$D,2,FALSE)>A74,+VLOOKUP(+EOMONTH(+A74,-2)+15,Cenários!$A:$D,2,FALSE),+VLOOKUP(+EOMONTH(+A74,-1)+15,Cenários!$A:$D,2,FALSE)))) -> 2024-03-15 | G74: =IF(A74="","",VLOOKUP(F74,Cenários!$B:$D,3,FALSE)) -> 4229.112277
A75: =IF(A74="","",IF(WORKDAY(+A74,1,Feriados!$A$2:$A$1071)<=$C$2,WORKDAY(+A74,1,Feriados!$A$2:$A$1071),"")) -> 2024-02-20 | B75: =IF(A75="","",+IF(+A75=D75,+E75,((+G75/E75)^+((NETWORKDAYS(+D75,A75,Feriados!$A$2:$A$1058)-1)/(NETWORKDAYS(+D75,F75,Feriados!$A$2:$A$1058)-1))*E75))) -> 4210.353089 | C75: =IF(A75="","",+IF(+A75=D75,+VLOOKUP(D75,Cenários!$B$7:$C$1000,2,FALSE),VLOOKUP(F75,Cenários!$B$7:$C$1000,2,FALSE))) -> 0.52 | D75: =IF(A75="","",+VLOOKUP(+EOMONTH(+F75,-3)+15,Cenários!$A:$D,2,FALSE)) -> 2024-02-15 | E75: =IF(A75="","",VLOOKUP(D75,Cenários!$B:$D,3,FALSE)) -> 4207.234657 | F75: =IF(A75="","",IF(A75=$C$2,$C$2,+IF(+VLOOKUP(+EOMONTH(+A75,-2)+15,Cenários!$A:$D,2,FALSE)>A75,+VLOOKUP(+EOMONTH(+A75,-2)+15,Cenários!$A:$D,2,FALSE),+VLOOKUP(+EOMONTH(+A75,-1)+15,Cenários!$A:$D,2,FALSE)))) -> 2024-03-15 | G75: =IF(A75="","",VLOOKUP(F75,Cenários!$B:$D,3,FALSE)) -> 4229.112277
A76: =IF(A75="","",IF(WORKDAY(+A75,1,Feriados!$A$2:$A$1071)<=$C$2,WORKDAY(+A75,1,Feriados!$A$2:$A$1071),"")) -> 2024-02-21 | B76: =IF(A76="","",+IF(+A76=D76,+E76,((+G76/E76)^+((NETWORKDAYS(+D76,A76,Feriados!$A$2:$A$1058)-1)/(NETWORKDAYS(+D76,F76,Feriados!$A$2:$A$1058)-1))*E76))) -> 4211.393079 | C76: =IF(A76="","",+IF(+A76=D76,+VLOOKUP(D76,Cenários!$B$7:$C$1000,2,FALSE),VLOOKUP(F76,Cenários!$B$7:$C$1000,2,FALSE))) -> 0.52 | D76: =IF(A76="","",+VLOOKUP(+EOMONTH(+F76,-3)+15,Cenários!$A:$D,2,FALSE)) -> 2024-02-15 | E76: =IF(A76="","",VLOOKUP(D76,Cenários!$B:$D,3,FALSE)) -> 4207.234657 | F76: =IF(A76="","",IF(A76=$C$2,$C$2,+IF(+VLOOKUP(+EOMONTH(+A76,-2)+15,Cenários!$A:$D,2,FALSE)>A76,+VLOOKUP(+EOMONTH(+A76,-2)+15,Cenários!$A:$D,2,FALSE),+VLOOKUP(+EOMONTH(+A76,-1)+15,Cenários!$A:$D,2,FALSE)))) -> 2024-03-15 | G76: =IF(A76="","",VLOOKUP(F76,Cenários!$B:$D,3,FALSE)) -> 4229.112277
A77: =IF(A76="","",IF(WORKDAY(+A76,1,Feriados!$A$2:$A$1071)<=$C$2,WORKDAY(+A76,1,Feriados!$A$2:$A$1071),"")) -> 2024-02-22 | B77: =IF(A77="","",+IF(+A77=D77,+E77,((+G77/E77)^+((NETWORKDAYS(+D77,A77,Feriados!$A$2:$A$1058)-1)/(NETWORKDAYS(+D77,F77,Feriados!$A$2:$A$1058)-1))*E77))) -> 4212.433327 | C77: =IF(A77="","",+IF(+A77=D77,+VLOOKUP(D77,Cenários!$B$7:$C$1000,2,FALSE),VLOOKUP(F77,Cenários!$B$7:$C$1000,2,FALSE))) -> 0.52 | D77: =IF(A77="","",+VLOOKUP(+EOMONTH(+F77,-3)+15,Cenários!$A:$D,2,FALSE)) -> 2024-02-15 | E77: =IF(A77="","",VLOOKUP(D77,Cenários!$B:$D,3,FALSE)) -> 4207.234657 | F77: =IF(A77="","",IF(A77=$C$2,$C$2,+IF(+VLOOKUP(+EOMONTH(+A77,-2)+15,Cenários!$A:$D,2,FALSE)>A77,+VLOOKUP(+EOMONTH(+A77,-2)+15,Cenários!$A:$D,2,FALSE),+VLOOKUP(+EOMONTH(+A77,-1)+15,Cenários!$A:$D,2,FALSE)))) -> 2024-03-15 | G77: =IF(A77="","",VLOOKUP(F77,Cenários!$B:$D,3,FALSE)) -> 4229.112277
A78: =IF(A77="","",IF(WORKDAY(+A77,1,Feriados!$A$2:$A$1071)<=$C$2,WORKDAY(+A77,1,Feriados!$A$2:$A$1071),"")) -> 2024-02-23 | B78: =IF(A78="","",+IF(+A78=D78,+E78,((+G78/E78)^+((NETWORKDAYS(+D78,A78,Feriados!$A$2:$A$1058)-1)/(NETWORKDAYS(+D78,F78,Feriados!$A$2:$A$1058)-1))*E78))) -> 4213.473831 | C78: =IF(A78="","",+IF(+A78=D78,+VLOOKUP(D78,Cenários!$B$7:$C$1000,2,FALSE),VLOOKUP(F78,Cenários!$B$7:$C$1000,2,FALSE))) -> 0.52 | D78: =IF(A78="","",+VLOOKUP(+EOMONTH(+F78,-3)+15,Cenários!$A:$D,2,FALSE)) -> 2024-02-15 | E78: =IF(A78="","",VLOOKUP(D78,Cenários!$B:$D,3,FALSE)) -> 4207.234657 | F78: =IF(A78="","",IF(A78=$C$2,$C$2,+IF(+VLOOKUP(+EOMONTH(+A78,-2)+15,Cenários!$A:$D,2,FALSE)>A78,+VLOOKUP(+EOMONTH(+A78,-2)+15,Cenários!$A:$D,2,FALSE),+VLOOKUP(+EOMONTH(+A78,-1)+15,Cenários!$A:$D,2,FALSE)))) -> 2024-03-15 | G78: =IF(A78="","",VLOOKUP(F78,Cenários!$B:$D,3,FALSE)) -> 4229.112277
A79: =IF(A78="","",IF(WORKDAY(+A78,1,Feriados!$A$2:$A$1071)<=$C$2,WORKDAY(+A78,1,Feriados!$A$2:$A$1071),"")) -> 2024-02-26 | B79: =IF(A79="","",+IF(+A79=D79,+E79,((+G79/E79)^+((NETWORKDAYS(+D79,A79,Feriados!$A$2:$A$1058)-1)/(NETWORKDAYS(+D79,F79,Feriados!$A$2:$A$1058)-1))*E79))) -> 4214.514593 | C79: =IF(A79="","",+IF(+A79=D79,+VLOOKUP(D79,Cenários!$B$7:$C$1000,2,FALSE),VLOOKUP(F79,Cenários!$B$7:$C$1000,2,FALSE))) -> 0.52 | D79: =IF(A79="","",+VLOOKUP(+EOMONTH(+F79,-3)+15,Cenários!$A:$D,2,FALSE)) -> 2024-02-15 | E79: =IF(A79="","",VLOOKUP(D79,Cenários!$B:$D,3,FALSE)) -> 4207.234657 | F79: =IF(A79="","",IF(A79=$C$2,$C$2,+IF(+VLOOKUP(+EOMONTH(+A79,-2)+15,Cenários!$A:$D,2,FALSE)>A79,+VLOOKUP(+EOMONTH(+A79,-2)+15,Cenários!$A:$D,2,FALSE),+VLOOKUP(+EOMONTH(+A79,-1)+15,Cenários!$A:$D,2,FALSE)))) -> 2024-03-15 | G79: =IF(A79="","",VLOOKUP(F79,Cenários!$B:$D,3,FALSE)) -> 4229.112277
A80: =IF(A79="","",IF(WORKDAY(+A79,1,Feriados!$A$2:$A$1071)<=$C$2,WORKDAY(+A79,1,Feriados!$A$2:$A$1071),"")) -> 2024-02-27 | B80: =IF(A80="","",+IF(+A80=D80,+E80,((+G80/E80)^+((NETWORKDAYS(+D80,A80,Feriados!$A$2:$A$1058)-1)/(NETWORKDAYS(+D80,F80,Feriados!$A$2:$A$1058)-1))*E80))) -> 4215.555612 | C80: =IF(A80="","",+IF(+A80=D80,+VLOOKUP(D80,Cenários!$B$7:$C$1000,2,FALSE),VLOOKUP(F80,Cenários!$B$7:$C$1000,2,FALSE))) -> 0.52 | D80: =IF(A80="","",+VLOOKUP(+EOMONTH(+F80,-3)+15,Cenários!$A:$D,2,FALSE)) -> 2024-02-15 | E80: =IF(A80="","",VLOOKUP(D80,Cenários!$B:$D,3,FALSE)) -> 4207.234657 | F80: =IF(A80="","",IF(A80=$C$2,$C$2,+IF(+VLOOKUP(+EOMONTH(+A80,-2)+15,Cenários!$A:$D,2,FALSE)>A80,+VLOOKUP(+EOMONTH(+A80,-2)+15,Cenários!$A:$D,2,FALSE),+VLOOKUP(+EOMONTH(+A80,-1)+15,Cenários!$A:$D,2,FALSE)))) -> 2024-03-15 | G80: =IF(A80="","",VLOOKUP(F80,Cenários!$B:$D,3,FALSE)) -> 4229.112277
A81: =IF(A80="","",IF(WORKDAY(+A80,1,Feriados!$A$2:$A$1071)<=$C$2,WORKDAY(+A80,1,Feriados!$A$2:$A$1071),"")) -> 2024-02-28 | B81: =IF(A81="","",+IF(+A81=D81,+E81,((+G81/E81)^+((NETWORKDAYS(+D81,A81,Feriados!$A$2:$A$1058)-1)/(NETWORKDAYS(+D81,F81,Feriados!$A$2:$A$1058)-1))*E81))) -> 4216.596887 | C81: =IF(A81="","",+IF(+A81=D81,+VLOOKUP(D81,Cenários!$B$7:$C$1000,2,FALSE),VLOOKUP(F81,Cenários!$B$7:$C$1000,2,FALSE))) -> 0.52 | D81: =IF(A81="","",+VLOOKUP(+EOMONTH(+F81,-3)+15,Cenários!$A:$D,2,FALSE)) -> 2024-02-15 | E81: =IF(A81="","",VLOOKUP(D81,Cenários!$B:$D,3,FALSE)) -> 4207.234657 | F81: =IF(A81="","",IF(A81=$C$2,$C$2,+IF(+VLOOKUP(+EOMONTH(+A81,-2)+15,Cenários!$A:$D,2,FALSE)>A81,+VLOOKUP(+EOMONTH(+A81,-2)+15,Cenários!$A:$D,2,FALSE),+VLOOKUP(+EOMONTH(+A81,-1)+15,Cenários!$A:$D,2,FALSE)))) -> 2024-03-15 | G81: =IF(A81="","",VLOOKUP(F81,Cenários!$B:$D,3,FALSE)) -> 4229.112277
A82: =IF(A81="","",IF(WORKDAY(+A81,1,Feriados!$A$2:$A$1071)<=$C$2,WORKDAY(+A81,1,Feriados!$A$2:$A$1071),"")) -> 2024-02-29 | B82: =IF(A82="","",+IF(+A82=D82,+E82,((+G82/E82)^+((NETWORKDAYS(+D82,A82,Feriados!$A$2:$A$1058)-1)/(NETWORKDAYS(+D82,F82,Feriados!$A$2:$A$1058)-1))*E82))) -> 4217.63842 | C82: =IF(A82="","",+IF(+A82=D82,+VLOOKUP(D82,Cenários!$B$7:$C$1000,2,FALSE),VLOOKUP(F82,Cenários!$B$7:$C$1000,2,FALSE))) -> 0.52 | D82: =IF(A82="","",+VLOOKUP(+EOMONTH(+F82,-3)+15,Cenários!$A:$D,2,FALSE)) -> 2024-02-15 | E82: =IF(A82="","",VLOOKUP(D82,Cenários!$B:$D,3,FALSE)) -> 4207.234657 | F82: =IF(A82="","",IF(A82=$C$2,$C$2,+IF(+VLOOKUP(+EOMONTH(+A82,-2)+15,Cenários!$A:$D,2,FALSE)>A82,+VLOOKUP(+EOMONTH(+A82,-2)+15,Cenários!$A:$D,2,FALSE),+VLOOKUP(+EOMONTH(+A82,-1)+15,Cenários!$A:$D,2,FALSE)))) -> 2024-03-15 | G82: =IF(A82="","",VLOOKUP(F82,Cenários!$B:$D,3,FALSE)) -> 4229.112277
A83: =IF(A82="","",IF(WORKDAY(+A82,1,Feriados!$A$2:$A$1071)<=$C$2,WORKDAY(+A82,1,Feriados!$A$2:$A$1071),"")) -> 2024-03-01 | B83: =IF(A83="","",+IF(+A83=D83,+E83,((+G83/E83)^+((NETWORKDAYS(+D83,A83,Feriados!$A$2:$A$1058)-1)/(NETWORKDAYS(+D83,F83,Feriados!$A$2:$A$1058)-1))*E83))) -> 4218.680211 | C83: =IF(A83="","",+IF(+A83=D83,+VLOOKUP(D83,Cenários!$B$7:$C$1000,2,FALSE),VLOOKUP(F83,Cenários!$B$7:$C$1000,2,FALSE))) -> 0.52 | D83: =IF(A83="","",+VLOOKUP(+EOMONTH(+F83,-3)+15,Cenários!$A:$D,2,FALSE)) -> 2024-02-15 | E83: =IF(A83="","",VLOOKUP(D83,Cenários!$B:$D,3,FALSE)) -> 4207.234657 | F83: =IF(A83="","",IF(A83=$C$2,$C$2,+IF(+VLOOKUP(+EOMONTH(+A83,-2)+15,Cenários!$A:$D,2,FALSE)>A83,+VLOOKUP(+EOMONTH(+A83,-2)+15,Cenários!$A:$D,2,FALSE),+VLOOKUP(+EOMONTH(+A83,-1)+15,Cenários!$A:$D,2,FALSE)))) -> 2024-03-15 | G83: =IF(A83="","",VLOOKUP(F83,Cenários!$B:$D,3,FALSE)) -> 4229.112277
A84: =IF(A83="","",IF(WORKDAY(+A83,1,Feriados!$A$2:$A$1071)<=$C$2,WORKDAY(+A83,1,Feriados!$A$2:$A$1071),"")) -> 2024-03-04 | B84: =IF(A84="","",+IF(+A84=D84,+E84,((+G84/E84)^+((NETWORKDAYS(+D84,A84,Feriados!$A$2:$A$1058)-1)/(NETWORKDAYS(+D84,F84,Feriados!$A$2:$A$1058)-1))*E84))) -> 4219.722258 | C84: =IF(A84="","",+IF(+A84=D84,+VLOOKUP(D84,Cenários!$B$7:$C$1000,2,FALSE),VLOOKUP(F84,Cenários!$B$7:$C$1000,2,FALSE))) -> 0.52 | D84: =IF(A84="","",+VLOOKUP(+EOMONTH(+F84,-3)+15,Cenários!$A:$D,2,FALSE)) -> 2024-02-15 | E84: =IF(A84="","",VLOOKUP(D84,Cenários!$B:$D,3,FALSE)) -> 4207.234657 | F84: =IF(A84="","",IF(A84=$C$2,$C$2,+IF(+VLOOKUP(+EOMONTH(+A84,-2)+15,Cenários!$A:$D,2,FALSE)>A84,+VLOOKUP(+EOMONTH(+A84,-2)+15,Cenários!$A:$D,2,FALSE),+VLOOKUP(+EOMONTH(+A84,-1)+15,Cenários!$A:$D,2,FALSE)))) -> 2024-03-15 | G84: =IF(A84="","",VLOOKUP(F84,Cenários!$B:$D,3,FALSE)) -> 4229.112277
A85: =IF(A84="","",IF(WORKDAY(+A84,1,Feriados!$A$2:$A$1071)<=$C$2,WORKDAY(+A84,1,Feriados!$A$2:$A$1071),"")) -> 2024-03-05 | B85: =IF(A85="","",+IF(+A85=D85,+E85,((+G85/E85)^+((NETWORKDAYS(+D85,A85,Feriados!$A$2:$A$1058)-1)/(NETWORKDAYS(+D85,F85,Feriados!$A$2:$A$1058)-1))*E85))) -> 4220.764563 | C85: =IF(A85="","",+IF(+A85=D85,+VLOOKUP(D85,Cenários!$B$7:$C$1000,2,FALSE),VLOOKUP(F85,Cenários!$B$7:$C$1000,2,FALSE))) -> 0.52 | D85: =IF(A85="","",+VLOOKUP(+EOMONTH(+F85,-3)+15,Cenários!$A:$D,2,FALSE)) -> 2024-02-15 | E85: =IF(A85="","",VLOOKUP(D85,Cenários!$B:$D,3,FALSE)) -> 4207.234657 | F85: =IF(A85="","",IF(A85=$C$2,$C$2,+IF(+VLOOKUP(+EOMONTH(+A85,-2)+15,Cenários!$A:$D,2,FALSE)>A85,+VLOOKUP(+EOMONTH(+A85,-2)+15,Cenários!$A:$D,2,FALSE),+VLOOKUP(+EOMONTH(+A85,-1)+15,Cenários!$A:$D,2,FALSE)))) -> 2024-03-15 | G85: =IF(A85="","",VLOOKUP(F85,Cenários!$B:$D,3,FALSE)) -> 4229.112277
A86: =IF(A85="","",IF(WORKDAY(+A85,1,Feriados!$A$2:$A$1071)<=$C$2,WORKDAY(+A85,1,Feriados!$A$2:$A$1071),"")) -> 2024-03-06 | B86: =IF(A86="","",+IF(+A86=D86,+E86,((+G86/E86)^+((NETWORKDAYS(+D86,A86,Feriados!$A$2:$A$1058)-1)/(NETWORKDAYS(+D86,F86,Feriados!$A$2:$A$1058)-1))*E86))) -> 4221.807126 | C86: =IF(A86="","",+IF(+A86=D86,+VLOOKUP(D86,Cenários!$B$7:$C$1000,2,FALSE),VLOOKUP(F86,Cenários!$B$7:$C$1000,2,FALSE))) -> 0.52 | D86: =IF(A86="","",+VLOOKUP(+EOMONTH(+F86,-3)+15,Cenários!$A:$D,2,FALSE)) -> 2024-02-15 | E86: =IF(A86="","",VLOOKUP(D86,Cenários!$B:$D,3,FALSE)) -> 4207.234657 | F86: =IF(A86="","",IF(A86=$C$2,$C$2,+IF(+VLOOKUP(+EOMONTH(+A86,-2)+15,Cenários!$A:$D,2,FALSE)>A86,+VLOOKUP(+EOMONTH(+A86,-2)+15,Cenários!$A:$D,2,FALSE),+VLOOKUP(+EOMONTH(+A86,-1)+15,Cenários!$A:$D,2,FALSE)))) -> 2024-03-15 | G86: =IF(A86="","",VLOOKUP(F86,Cenários!$B:$D,3,FALSE)) -> 4229.112277
A87: =IF(A86="","",IF(WORKDAY(+A86,1,Feriados!$A$2:$A$1071)<=$C$2,WORKDAY(+A86,1,Feriados!$A$2:$A$1071),"")) -> 2024-03-07 | B87: =IF(A87="","",+IF(+A87=D87,+E87,((+G87/E87)^+((NETWORKDAYS(+D87,A87,Feriados!$A$2:$A$1058)-1)/(NETWORKDAYS(+D87,F87,Feriados!$A$2:$A$1058)-1))*E87))) -> 4222.849946 | C87: =IF(A87="","",+IF(+A87=D87,+VLOOKUP(D87,Cenários!$B$7:$C$1000,2,FALSE),VLOOKUP(F87,Cenários!$B$7:$C$1000,2,FALSE))) -> 0.52 | D87: =IF(A87="","",+VLOOKUP(+EOMONTH(+F87,-3)+15,Cenários!$A:$D,2,FALSE)) -> 2024-02-15 | E87: =IF(A87="","",VLOOKUP(D87,Cenários!$B:$D,3,FALSE)) -> 4207.234657 | F87: =IF(A87="","",IF(A87=$C$2,$C$2,+IF(+VLOOKUP(+EOMONTH(+A87,-2)+15,Cenários!$A:$D,2,FALSE)>A87,+VLOOKUP(+EOMONTH(+A87,-2)+15,Cenários!$A:$D,2,FALSE),+VLOOKUP(+EOMONTH(+A87,-1)+15,Cenários!$A:$D,2,FALSE)))) -> 2024-03-15 | G87: =IF(A87="","",VLOOKUP(F87,Cenários!$B:$D,3,FALSE)) -> 4229.112277
A88: =IF(A87="","",IF(WORKDAY(+A87,1,Feriados!$A$2:$A$1071)<=$C$2,WORKDAY(+A87,1,Feriados!$A$2:$A$1071),"")) -> 2024-03-08 | B88: =IF(A88="","",+IF(+A88=D88,+E88,((+G88/E88)^+((NETWORKDAYS(+D88,A88,Feriados!$A$2:$A$1058)-1)/(NETWORKDAYS(+D88,F88,Feriados!$A$2:$A$1058)-1))*E88))) -> 4223.893023 | C88: =IF(A88="","",+IF(+A88=D88,+VLOOKUP(D88,Cenários!$B$7:$C$1000,2,FALSE),VLOOKUP(F88,Cenários!$B$7:$C$1000,2,FALSE))) -> 0.52 | D88: =IF(A88="","",+VLOOKUP(+EOMONTH(+F88,-3)+15,Cenários!$A:$D,2,FALSE)) -> 2024-02-15 | E88: =IF(A88="","",VLOOKUP(D88,Cenários!$B:$D,3,FALSE)) -> 4207.234657 | F88: =IF(A88="","",IF(A88=$C$2,$C$2,+IF(+VLOOKUP(+EOMONTH(+A88,-2)+15,Cenários!$A:$D,2,FALSE)>A88,+VLOOKUP(+EOMONTH(+A88,-2)+15,Cenários!$A:$D,2,FALSE),+VLOOKUP(+EOMONTH(+A88,-1)+15,Cenários!$A:$D,2,FALSE)))) -> 2024-03-15 | G88: =IF(A88="","",VLOOKUP(F88,Cenários!$B:$D,3,FALSE)) -> 4229.112277
A89: =IF(A88="","",IF(WORKDAY(+A88,1,Feriados!$A$2:$A$1071)<=$C$2,WORKDAY(+A88,1,Feriados!$A$2:$A$1071),"")) -> 2024-03-11 | B89: =IF(A89="","",+IF(+A89=D89,+E89,((+G89/E89)^+((NETWORKDAYS(+D89,A89,Feriados!$A$2:$A$1058)-1)/(NETWORKDAYS(+D89,F89,Feriados!$A$2:$A$1058)-1))*E89))) -> 4224.936358 | C89: =IF(A89="","",+IF(+A89=D89,+VLOOKUP(D89,Cenários!$B$7:$C$1000,2,FALSE),VLOOKUP(F89,Cenários!$B$7:$C$1000,2,FALSE))) -> 0.52 | D89: =IF(A89="","",+VLOOKUP(+EOMONTH(+F89,-3)+15,Cenários!$A:$D,2,FALSE)) -> 2024-02-15 | E89: =IF(A89="","",VLOOKUP(D89,Cenários!$B:$D,3,FALSE)) -> 4207.234657 | F89: =IF(A89="","",IF(A89=$C$2,$C$2,+IF(+VLOOKUP(+EOMONTH(+A89,-2)+15,Cenários!$A:$D,2,FALSE)>A89,+VLOOKUP(+EOMONTH(+A89,-2)+15,Cenários!$A:$D,2,FALSE),+VLOOKUP(+EOMONTH(+A89,-1)+15,Cenários!$A:$D,2,FALSE)))) -> 2024-03-15 | G89: =IF(A89="","",VLOOKUP(F89,Cenários!$B:$D,3,FALSE)) -> 4229.112277
A90: =IF(A89="","",IF(WORKDAY(+A89,1,Feriados!$A$2:$A$1071)<=$C$2,WORKDAY(+A89,1,Feriados!$A$2:$A$1071),"")) -> 2024-03-12 | B90: =IF(A90="","",+IF(+A90=D90,+E90,((+G90/E90)^+((NETWORKDAYS(+D90,A90,Feriados!$A$2:$A$1058)-1)/(NETWORKDAYS(+D90,F90,Feriados!$A$2:$A$1058)-1))*E90))) -> 4225.979951 | C90: =IF(A90="","",+IF(+A90=D90,+VLOOKUP(D90,Cenários!$B$7:$C$1000,2,FALSE),VLOOKUP(F90,Cenários!$B$7:$C$1000,2,FALSE))) -> 0.52 | D90: =IF(A90="","",+VLOOKUP(+EOMONTH(+F90,-3)+15,Cenários!$A:$D,2,FALSE)) -> 2024-02-15 | E90: =IF(A90="","",VLOOKUP(D90,Cenários!$B:$D,3,FALSE)) -> 4207.234657 | F90: =IF(A90="","",IF(A90=$C$2,$C$2,+IF(+VLOOKUP(+EOMONTH(+A90,-2)+15,Cenários!$A:$D,2,FALSE)>A90,+VLOOKUP(+EOMONTH(+A90,-2)+15,Cenários!$A:$D,2,FALSE),+VLOOKUP(+EOMONTH(+A90,-1)+15,Cenários!$A:$D,2,FALSE)))) -> 2024-03-15 | G90: =IF(A90="","",VLOOKUP(F90,Cenários!$B:$D,3,FALSE)) -> 4229.112277
A91: =IF(A90="","",IF(WORKDAY(+A90,1,Feriados!$A$2:$A$1071)<=$C$2,WORKDAY(+A90,1,Feriados!$A$2:$A$1071),"")) -> 2024-03-13 | B91: =IF(A91="","",+IF(+A91=D91,+E91,((+G91/E91)^+((NETWORKDAYS(+D91,A91,Feriados!$A$2:$A$1058)-1)/(NETWORKDAYS(+D91,F91,Feriados!$A$2:$A$1058)-1))*E91))) -> 4227.023802 | C91: =IF(A91="","",+IF(+A91=D91,+VLOOKUP(D91,Cenários!$B$7:$C$1000,2,FALSE),VLOOKUP(F91,Cenários!$B$7:$C$1000,2,FALSE))) -> 0.52 | D91: =IF(A91="","",+VLOOKUP(+EOMONTH(+F91,-3)+15,Cenários!$A:$D,2,FALSE)) -> 2024-02-15 | E91: =IF(A91="","",VLOOKUP(D91,Cenários!$B:$D,3,FALSE)) -> 4207.234657 | F91: =IF(A91="","",IF(A91=$C$2,$C$2,+IF(+VLOOKUP(+EOMONTH(+A91,-2)+15,Cenários!$A:$D,2,FALSE)>A91,+VLOOKUP(+EOMONTH(+A91,-2)+15,Cenários!$A:$D,2,FALSE),+VLOOKUP(+EOMONTH(+A91,-1)+15,Cenários!$A:$D,2,FALSE)))) -> 2024-03-15 | G91: =IF(A91="","",VLOOKUP(F91,Cenários!$B:$D,3,FALSE)) -> 4229.112277
A92: =IF(A91="","",IF(WORKDAY(+A91,1,Feriados!$A$2:$A$1071)<=$C$2,WORKDAY(+A91,1,Feriados!$A$2:$A$1071),"")) -> 2024-03-14 | B92: =IF(A92="","",+IF(+A92=D92,+E92,((+G92/E92)^+((NETWORKDAYS(+D92,A92,Feriados!$A$2:$A$1058)-1)/(NETWORKDAYS(+D92,F92,Feriados!$A$2:$A$1058)-1))*E92))) -> 4228.067911 | C92: =IF(A92="","",+IF(+A92=D92,+VLOOKUP(D92,Cenários!$B$7:$C$1000,2,FALSE),VLOOKUP(F92,Cenários!$B$7:$C$1000,2,FALSE))) -> 0.52 | D92: =IF(A92="","",+VLOOKUP(+EOMONTH(+F92,-3)+15,Cenários!$A:$D,2,FALSE)) -> 2024-02-15 | E92: =IF(A92="","",VLOOKUP(D92,Cenários!$B:$D,3,FALSE)) -> 4207.234657 | F92: =IF(A92="","",IF(A92=$C$2,$C$2,+IF(+VLOOKUP(+EOMONTH(+A92,-2)+15,Cenários!$A:$D,2,FALSE)>A92,+VLOOKUP(+EOMONTH(+A92,-2)+15,Cenários!$A:$D,2,FALSE),+VLOOKUP(+EOMONTH(+A92,-1)+15,Cenários!$A:$D,2,FALSE)))) -> 2024-03-15 | G92: =IF(A92="","",VLOOKUP(F92,Cenários!$B:$D,3,FALSE)) -> 4229.112277
A93: =IF(A92="","",IF(WORKDAY(+A92,1,Feriados!$A$2:$A$1071)<=$C$2,WORKDAY(+A92,1,Feriados!$A$2:$A$1071),"")) -> 2024-03-15 | B93: =IF(A93="","",+IF(+A93=D93,+E93,((+G93/E93)^+((NETWORKDAYS(+D93,A93,Feriados!$A$2:$A$1058)-1)/(NETWORKDAYS(+D93,F93,Feriados!$A$2:$A$1058)-1))*E93))) -> 4229.112277 | C93: =IF(A93="","",+IF(+A93=D93,+VLOOKUP(D93,Cenários!$B$7:$C$1000,2,FALSE),VLOOKUP(F93,Cenários!$B$7:$C$1000,2,FALSE))) -> 0.52 | D93: =IF(A93="","",+VLOOKUP(+EOMONTH(+F93,-3)+15,Cenários!$A:$D,2,FALSE)) -> 2024-03-15 | E93: =IF(A93="","",VLOOKUP(D93,Cenários!$B:$D,3,FALSE)) -> 4229.112277 | F93: =IF(A93="","",IF(A93=$C$2,$C$2,+IF(+VLOOKUP(+EOMONTH(+A93,-2)+15,Cenários!$A:$D,2,FALSE)>A93,+VLOOKUP(+EOMONTH(+A93,-2)+15,Cenários!$A:$D,2,FALSE),+VLOOKUP(+EOMONTH(+A93,-1)+15,Cenários!$A:$D,2,FALSE)))) -> 2024-04-15 | G93: =IF(A93="","",VLOOKUP(F93,Cenários!$B:$D,3,FALSE)) -> 4246.874549
A94: =IF(A93="","",IF(WORKDAY(+A93,1,Feriados!$A$2:$A$1071)<=$C$2,WORKDAY(+A93,1,Feriados!$A$2:$A$1071),"")) -> 2024-03-18 | B94: =IF(A94="","",+IF(+A94=D94,+E94,((+G94/E94)^+((NETWORKDAYS(+D94,A94,Feriados!$A$2:$A$1058)-1)/(NETWORKDAYS(+D94,F94,Feriados!$A$2:$A$1058)-1))*E94))) -> 4229.998624 | C94: =IF(A94="","",+IF(+A94=D94,+VLOOKUP(D94,Cenários!$B$7:$C$1000,2,FALSE),VLOOKUP(F94,Cenários!$B$7:$C$1000,2,FALSE))) -> 0.42 | D94: =IF(A94="","",+VLOOKUP(+EOMONTH(+F94,-3)+15,Cenários!$A:$D,2,FALSE)) -> 2024-03-15 | E94: =IF(A94="","",VLOOKUP(D94,Cenários!$B:$D,3,FALSE)) -> 4229.112277 | F94: =IF(A94="","",IF(A94=$C$2,$C$2,+IF(+VLOOKUP(+EOMONTH(+A94,-2)+15,Cenários!$A:$D,2,FALSE)>A94,+VLOOKUP(+EOMONTH(+A94,-2)+15,Cenários!$A:$D,2,FALSE),+VLOOKUP(+EOMONTH(+A94,-1)+15,Cenários!$A:$D,2,FALSE)))) -> 2024-04-15 | G94: =IF(A94="","",VLOOKUP(F94,Cenários!$B:$D,3,FALSE)) -> 4246.874549
A95: =IF(A94="","",IF(WORKDAY(+A94,1,Feriados!$A$2:$A$1071)<=$C$2,WORKDAY(+A94,1,Feriados!$A$2:$A$1071),"")) -> 2024-03-19 | B95: =IF(A95="","",+IF(+A95=D95,+E95,((+G95/E95)^+((NETWORKDAYS(+D95,A95,Feriados!$A$2:$A$1058)-1)/(NETWORKDAYS(+D95,F95,Feriados!$A$2:$A$1058)-1))*E95))) -> 4230.885156 | C95: =IF(A95="","",+IF(+A95=D95,+VLOOKUP(D95,Cenários!$B$7:$C$1000,2,FALSE),VLOOKUP(F95,Cenários!$B$7:$C$1000,2,FALSE))) -> 0.42 | D95: =IF(A95="","",+VLOOKUP(+EOMONTH(+F95,-3)+15,Cenários!$A:$D,2,FALSE)) -> 2024-03-15 | E95: =IF(A95="","",VLOOKUP(D95,Cenários!$B:$D,3,FALSE)) -> 4229.112277 | F95: =IF(A95="","",IF(A95=$C$2,$C$2,+IF(+VLOOKUP(+EOMONTH(+A95,-2)+15,Cenários!$A:$D,2,FALSE)>A95,+VLOOKUP(+EOMONTH(+A95,-2)+15,Cenários!$A:$D,2,FALSE),+VLOOKUP(+EOMONTH(+A95,-1)+15,Cenários!$A:$D,2,FALSE)))) -> 2024-04-15 | G95: =IF(A95="","",VLOOKUP(F95,Cenários!$B:$D,3,FALSE)) -> 4246.874549
A96: =IF(A95="","",IF(WORKDAY(+A95,1,Feriados!$A$2:$A$1071)<=$C$2,WORKDAY(+A95,1,Feriados!$A$2:$A$1071),"")) -> 2024-03-20 | B96: =IF(A96="","",+IF(+A96=D96,+E96,((+G96/E96)^+((NETWORKDAYS(+D96,A96,Feriados!$A$2:$A$1058)-1)/(NETWORKDAYS(+D96,F96,Feriados!$A$2:$A$1058)-1))*E96))) -> 4231.771874 | C96: =IF(A96="","",+IF(+A96=D96,+VLOOKUP(D96,Cenários!$B$7:$C$1000,2,FALSE),VLOOKUP(F96,Cenários!$B$7:$C$1000,2,FALSE))) -> 0.42 | D96: =IF(A96="","",+VLOOKUP(+EOMONTH(+F96,-3)+15,Cenários!$A:$D,2,FALSE)) -> 2024-03-15 | E96: =IF(A96="","",VLOOKUP(D96,Cenários!$B:$D,3,FALSE)) -> 4229.112277 | F96: =IF(A96="","",IF(A96=$C$2,$C$2,+IF(+VLOOKUP(+EOMONTH(+A96,-2)+15,Cenários!$A:$D,2,FALSE)>A96,+VLOOKUP(+EOMONTH(+A96,-2)+15,Cenários!$A:$D,2,FALSE),+VLOOKUP(+EOMONTH(+A96,-1)+15,Cenários!$A:$D,2,FALSE)))) -> 2024-04-15 | G96: =IF(A96="","",VLOOKUP(F96,Cenários!$B:$D,3,FALSE)) -> 4246.874549
A97: =IF(A96="","",IF(WORKDAY(+A96,1,Feriados!$A$2:$A$1071)<=$C$2,WORKDAY(+A96,1,Feriados!$A$2:$A$1071),"")) -> 2024-03-21 | B97: =IF(A97="","",+IF(+A97=D97,+E97,((+G97/E97)^+((NETWORKDAYS(+D97,A97,Feriados!$A$2:$A$1058)-1)/(NETWORKDAYS(+D97,F97,Feriados!$A$2:$A$1058)-1))*E97))) -> 4232.658778 | C97: =IF(A97="","",+IF(+A97=D97,+VLOOKUP(D97,Cenários!$B$7:$C$1000,2,FALSE),VLOOKUP(F97,Cenários!$B$7:$C$1000,2,FALSE))) -> 0.42 | D97: =IF(A97="","",+VLOOKUP(+EOMONTH(+F97,-3)+15,Cenários!$A:$D,2,FALSE)) -> 2024-03-15 | E97: =IF(A97="","",VLOOKUP(D97,Cenários!$B:$D,3,FALSE)) -> 4229.112277 | F97: =IF(A97="","",IF(A97=$C$2,$C$2,+IF(+VLOOKUP(+EOMONTH(+A97,-2)+15,Cenários!$A:$D,2,FALSE)>A97,+VLOOKUP(+EOMONTH(+A97,-2)+15,Cenários!$A:$D,2,FALSE),+VLOOKUP(+EOMONTH(+A97,-1)+15,Cenários!$A:$D,2,FALSE)))) -> 2024-04-15 | G97: =IF(A97="","",VLOOKUP(F97,Cenários!$B:$D,3,FALSE)) -> 4246.874549
A98: =IF(A97="","",IF(WORKDAY(+A97,1,Feriados!$A$2:$A$1071)<=$C$2,WORKDAY(+A97,1,Feriados!$A$2:$A$1071),"")) -> 2024-03-22 | B98: =IF(A98="","",+IF(+A98=D98,+E98,((+G98/E98)^+((NETWORKDAYS(+D98,A98,Feriados!$A$2:$A$1058)-1)/(NETWORKDAYS(+D98,F98,Feriados!$A$2:$A$1058)-1))*E98))) -> 4233.545868 | C98: =IF(A98="","",+IF(+A98=D98,+VLOOKUP(D98,Cenários!$B$7:$C$1000,2,FALSE),VLOOKUP(F98,Cenários!$B$7:$C$1000,2,FALSE))) -> 0.42 | D98: =IF(A98="","",+VLOOKUP(+EOMONTH(+F98,-3)+15,Cenários!$A:$D,2,FALSE)) -> 2024-03-15 | E98: =IF(A98="","",VLOOKUP(D98,Cenários!$B:$D,3,FALSE)) -> 4229.112277 | F98: =IF(A98="","",IF(A98=$C$2,$C$2,+IF(+VLOOKUP(+EOMONTH(+A98,-2)+15,Cenários!$A:$D,2,FALSE)>A98,+VLOOKUP(+EOMONTH(+A98,-2)+15,Cenários!$A:$D,2,FALSE),+VLOOKUP(+EOMONTH(+A98,-1)+15,Cenários!$A:$D,2,FALSE)))) -> 2024-04-15 | G98: =IF(A98="","",VLOOKUP(F98,Cenários!$B:$D,3,FALSE)) -> 4246.874549
A99: =IF(A98="","",IF(WORKDAY(+A98,1,Feriados!$A$2:$A$1071)<=$C$2,WORKDAY(+A98,1,Feriados!$A$2:$A$1071),"")) -> 2024-03-25 | B99: =IF(A99="","",+IF(+A99=D99,+E99,((+G99/E99)^+((NETWORKDAYS(+D99,A99,Feriados!$A$2:$A$1058)-1)/(NETWORKDAYS(+D99,F99,Feriados!$A$2:$A$1058)-1))*E99))) -> 4234.433144 | C99: =IF(A99="","",+IF(+A99=D99,+VLOOKUP(D99,Cenários!$B$7:$C$1000,2,FALSE),VLOOKUP(F99,Cenários!$B$7:$C$1000,2,FALSE))) -> 0.42 | D99: =IF(A99="","",+VLOOKUP(+EOMONTH(+F99,-3)+15,Cenários!$A:$D,2,FALSE)) -> 2024-03-15 | E99: =IF(A99="","",VLOOKUP(D99,Cenários!$B:$D,3,FALSE)) -> 4229.112277 | F99: =IF(A99="","",IF(A99=$C$2,$C$2,+IF(+VLOOKUP(+EOMONTH(+A99,-2)+15,Cenários!$A:$D,2,FALSE)>A99,+VLOOKUP(+EOMONTH(+A99,-2)+15,Cenários!$A:$D,2,FALSE),+VLOOKUP(+EOMONTH(+A99,-1)+15,Cenários!$A:$D,2,FALSE)))) -> 2024-04-15 | G99: =IF(A99="","",VLOOKUP(F99,Cenários!$B:$D,3,FALSE)) -> 4246.874549
A100: =IF(A99="","",IF(WORKDAY(+A99,1,Feriados!$A$2:$A$1071)<=$C$2,WORKDAY(+A99,1,Feriados!$A$2:$A$1071),"")) -> 2024-03-26 | B100: =IF(A100="","",+IF(+A100=D100,+E100,((+G100/E100)^+((NETWORKDAYS(+D100,A100,Feriados!$A$2:$A$1058)-1)/(NETWORKDAYS(+D100,F100,Feriados!$A$2:$A$1058)-1))*E100))) -> 4235.320606 | C100: =IF(A100="","",+IF(+A100=D100,+VLOOKUP(D100,Cenários!$B$7:$C$1000,2,FALSE),VLOOKUP(F100,Cenários!$B$7:$C$1000,2,FALSE))) -> 0.42 | D100: =IF(A100="","",+VLOOKUP(+EOMONTH(+F100,-3)+15,Cenários!$A:$D,2,FALSE)) -> 2024-03-15 | E100: =IF(A100="","",VLOOKUP(D100,Cenários!$B:$D,3,FALSE)) -> 4229.112277 | F100: =IF(A100="","",IF(A100=$C$2,$C$2,+IF(+VLOOKUP(+EOMONTH(+A100,-2)+15,Cenários!$A:$D,2,FALSE)>A100,+VLOOKUP(+EOMONTH(+A100,-2)+15,Cenários!$A:$D,2,FALSE),+VLOOKUP(+EOMONTH(+A100,-1)+15,Cenários!$A:$D,2,FALSE)))) -> 2024-04-15 | G100: =IF(A100="","",VLOOKUP(F100,Cenários!$B:$D,3,FALSE)) -> 4246.874549
A101: =IF(A100="","",IF(WORKDAY(+A100,1,Feriados!$A$2:$A$1071)<=$C$2,WORKDAY(+A100,1,Feriados!$A$2:$A$1071),"")) -> 2024-03-27 | B101: =IF(A101="","",+IF(+A101=D101,+E101,((+G101/E101)^+((NETWORKDAYS(+D101,A101,Feriados!$A$2:$A$1058)-1)/(NETWORKDAYS(+D101,F101,Feriados!$A$2:$A$1058)-1))*E101))) -> 4236.208254 | C101: =IF(A101="","",+IF(+A101=D101,+VLOOKUP(D101,Cenários!$B$7:$C$1000,2,FALSE),VLOOKUP(F101,Cenários!$B$7:$C$1000,2,FALSE))) -> 0.42 | D101: =IF(A101="","",+VLOOKUP(+EOMONTH(+F101,-3)+15,Cenários!$A:$D,2,FALSE)) -> 2024-03-15 | E101: =IF(A101="","",VLOOKUP(D101,Cenários!$B:$D,3,FALSE)) -> 4229.112277 | F101: =IF(A101="","",IF(A101=$C$2,$C$2,+IF(+VLOOKUP(+EOMONTH(+A101,-2)+15,Cenários!$A:$D,2,FALSE)>A101,+VLOOKUP(+EOMONTH(+A101,-2)+15,Cenários!$A:$D,2,FALSE),+VLOOKUP(+EOMONTH(+A101,-1)+15,Cenários!$A:$D,2,FALSE)))) -> 2024-04-15 | G101: =IF(A101="","",VLOOKUP(F101,Cenários!$B:$D,3,FALSE)) -> 4246.874549
A102: =IF(A101="","",IF(WORKDAY(+A101,1,Feriados!$A$2:$A$1071)<=$C$2,WORKDAY(+A101,1,Feriados!$A$2:$A$1071),"")) -> 2024-03-28 | B102: =IF(A102="","",+IF(+A102=D102,+E102,((+G102/E102)^+((NETWORKDAYS(+D102,A102,Feriados!$A$2:$A$1058)-1)/(NETWORKDAYS(+D102,F102,Feriados!$A$2:$A$1058)-1))*E102))) -> 4237.096087 | C102: =IF(A102="","",+IF(+A102=D102,+VLOOKUP(D102,Cenários!$B$7:$C$1000,2,FALSE),VLOOKUP(F102,Cenários!$B$7:$C$1000,2,FALSE))) -> 0.42 | D102: =IF(A102="","",+VLOOKUP(+EOMONTH(+F102,-3)+15,Cenários!$A:$D,2,FALSE)) -> 2024-03-15 | E102: =IF(A102="","",VLOOKUP(D102,Cenários!$B:$D,3,FALSE)) -> 4229.112277 | F102: =IF(A102="","",IF(A102=$C$2,$C$2,+IF(+VLOOKUP(+EOMONTH(+A102,-2)+15,Cenários!$A:$D,2,FALSE)>A102,+VLOOKUP(+EOMONTH(+A102,-2)+15,Cenários!$A:$D,2,FALSE),+VLOOKUP(+EOMONTH(+A102,-1)+15,Cenários!$A:$D,2,FALSE)))) -> 2024-04-15 | G102: =IF(A102="","",VLOOKUP(F102,Cenários!$B:$D,3,FALSE)) -> 4246.874549
A103: =IF(A102="","",IF(WORKDAY(+A102,1,Feriados!$A$2:$A$1071)<=$C$2,WORKDAY(+A102,1,Feriados!$A$2:$A$1071),"")) -> 2024-04-01 | B103: =IF(A103="","",+IF(+A103=D103,+E103,((+G103/E103)^+((NETWORKDAYS(+D103,A103,Feriados!$A$2:$A$1058)-1)/(NETWORKDAYS(+D103,F103,Feriados!$A$2:$A$1058)-1))*E103))) -> 4237.984107 | C103: =IF(A103="","",+IF(+A103=D103,+VLOOKUP(D103,Cenários!$B$7:$C$1000,2,FALSE),VLOOKUP(F103,Cenários!$B$7:$C$1000,2,FALSE))) -> 0.42 | D103: =IF(A103="","",+VLOOKUP(+EOMONTH(+F103,-3)+15,Cenários!$A:$D,2,FALSE)) -> 2024-03-15 | E103: =IF(A103="","",VLOOKUP(D103,Cenários!$B:$D,3,FALSE)) -> 4229.112277 | F103: =IF(A103="","",IF(A103=$C$2,$C$2,+IF(+VLOOKUP(+EOMONTH(+A103,-2)+15,Cenários!$A:$D,2,FALSE)>A103,+VLOOKUP(+EOMONTH(+A103,-2)+15,Cenários!$A:$D,2,FALSE),+VLOOKUP(+EOMONTH(+A103,-1)+15,Cenários!$A:$D,2,FALSE)))) -> 2024-04-15 | G103: =IF(A103="","",VLOOKUP(F103,Cenários!$B:$D,3,FALSE)) -> 4246.874549
A104: =IF(A103="","",IF(WORKDAY(+A103,1,Feriados!$A$2:$A$1071)<=$C$2,WORKDAY(+A103,1,Feriados!$A$2:$A$1071),"")) -> 2024-04-02 | B104: =IF(A104="","",+IF(+A104=D104,+E104,((+G104/E104)^+((NETWORKDAYS(+D104,A104,Feriados!$A$2:$A$1058)-1)/(NETWORKDAYS(+D104,F104,Feriados!$A$2:$A$1058)-1))*E104))) -> 4238.872313 | C104: =IF(A104="","",+IF(+A104=D104,+VLOOKUP(D104,Cenários!$B$7:$C$1000,2,FALSE),VLOOKUP(F104,Cenários!$B$7:$C$1000,2,FALSE))) -> 0.42 | D104: =IF(A104="","",+VLOOKUP(+EOMONTH(+F104,-3)+15,Cenários!$A:$D,2,FALSE)) -> 2024-03-15 | E104: =IF(A104="","",VLOOKUP(D104,Cenários!$B:$D,3,FALSE)) -> 4229.112277 | F104: =IF(A104="","",IF(A104=$C$2,$C$2,+IF(+VLOOKUP(+EOMONTH(+A104,-2)+15,Cenários!$A:$D,2,FALSE)>A104,+VLOOKUP(+EOMONTH(+A104,-2)+15,Cenários!$A:$D,2,FALSE),+VLOOKUP(+EOMONTH(+A104,-1)+15,Cenários!$A:$D,2,FALSE)))) -> 2024-04-15 | G104: =IF(A104="","",VLOOKUP(F104,Cenários!$B:$D,3,FALSE)) -> 4246.874549
A105: =IF(A104="","",IF(WORKDAY(+A104,1,Feriados!$A$2:$A$1071)<=$C$2,WORKDAY(+A104,1,Feriados!$A$2:$A$1071),"")) -> 2024-04-03 | B105: =IF(A105="","",+IF(+A105=D105,+E105,((+G105/E105)^+((NETWORKDAYS(+D105,A105,Feriados!$A$2:$A$1058)-1)/(NETWORKDAYS(+D105,F105,Feriados!$A$2:$A$1058)-1))*E105))) -> 4239.760706 | C105: =IF(A105="","",+IF(+A105=D105,+VLOOKUP(D105,Cenários!$B$7:$C$1000,2,FALSE),VLOOKUP(F105,Cenários!$B$7:$C$1000,2,FALSE))) -> 0.42 | D105: =IF(A105="","",+VLOOKUP(+EOMONTH(+F105,-3)+15,Cenários!$A:$D,2,FALSE)) -> 2024-03-15 | E105: =IF(A105="","",VLOOKUP(D105,Cenários!$B:$D,3,FALSE)) -> 4229.112277 | F105: =IF(A105="","",IF(A105=$C$2,$C$2,+IF(+VLOOKUP(+EOMONTH(+A105,-2)+15,Cenários!$A:$D,2,FALSE)>A105,+VLOOKUP(+EOMONTH(+A105,-2)+15,Cenários!$A:$D,2,FALSE),+VLOOKUP(+EOMONTH(+A105,-1)+15,Cenários!$A:$D,2,FALSE)))) -> 2024-04-15 | G105: =IF(A105="","",VLOOKUP(F105,Cenários!$B:$D,3,FALSE)) -> 4246.874549
A106: =IF(A105="","",IF(WORKDAY(+A105,1,Feriados!$A$2:$A$1071)<=$C$2,WORKDAY(+A105,1,Feriados!$A$2:$A$1071),"")) -> 2024-04-04 | B106: =IF(A106="","",+IF(+A106=D106,+E106,((+G106/E106)^+((NETWORKDAYS(+D106,A106,Feriados!$A$2:$A$1058)-1)/(NETWORKDAYS(+D106,F106,Feriados!$A$2:$A$1058)-1))*E106))) -> 4240.649284 | C106: =IF(A106="","",+IF(+A106=D106,+VLOOKUP(D106,Cenários!$B$7:$C$1000,2,FALSE),VLOOKUP(F106,Cenários!$B$7:$C$1000,2,FALSE))) -> 0.42 | D106: =IF(A106="","",+VLOOKUP(+EOMONTH(+F106,-3)+15,Cenários!$A:$D,2,FALSE)) -> 2024-03-15 | E106: =IF(A106="","",VLOOKUP(D106,Cenários!$B:$D,3,FALSE)) -> 4229.112277 | F106: =IF(A106="","",IF(A106=$C$2,$C$2,+IF(+VLOOKUP(+EOMONTH(+A106,-2)+15,Cenários!$A:$D,2,FALSE)>A106,+VLOOKUP(+EOMONTH(+A106,-2)+15,Cenários!$A:$D,2,FALSE),+VLOOKUP(+EOMONTH(+A106,-1)+15,Cenários!$A:$D,2,FALSE)))) -> 2024-04-15 | G106: =IF(A106="","",VLOOKUP(F106,Cenários!$B:$D,3,FALSE)) -> 4246.874549
A107: =IF(A106="","",IF(WORKDAY(+A106,1,Feriados!$A$2:$A$1071)<=$C$2,WORKDAY(+A106,1,Feriados!$A$2:$A$1071),"")) -> 2024-04-05 | B107: =IF(A107="","",+IF(+A107=D107,+E107,((+G107/E107)^+((NETWORKDAYS(+D107,A107,Feriados!$A$2:$A$1058)-1)/(NETWORKDAYS(+D107,F107,Feriados!$A$2:$A$1058)-1))*E107))) -> 4241.538048 | C107: =IF(A107="","",+IF(+A107=D107,+VLOOKUP(D107,Cenários!$B$7:$C$1000,2,FALSE),VLOOKUP(F107,Cenários!$B$7:$C$1000,2,FALSE))) -> 0.42 | D107: =IF(A107="","",+VLOOKUP(+EOMONTH(+F107,-3)+15,Cenários!$A:$D,2,FALSE)) -> 2024-03-15 | E107: =IF(A107="","",VLOOKUP(D107,Cenários!$B:$D,3,FALSE)) -> 4229.112277 | F107: =IF(A107="","",IF(A107=$C$2,$C$2,+IF(+VLOOKUP(+EOMONTH(+A107,-2)+15,Cenários!$A:$D,2,FALSE)>A107,+VLOOKUP(+EOMONTH(+A107,-2)+15,Cenários!$A:$D,2,FALSE),+VLOOKUP(+EOMONTH(+A107,-1)+15,Cenários!$A:$D,2,FALSE)))) -> 2024-04-15 | G107: =IF(A107="","",VLOOKUP(F107,Cenários!$B:$D,3,FALSE)) -> 4246.874549
A108: =IF(A107="","",IF(WORKDAY(+A107,1,Feriados!$A$2:$A$1071)<=$C$2,WORKDAY(+A107,1,Feriados!$A$2:$A$1071),"")) -> 2024-04-08 | B108: =IF(A108="","",+IF(+A108=D108,+E108,((+G108/E108)^+((NETWORKDAYS(+D108,A108,Feriados!$A$2:$A$1058)-1)/(NETWORKDAYS(+D108,F108,Feriados!$A$2:$A$1058)-1))*E108))) -> 4242.426999 | C108: =IF(A108="","",+IF(+A108=D108,+VLOOKUP(D108,Cenários!$B$7:$C$1000,2,FALSE),VLOOKUP(F108,Cenários!$B$7:$C$1000,2,FALSE))) -> 0.42 | D108: =IF(A108="","",+VLOOKUP(+EOMONTH(+F108,-3)+15,Cenários!$A:$D,2,FALSE)) -> 2024-03-15 | E108: =IF(A108="","",VLOOKUP(D108,Cenários!$B:$D,3,FALSE)) -> 4229.112277 | F108: =IF(A108="","",IF(A108=$C$2,$C$2,+IF(+VLOOKUP(+EOMONTH(+A108,-2)+15,Cenários!$A:$D,2,FALSE)>A108,+VLOOKUP(+EOMONTH(+A108,-2)+15,Cenários!$A:$D,2,FALSE),+VLOOKUP(+EOMONTH(+A108,-1)+15,Cenários!$A:$D,2,FALSE)))) -> 2024-04-15 | G108: =IF(A108="","",VLOOKUP(F108,Cenários!$B:$D,3,FALSE)) -> 4246.874549
A109: =IF(A108="","",IF(WORKDAY(+A108,1,Feriados!$A$2:$A$1071)<=$C$2,WORKDAY(+A108,1,Feriados!$A$2:$A$1071),"")) -> 2024-04-09 | B109: =IF(A109="","",+IF(+A109=D109,+E109,((+G109/E109)^+((NETWORKDAYS(+D109,A109,Feriados!$A$2:$A$1058)-1)/(NETWORKDAYS(+D109,F109,Feriados!$A$2:$A$1058)-1))*E109))) -> 4243.316136 | C109: =IF(A109="","",+IF(+A109=D109,+VLOOKUP(D109,Cenários!$B$7:$C$1000,2,FALSE),VLOOKUP(F109,Cenários!$B$7:$C$1000,2,FALSE))) -> 0.42 | D109: =IF(A109="","",+VLOOKUP(+EOMONTH(+F109,-3)+15,Cenários!$A:$D,2,FALSE)) -> 2024-03-15 | E109: =IF(A109="","",VLOOKUP(D109,Cenários!$B:$D,3,FALSE)) -> 4229.112277 | F109: =IF(A109="","",IF(A109=$C$2,$C$2,+IF(+VLOOKUP(+EOMONTH(+A109,-2)+15,Cenários!$A:$D,2,FALSE)>A109,+VLOOKUP(+EOMONTH(+A109,-2)+15,Cenários!$A:$D,2,FALSE),+VLOOKUP(+EOMONTH(+A109,-1)+15,Cenários!$A:$D,2,FALSE)))) -> 2024-04-15 | G109: =IF(A109="","",VLOOKUP(F109,Cenários!$B:$D,3,FALSE)) -> 4246.874549
A110: =IF(A109="","",IF(WORKDAY(+A109,1,Feriados!$A$2:$A$1071)<=$C$2,WORKDAY(+A109,1,Feriados!$A$2:$A$1071),"")) -> 2024-04-10 | B110: =IF(A110="","",+IF(+A110=D110,+E110,((+G110/E110)^+((NETWORKDAYS(+D110,A110,Feriados!$A$2:$A$1058)-1)/(NETWORKDAYS(+D110,F110,Feriados!$A$2:$A$1058)-1))*E110))) -> 4244.20546 | C110: =IF(A110="","",+IF(+A110=D110,+VLOOKUP(D110,Cenários!$B$7:$C$1000,2,FALSE),VLOOKUP(F110,Cenários!$B$7:$C$1000,2,FALSE))) -> 0.42 | D110: =IF(A110="","",+VLOOKUP(+EOMONTH(+F110,-3)+15,Cenários!$A:$D,2,FALSE)) -> 2024-03-15 | E110: =IF(A110="","",VLOOKUP(D110,Cenários!$B:$D,3,FALSE)) -> 4229.112277 | F110: =IF(A110="","",IF(A110=$C$2,$C$2,+IF(+VLOOKUP(+EOMONTH(+A110,-2)+15,Cenários!$A:$D,2,FALSE)>A110,+VLOOKUP(+EOMONTH(+A110,-2)+15,Cenários!$A:$D,2,FALSE),+VLOOKUP(+EOMONTH(+A110,-1)+15,Cenários!$A:$D,2,FALSE)))) -> 2024-04-15 | G110: =IF(A110="","",VLOOKUP(F110,Cenários!$B:$D,3,FALSE)) -> 4246.874549
A111: =IF(A110="","",IF(WORKDAY(+A110,1,Feriados!$A$2:$A$1071)<=$C$2,WORKDAY(+A110,1,Feriados!$A$2:$A$1071),"")) -> 2024-04-11 | B111: =IF(A111="","",+IF(+A111=D111,+E111,((+G111/E111)^+((NETWORKDAYS(+D111,A111,Feriados!$A$2:$A$1058)-1)/(NETWORKDAYS(+D111,F111,Feriados!$A$2:$A$1058)-1))*E111))) -> 4245.09497 | C111: =IF(A111="","",+IF(+A111=D111,+VLOOKUP(D111,Cenários!$B$7:$C$1000,2,FALSE),VLOOKUP(F111,Cenários!$B$7:$C$1000,2,FALSE))) -> 0.42 | D111: =IF(A111="","",+VLOOKUP(+EOMONTH(+F111,-3)+15,Cenários!$A:$D,2,FALSE)) -> 2024-03-15 | E111: =IF(A111="","",VLOOKUP(D111,Cenários!$B:$D,3,FALSE)) -> 4229.112277 | F111: =IF(A111="","",IF(A111=$C$2,$C$2,+IF(+VLOOKUP(+EOMONTH(+A111,-2)+15,Cenários!$A:$D,2,FALSE)>A111,+VLOOKUP(+EOMONTH(+A111,-2)+15,Cenários!$A:$D,2,FALSE),+VLOOKUP(+EOMONTH(+A111,-1)+15,Cenários!$A:$D,2,FALSE)))) -> 2024-04-15 | G111: =IF(A111="","",VLOOKUP(F111,Cenários!$B:$D,3,FALSE)) -> 4246.874549
A112: =IF(A111="","",IF(WORKDAY(+A111,1,Feriados!$A$2:$A$1071)<=$C$2,WORKDAY(+A111,1,Feriados!$A$2:$A$1071),"")) -> 2024-04-12 | B112: =IF(A112="","",+IF(+A112=D112,+E112,((+G112/E112)^+((NETWORKDAYS(+D112,A112,Feriados!$A$2:$A$1058)-1)/(NETWORKDAYS(+D112,F112,Feriados!$A$2:$A$1058)-1))*E112))) -> 4245.984666 | C112: =IF(A112="","",+IF(+A112=D112,+VLOOKUP(D112,Cenários!$B$7:$C$1000,2,FALSE),VLOOKUP(F112,Cenários!$B$7:$C$1000,2,FALSE))) -> 0.42 | D112: =IF(A112="","",+VLOOKUP(+EOMONTH(+F112,-3)+15,Cenários!$A:$D,2,FALSE)) -> 2024-03-15 | E112: =IF(A112="","",VLOOKUP(D112,Cenários!$B:$D,3,FALSE)) -> 4229.112277 | F112: =IF(A112="","",IF(A112=$C$2,$C$2,+IF(+VLOOKUP(+EOMONTH(+A112,-2)+15,Cenários!$A:$D,2,FALSE)>A112,+VLOOKUP(+EOMONTH(+A112,-2)+15,Cenários!$A:$D,2,FALSE),+VLOOKUP(+EOMONTH(+A112,-1)+15,Cenários!$A:$D,2,FALSE)))) -> 2024-04-15 | G112: =IF(A112="","",VLOOKUP(F112,Cenários!$B:$D,3,FALSE)) -> 4246.874549
A113: =IF(A112="","",IF(WORKDAY(+A112,1,Feriados!$A$2:$A$1071)<=$C$2,WORKDAY(+A112,1,Feriados!$A$2:$A$1071),"")) -> 2024-04-15 | B113: =IF(A113="","",+IF(+A113=D113,+E113,((+G113/E113)^+((NETWORKDAYS(+D113,A113,Feriados!$A$2:$A$1058)-1)/(NETWORKDAYS(+D113,F113,Feriados!$A$2:$A$1058)-1))*E113))) -> 4246.874549 | C113: =IF(A113="","",+IF(+A113=D113,+VLOOKUP(D113,Cenários!$B$7:$C$1000,2,FALSE),VLOOKUP(F113,Cenários!$B$7:$C$1000,2,FALSE))) -> 0.42 | D113: =IF(A113="","",+VLOOKUP(+EOMONTH(+F113,-3)+15,Cenários!$A:$D,2,FALSE)) -> 2024-04-15 | E113: =IF(A113="","",VLOOKUP(D113,Cenários!$B:$D,3,FALSE)) -> 4246.874549 | F113: =IF(A113="","",IF(A113=$C$2,$C$2,+IF(+VLOOKUP(+EOMONTH(+A113,-2)+15,Cenários!$A:$D,2,FALSE)>A113,+VLOOKUP(+EOMONTH(+A113,-2)+15,Cenários!$A:$D,2,FALSE),+VLOOKUP(+EOMONTH(+A113,-1)+15,Cenários!$A:$D,2,FALSE)))) -> 2024-05-15 | G113: =IF(A113="","",VLOOKUP(F113,Cenários!$B:$D,3,FALSE)) -> 4268.108922
A114: =IF(A113="","",IF(WORKDAY(+A113,1,Feriados!$A$2:$A$1071)<=$C$2,WORKDAY(+A113,1,Feriados!$A$2:$A$1071),"")) -> 2024-04-16 | B114: =IF(A114="","",+IF(+A114=D114,+E114,((+G114/E114)^+((NETWORKDAYS(+D114,A114,Feriados!$A$2:$A$1058)-1)/(NETWORKDAYS(+D114,F114,Feriados!$A$2:$A$1058)-1))*E114))) -> 4247.88331 | C114: =IF(A114="","",+IF(+A114=D114,+VLOOKUP(D114,Cenários!$B$7:$C$1000,2,FALSE),VLOOKUP(F114,Cenários!$B$7:$C$1000,2,FALSE))) -> 0.5 | D114: =IF(A114="","",+VLOOKUP(+EOMONTH(+F114,-3)+15,Cenários!$A:$D,2,FALSE)) -> 2024-04-15 | E114: =IF(A114="","",VLOOKUP(D114,Cenários!$B:$D,3,FALSE)) -> 4246.874549 | F114: =IF(A114="","",IF(A114=$C$2,$C$2,+IF(+VLOOKUP(+EOMONTH(+A114,-2)+15,Cenários!$A:$D,2,FALSE)>A114,+VLOOKUP(+EOMONTH(+A114,-2)+15,Cenários!$A:$D,2,FALSE),+VLOOKUP(+EOMONTH(+A114,-1)+15,Cenários!$A:$D,2,FALSE)))) -> 2024-05-15 | G114: =IF(A114="","",VLOOKUP(F114,Cenários!$B:$D,3,FALSE)) -> 4268.108922
A115: =IF(A114="","",IF(WORKDAY(+A114,1,Feriados!$A$2:$A$1071)<=$C$2,WORKDAY(+A114,1,Feriados!$A$2:$A$1071),"")) -> 2024-04-17 | B115: =IF(A115="","",+IF(+A115=D115,+E115,((+G115/E115)^+((NETWORKDAYS(+D115,A115,Feriados!$A$2:$A$1058)-1)/(NETWORKDAYS(+D115,F115,Feriados!$A$2:$A$1058)-1))*E115))) -> 4248.89231 | C115: =IF(A115="","",+IF(+A115=D115,+VLOOKUP(D115,Cenários!$B$7:$C$1000,2,FALSE),VLOOKUP(F115,Cenários!$B$7:$C$1000,2,FALSE))) -> 0.5 | D115: =IF(A115="","",+VLOOKUP(+EOMONTH(+F115,-3)+15,Cenários!$A:$D,2,FALSE)) -> 2024-04-15 | E115: =IF(A115="","",VLOOKUP(D115,Cenários!$B:$D,3,FALSE)) -> 4246.874549 | F115: =IF(A115="","",IF(A115=$C$2,$C$2,+IF(+VLOOKUP(+EOMONTH(+A115,-2)+15,Cenários!$A:$D,2,FALSE)>A115,+VLOOKUP(+EOMONTH(+A115,-2)+15,Cenários!$A:$D,2,FALSE),+VLOOKUP(+EOMONTH(+A115,-1)+15,Cenários!$A:$D,2,FALSE)))) -> 2024-05-15 | G115: =IF(A115="","",VLOOKUP(F115,Cenários!$B:$D,3,FALSE)) -> 4268.108922
A116: =IF(A115="","",IF(WORKDAY(+A115,1,Feriados!$A$2:$A$1071)<=$C$2,WORKDAY(+A115,1,Feriados!$A$2:$A$1071),"")) -> 2024-04-18 | B116: =IF(A116="","",+IF(+A116=D116,+E116,((+G116/E116)^+((NETWORKDAYS(+D116,A116,Feriados!$A$2:$A$1058)-1)/(NETWORKDAYS(+D116,F116,Feriados!$A$2:$A$1058)-1))*E116))) -> 4249.901551 | C116: =IF(A116="","",+IF(+A116=D116,+VLOOKUP(D116,Cenários!$B$7:$C$1000,2,FALSE),VLOOKUP(F116,Cenários!$B$7:$C$1000,2,FALSE))) -> 0.5 | D116: =IF(A116="","",+VLOOKUP(+EOMONTH(+F116,-3)+15,Cenários!$A:$D,2,FALSE)) -> 2024-04-15 | E116: =IF(A116="","",VLOOKUP(D116,Cenários!$B:$D,3,FALSE)) -> 4246.874549 | F116: =IF(A116="","",IF(A116=$C$2,$C$2,+IF(+VLOOKUP(+EOMONTH(+A116,-2)+15,Cenários!$A:$D,2,FALSE)>A116,+VLOOKUP(+EOMONTH(+A116,-2)+15,Cenários!$A:$D,2,FALSE),+VLOOKUP(+EOMONTH(+A116,-1)+15,Cenários!$A:$D,2,FALSE)))) -> 2024-05-15 | G116: =IF(A116="","",VLOOKUP(F116,Cenários!$B:$D,3,FALSE)) -> 4268.108922
A117: =IF(A116="","",IF(WORKDAY(+A116,1,Feriados!$A$2:$A$1071)<=$C$2,WORKDAY(+A116,1,Feriados!$A$2:$A$1071),"")) -> 2024-04-19 | B117: =IF(A117="","",+IF(+A117=D117,+E117,((+G117/E117)^+((NETWORKDAYS(+D117,A117,Feriados!$A$2:$A$1058)-1)/(NETWORKDAYS(+D117,F117,Feriados!$A$2:$A$1058)-1))*E117))) -> 4250.91103 | C117: =IF(A117="","",+IF(+A117=D117,+VLOOKUP(D117,Cenários!$B$7:$C$1000,2,FALSE),VLOOKUP(F117,Cenários!$B$7:$C$1000,2,FALSE))) -> 0.5 | D117: =IF(A117="","",+VLOOKUP(+EOMONTH(+F117,-3)+15,Cenários!$A:$D,2,FALSE)) -> 2024-04-15 | E117: =IF(A117="","",VLOOKUP(D117,Cenários!$B:$D,3,FALSE)) -> 4246.874549 | F117: =IF(A117="","",IF(A117=$C$2,$C$2,+IF(+VLOOKUP(+EOMONTH(+A117,-2)+15,Cenários!$A:$D,2,FALSE)>A117,+VLOOKUP(+EOMONTH(+A117,-2)+15,Cenários!$A:$D,2,FALSE),+VLOOKUP(+EOMONTH(+A117,-1)+15,Cenários!$A:$D,2,FALSE)))) -> 2024-05-15 | G117: =IF(A117="","",VLOOKUP(F117,Cenários!$B:$D,3,FALSE)) -> 4268.108922
A118: =IF(A117="","",IF(WORKDAY(+A117,1,Feriados!$A$2:$A$1071)<=$C$2,WORKDAY(+A117,1,Feriados!$A$2:$A$1071),"")) -> 2024-04-22 | B118: =IF(A118="","",+IF(+A118=D118,+E118,((+G118/E118)^+((NETWORKDAYS(+D118,A118,Feriados!$A$2:$A$1058)-1)/(NETWORKDAYS(+D118,F118,Feriados!$A$2:$A$1058)-1))*E118))) -> 4251.92075 | C118: =IF(A118="","",+IF(+A118=D118,+VLOOKUP(D118,Cenários!$B$7:$C$1000,2,FALSE),VLOOKUP(F118,Cenários!$B$7:$C$1000,2,FALSE))) -> 0.5 | D118: =IF(A118="","",+VLOOKUP(+EOMONTH(+F118,-3)+15,Cenários!$A:$D,2,FALSE)) -> 2024-04-15 | E118: =IF(A118="","",VLOOKUP(D118,Cenários!$B:$D,3,FALSE)) -> 4246.874549 | F118: =IF(A118="","",IF(A118=$C$2,$C$2,+IF(+VLOOKUP(+EOMONTH(+A118,-2)+15,Cenários!$A:$D,2,FALSE)>A118,+VLOOKUP(+EOMONTH(+A118,-2)+15,Cenários!$A:$D,2,FALSE),+VLOOKUP(+EOMONTH(+A118,-1)+15,Cenários!$A:$D,2,FALSE)))) -> 2024-05-15 | G118: =IF(A118="","",VLOOKUP(F118,Cenários!$B:$D,3,FALSE)) -> 4268.108922
A119: =IF(A118="","",IF(WORKDAY(+A118,1,Feriados!$A$2:$A$1071)<=$C$2,WORKDAY(+A118,1,Feriados!$A$2:$A$1071),"")) -> 2024-04-23 | B119: =IF(A119="","",+IF(+A119=D119,+E119,((+G119/E119)^+((NETWORKDAYS(+D119,A119,Feriados!$A$2:$A$1058)-1)/(NETWORKDAYS(+D119,F119,Feriados!$A$2:$A$1058)-1))*E119))) -> 4252.93071 | C119: =IF(A119="","",+IF(+A119=D119,+VLOOKUP(D119,Cenários!$B$7:$C$1000,2,FALSE),VLOOKUP(F119,Cenários!$B$7:$C$1000,2,FALSE))) -> 0.5 | D119: =IF(A119="","",+VLOOKUP(+EOMONTH(+F119,-3)+15,Cenários!$A:$D,2,FALSE)) -> 2024-04-15 | E119: =IF(A119="","",VLOOKUP(D119,Cenários!$B:$D,3,FALSE)) -> 4246.874549 | F119: =IF(A119="","",IF(A119=$C$2,$C$2,+IF(+VLOOKUP(+EOMONTH(+A119,-2)+15,Cenários!$A:$D,2,FALSE)>A119,+VLOOKUP(+EOMONTH(+A119,-2)+15,Cenários!$A:$D,2,FALSE),+VLOOKUP(+EOMONTH(+A119,-1)+15,Cenários!$A:$D,2,FALSE)))) -> 2024-05-15 | G119: =IF(A119="","",VLOOKUP(F119,Cenários!$B:$D,3,FALSE)) -> 4268.108922
A120: =IF(A119="","",IF(WORKDAY(+A119,1,Feriados!$A$2:$A$1071)<=$C$2,WORKDAY(+A119,1,Feriados!$A$2:$A$1071),"")) -> 2024-04-24 | B120: =IF(A120="","",+IF(+A120=D120,+E120,((+G120/E120)^+((NETWORKDAYS(+D120,A120,Feriados!$A$2:$A$1058)-1)/(NETWORKDAYS(+D120,F120,Feriados!$A$2:$A$1058)-1))*E120))) -> 4253.940909 | C120: =IF(A120="","",+IF(+A120=D120,+VLOOKUP(D120,Cenários!$B$7:$C$1000,2,FALSE),VLOOKUP(F120,Cenários!$B$7:$C$1000,2,FALSE))) -> 0.5 | D120: =IF(A120="","",+VLOOKUP(+EOMONTH(+F120,-3)+15,Cenários!$A:$D,2,FALSE)) -> 2024-04-15 | E120: =IF(A120="","",VLOOKUP(D120,Cenários!$B:$D,3,FALSE)) -> 4246.874549 | F120: =IF(A120="","",IF(A120=$C$2,$C$2,+IF(+VLOOKUP(+EOMONTH(+A120,-2)+15,Cenários!$A:$D,2,FALSE)>A120,+VLOOKUP(+EOMONTH(+A120,-2)+15,Cenários!$A:$D,2,FALSE),+VLOOKUP(+EOMONTH(+A120,-1)+15,Cenários!$A:$D,2,FALSE)))) -> 2024-05-15 | G120: =IF(A120="","",VLOOKUP(F120,Cenários!$B:$D,3,FALSE)) -> 4268.108922
A121: =IF(A120="","",IF(WORKDAY(+A120,1,Feriados!$A$2:$A$1071)<=$C$2,WORKDAY(+A120,1,Feriados!$A$2:$A$1071),"")) -> 2024-04-25 | B121: =IF(A121="","",+IF(+A121=D121,+E121,((+G121/E121)^+((NETWORKDAYS(+D121,A121,Feriados!$A$2:$A$1058)-1)/(NETWORKDAYS(+D121,F121,Feriados!$A$2:$A$1058)-1))*E121))) -> 4254.951348 | C121: =IF(A121="","",+IF(+A121=D121,+VLOOKUP(D121,Cenários!$B$7:$C$1000,2,FALSE),VLOOKUP(F121,Cenários!$B$7:$C$1000,2,FALSE))) -> 0.5 | D121: =IF(A121="","",+VLOOKUP(+EOMONTH(+F121,-3)+15,Cenários!$A:$D,2,FALSE)) -> 2024-04-15 | E121: =IF(A121="","",VLOOKUP(D121,Cenários!$B:$D,3,FALSE)) -> 4246.874549 | F121: =IF(A121="","",IF(A121=$C$2,$C$2,+IF(+VLOOKUP(+EOMONTH(+A121,-2)+15,Cenários!$A:$D,2,FALSE)>A121,+VLOOKUP(+EOMONTH(+A121,-2)+15,Cenários!$A:$D,2,FALSE),+VLOOKUP(+EOMONTH(+A121,-1)+15,Cenários!$A:$D,2,FALSE)))) -> 2024-05-15 | G121: =IF(A121="","",VLOOKUP(F121,Cenários!$B:$D,3,FALSE)) -> 4268.108922
A122: =IF(A121="","",IF(WORKDAY(+A121,1,Feriados!$A$2:$A$1071)<=$C$2,WORKDAY(+A121,1,Feriados!$A$2:$A$1071),"")) -> 2024-04-26 | B122: =IF(A122="","",+IF(+A122=D122,+E122,((+G122/E122)^+((NETWORKDAYS(+D122,A122,Feriados!$A$2:$A$1058)-1)/(NETWORKDAYS(+D122,F122,Feriados!$A$2:$A$1058)-1))*E122))) -> 4255.962028 | C122: =IF(A122="","",+IF(+A122=D122,+VLOOKUP(D122,Cenários!$B$7:$C$1000,2,FALSE),VLOOKUP(F122,Cenários!$B$7:$C$1000,2,FALSE))) -> 0.5 | D122: =IF(A122="","",+VLOOKUP(+EOMONTH(+F122,-3)+15,Cenários!$A:$D,2,FALSE)) -> 2024-04-15 | E122: =IF(A122="","",VLOOKUP(D122,Cenários!$B:$D,3,FALSE)) -> 4246.874549 | F122: =IF(A122="","",IF(A122=$C$2,$C$2,+IF(+VLOOKUP(+EOMONTH(+A122,-2)+15,Cenários!$A:$D,2,FALSE)>A122,+VLOOKUP(+EOMONTH(+A122,-2)+15,Cenários!$A:$D,2,FALSE),+VLOOKUP(+EOMONTH(+A122,-1)+15,Cenários!$A:$D,2,FALSE)))) -> 2024-05-15 | G122: =IF(A122="","",VLOOKUP(F122,Cenários!$B:$D,3,FALSE)) -> 4268.108922
A123: =IF(A122="","",IF(WORKDAY(+A122,1,Feriados!$A$2:$A$1071)<=$C$2,WORKDAY(+A122,1,Feriados!$A$2:$A$1071),"")) -> 2024-04-29 | B123: =IF(A123="","",+IF(+A123=D123,+E123,((+G123/E123)^+((NETWORKDAYS(+D123,A123,Feriados!$A$2:$A$1058)-1)/(NETWORKDAYS(+D123,F123,Feriados!$A$2:$A$1058)-1))*E123))) -> 4256.972947 | C123: =IF(A123="","",+IF(+A123=D123,+VLOOKUP(D123,Cenários!$B$7:$C$1000,2,FALSE),VLOOKUP(F123,Cenários!$B$7:$C$1000,2,FALSE))) -> 0.5 | D123: =IF(A123="","",+VLOOKUP(+EOMONTH(+F123,-3)+15,Cenários!$A:$D,2,FALSE)) -> 2024-04-15 | E123: =IF(A123="","",VLOOKUP(D123,Cenários!$B:$D,3,FALSE)) -> 4246.874549 | F123: =IF(A123="","",IF(A123=$C$2,$C$2,+IF(+VLOOKUP(+EOMONTH(+A123,-2)+15,Cenários!$A:$D,2,FALSE)>A123,+VLOOKUP(+EOMONTH(+A123,-2)+15,Cenários!$A:$D,2,FALSE),+VLOOKUP(+EOMONTH(+A123,-1)+15,Cenários!$A:$D,2,FALSE)))) -> 2024-05-15 | G123: =IF(A123="","",VLOOKUP(F123,Cenários!$B:$D,3,FALSE)) -> 4268.108922
A124: =IF(A123="","",IF(WORKDAY(+A123,1,Feriados!$A$2:$A$1071)<=$C$2,WORKDAY(+A123,1,Feriados!$A$2:$A$1071),"")) -> 2024-04-30 | B124: =IF(A124="","",+IF(+A124=D124,+E124,((+G124/E124)^+((NETWORKDAYS(+D124,A124,Feriados!$A$2:$A$1058)-1)/(NETWORKDAYS(+D124,F124,Feriados!$A$2:$A$1058)-1))*E124))) -> 4257.984107 | C124: =IF(A124="","",+IF(+A124=D124,+VLOOKUP(D124,Cenários!$B$7:$C$1000,2,FALSE),VLOOKUP(F124,Cenários!$B$7:$C$1000,2,FALSE))) -> 0.5 | D124: =IF(A124="","",+VLOOKUP(+EOMONTH(+F124,-3)+15,Cenários!$A:$D,2,FALSE)) -> 2024-04-15 | E124: =IF(A124="","",VLOOKUP(D124,Cenários!$B:$D,3,FALSE)) -> 4246.874549 | F124: =IF(A124="","",IF(A124=$C$2,$C$2,+IF(+VLOOKUP(+EOMONTH(+A124,-2)+15,Cenários!$A:$D,2,FALSE)>A124,+VLOOKUP(+EOMONTH(+A124,-2)+15,Cenários!$A:$D,2,FALSE),+VLOOKUP(+EOMONTH(+A124,-1)+15,Cenários!$A:$D,2,FALSE)))) -> 2024-05-15 | G124: =IF(A124="","",VLOOKUP(F124,Cenários!$B:$D,3,FALSE)) -> 4268.108922
A125: =IF(A124="","",IF(WORKDAY(+A124,1,Feriados!$A$2:$A$1071)<=$C$2,WORKDAY(+A124,1,Feriados!$A$2:$A$1071),"")) -> 2024-05-02 | B125: =IF(A125="","",+IF(+A125=D125,+E125,((+G125/E125)^+((NETWORKDAYS(+D125,A125,Feriados!$A$2:$A$1058)-1)/(NETWORKDAYS(+D125,F125,Feriados!$A$2:$A$1058)-1))*E125))) -> 4258.995507 | C125: =IF(A125="","",+IF(+A125=D125,+VLOOKUP(D125,Cenários!$B$7:$C$1000,2,FALSE),VLOOKUP(F125,Cenários!$B$7:$C$1000,2,FALSE))) -> 0.5 | D125: =IF(A125="","",+VLOOKUP(+EOMONTH(+F125,-3)+15,Cenários!$A:$D,2,FALSE)) -> 2024-04-15 | E125: =IF(A125="","",VLOOKUP(D125,Cenários!$B:$D,3,FALSE)) -> 4246.874549 | F125: =IF(A125="","",IF(A125=$C$2,$C$2,+IF(+VLOOKUP(+EOMONTH(+A125,-2)+15,Cenários!$A:$D,2,FALSE)>A125,+VLOOKUP(+EOMONTH(+A125,-2)+15,Cenários!$A:$D,2,FALSE),+VLOOKUP(+EOMONTH(+A125,-1)+15,Cenários!$A:$D,2,FALSE)))) -> 2024-05-15 | G125: =IF(A125="","",VLOOKUP(F125,Cenários!$B:$D,3,FALSE)) -> 4268.108922
A126: =IF(A125="","",IF(WORKDAY(+A125,1,Feriados!$A$2:$A$1071)<=$C$2,WORKDAY(+A125,1,Feriados!$A$2:$A$1071),"")) -> 2024-05-03 | B126: =IF(A126="","",+IF(+A126=D126,+E126,((+G126/E126)^+((NETWORKDAYS(+D126,A126,Feriados!$A$2:$A$1058)-1)/(NETWORKDAYS(+D126,F126,Feriados!$A$2:$A$1058)-1))*E126))) -> 4260.007147 | C126: =IF(A126="","",+IF(+A126=D126,+VLOOKUP(D126,Cenários!$B$7:$C$1000,2,FALSE),VLOOKUP(F126,Cenários!$B$7:$C$1000,2,FALSE))) -> 0.5 | D126: =IF(A126="","",+VLOOKUP(+EOMONTH(+F126,-3)+15,Cenários!$A:$D,2,FALSE)) -> 2024-04-15 | E126: =IF(A126="","",VLOOKUP(D126,Cenários!$B:$D,3,FALSE)) -> 4246.874549 | F126: =IF(A126="","",IF(A126=$C$2,$C$2,+IF(+VLOOKUP(+EOMONTH(+A126,-2)+15,Cenários!$A:$D,2,FALSE)>A126,+VLOOKUP(+EOMONTH(+A126,-2)+15,Cenários!$A:$D,2,FALSE),+VLOOKUP(+EOMONTH(+A126,-1)+15,Cenários!$A:$D,2,FALSE)))) -> 2024-05-15 | G126: =IF(A126="","",VLOOKUP(F126,Cenários!$B:$D,3,FALSE)) -> 4268.108922
A127: =IF(A126="","",IF(WORKDAY(+A126,1,Feriados!$A$2:$A$1071)<=$C$2,WORKDAY(+A126,1,Feriados!$A$2:$A$1071),"")) -> 2024-05-06 | B127: =IF(A127="","",+IF(+A127=D127,+E127,((+G127/E127)^+((NETWORKDAYS(+D127,A127,Feriados!$A$2:$A$1058)-1)/(NETWORKDAYS(+D127,F127,Feriados!$A$2:$A$1058)-1))*E127))) -> 4261.019027 | C127: =IF(A127="","",+IF(+A127=D127,+VLOOKUP(D127,Cenários!$B$7:$C$1000,2,FALSE),VLOOKUP(F127,Cenários!$B$7:$C$1000,2,FALSE))) -> 0.5 | D127: =IF(A127="","",+VLOOKUP(+EOMONTH(+F127,-3)+15,Cenários!$A:$D,2,FALSE)) -> 2024-04-15 | E127: =IF(A127="","",VLOOKUP(D127,Cenários!$B:$D,3,FALSE)) -> 4246.874549 | F127: =IF(A127="","",IF(A127=$C$2,$C$2,+IF(+VLOOKUP(+EOMONTH(+A127,-2)+15,Cenários!$A:$D,2,FALSE)>A127,+VLOOKUP(+EOMONTH(+A127,-2)+15,Cenários!$A:$D,2,FALSE),+VLOOKUP(+EOMONTH(+A127,-1)+15,Cenários!$A:$D,2,FALSE)))) -> 2024-05-15 | G127: =IF(A127="","",VLOOKUP(F127,Cenários!$B:$D,3,FALSE)) -> 4268.108922
A128: =IF(A127="","",IF(WORKDAY(+A127,1,Feriados!$A$2:$A$1071)<=$C$2,WORKDAY(+A127,1,Feriados!$A$2:$A$1071),"")) -> 2024-05-07 | B128: =IF(A128="","",+IF(+A128=D128,+E128,((+G128/E128)^+((NETWORKDAYS(+D128,A128,Feriados!$A$2:$A$1058)-1)/(NETWORKDAYS(+D128,F128,Feriados!$A$2:$A$1058)-1))*E128))) -> 4262.031148 | C128: =IF(A128="","",+IF(+A128=D128,+VLOOKUP(D128,Cenários!$B$7:$C$1000,2,FALSE),VLOOKUP(F128,Cenários!$B$7:$C$1000,2,FALSE))) -> 0.5 | D128: =IF(A128="","",+VLOOKUP(+EOMONTH(+F128,-3)+15,Cenários!$A:$D,2,FALSE)) -> 2024-04-15 | E128: =IF(A128="","",VLOOKUP(D128,Cenários!$B:$D,3,FALSE)) -> 4246.874549 | F128: =IF(A128="","",IF(A128=$C$2,$C$2,+IF(+VLOOKUP(+EOMONTH(+A128,-2)+15,Cenários!$A:$D,2,FALSE)>A128,+VLOOKUP(+EOMONTH(+A128,-2)+15,Cenários!$A:$D,2,FALSE),+VLOOKUP(+EOMONTH(+A128,-1)+15,Cenários!$A:$D,2,FALSE)))) -> 2024-05-15 | G128: =IF(A128="","",VLOOKUP(F128,Cenários!$B:$D,3,FALSE)) -> 4268.108922
A129: =IF(A128="","",IF(WORKDAY(+A128,1,Feriados!$A$2:$A$1071)<=$C$2,WORKDAY(+A128,1,Feriados!$A$2:$A$1071),"")) -> 2024-05-08 | B129: =IF(A129="","",+IF(+A129=D129,+E129,((+G129/E129)^+((NETWORKDAYS(+D129,A129,Feriados!$A$2:$A$1058)-1)/(NETWORKDAYS(+D129,F129,Feriados!$A$2:$A$1058)-1))*E129))) -> 4263.043509 | C129: =IF(A129="","",+IF(+A129=D129,+VLOOKUP(D129,Cenários!$B$7:$C$1000,2,FALSE),VLOOKUP(F129,Cenários!$B$7:$C$1000,2,FALSE))) -> 0.5 | D129: =IF(A129="","",+VLOOKUP(+EOMONTH(+F129,-3)+15,Cenários!$A:$D,2,FALSE)) -> 2024-04-15 | E129: =IF(A129="","",VLOOKUP(D129,Cenários!$B:$D,3,FALSE)) -> 4246.874549 | F129: =IF(A129="","",IF(A129=$C$2,$C$2,+IF(+VLOOKUP(+EOMONTH(+A129,-2)+15,Cenários!$A:$D,2,FALSE)>A129,+VLOOKUP(+EOMONTH(+A129,-2)+15,Cenários!$A:$D,2,FALSE),+VLOOKUP(+EOMONTH(+A129,-1)+15,Cenários!$A:$D,2,FALSE)))) -> 2024-05-15 | G129: =IF(A129="","",VLOOKUP(F129,Cenários!$B:$D,3,FALSE)) -> 4268.108922
A130: =IF(A129="","",IF(WORKDAY(+A129,1,Feriados!$A$2:$A$1071)<=$C$2,WORKDAY(+A129,1,Feriados!$A$2:$A$1071),"")) -> 2024-05-09 | B130: =IF(A130="","",+IF(+A130=D130,+E130,((+G130/E130)^+((NETWORKDAYS(+D130,A130,Feriados!$A$2:$A$1058)-1)/(NETWORKDAYS(+D130,F130,Feriados!$A$2:$A$1058)-1))*E130))) -> 4264.05611 | C130: =IF(A130="","",+IF(+A130=D130,+VLOOKUP(D130,Cenários!$B$7:$C$1000,2,FALSE),VLOOKUP(F130,Cenários!$B$7:$C$1000,2,FALSE))) -> 0.5 | D130: =IF(A130="","",+VLOOKUP(+EOMONTH(+F130,-3)+15,Cenários!$A:$D,2,FALSE)) -> 2024-04-15 | E130: =IF(A130="","",VLOOKUP(D130,Cenários!$B:$D,3,FALSE)) -> 4246.874549 | F130: =IF(A130="","",IF(A130=$C$2,$C$2,+IF(+VLOOKUP(+EOMONTH(+A130,-2)+15,Cenários!$A:$D,2,FALSE)>A130,+VLOOKUP(+EOMONTH(+A130,-2)+15,Cenários!$A:$D,2,FALSE),+VLOOKUP(+EOMONTH(+A130,-1)+15,Cenários!$A:$D,2,FALSE)))) -> 2024-05-15 | G130: =IF(A130="","",VLOOKUP(F130,Cenários!$B:$D,3,FALSE)) -> 4268.108922
A131: =IF(A130="","",IF(WORKDAY(+A130,1,Feriados!$A$2:$A$1071)<=$C$2,WORKDAY(+A130,1,Feriados!$A$2:$A$1071),"")) -> 2024-05-10 | B131: =IF(A131="","",+IF(+A131=D131,+E131,((+G131/E131)^+((NETWORKDAYS(+D131,A131,Feriados!$A$2:$A$1058)-1)/(NETWORKDAYS(+D131,F131,Feriados!$A$2:$A$1058)-1))*E131))) -> 4265.068952 | C131: =IF(A131="","",+IF(+A131=D131,+VLOOKUP(D131,Cenários!$B$7:$C$1000,2,FALSE),VLOOKUP(F131,Cenários!$B$7:$C$1000,2,FALSE))) -> 0.5 | D131: =IF(A131="","",+VLOOKUP(+EOMONTH(+F131,-3)+15,Cenários!$A:$D,2,FALSE)) -> 2024-04-15 | E131: =IF(A131="","",VLOOKUP(D131,Cenários!$B:$D,3,FALSE)) -> 4246.874549 | F131: =IF(A131="","",IF(A131=$C$2,$C$2,+IF(+VLOOKUP(+EOMONTH(+A131,-2)+15,Cenários!$A:$D,2,FALSE)>A131,+VLOOKUP(+EOMONTH(+A131,-2)+15,Cenários!$A:$D,2,FALSE),+VLOOKUP(+EOMONTH(+A131,-1)+15,Cenários!$A:$D,2,FALSE)))) -> 2024-05-15 | G131: =IF(A131="","",VLOOKUP(F131,Cenários!$B:$D,3,FALSE)) -> 4268.108922
A132: =IF(A131="","",IF(WORKDAY(+A131,1,Feriados!$A$2:$A$1071)<=$C$2,WORKDAY(+A131,1,Feriados!$A$2:$A$1071),"")) -> 2024-05-13 | B132: =IF(A132="","",+IF(+A132=D132,+E132,((+G132/E132)^+((NETWORKDAYS(+D132,A132,Feriados!$A$2:$A$1058)-1)/(NETWORKDAYS(+D132,F132,Feriados!$A$2:$A$1058)-1))*E132))) -> 4266.082035 | C132: =IF(A132="","",+IF(+A132=D132,+VLOOKUP(D132,Cenários!$B$7:$C$1000,2,FALSE),VLOOKUP(F132,Cenários!$B$7:$C$1000,2,FALSE))) -> 0.5 | D132: =IF(A132="","",+VLOOKUP(+EOMONTH(+F132,-3)+15,Cenários!$A:$D,2,FALSE)) -> 2024-04-15 | E132: =IF(A132="","",VLOOKUP(D132,Cenários!$B:$D,3,FALSE)) -> 4246.874549 | F132: =IF(A132="","",IF(A132=$C$2,$C$2,+IF(+VLOOKUP(+EOMONTH(+A132,-2)+15,Cenários!$A:$D,2,FALSE)>A132,+VLOOKUP(+EOMONTH(+A132,-2)+15,Cenários!$A:$D,2,FALSE),+VLOOKUP(+EOMONTH(+A132,-1)+15,Cenários!$A:$D,2,FALSE)))) -> 2024-05-15 | G132: =IF(A132="","",VLOOKUP(F132,Cenários!$B:$D,3,FALSE)) -> 4268.108922
A133: =IF(A132="","",IF(WORKDAY(+A132,1,Feriados!$A$2:$A$1071)<=$C$2,WORKDAY(+A132,1,Feriados!$A$2:$A$1071),"")) -> 2024-05-14 | B133: =IF(A133="","",+IF(+A133=D133,+E133,((+G133/E133)^+((NETWORKDAYS(+D133,A133,Feriados!$A$2:$A$1058)-1)/(NETWORKDAYS(+D133,F133,Feriados!$A$2:$A$1058)-1))*E133))) -> 4267.095358 | C133: =IF(A133="","",+IF(+A133=D133,+VLOOKUP(D133,Cenários!$B$7:$C$1000,2,FALSE),VLOOKUP(F133,Cenários!$B$7:$C$1000,2,FALSE))) -> 0.5 | D133: =IF(A133="","",+VLOOKUP(+EOMONTH(+F133,-3)+15,Cenários!$A:$D,2,FALSE)) -> 2024-04-15 | E133: =IF(A133="","",VLOOKUP(D133,Cenários!$B:$D,3,FALSE)) -> 4246.874549 | F133: =IF(A133="","",IF(A133=$C$2,$C$2,+IF(+VLOOKUP(+EOMONTH(+A133,-2)+15,Cenários!$A:$D,2,FALSE)>A133,+VLOOKUP(+EOMONTH(+A133,-2)+15,Cenários!$A:$D,2,FALSE),+VLOOKUP(+EOMONTH(+A133,-1)+15,Cenários!$A:$D,2,FALSE)))) -> 2024-05-15 | G133: =IF(A133="","",VLOOKUP(F133,Cenários!$B:$D,3,FALSE)) -> 4268.108922
A134: =IF(A133="","",IF(WORKDAY(+A133,1,Feriados!$A$2:$A$1071)<=$C$2,WORKDAY(+A133,1,Feriados!$A$2:$A$1071),"")) -> 2024-05-15 | B134: =IF(A134="","",+IF(+A134=D134,+E134,((+G134/E134)^+((NETWORKDAYS(+D134,A134,Feriados!$A$2:$A$1058)-1)/(NETWORKDAYS(+D134,F134,Feriados!$A$2:$A$1058)-1))*E134))) -> 4268.108922 | C134: =IF(A134="","",+IF(+A134=D134,+VLOOKUP(D134,Cenários!$B$7:$C$1000,2,FALSE),VLOOKUP(F134,Cenários!$B$7:$C$1000,2,FALSE))) -> 0.5 | D134: =IF(A134="","",+VLOOKUP(+EOMONTH(+F134,-3)+15,Cenários!$A:$D,2,FALSE)) -> 2024-05-15 | E134: =IF(A134="","",VLOOKUP(D134,Cenários!$B:$D,3,FALSE)) -> 4268.108922 | F134: =IF(A134="","",IF(A134=$C$2,$C$2,+IF(+VLOOKUP(+EOMONTH(+A134,-2)+15,Cenários!$A:$D,2,FALSE)>A134,+VLOOKUP(+EOMONTH(+A134,-2)+15,Cenários!$A:$D,2,FALSE),+VLOOKUP(+EOMONTH(+A134,-1)+15,Cenários!$A:$D,2,FALSE)))) -> 2024-06-17 | G134: =IF(A134="","",VLOOKUP(F134,Cenários!$B:$D,3,FALSE)) -> 4282.791217
A135: =IF(A134="","",IF(WORKDAY(+A134,1,Feriados!$A$2:$A$1071)<=$C$2,WORKDAY(+A134,1,Feriados!$A$2:$A$1071),"")) -> 2024-05-16 | B135: =IF(A135="","",+IF(+A135=D135,+E135,((+G135/E135)^+((NETWORKDAYS(+D135,A135,Feriados!$A$2:$A$1058)-1)/(NETWORKDAYS(+D135,F135,Feriados!$A$2:$A$1058)-1))*E135))) -> 4268.775206 | C135: =IF(A135="","",+IF(+A135=D135,+VLOOKUP(D135,Cenários!$B$7:$C$1000,2,FALSE),VLOOKUP(F135,Cenários!$B$7:$C$1000,2,FALSE))) -> 0.344 | D135: =IF(A135="","",+VLOOKUP(+EOMONTH(+F135,-3)+15,Cenários!$A:$D,2,FALSE)) -> 2024-05-15 | E135: =IF(A135="","",VLOOKUP(D135,Cenários!$B:$D,3,FALSE)) -> 4268.108922 | F135: =IF(A135="","",IF(A135=$C$2,$C$2,+IF(+VLOOKUP(+EOMONTH(+A135,-2)+15,Cenários!$A:$D,2,FALSE)>A135,+VLOOKUP(+EOMONTH(+A135,-2)+15,Cenários!$A:$D,2,FALSE),+VLOOKUP(+EOMONTH(+A135,-1)+15,Cenários!$A:$D,2,FALSE)))) -> 2024-06-17 | G135: =IF(A135="","",VLOOKUP(F135,Cenários!$B:$D,3,FALSE)) -> 4282.791217
A136: =IF(A135="","",IF(WORKDAY(+A135,1,Feriados!$A$2:$A$1071)<=$C$2,WORKDAY(+A135,1,Feriados!$A$2:$A$1071),"")) -> 2024-05-17 | B136: =IF(A136="","",+IF(+A136=D136,+E136,((+G136/E136)^+((NETWORKDAYS(+D136,A136,Feriados!$A$2:$A$1058)-1)/(NETWORKDAYS(+D136,F136,Feriados!$A$2:$A$1058)-1))*E136))) -> 4269.441594 | C136: =IF(A136="","",+IF(+A136=D136,+VLOOKUP(D136,Cenários!$B$7:$C$1000,2,FALSE),VLOOKUP(F136,Cenários!$B$7:$C$1000,2,FALSE))) -> 0.344 | D136: =IF(A136="","",+VLOOKUP(+EOMONTH(+F136,-3)+15,Cenários!$A:$D,2,FALSE)) -> 2024-05-15 | E136: =IF(A136="","",VLOOKUP(D136,Cenários!$B:$D,3,FALSE)) -> 4268.108922 | F136: =IF(A136="","",IF(A136=$C$2,$C$2,+IF(+VLOOKUP(+EOMONTH(+A136,-2)+15,Cenários!$A:$D,2,FALSE)>A136,+VLOOKUP(+EOMONTH(+A136,-2)+15,Cenários!$A:$D,2,FALSE),+VLOOKUP(+EOMONTH(+A136,-1)+15,Cenários!$A:$D,2,FALSE)))) -> 2024-06-17 | G136: =IF(A136="","",VLOOKUP(F136,Cenários!$B:$D,3,FALSE)) -> 4282.791217
A137: =IF(A136="","",IF(WORKDAY(+A136,1,Feriados!$A$2:$A$1071)<=$C$2,WORKDAY(+A136,1,Feriados!$A$2:$A$1071),"")) -> 2024-05-20 | B137: =IF(A137="","",+IF(+A137=D137,+E137,((+G137/E137)^+((NETWORKDAYS(+D137,A137,Feriados!$A$2:$A$1058)-1)/(NETWORKDAYS(+D137,F137,Feriados!$A$2:$A$1058)-1))*E137))) -> 4270.108085 | C137: =IF(A137="","",+IF(+A137=D137,+VLOOKUP(D137,Cenários!$B$7:$C$1000,2,FALSE),VLOOKUP(F137,Cenários!$B$7:$C$1000,2,FALSE))) -> 0.344 | D137: =IF(A137="","",+VLOOKUP(+EOMONTH(+F137,-3)+15,Cenários!$A:$D,2,FALSE)) -> 2024-05-15 | E137: =IF(A137="","",VLOOKUP(D137,Cenários!$B:$D,3,FALSE)) -> 4268.108922 | F137: =IF(A137="","",IF(A137=$C$2,$C$2,+IF(+VLOOKUP(+EOMONTH(+A137,-2)+15,Cenários!$A:$D,2,FALSE)>A137,+VLOOKUP(+EOMONTH(+A137,-2)+15,Cenários!$A:$D,2,FALSE),+VLOOKUP(+EOMONTH(+A137,-1)+15,Cenários!$A:$D,2,FALSE)))) -> 2024-06-17 | G137: =IF(A137="","",VLOOKUP(F137,Cenários!$B:$D,3,FALSE)) -> 4282.791217
A138: =IF(A137="","",IF(WORKDAY(+A137,1,Feriados!$A$2:$A$1071)<=$C$2,WORKDAY(+A137,1,Feriados!$A$2:$A$1071),"")) -> 2024-05-21 | B138: =IF(A138="","",+IF(+A138=D138,+E138,((+G138/E138)^+((NETWORKDAYS(+D138,A138,Feriados!$A$2:$A$1058)-1)/(NETWORKDAYS(+D138,F138,Feriados!$A$2:$A$1058)-1))*E138))) -> 4270.774681 | C138: =IF(A138="","",+IF(+A138=D138,+VLOOKUP(D138,Cenários!$B$7:$C$1000,2,FALSE),VLOOKUP(F138,Cenários!$B$7:$C$1000,2,FALSE))) -> 0.344 | D138: =IF(A138="","",+VLOOKUP(+EOMONTH(+F138,-3)+15,Cenários!$A:$D,2,FALSE)) -> 2024-05-15 | E138: =IF(A138="","",VLOOKUP(D138,Cenários!$B:$D,3,FALSE)) -> 4268.108922 | F138: =IF(A138="","",IF(A138=$C$2,$C$2,+IF(+VLOOKUP(+EOMONTH(+A138,-2)+15,Cenários!$A:$D,2,FALSE)>A138,+VLOOKUP(+EOMONTH(+A138,-2)+15,Cenários!$A:$D,2,FALSE),+VLOOKUP(+EOMONTH(+A138,-1)+15,Cenários!$A:$D,2,FALSE)))) -> 2024-06-17 | G138: =IF(A138="","",VLOOKUP(F138,Cenários!$B:$D,3,FALSE)) -> 4282.791217
A139: =IF(A138="","",IF(WORKDAY(+A138,1,Feriados!$A$2:$A$1071)<=$C$2,WORKDAY(+A138,1,Feriados!$A$2:$A$1071),"")) -> 2024-05-22 | B139: =IF(A139="","",+IF(+A139=D139,+E139,((+G139/E139)^+((NETWORKDAYS(+D139,A139,Feriados!$A$2:$A$1058)-1)/(NETWORKDAYS(+D139,F139,Feriados!$A$2:$A$1058)-1))*E139))) -> 4271.441381 | C139: =IF(A139="","",+IF(+A139=D139,+VLOOKUP(D139,Cenários!$B$7:$C$1000,2,FALSE),VLOOKUP(F139,Cenários!$B$7:$C$1000,2,FALSE))) -> 0.344 | D139: =IF(A139="","",+VLOOKUP(+EOMONTH(+F139,-3)+15,Cenários!$A:$D,2,FALSE)) -> 2024-05-15 | E139: =IF(A139="","",VLOOKUP(D139,Cenários!$B:$D,3,FALSE)) -> 4268.108922 | F139: =IF(A139="","",IF(A139=$C$2,$C$2,+IF(+VLOOKUP(+EOMONTH(+A139,-2)+15,Cenários!$A:$D,2,FALSE)>A139,+VLOOKUP(+EOMONTH(+A139,-2)+15,Cenários!$A:$D,2,FALSE),+VLOOKUP(+EOMONTH(+A139,-1)+15,Cenários!$A:$D,2,FALSE)))) -> 2024-06-17 | G139: =IF(A139="","",VLOOKUP(F139,Cenários!$B:$D,3,FALSE)) -> 4282.791217
A140: =IF(A139="","",IF(WORKDAY(+A139,1,Feriados!$A$2:$A$1071)<=$C$2,WORKDAY(+A139,1,Feriados!$A$2:$A$1071),"")) -> 2024-05-23 | B140: =IF(A140="","",+IF(+A140=D140,+E140,((+G140/E140)^+((NETWORKDAYS(+D140,A140,Feriados!$A$2:$A$1058)-1)/(NETWORKDAYS(+D140,F140,Feriados!$A$2:$A$1058)-1))*E140))) -> 4272.108185 | C140: =IF(A140="","",+IF(+A140=D140,+VLOOKUP(D140,Cenários!$B$7:$C$1000,2,FALSE),VLOOKUP(F140,Cenários!$B$7:$C$1000,2,FALSE))) -> 0.344 | D140: =IF(A140="","",+VLOOKUP(+EOMONTH(+F140,-3)+15,Cenários!$A:$D,2,FALSE)) -> 2024-05-15 | E140: =IF(A140="","",VLOOKUP(D140,Cenários!$B:$D,3,FALSE)) -> 4268.108922 | F140: =IF(A140="","",IF(A140=$C$2,$C$2,+IF(+VLOOKUP(+EOMONTH(+A140,-2)+15,Cenários!$A:$D,2,FALSE)>A140,+VLOOKUP(+EOMONTH(+A140,-2)+15,Cenários!$A:$D,2,FALSE),+VLOOKUP(+EOMONTH(+A140,-1)+15,Cenários!$A:$D,2,FALSE)))) -> 2024-06-17 | G140: =IF(A140="","",VLOOKUP(F140,Cenários!$B:$D,3,FALSE)) -> 4282.791217
A141: =IF(A140="","",IF(WORKDAY(+A140,1,Feriados!$A$2:$A$1071)<=$C$2,WORKDAY(+A140,1,Feriados!$A$2:$A$1071),"")) -> 2024-05-24 | B141: =IF(A141="","",+IF(+A141=D141,+E141,((+G141/E141)^+((NETWORKDAYS(+D141,A141,Feriados!$A$2:$A$1058)-1)/(NETWORKDAYS(+D141,F141,Feriados!$A$2:$A$1058)-1))*E141))) -> 4272.775093 | C141: =IF(A141="","",+IF(+A141=D141,+VLOOKUP(D141,Cenários!$B$7:$C$1000,2,FALSE),VLOOKUP(F141,Cenários!$B$7:$C$1000,2,FALSE))) -> 0.344 | D141: =IF(A141="","",+VLOOKUP(+EOMONTH(+F141,-3)+15,Cenários!$A:$D,2,FALSE)) -> 2024-05-15 | E141: =IF(A141="","",VLOOKUP(D141,Cenários!$B:$D,3,FALSE)) -> 4268.108922 | F141: =IF(A141="","",IF(A141=$C$2,$C$2,+IF(+VLOOKUP(+EOMONTH(+A141,-2)+15,Cenários!$A:$D,2,FALSE)>A141,+VLOOKUP(+EOMONTH(+A141,-2)+15,Cenários!$A:$D,2,FALSE),+VLOOKUP(+EOMONTH(+A141,-1)+15,Cenários!$A:$D,2,FALSE)))) -> 2024-06-17 | G141: =IF(A141="","",VLOOKUP(F141,Cenários!$B:$D,3,FALSE)) -> 4282.791217
A142: =IF(A141="","",IF(WORKDAY(+A141,1,Feriados!$A$2:$A$1071)<=$C$2,WORKDAY(+A141,1,Feriados!$A$2:$A$1071),"")) -> 2024-05-27 | B142: =IF(A142="","",+IF(+A142=D142,+E142,((+G142/E142)^+((NETWORKDAYS(+D142,A142,Feriados!$A$2:$A$1058)-1)/(NETWORKDAYS(+D142,F142,Feriados!$A$2:$A$1058)-1))*E142))) -> 4273.442106 | C142: =IF(A142="","",+IF(+A142=D142,+VLOOKUP(D142,Cenários!$B$7:$C$1000,2,FALSE),VLOOKUP(F142,Cenários!$B$7:$C$1000,2,FALSE))) -> 0.344 | D142: =IF(A142="","",+VLOOKUP(+EOMONTH(+F142,-3)+15,Cenários!$A:$D,2,FALSE)) -> 2024-05-15 | E142: =IF(A142="","",VLOOKUP(D142,Cenários!$B:$D,3,FALSE)) -> 4268.108922 | F142: =IF(A142="","",IF(A142=$C$2,$C$2,+IF(+VLOOKUP(+EOMONTH(+A142,-2)+15,Cenários!$A:$D,2,FALSE)>A142,+VLOOKUP(+EOMONTH(+A142,-2)+15,Cenários!$A:$D,2,FALSE),+VLOOKUP(+EOMONTH(+A142,-1)+15,Cenários!$A:$D,2,FALSE)))) -> 2024-06-17 | G142: =IF(A142="","",VLOOKUP(F142,Cenários!$B:$D,3,FALSE)) -> 4282.791217
A143: =IF(A142="","",IF(WORKDAY(+A142,1,Feriados!$A$2:$A$1071)<=$C$2,WORKDAY(+A142,1,Feriados!$A$2:$A$1071),"")) -> 2024-05-28 | B143: =IF(A143="","",+IF(+A143=D143,+E143,((+G143/E143)^+((NETWORKDAYS(+D143,A143,Feriados!$A$2:$A$1058)-1)/(NETWORKDAYS(+D143,F143,Feriados!$A$2:$A$1058)-1))*E143))) -> 4274.109222 | C143: =IF(A143="","",+IF(+A143=D143,+VLOOKUP(D143,Cenários!$B$7:$C$1000,2,FALSE),VLOOKUP(F143,Cenários!$B$7:$C$1000,2,FALSE))) -> 0.344 | D143: =IF(A143="","",+VLOOKUP(+EOMONTH(+F143,-3)+15,Cenários!$A:$D,2,FALSE)) -> 2024-05-15 | E143: =IF(A143="","",VLOOKUP(D143,Cenários!$B:$D,3,FALSE)) -> 4268.108922 | F143: =IF(A143="","",IF(A143=$C$2,$C$2,+IF(+VLOOKUP(+EOMONTH(+A143,-2)+15,Cenários!$A:$D,2,FALSE)>A143,+VLOOKUP(+EOMONTH(+A143,-2)+15,Cenários!$A:$D,2,FALSE),+VLOOKUP(+EOMONTH(+A143,-1)+15,Cenários!$A:$D,2,FALSE)))) -> 2024-06-17 | G143: =IF(A143="","",VLOOKUP(F143,Cenários!$B:$D,3,FALSE)) -> 4282.791217
A144: =IF(A143="","",IF(WORKDAY(+A143,1,Feriados!$A$2:$A$1071)<=$C$2,WORKDAY(+A143,1,Feriados!$A$2:$A$1071),"")) -> 2024-05-29 | B144: =IF(A144="","",+IF(+A144=D144,+E144,((+G144/E144)^+((NETWORKDAYS(+D144,A144,Feriados!$A$2:$A$1058)-1)/(NETWORKDAYS(+D144,F144,Feriados!$A$2:$A$1058)-1))*E144))) -> 4274.776442 | C144: =IF(A144="","",+IF(+A144=D144,+VLOOKUP(D144,Cenários!$B$7:$C$1000,2,FALSE),VLOOKUP(F144,Cenários!$B$7:$C$1000,2,FALSE))) -> 0.344 | D144: =IF(A144="","",+VLOOKUP(+EOMONTH(+F144,-3)+15,Cenários!$A:$D,2,FALSE)) -> 2024-05-15 | E144: =IF(A144="","",VLOOKUP(D144,Cenários!$B:$D,3,FALSE)) -> 4268.108922 | F144: =IF(A144="","",IF(A144=$C$2,$C$2,+IF(+VLOOKUP(+EOMONTH(+A144,-2)+15,Cenários!$A:$D,2,FALSE)>A144,+VLOOKUP(+EOMONTH(+A144,-2)+15,Cenários!$A:$D,2,FALSE),+VLOOKUP(+EOMONTH(+A144,-1)+15,Cenários!$A:$D,2,FALSE)))) -> 2024-06-17 | G144: =IF(A144="","",VLOOKUP(F144,Cenários!$B:$D,3,FALSE)) -> 4282.791217
A145: =IF(A144="","",IF(WORKDAY(+A144,1,Feriados!$A$2:$A$1071)<=$C$2,WORKDAY(+A144,1,Feriados!$A$2:$A$1071),"")) -> 2024-05-31 | B145: =IF(A145="","",+IF(+A145=D145,+E145,((+G145/E145)^+((NETWORKDAYS(+D145,A145,Feriados!$A$2:$A$1058)-1)/(NETWORKDAYS(+D145,F145,Feriados!$A$2:$A$1058)-1))*E145))) -> 4275.443767 | C145: =IF(A145="","",+IF(+A145=D145,+VLOOKUP(D145,Cenários!$B$7:$C$1000,2,FALSE),VLOOKUP(F145,Cenários!$B$7:$C$1000,2,FALSE))) -> 0.344 | D145: =IF(A145="","",+VLOOKUP(+EOMONTH(+F145,-3)+15,Cenários!$A:$D,2,FALSE)) -> 2024-05-15 | E145: =IF(A145="","",VLOOKUP(D145,Cenários!$B:$D,3,FALSE)) -> 4268.108922 | F145: =IF(A145="","",IF(A145=$C$2,$C$2,+IF(+VLOOKUP(+EOMONTH(+A145,-2)+15,Cenários!$A:$D,2,FALSE)>A145,+VLOOKUP(+EOMONTH(+A145,-2)+15,Cenários!$A:$D,2,FALSE),+VLOOKUP(+EOMONTH(+A145,-1)+15,Cenários!$A:$D,2,FALSE)))) -> 2024-06-17 | G145: =IF(A145="","",VLOOKUP(F145,Cenários!$B:$D,3,FALSE)) -> 4282.791217
A146: =IF(A145="","",IF(WORKDAY(+A145,1,Feriados!$A$2:$A$1071)<=$C$2,WORKDAY(+A145,1,Feriados!$A$2:$A$1071),"")) -> 2024-06-03 | B146: =IF(A146="","",+IF(+A146=D146,+E146,((+G146/E146)^+((NETWORKDAYS(+D146,A146,Feriados!$A$2:$A$1058)-1)/(NETWORKDAYS(+D146,F146,Feriados!$A$2:$A$1058)-1))*E146))) -> 4276.111196 | C146: =IF(A146="","",+IF(+A146=D146,+VLOOKUP(D146,Cenários!$B$7:$C$1000,2,FALSE),VLOOKUP(F146,Cenários!$B$7:$C$1000,2,FALSE))) -> 0.344 | D146: =IF(A146="","",+VLOOKUP(+EOMONTH(+F146,-3)+15,Cenários!$A:$D,2,FALSE)) -> 2024-05-15 | E146: =IF(A146="","",VLOOKUP(D146,Cenários!$B:$D,3,FALSE)) -> 4268.108922 | F146: =IF(A146="","",IF(A146=$C$2,$C$2,+IF(+VLOOKUP(+EOMONTH(+A146,-2)+15,Cenários!$A:$D,2,FALSE)>A146,+VLOOKUP(+EOMONTH(+A146,-2)+15,Cenários!$A:$D,2,FALSE),+VLOOKUP(+EOMONTH(+A146,-1)+15,Cenários!$A:$D,2,FALSE)))) -> 2024-06-17 | G146: =IF(A146="","",VLOOKUP(F146,Cenários!$B:$D,3,FALSE)) -> 4282.791217
A147: =IF(A146="","",IF(WORKDAY(+A146,1,Feriados!$A$2:$A$1071)<=$C$2,WORKDAY(+A146,1,Feriados!$A$2:$A$1071),"")) -> 2024-06-04 | B147: =IF(A147="","",+IF(+A147=D147,+E147,((+G147/E147)^+((NETWORKDAYS(+D147,A147,Feriados!$A$2:$A$1058)-1)/(NETWORKDAYS(+D147,F147,Feriados!$A$2:$A$1058)-1))*E147))) -> 4276.778729 | C147: =IF(A147="","",+IF(+A147=D147,+VLOOKUP(D147,Cenários!$B$7:$C$1000,2,FALSE),VLOOKUP(F147,Cenários!$B$7:$C$1000,2,FALSE))) -> 0.344 | D147: =IF(A147="","",+VLOOKUP(+EOMONTH(+F147,-3)+15,Cenários!$A:$D,2,FALSE)) -> 2024-05-15 | E147: =IF(A147="","",VLOOKUP(D147,Cenários!$B:$D,3,FALSE)) -> 4268.108922 | F147: =IF(A147="","",IF(A147=$C$2,$C$2,+IF(+VLOOKUP(+EOMONTH(+A147,-2)+15,Cenários!$A:$D,2,FALSE)>A147,+VLOOKUP(+EOMONTH(+A147,-2)+15,Cenários!$A:$D,2,FALSE),+VLOOKUP(+EOMONTH(+A147,-1)+15,Cenários!$A:$D,2,FALSE)))) -> 2024-06-17 | G147: =IF(A147="","",VLOOKUP(F147,Cenários!$B:$D,3,FALSE)) -> 4282.791217
A148: =IF(A147="","",IF(WORKDAY(+A147,1,Feriados!$A$2:$A$1071)<=$C$2,WORKDAY(+A147,1,Feriados!$A$2:$A$1071),"")) -> 2024-06-05 | B148: =IF(A148="","",+IF(+A148=D148,+E148,((+G148/E148)^+((NETWORKDAYS(+D148,A148,Feriados!$A$2:$A$1058)-1)/(NETWORKDAYS(+D148,F148,Feriados!$A$2:$A$1058)-1))*E148))) -> 4277.446366 | C148: =IF(A148="","",+IF(+A148=D148,+VLOOKUP(D148,Cenários!$B$7:$C$1000,2,FALSE),VLOOKUP(F148,Cenários!$B$7:$C$1000,2,FALSE))) -> 0.344 | D148: =IF(A148="","",+VLOOKUP(+EOMONTH(+F148,-3)+15,Cenários!$A:$D,2,FALSE)) -> 2024-05-15 | E148: =IF(A148="","",VLOOKUP(D148,Cenários!$B:$D,3,FALSE)) -> 4268.108922 | F148: =IF(A148="","",IF(A148=$C$2,$C$2,+IF(+VLOOKUP(+EOMONTH(+A148,-2)+15,Cenários!$A:$D,2,FALSE)>A148,+VLOOKUP(+EOMONTH(+A148,-2)+15,Cenários!$A:$D,2,FALSE),+VLOOKUP(+EOMONTH(+A148,-1)+15,Cenários!$A:$D,2,FALSE)))) -> 2024-06-17 | G148: =IF(A148="","",VLOOKUP(F148,Cenários!$B:$D,3,FALSE)) -> 4282.791217
A149: =IF(A148="","",IF(WORKDAY(+A148,1,Feriados!$A$2:$A$1071)<=$C$2,WORKDAY(+A148,1,Feriados!$A$2:$A$1071),"")) -> 2024-06-06 | B149: =IF(A149="","",+IF(+A149=D149,+E149,((+G149/E149)^+((NETWORKDAYS(+D149,A149,Feriados!$A$2:$A$1058)-1)/(NETWORKDAYS(+D149,F149,Feriados!$A$2:$A$1058)-1))*E149))) -> 4278.114107 | C149: =IF(A149="","",+IF(+A149=D149,+VLOOKUP(D149,Cenários!$B$7:$C$1000,2,FALSE),VLOOKUP(F149,Cenários!$B$7:$C$1000,2,FALSE))) -> 0.344 | D149: =IF(A149="","",+VLOOKUP(+EOMONTH(+F149,-3)+15,Cenários!$A:$D,2,FALSE)) -> 2024-05-15 | E149: =IF(A149="","",VLOOKUP(D149,Cenários!$B:$D,3,FALSE)) -> 4268.108922 | F149: =IF(A149="","",IF(A149=$C$2,$C$2,+IF(+VLOOKUP(+EOMONTH(+A149,-2)+15,Cenários!$A:$D,2,FALSE)>A149,+VLOOKUP(+EOMONTH(+A149,-2)+15,Cenários!$A:$D,2,FALSE),+VLOOKUP(+EOMONTH(+A149,-1)+15,Cenários!$A:$D,2,FALSE)))) -> 2024-06-17 | G149: =IF(A149="","",VLOOKUP(F149,Cenários!$B:$D,3,FALSE)) -> 4282.791217
A150: =IF(A149="","",IF(WORKDAY(+A149,1,Feriados!$A$2:$A$1071)<=$C$2,WORKDAY(+A149,1,Feriados!$A$2:$A$1071),"")) -> 2024-06-07 | B150: =IF(A150="","",+IF(+A150=D150,+E150,((+G150/E150)^+((NETWORKDAYS(+D150,A150,Feriados!$A$2:$A$1058)-1)/(NETWORKDAYS(+D150,F150,Feriados!$A$2:$A$1058)-1))*E150))) -> 4278.781953 | C150: =IF(A150="","",+IF(+A150=D150,+VLOOKUP(D150,Cenários!$B$7:$C$1000,2,FALSE),VLOOKUP(F150,Cenários!$B$7:$C$1000,2,FALSE))) -> 0.344 | D150: =IF(A150="","",+VLOOKUP(+EOMONTH(+F150,-3)+15,Cenários!$A:$D,2,FALSE)) -> 2024-05-15 | E150: =IF(A150="","",VLOOKUP(D150,Cenários!$B:$D,3,FALSE)) -> 4268.108922 | F150: =IF(A150="","",IF(A150=$C$2,$C$2,+IF(+VLOOKUP(+EOMONTH(+A150,-2)+15,Cenários!$A:$D,2,FALSE)>A150,+VLOOKUP(+EOMONTH(+A150,-2)+15,Cenários!$A:$D,2,FALSE),+VLOOKUP(+EOMONTH(+A150,-1)+15,Cenários!$A:$D,2,FALSE)))) -> 2024-06-17 | G150: =IF(A150="","",VLOOKUP(F150,Cenários!$B:$D,3,FALSE)) -> 4282.791217
A151: =IF(A150="","",IF(WORKDAY(+A150,1,Feriados!$A$2:$A$1071)<=$C$2,WORKDAY(+A150,1,Feriados!$A$2:$A$1071),"")) -> 2024-06-10 | B151: =IF(A151="","",+IF(+A151=D151,+E151,((+G151/E151)^+((NETWORKDAYS(+D151,A151,Feriados!$A$2:$A$1058)-1)/(NETWORKDAYS(+D151,F151,Feriados!$A$2:$A$1058)-1))*E151))) -> 4279.449903 | C151: =IF(A151="","",+IF(+A151=D151,+VLOOKUP(D151,Cenários!$B$7:$C$1000,2,FALSE),VLOOKUP(F151,Cenários!$B$7:$C$1000,2,FALSE))) -> 0.344 | D151: =IF(A151="","",+VLOOKUP(+EOMONTH(+F151,-3)+15,Cenários!$A:$D,2,FALSE)) -> 2024-05-15 | E151: =IF(A151="","",VLOOKUP(D151,Cenários!$B:$D,3,FALSE)) -> 4268.108922 | F151: =IF(A151="","",IF(A151=$C$2,$C$2,+IF(+VLOOKUP(+EOMONTH(+A151,-2)+15,Cenários!$A:$D,2,FALSE)>A151,+VLOOKUP(+EOMONTH(+A151,-2)+15,Cenários!$A:$D,2,FALSE),+VLOOKUP(+EOMONTH(+A151,-1)+15,Cenários!$A:$D,2,FALSE)))) -> 2024-06-17 | G151: =IF(A151="","",VLOOKUP(F151,Cenários!$B:$D,3,FALSE)) -> 4282.791217
A152: =IF(A151="","",IF(WORKDAY(+A151,1,Feriados!$A$2:$A$1071)<=$C$2,WORKDAY(+A151,1,Feriados!$A$2:$A$1071),"")) -> 2024-06-11 | B152: =IF(A152="","",+IF(+A152=D152,+E152,((+G152/E152)^+((NETWORKDAYS(+D152,A152,Feriados!$A$2:$A$1058)-1)/(NETWORKDAYS(+D152,F152,Feriados!$A$2:$A$1058)-1))*E152))) -> 4280.117957 | C152: =IF(A152="","",+IF(+A152=D152,+VLOOKUP(D152,Cenários!$B$7:$C$1000,2,FALSE),VLOOKUP(F152,Cenários!$B$7:$C$1000,2,FALSE))) -> 0.344 | D152: =IF(A152="","",+VLOOKUP(+EOMONTH(+F152,-3)+15,Cenários!$A:$D,2,FALSE)) -> 2024-05-15 | E152: =IF(A152="","",VLOOKUP(D152,Cenários!$B:$D,3,FALSE)) -> 4268.108922 | F152: =IF(A152="","",IF(A152=$C$2,$C$2,+IF(+VLOOKUP(+EOMONTH(+A152,-2)+15,Cenários!$A:$D,2,FALSE)>A152,+VLOOKUP(+EOMONTH(+A152,-2)+15,Cenários!$A:$D,2,FALSE),+VLOOKUP(+EOMONTH(+A152,-1)+15,Cenários!$A:$D,2,FALSE)))) -> 2024-06-17 | G152: =IF(A152="","",VLOOKUP(F152,Cenários!$B:$D,3,FALSE)) -> 4282.791217
A153: =IF(A152="","",IF(WORKDAY(+A152,1,Feriados!$A$2:$A$1071)<=$C$2,WORKDAY(+A152,1,Feriados!$A$2:$A$1071),"")) -> 2024-06-12 | B153: =IF(A153="","",+IF(+A153=D153,+E153,((+G153/E153)^+((NETWORKDAYS(+D153,A153,Feriados!$A$2:$A$1058)-1)/(NETWORKDAYS(+D153,F153,Feriados!$A$2:$A$1058)-1))*E153))) -> 4280.786116 | C153: =IF(A153="","",+IF(+A153=D153,+VLOOKUP(D153,Cenários!$B$7:$C$1000,2,FALSE),VLOOKUP(F153,Cenários!$B$7:$C$1000,2,FALSE))) -> 0.344 | D153: =IF(A153="","",+VLOOKUP(+EOMONTH(+F153,-3)+15,Cenários!$A:$D,2,FALSE)) -> 2024-05-15 | E153: =IF(A153="","",VLOOKUP(D153,Cenários!$B:$D,3,FALSE)) -> 4268.108922 | F153: =IF(A153="","",IF(A153=$C$2,$C$2,+IF(+VLOOKUP(+EOMONTH(+A153,-2)+15,Cenários!$A:$D,2,FALSE)>A153,+VLOOKUP(+EOMONTH(+A153,-2)+15,Cenários!$A:$D,2,FALSE),+VLOOKUP(+EOMONTH(+A153,-1)+15,Cenários!$A:$D,2,FALSE)))) -> 2024-06-17 | G153: =IF(A153="","",VLOOKUP(F153,Cenários!$B:$D,3,FALSE)) -> 4282.791217
A154: =IF(A153="","",IF(WORKDAY(+A153,1,Feriados!$A$2:$A$1071)<=$C$2,WORKDAY(+A153,1,Feriados!$A$2:$A$1071),"")) -> 2024-06-13 | B154: =IF(A154="","",+IF(+A154=D154,+E154,((+G154/E154)^+((NETWORKDAYS(+D154,A154,Feriados!$A$2:$A$1058)-1)/(NETWORKDAYS(+D154,F154,Feriados!$A$2:$A$1058)-1))*E154))) -> 4281.454378 | C154: =IF(A154="","",+IF(+A154=D154,+VLOOKUP(D154,Cenários!$B$7:$C$1000,2,FALSE),VLOOKUP(F154,Cenários!$B$7:$C$1000,2,FALSE))) -> 0.344 | D154: =IF(A154="","",+VLOOKUP(+EOMONTH(+F154,-3)+15,Cenários!$A:$D,2,FALSE)) -> 2024-05-15 | E154: =IF(A154="","",VLOOKUP(D154,Cenários!$B:$D,3,FALSE)) -> 4268.108922 | F154: =IF(A154="","",IF(A154=$C$2,$C$2,+IF(+VLOOKUP(+EOMONTH(+A154,-2)+15,Cenários!$A:$D,2,FALSE)>A154,+VLOOKUP(+EOMONTH(+A154,-2)+15,Cenários!$A:$D,2,FALSE),+VLOOKUP(+EOMONTH(+A154,-1)+15,Cenários!$A:$D,2,FALSE)))) -> 2024-06-17 | G154: =IF(A154="","",VLOOKUP(F154,Cenários!$B:$D,3,FALSE)) -> 4282.791217
A155: =IF(A154="","",IF(WORKDAY(+A154,1,Feriados!$A$2:$A$1071)<=$C$2,WORKDAY(+A154,1,Feriados!$A$2:$A$1071),"")) -> 2024-06-14 | B155: =IF(A155="","",+IF(+A155=D155,+E155,((+G155/E155)^+((NETWORKDAYS(+D155,A155,Feriados!$A$2:$A$1058)-1)/(NETWORKDAYS(+D155,F155,Feriados!$A$2:$A$1058)-1))*E155))) -> 4282.122746 | C155: =IF(A155="","",+IF(+A155=D155,+VLOOKUP(D155,Cenários!$B$7:$C$1000,2,FALSE),VLOOKUP(F155,Cenários!$B$7:$C$1000,2,FALSE))) -> 0.344 | D155: =IF(A155="","",+VLOOKUP(+EOMONTH(+F155,-3)+15,Cenários!$A:$D,2,FALSE)) -> 2024-05-15 | E155: =IF(A155="","",VLOOKUP(D155,Cenários!$B:$D,3,FALSE)) -> 4268.108922 | F155: =IF(A155="","",IF(A155=$C$2,$C$2,+IF(+VLOOKUP(+EOMONTH(+A155,-2)+15,Cenários!$A:$D,2,FALSE)>A155,+VLOOKUP(+EOMONTH(+A155,-2)+15,Cenários!$A:$D,2,FALSE),+VLOOKUP(+EOMONTH(+A155,-1)+15,Cenários!$A:$D,2,FALSE)))) -> 2024-06-17 | G155: =IF(A155="","",VLOOKUP(F155,Cenários!$B:$D,3,FALSE)) -> 4282.791217
A156: =IF(A155="","",IF(WORKDAY(+A155,1,Feriados!$A$2:$A$1071)<=$C$2,WORKDAY(+A155,1,Feriados!$A$2:$A$1071),"")) -> 2024-06-17 | B156: =IF(A156="","",+IF(+A156=D156,+E156,((+G156/E156)^+((NETWORKDAYS(+D156,A156,Feriados!$A$2:$A$1058)-1)/(NETWORKDAYS(+D156,F156,Feriados!$A$2:$A$1058)-1))*E156))) -> 4282.791217 | C156: =IF(A156="","",+IF(+A156=D156,+VLOOKUP(D156,Cenários!$B$7:$C$1000,2,FALSE),VLOOKUP(F156,Cenários!$B$7:$C$1000,2,FALSE))) -> 0.344 | D156: =IF(A156="","",+VLOOKUP(+EOMONTH(+F156,-3)+15,Cenários!$A:$D,2,FALSE)) -> 2024-06-17 | E156: =IF(A156="","",VLOOKUP(D156,Cenários!$B:$D,3,FALSE)) -> 4282.791217 | F156: =IF(A156="","",IF(A156=$C$2,$C$2,+IF(+VLOOKUP(+EOMONTH(+A156,-2)+15,Cenários!$A:$D,2,FALSE)>A156,+VLOOKUP(+EOMONTH(+A156,-2)+15,Cenários!$A:$D,2,FALSE),+VLOOKUP(+EOMONTH(+A156,-1)+15,Cenários!$A:$D,2,FALSE)))) -> 2024-07-15 | G156: =IF(A156="","",VLOOKUP(F156,Cenários!$B:$D,3,FALSE)) -> 4297.780986
A157: =IF(A156="","",IF(WORKDAY(+A156,1,Feriados!$A$2:$A$1071)<=$C$2,WORKDAY(+A156,1,Feriados!$A$2:$A$1071),"")) -> 2024-06-18 | B157: =IF(A157="","",+IF(+A157=D157,+E157,((+G157/E157)^+((NETWORKDAYS(+D157,A157,Feriados!$A$2:$A$1058)-1)/(NETWORKDAYS(+D157,F157,Feriados!$A$2:$A$1058)-1))*E157))) -> 4283.539462 | C157: =IF(A157="","",+IF(+A157=D157,+VLOOKUP(D157,Cenários!$B$7:$C$1000,2,FALSE),VLOOKUP(F157,Cenários!$B$7:$C$1000,2,FALSE))) -> 0.35 | D157: =IF(A157="","",+VLOOKUP(+EOMONTH(+F157,-3)+15,Cenários!$A:$D,2,FALSE)) -> 2024-06-17 | E157: =IF(A157="","",VLOOKUP(D157,Cenários!$B:$D,3,FALSE)) -> 4282.791217 | F157: =IF(A157="","",IF(A157=$C$2,$C$2,+IF(+VLOOKUP(+EOMONTH(+A157,-2)+15,Cenários!$A:$D,2,FALSE)>A157,+VLOOKUP(+EOMONTH(+A157,-2)+15,Cenários!$A:$D,2,FALSE),+VLOOKUP(+EOMONTH(+A157,-1)+15,Cenários!$A:$D,2,FALSE)))) -> 2024-07-15 | G157: =IF(A157="","",VLOOKUP(F157,Cenários!$B:$D,3,FALSE)) -> 4297.780986
A158: =IF(A157="","",IF(WORKDAY(+A157,1,Feriados!$A$2:$A$1071)<=$C$2,WORKDAY(+A157,1,Feriados!$A$2:$A$1071),"")) -> 2024-06-19 | B158: =IF(A158="","",+IF(+A158=D158,+E158,((+G158/E158)^+((NETWORKDAYS(+D158,A158,Feriados!$A$2:$A$1058)-1)/(NETWORKDAYS(+D158,F158,Feriados!$A$2:$A$1058)-1))*E158))) -> 4284.287838 | C158: =IF(A158="","",+IF(+A158=D158,+VLOOKUP(D158,Cenários!$B$7:$C$1000,2,FALSE),VLOOKUP(F158,Cenários!$B$7:$C$1000,2,FALSE))) -> 0.35 | D158: =IF(A158="","",+VLOOKUP(+EOMONTH(+F158,-3)+15,Cenários!$A:$D,2,FALSE)) -> 2024-06-17 | E158: =IF(A158="","",VLOOKUP(D158,Cenários!$B:$D,3,FALSE)) -> 4282.791217 | F158: =IF(A158="","",IF(A158=$C$2,$C$2,+IF(+VLOOKUP(+EOMONTH(+A158,-2)+15,Cenários!$A:$D,2,FALSE)>A158,+VLOOKUP(+EOMONTH(+A158,-2)+15,Cenários!$A:$D,2,FALSE),+VLOOKUP(+EOMONTH(+A158,-1)+15,Cenários!$A:$D,2,FALSE)))) -> 2024-07-15 | G158: =IF(A158="","",VLOOKUP(F158,Cenários!$B:$D,3,FALSE)) -> 4297.780986
A159: =IF(A158="","",IF(WORKDAY(+A158,1,Feriados!$A$2:$A$1071)<=$C$2,WORKDAY(+A158,1,Feriados!$A$2:$A$1071),"")) -> 2024-06-20 | B159: =IF(A159="","",+IF(+A159=D159,+E159,((+G159/E159)^+((NETWORKDAYS(+D159,A159,Feriados!$A$2:$A$1058)-1)/(NETWORKDAYS(+D159,F159,Feriados!$A$2:$A$1058)-1))*E159))) -> 4285.036345 | C159: =IF(A159="","",+IF(+A159=D159,+VLOOKUP(D159,Cenários!$B$7:$C$1000,2,FALSE),VLOOKUP(F159,Cenários!$B$7:$C$1000,2,FALSE))) -> 0.35 | D159: =IF(A159="","",+VLOOKUP(+EOMONTH(+F159,-3)+15,Cenários!$A:$D,2,FALSE)) -> 2024-06-17 | E159: =IF(A159="","",VLOOKUP(D159,Cenários!$B:$D,3,FALSE)) -> 4282.791217 | F159: =IF(A159="","",IF(A159=$C$2,$C$2,+IF(+VLOOKUP(+EOMONTH(+A159,-2)+15,Cenários!$A:$D,2,FALSE)>A159,+VLOOKUP(+EOMONTH(+A159,-2)+15,Cenários!$A:$D,2,FALSE),+VLOOKUP(+EOMONTH(+A159,-1)+15,Cenários!$A:$D,2,FALSE)))) -> 2024-07-15 | G159: =IF(A159="","",VLOOKUP(F159,Cenários!$B:$D,3,FALSE)) -> 4297.780986
A160: =IF(A159="","",IF(WORKDAY(+A159,1,Feriados!$A$2:$A$1071)<=$C$2,WORKDAY(+A159,1,Feriados!$A$2:$A$1071),"")) -> 2024-06-21 | B160: =IF(A160="","",+IF(+A160=D160,+E160,((+G160/E160)^+((NETWORKDAYS(+D160,A160,Feriados!$A$2:$A$1058)-1)/(NETWORKDAYS(+D160,F160,Feriados!$A$2:$A$1058)-1))*E160))) -> 4285.784982 | C160: =IF(A160="","",+IF(+A160=D160,+VLOOKUP(D160,Cenários!$B$7:$C$1000,2,FALSE),VLOOKUP(F160,Cenários!$B$7:$C$1000,2,FALSE))) -> 0.35 | D160: =IF(A160="","",+VLOOKUP(+EOMONTH(+F160,-3)+15,Cenários!$A:$D,2,FALSE)) -> 2024-06-17 | E160: =IF(A160="","",VLOOKUP(D160,Cenários!$B:$D,3,FALSE)) -> 4282.791217 | F160: =IF(A160="","",IF(A160=$C$2,$C$2,+IF(+VLOOKUP(+EOMONTH(+A160,-2)+15,Cenários!$A:$D,2,FALSE)>A160,+VLOOKUP(+EOMONTH(+A160,-2)+15,Cenários!$A:$D,2,FALSE),+VLOOKUP(+EOMONTH(+A160,-1)+15,Cenários!$A:$D,2,FALSE)))) -> 2024-07-15 | G160: =IF(A160="","",VLOOKUP(F160,Cenários!$B:$D,3,FALSE)) -> 4297.780986
A161: =IF(A160="","",IF(WORKDAY(+A160,1,Feriados!$A$2:$A$1071)<=$C$2,WORKDAY(+A160,1,Feriados!$A$2:$A$1071),"")) -> 2024-06-24 | B161: =IF(A161="","",+IF(+A161=D161,+E161,((+G161/E161)^+((NETWORKDAYS(+D161,A161,Feriados!$A$2:$A$1058)-1)/(NETWORKDAYS(+D161,F161,Feriados!$A$2:$A$1058)-1))*E161))) -> 4286.533751 | C161: =IF(A161="","",+IF(+A161=D161,+VLOOKUP(D161,Cenários!$B$7:$C$1000,2,FALSE),VLOOKUP(F161,Cenários!$B$7:$C$1000,2,FALSE))) -> 0.35 | D161: =IF(A161="","",+VLOOKUP(+EOMONTH(+F161,-3)+15,Cenários!$A:$D,2,FALSE)) -> 2024-06-17 | E161: =IF(A161="","",VLOOKUP(D161,Cenários!$B:$D,3,FALSE)) -> 4282.791217 | F161: =IF(A161="","",IF(A161=$C$2,$C$2,+IF(+VLOOKUP(+EOMONTH(+A161,-2)+15,Cenários!$A:$D,2,FALSE)>A161,+VLOOKUP(+EOMONTH(+A161,-2)+15,Cenários!$A:$D,2,FALSE),+VLOOKUP(+EOMONTH(+A161,-1)+15,Cenários!$A:$D,2,FALSE)))) -> 2024-07-15 | G161: =IF(A161="","",VLOOKUP(F161,Cenários!$B:$D,3,FALSE)) -> 4297.780986
A162: =IF(A161="","",IF(WORKDAY(+A161,1,Feriados!$A$2:$A$1071)<=$C$2,WORKDAY(+A161,1,Feriados!$A$2:$A$1071),"")) -> 2024-06-25 | B162: =IF(A162="","",+IF(+A162=D162,+E162,((+G162/E162)^+((NETWORKDAYS(+D162,A162,Feriados!$A$2:$A$1058)-1)/(NETWORKDAYS(+D162,F162,Feriados!$A$2:$A$1058)-1))*E162))) -> 4287.28265 | C162: =IF(A162="","",+IF(+A162=D162,+VLOOKUP(D162,Cenários!$B$7:$C$1000,2,FALSE),VLOOKUP(F162,Cenários!$B$7:$C$1000,2,FALSE))) -> 0.35 | D162: =IF(A162="","",+VLOOKUP(+EOMONTH(+F162,-3)+15,Cenários!$A:$D,2,FALSE)) -> 2024-06-17 | E162: =IF(A162="","",VLOOKUP(D162,Cenários!$B:$D,3,FALSE)) -> 4282.791217 | F162: =IF(A162="","",IF(A162=$C$2,$C$2,+IF(+VLOOKUP(+EOMONTH(+A162,-2)+15,Cenários!$A:$D,2,FALSE)>A162,+VLOOKUP(+EOMONTH(+A162,-2)+15,Cenários!$A:$D,2,FALSE),+VLOOKUP(+EOMONTH(+A162,-1)+15,Cenários!$A:$D,2,FALSE)))) -> 2024-07-15 | G162: =IF(A162="","",VLOOKUP(F162,Cenários!$B:$D,3,FALSE)) -> 4297.780986
A163: =IF(A162="","",IF(WORKDAY(+A162,1,Feriados!$A$2:$A$1071)<=$C$2,WORKDAY(+A162,1,Feriados!$A$2:$A$1071),"")) -> 2024-06-26 | B163: =IF(A163="","",+IF(+A163=D163,+E163,((+G163/E163)^+((NETWORKDAYS(+D163,A163,Feriados!$A$2:$A$1058)-1)/(NETWORKDAYS(+D163,F163,Feriados!$A$2:$A$1058)-1))*E163))) -> 4288.03168 | C163: =IF(A163="","",+IF(+A163=D163,+VLOOKUP(D163,Cenários!$B$7:$C$1000,2,FALSE),VLOOKUP(F163,Cenários!$B$7:$C$1000,2,FALSE))) -> 0.35 | D163: =IF(A163="","",+VLOOKUP(+EOMONTH(+F163,-3)+15,Cenários!$A:$D,2,FALSE)) -> 2024-06-17 | E163: =IF(A163="","",VLOOKUP(D163,Cenários!$B:$D,3,FALSE)) -> 4282.791217 | F163: =IF(A163="","",IF(A163=$C$2,$C$2,+IF(+VLOOKUP(+EOMONTH(+A163,-2)+15,Cenários!$A:$D,2,FALSE)>A163,+VLOOKUP(+EOMONTH(+A163,-2)+15,Cenários!$A:$D,2,FALSE),+VLOOKUP(+EOMONTH(+A163,-1)+15,Cenários!$A:$D,2,FALSE)))) -> 2024-07-15 | G163: =IF(A163="","",VLOOKUP(F163,Cenários!$B:$D,3,FALSE)) -> 4297.780986
A164: =IF(A163="","",IF(WORKDAY(+A163,1,Feriados!$A$2:$A$1071)<=$C$2,WORKDAY(+A163,1,Feriados!$A$2:$A$1071),"")) -> 2024-06-27 | B164: =IF(A164="","",+IF(+A164=D164,+E164,((+G164/E164)^+((NETWORKDAYS(+D164,A164,Feriados!$A$2:$A$1058)-1)/(NETWORKDAYS(+D164,F164,Feriados!$A$2:$A$1058)-1))*E164))) -> 4288.780841 | C164: =IF(A164="","",+IF(+A164=D164,+VLOOKUP(D164,Cenários!$B$7:$C$1000,2,FALSE),VLOOKUP(F164,Cenários!$B$7:$C$1000,2,FALSE))) -> 0.35 | D164: =IF(A164="","",+VLOOKUP(+EOMONTH(+F164,-3)+15,Cenários!$A:$D,2,FALSE)) -> 2024-06-17 | E164: =IF(A164="","",VLOOKUP(D164,Cenários!$B:$D,3,FALSE)) -> 4282.791217 | F164: =IF(A164="","",IF(A164=$C$2,$C$2,+IF(+VLOOKUP(+EOMONTH(+A164,-2)+15,Cenários!$A:$D,2,FALSE)>A164,+VLOOKUP(+EOMONTH(+A164,-2)+15,Cenários!$A:$D,2,FALSE),+VLOOKUP(+EOMONTH(+A164,-1)+15,Cenários!$A:$D,2,FALSE)))) -> 2024-07-15 | G164: =IF(A164="","",VLOOKUP(F164,Cenários!$B:$D,3,FALSE)) -> 4297.780986
A165: =IF(A164="","",IF(WORKDAY(+A164,1,Feriados!$A$2:$A$1071)<=$C$2,WORKDAY(+A164,1,Feriados!$A$2:$A$1071),"")) -> 2024-06-28 | B165: =IF(A165="","",+IF(+A165=D165,+E165,((+G165/E165)^+((NETWORKDAYS(+D165,A165,Feriados!$A$2:$A$1058)-1)/(NETWORKDAYS(+D165,F165,Feriados!$A$2:$A$1058)-1))*E165))) -> 4289.530132 | C165: =IF(A165="","",+IF(+A165=D165,+VLOOKUP(D165,Cenários!$B$7:$C$1000,2,FALSE),VLOOKUP(F165,Cenários!$B$7:$C$1000,2,FALSE))) -> 0.35 | D165: =IF(A165="","",+VLOOKUP(+EOMONTH(+F165,-3)+15,Cenários!$A:$D,2,FALSE)) -> 2024-06-17 | E165: =IF(A165="","",VLOOKUP(D165,Cenários!$B:$D,3,FALSE)) -> 4282.791217 | F165: =IF(A165="","",IF(A165=$C$2,$C$2,+IF(+VLOOKUP(+EOMONTH(+A165,-2)+15,Cenários!$A:$D,2,FALSE)>A165,+VLOOKUP(+EOMONTH(+A165,-2)+15,Cenários!$A:$D,2,FALSE),+VLOOKUP(+EOMONTH(+A165,-1)+15,Cenários!$A:$D,2,FALSE)))) -> 2024-07-15 | G165: =IF(A165="","",VLOOKUP(F165,Cenários!$B:$D,3,FALSE)) -> 4297.780986
A166: =IF(A165="","",IF(WORKDAY(+A165,1,Feriados!$A$2:$A$1071)<=$C$2,WORKDAY(+A165,1,Feriados!$A$2:$A$1071),"")) -> 2024-07-01 | B166: =IF(A166="","",+IF(+A166=D166,+E166,((+G166/E166)^+((NETWORKDAYS(+D166,A166,Feriados!$A$2:$A$1058)-1)/(NETWORKDAYS(+D166,F166,Feriados!$A$2:$A$1058)-1))*E166))) -> 4290.279555 | C166: =IF(A166="","",+IF(+A166=D166,+VLOOKUP(D166,Cenários!$B$7:$C$1000,2,FALSE),VLOOKUP(F166,Cenários!$B$7:$C$1000,2,FALSE))) -> 0.35 | D166: =IF(A166="","",+VLOOKUP(+EOMONTH(+F166,-3)+15,Cenários!$A:$D,2,FALSE)) -> 2024-06-17 | E166: =IF(A166="","",VLOOKUP(D166,Cenários!$B:$D,3,FALSE)) -> 4282.791217 | F166: =IF(A166="","",IF(A166=$C$2,$C$2,+IF(+VLOOKUP(+EOMONTH(+A166,-2)+15,Cenários!$A:$D,2,FALSE)>A166,+VLOOKUP(+EOMONTH(+A166,-2)+15,Cenários!$A:$D,2,FALSE),+VLOOKUP(+EOMONTH(+A166,-1)+15,Cenários!$A:$D,2,FALSE)))) -> 2024-07-15 | G166: =IF(A166="","",VLOOKUP(F166,Cenários!$B:$D,3,FALSE)) -> 4297.780986
A167: =IF(A166="","",IF(WORKDAY(+A166,1,Feriados!$A$2:$A$1071)<=$C$2,WORKDAY(+A166,1,Feriados!$A$2:$A$1071),"")) -> 2024-07-02 | B167: =IF(A167="","",+IF(+A167=D167,+E167,((+G167/E167)^+((NETWORKDAYS(+D167,A167,Feriados!$A$2:$A$1058)-1)/(NETWORKDAYS(+D167,F167,Feriados!$A$2:$A$1058)-1))*E167))) -> 4291.029108 | C167: =IF(A167="","",+IF(+A167=D167,+VLOOKUP(D167,Cenários!$B$7:$C$1000,2,FALSE),VLOOKUP(F167,Cenários!$B$7:$C$1000,2,FALSE))) -> 0.35 | D167: =IF(A167="","",+VLOOKUP(+EOMONTH(+F167,-3)+15,Cenários!$A:$D,2,FALSE)) -> 2024-06-17 | E167: =IF(A167="","",VLOOKUP(D167,Cenários!$B:$D,3,FALSE)) -> 4282.791217 | F167: =IF(A167="","",IF(A167=$C$2,$C$2,+IF(+VLOOKUP(+EOMONTH(+A167,-2)+15,Cenários!$A:$D,2,FALSE)>A167,+VLOOKUP(+EOMONTH(+A167,-2)+15,Cenários!$A:$D,2,FALSE),+VLOOKUP(+EOMONTH(+A167,-1)+15,Cenários!$A:$D,2,FALSE)))) -> 2024-07-15 | G167: =IF(A167="","",VLOOKUP(F167,Cenários!$B:$D,3,FALSE)) -> 4297.780986
A168: =IF(A167="","",IF(WORKDAY(+A167,1,Feriados!$A$2:$A$1071)<=$C$2,WORKDAY(+A167,1,Feriados!$A$2:$A$1071),"")) -> 2024-07-03 | B168: =IF(A168="","",+IF(+A168=D168,+E168,((+G168/E168)^+((NETWORKDAYS(+D168,A168,Feriados!$A$2:$A$1058)-1)/(NETWORKDAYS(+D168,F168,Feriados!$A$2:$A$1058)-1))*E168))) -> 4291.778793 | C168: =IF(A168="","",+IF(+A168=D168,+VLOOKUP(D168,Cenários!$B$7:$C$1000,2,FALSE),VLOOKUP(F168,Cenários!$B$7:$C$1000,2,FALSE))) -> 0.35 | D168: =IF(A168="","",+VLOOKUP(+EOMONTH(+F168,-3)+15,Cenários!$A:$D,2,FALSE)) -> 2024-06-17 | E168: =IF(A168="","",VLOOKUP(D168,Cenários!$B:$D,3,FALSE)) -> 4282.791217 | F168: =IF(A168="","",IF(A168=$C$2,$C$2,+IF(+VLOOKUP(+EOMONTH(+A168,-2)+15,Cenários!$A:$D,2,FALSE)>A168,+VLOOKUP(+EOMONTH(+A168,-2)+15,Cenários!$A:$D,2,FALSE),+VLOOKUP(+EOMONTH(+A168,-1)+15,Cenários!$A:$D,2,FALSE)))) -> 2024-07-15 | G168: =IF(A168="","",VLOOKUP(F168,Cenários!$B:$D,3,FALSE)) -> 4297.780986
A169: =IF(A168="","",IF(WORKDAY(+A168,1,Feriados!$A$2:$A$1071)<=$C$2,WORKDAY(+A168,1,Feriados!$A$2:$A$1071),"")) -> 2024-07-04 | B169: =IF(A169="","",+IF(+A169=D169,+E169,((+G169/E169)^+((NETWORKDAYS(+D169,A169,Feriados!$A$2:$A$1058)-1)/(NETWORKDAYS(+D169,F169,Feriados!$A$2:$A$1058)-1))*E169))) -> 4292.528608 | C169: =IF(A169="","",+IF(+A169=D169,+VLOOKUP(D169,Cenários!$B$7:$C$1000,2,FALSE),VLOOKUP(F169,Cenários!$B$7:$C$1000,2,FALSE))) -> 0.35 | D169: =IF(A169="","",+VLOOKUP(+EOMONTH(+F169,-3)+15,Cenários!$A:$D,2,FALSE)) -> 2024-06-17 | E169: =IF(A169="","",VLOOKUP(D169,Cenários!$B:$D,3,FALSE)) -> 4282.791217 | F169: =IF(A169="","",IF(A169=$C$2,$C$2,+IF(+VLOOKUP(+EOMONTH(+A169,-2)+15,Cenários!$A:$D,2,FALSE)>A169,+VLOOKUP(+EOMONTH(+A169,-2)+15,Cenários!$A:$D,2,FALSE),+VLOOKUP(+EOMONTH(+A169,-1)+15,Cenários!$A:$D,2,FALSE)))) -> 2024-07-15 | G169: =IF(A169="","",VLOOKUP(F169,Cenários!$B:$D,3,FALSE)) -> 4297.780986
A170: =IF(A169="","",IF(WORKDAY(+A169,1,Feriados!$A$2:$A$1071)<=$C$2,WORKDAY(+A169,1,Feriados!$A$2:$A$1071),"")) -> 2024-07-05 | B170: =IF(A170="","",+IF(+A170=D170,+E170,((+G170/E170)^+((NETWORKDAYS(+D170,A170,Feriados!$A$2:$A$1058)-1)/(NETWORKDAYS(+D170,F170,Feriados!$A$2:$A$1058)-1))*E170))) -> 4293.278555 | C170: =IF(A170="","",+IF(+A170=D170,+VLOOKUP(D170,Cenários!$B$7:$C$1000,2,FALSE),VLOOKUP(F170,Cenários!$B$7:$C$1000,2,FALSE))) -> 0.35 | D170: =IF(A170="","",+VLOOKUP(+EOMONTH(+F170,-3)+15,Cenários!$A:$D,2,FALSE)) -> 2024-06-17 | E170: =IF(A170="","",VLOOKUP(D170,Cenários!$B:$D,3,FALSE)) -> 4282.791217 | F170: =IF(A170="","",IF(A170=$C$2,$C$2,+IF(+VLOOKUP(+EOMONTH(+A170,-2)+15,Cenários!$A:$D,2,FALSE)>A170,+VLOOKUP(+EOMONTH(+A170,-2)+15,Cenários!$A:$D,2,FALSE),+VLOOKUP(+EOMONTH(+A170,-1)+15,Cenários!$A:$D,2,FALSE)))) -> 2024-07-15 | G170: =IF(A170="","",VLOOKUP(F170,Cenários!$B:$D,3,FALSE)) -> 4297.780986
A171: =IF(A170="","",IF(WORKDAY(+A170,1,Feriados!$A$2:$A$1071)<=$C$2,WORKDAY(+A170,1,Feriados!$A$2:$A$1071),"")) -> 2024-07-08 | B171: =IF(A171="","",+IF(+A171=D171,+E171,((+G171/E171)^+((NETWORKDAYS(+D171,A171,Feriados!$A$2:$A$1058)-1)/(NETWORKDAYS(+D171,F171,Feriados!$A$2:$A$1058)-1))*E171))) -> 4294.028632 | C171: =IF(A171="","",+IF(+A171=D171,+VLOOKUP(D171,Cenários!$B$7:$C$1000,2,FALSE),VLOOKUP(F171,Cenários!$B$7:$C$1000,2,FALSE))) -> 0.35 | D171: =IF(A171="","",+VLOOKUP(+EOMONTH(+F171,-3)+15,Cenários!$A:$D,2,FALSE)) -> 2024-06-17 | E171: =IF(A171="","",VLOOKUP(D171,Cenários!$B:$D,3,FALSE)) -> 4282.791217 | F171: =IF(A171="","",IF(A171=$C$2,$C$2,+IF(+VLOOKUP(+EOMONTH(+A171,-2)+15,Cenários!$A:$D,2,FALSE)>A171,+VLOOKUP(+EOMONTH(+A171,-2)+15,Cenários!$A:$D,2,FALSE),+VLOOKUP(+EOMONTH(+A171,-1)+15,Cenários!$A:$D,2,FALSE)))) -> 2024-07-15 | G171: =IF(A171="","",VLOOKUP(F171,Cenários!$B:$D,3,FALSE)) -> 4297.780986
A172: =IF(A171="","",IF(WORKDAY(+A171,1,Feriados!$A$2:$A$1071)<=$C$2,WORKDAY(+A171,1,Feriados!$A$2:$A$1071),"")) -> 2024-07-09 | B172: =IF(A172="","",+IF(+A172=D172,+E172,((+G172/E172)^+((NETWORKDAYS(+D172,A172,Feriados!$A$2:$A$1058)-1)/(NETWORKDAYS(+D172,F172,Feriados!$A$2:$A$1058)-1))*E172))) -> 4294.778841 | C172: =IF(A172="","",+IF(+A172=D172,+VLOOKUP(D172,Cenários!$B$7:$C$1000,2,FALSE),VLOOKUP(F172,Cenários!$B$7:$C$1000,2,FALSE))) -> 0.35 | D172: =IF(A172="","",+VLOOKUP(+EOMONTH(+F172,-3)+15,Cenários!$A:$D,2,FALSE)) -> 2024-06-17 | E172: =IF(A172="","",VLOOKUP(D172,Cenários!$B:$D,3,FALSE)) -> 4282.791217 | F172: =IF(A172="","",IF(A172=$C$2,$C$2,+IF(+VLOOKUP(+EOMONTH(+A172,-2)+15,Cenários!$A:$D,2,FALSE)>A172,+VLOOKUP(+EOMONTH(+A172,-2)+15,Cenários!$A:$D,2,FALSE),+VLOOKUP(+EOMONTH(+A172,-1)+15,Cenários!$A:$D,2,FALSE)))) -> 2024-07-15 | G172: =IF(A172="","",VLOOKUP(F172,Cenários!$B:$D,3,FALSE)) -> 4297.780986
A173: =IF(A172="","",IF(WORKDAY(+A172,1,Feriados!$A$2:$A$1071)<=$C$2,WORKDAY(+A172,1,Feriados!$A$2:$A$1071),"")) -> 2024-07-10 | B173: =IF(A173="","",+IF(+A173=D173,+E173,((+G173/E173)^+((NETWORKDAYS(+D173,A173,Feriados!$A$2:$A$1058)-1)/(NETWORKDAYS(+D173,F173,Feriados!$A$2:$A$1058)-1))*E173))) -> 4295.529181 | C173: =IF(A173="","",+IF(+A173=D173,+VLOOKUP(D173,Cenários!$B$7:$C$1000,2,FALSE),VLOOKUP(F173,Cenários!$B$7:$C$1000,2,FALSE))) -> 0.35 | D173: =IF(A173="","",+VLOOKUP(+EOMONTH(+F173,-3)+15,Cenários!$A:$D,2,FALSE)) -> 2024-06-17 | E173: =IF(A173="","",VLOOKUP(D173,Cenários!$B:$D,3,FALSE)) -> 4282.791217 | F173: =IF(A173="","",IF(A173=$C$2,$C$2,+IF(+VLOOKUP(+EOMONTH(+A173,-2)+15,Cenários!$A:$D,2,FALSE)>A173,+VLOOKUP(+EOMONTH(+A173,-2)+15,Cenários!$A:$D,2,FALSE),+VLOOKUP(+EOMONTH(+A173,-1)+15,Cenários!$A:$D,2,FALSE)))) -> 2024-07-15 | G173: =IF(A173="","",VLOOKUP(F173,Cenários!$B:$D,3,FALSE)) -> 4297.780986
A174: =IF(A173="","",IF(WORKDAY(+A173,1,Feriados!$A$2:$A$1071)<=$C$2,WORKDAY(+A173,1,Feriados!$A$2:$A$1071),"")) -> 2024-07-11 | B174: =IF(A174="","",+IF(+A174=D174,+E174,((+G174/E174)^+((NETWORKDAYS(+D174,A174,Feriados!$A$2:$A$1058)-1)/(NETWORKDAYS(+D174,F174,Feriados!$A$2:$A$1058)-1))*E174))) -> 4296.279651 | C174: =IF(A174="","",+IF(+A174=D174,+VLOOKUP(D174,Cenários!$B$7:$C$1000,2,FALSE),VLOOKUP(F174,Cenários!$B$7:$C$1000,2,FALSE))) -> 0.35 | D174: =IF(A174="","",+VLOOKUP(+EOMONTH(+F174,-3)+15,Cenários!$A:$D,2,FALSE)) -> 2024-06-17 | E174: =IF(A174="","",VLOOKUP(D174,Cenários!$B:$D,3,FALSE)) -> 4282.791217 | F174: =IF(A174="","",IF(A174=$C$2,$C$2,+IF(+VLOOKUP(+EOMONTH(+A174,-2)+15,Cenários!$A:$D,2,FALSE)>A174,+VLOOKUP(+EOMONTH(+A174,-2)+15,Cenários!$A:$D,2,FALSE),+VLOOKUP(+EOMONTH(+A174,-1)+15,Cenários!$A:$D,2,FALSE)))) -> 2024-07-15 | G174: =IF(A174="","",VLOOKUP(F174,Cenários!$B:$D,3,FALSE)) -> 4297.780986
A175: =IF(A174="","",IF(WORKDAY(+A174,1,Feriados!$A$2:$A$1071)<=$C$2,WORKDAY(+A174,1,Feriados!$A$2:$A$1071),"")) -> 2024-07-12 | B175: =IF(A175="","",+IF(+A175=D175,+E175,((+G175/E175)^+((NETWORKDAYS(+D175,A175,Feriados!$A$2:$A$1058)-1)/(NETWORKDAYS(+D175,F175,Feriados!$A$2:$A$1058)-1))*E175))) -> 4297.030253 | C175: =IF(A175="","",+IF(+A175=D175,+VLOOKUP(D175,Cenários!$B$7:$C$1000,2,FALSE),VLOOKUP(F175,Cenários!$B$7:$C$1000,2,FALSE))) -> 0.35 | D175: =IF(A175="","",+VLOOKUP(+EOMONTH(+F175,-3)+15,Cenários!$A:$D,2,FALSE)) -> 2024-06-17 | E175: =IF(A175="","",VLOOKUP(D175,Cenários!$B:$D,3,FALSE)) -> 4282.791217 | F175: =IF(A175="","",IF(A175=$C$2,$C$2,+IF(+VLOOKUP(+EOMONTH(+A175,-2)+15,Cenários!$A:$D,2,FALSE)>A175,+VLOOKUP(+EOMONTH(+A175,-2)+15,Cenários!$A:$D,2,FALSE),+VLOOKUP(+EOMONTH(+A175,-1)+15,Cenários!$A:$D,2,FALSE)))) -> 2024-07-15 | G175: =IF(A175="","",VLOOKUP(F175,Cenários!$B:$D,3,FALSE)) -> 4297.780986
A176: =IF(A175="","",IF(WORKDAY(+A175,1,Feriados!$A$2:$A$1071)<=$C$2,WORKDAY(+A175,1,Feriados!$A$2:$A$1071),"")) -> 2024-07-15 | B176: =IF(A176="","",+IF(+A176=D176,+E176,((+G176/E176)^+((NETWORKDAYS(+D176,A176,Feriados!$A$2:$A$1058)-1)/(NETWORKDAYS(+D176,F176,Feriados!$A$2:$A$1058)-1))*E176))) -> 4297.780986 | C176: =IF(A176="","",+IF(+A176=D176,+VLOOKUP(D176,Cenários!$B$7:$C$1000,2,FALSE),VLOOKUP(F176,Cenários!$B$7:$C$1000,2,FALSE))) -> 0.35 | D176: =IF(A176="","",+VLOOKUP(+EOMONTH(+F176,-3)+15,Cenários!$A:$D,2,FALSE)) -> 2024-07-15 | E176: =IF(A176="","",VLOOKUP(D176,Cenários!$B:$D,3,FALSE)) -> 4297.780986 | F176: =IF(A176="","",IF(A176=$C$2,$C$2,+IF(+VLOOKUP(+EOMONTH(+A176,-2)+15,Cenários!$A:$D,2,FALSE)>A176,+VLOOKUP(+EOMONTH(+A176,-2)+15,Cenários!$A:$D,2,FALSE),+VLOOKUP(+EOMONTH(+A176,-1)+15,Cenários!$A:$D,2,FALSE)))) -> 2024-08-15 | G176: =IF(A176="","",VLOOKUP(F176,Cenários!$B:$D,3,FALSE)) -> 4308.869261
A177: =IF(A176="","",IF(WORKDAY(+A176,1,Feriados!$A$2:$A$1071)<=$C$2,WORKDAY(+A176,1,Feriados!$A$2:$A$1071),"")) -> 2024-07-16 | B177: =IF(A177="","",+IF(+A177=D177,+E177,((+G177/E177)^+((NETWORKDAYS(+D177,A177,Feriados!$A$2:$A$1058)-1)/(NETWORKDAYS(+D177,F177,Feriados!$A$2:$A$1058)-1))*E177))) -> 4298.262491 | C177: =IF(A177="","",+IF(+A177=D177,+VLOOKUP(D177,Cenários!$B$7:$C$1000,2,FALSE),VLOOKUP(F177,Cenários!$B$7:$C$1000,2,FALSE))) -> 0.258 | D177: =IF(A177="","",+VLOOKUP(+EOMONTH(+F177,-3)+15,Cenários!$A:$D,2,FALSE)) -> 2024-07-15 | E177: =IF(A177="","",VLOOKUP(D177,Cenários!$B:$D,3,FALSE)) -> 4297.780986 | F177: =IF(A177="","",IF(A177=$C$2,$C$2,+IF(+VLOOKUP(+EOMONTH(+A177,-2)+15,Cenários!$A:$D,2,FALSE)>A177,+VLOOKUP(+EOMONTH(+A177,-2)+15,Cenários!$A:$D,2,FALSE),+VLOOKUP(+EOMONTH(+A177,-1)+15,Cenários!$A:$D,2,FALSE)))) -> 2024-08-15 | G177: =IF(A177="","",VLOOKUP(F177,Cenários!$B:$D,3,FALSE)) -> 4308.869261
A178: =IF(A177="","",IF(WORKDAY(+A177,1,Feriados!$A$2:$A$1071)<=$C$2,WORKDAY(+A177,1,Feriados!$A$2:$A$1071),"")) -> 2024-07-17 | B178: =IF(A178="","",+IF(+A178=D178,+E178,((+G178/E178)^+((NETWORKDAYS(+D178,A178,Feriados!$A$2:$A$1058)-1)/(NETWORKDAYS(+D178,F178,Feriados!$A$2:$A$1058)-1))*E178))) -> 4298.74405 | C178: =IF(A178="","",+IF(+A178=D178,+VLOOKUP(D178,Cenários!$B$7:$C$1000,2,FALSE),VLOOKUP(F178,Cenários!$B$7:$C$1000,2,FALSE))) -> 0.258 | D178: =IF(A178="","",+VLOOKUP(+EOMONTH(+F178,-3)+15,Cenários!$A:$D,2,FALSE)) -> 2024-07-15 | E178: =IF(A178="","",VLOOKUP(D178,Cenários!$B:$D,3,FALSE)) -> 4297.780986 | F178: =IF(A178="","",IF(A178=$C$2,$C$2,+IF(+VLOOKUP(+EOMONTH(+A178,-2)+15,Cenários!$A:$D,2,FALSE)>A178,+VLOOKUP(+EOMONTH(+A178,-2)+15,Cenários!$A:$D,2,FALSE),+VLOOKUP(+EOMONTH(+A178,-1)+15,Cenários!$A:$D,2,FALSE)))) -> 2024-08-15 | G178: =IF(A178="","",VLOOKUP(F178,Cenários!$B:$D,3,FALSE)) -> 4308.869261
A179: =IF(A178="","",IF(WORKDAY(+A178,1,Feriados!$A$2:$A$1071)<=$C$2,WORKDAY(+A178,1,Feriados!$A$2:$A$1071),"")) -> 2024-07-18 | B179: =IF(A179="","",+IF(+A179=D179,+E179,((+G179/E179)^+((NETWORKDAYS(+D179,A179,Feriados!$A$2:$A$1058)-1)/(NETWORKDAYS(+D179,F179,Feriados!$A$2:$A$1058)-1))*E179))) -> 4299.225663 | C179: =IF(A179="","",+IF(+A179=D179,+VLOOKUP(D179,Cenários!$B$7:$C$1000,2,FALSE),VLOOKUP(F179,Cenários!$B$7:$C$1000,2,FALSE))) -> 0.258 | D179: =IF(A179="","",+VLOOKUP(+EOMONTH(+F179,-3)+15,Cenários!$A:$D,2,FALSE)) -> 2024-07-15 | E179: =IF(A179="","",VLOOKUP(D179,Cenários!$B:$D,3,FALSE)) -> 4297.780986 | F179: =IF(A179="","",IF(A179=$C$2,$C$2,+IF(+VLOOKUP(+EOMONTH(+A179,-2)+15,Cenários!$A:$D,2,FALSE)>A179,+VLOOKUP(+EOMONTH(+A179,-2)+15,Cenários!$A:$D,2,FALSE),+VLOOKUP(+EOMONTH(+A179,-1)+15,Cenários!$A:$D,2,FALSE)))) -> 2024-08-15 | G179: =IF(A179="","",VLOOKUP(F179,Cenários!$B:$D,3,FALSE)) -> 4308.869261
A180: =IF(A179="","",IF(WORKDAY(+A179,1,Feriados!$A$2:$A$1071)<=$C$2,WORKDAY(+A179,1,Feriados!$A$2:$A$1071),"")) -> 2024-07-19 | B180: =IF(A180="","",+IF(+A180=D180,+E180,((+G180/E180)^+((NETWORKDAYS(+D180,A180,Feriados!$A$2:$A$1058)-1)/(NETWORKDAYS(+D180,F180,Feriados!$A$2:$A$1058)-1))*E180))) -> 4299.70733 | C180: =IF(A180="","",+IF(+A180=D180,+VLOOKUP(D180,Cenários!$B$7:$C$1000,2,FALSE),VLOOKUP(F180,Cenários!$B$7:$C$1000,2,FALSE))) -> 0.258 | D180: =IF(A180="","",+VLOOKUP(+EOMONTH(+F180,-3)+15,Cenários!$A:$D,2,FALSE)) -> 2024-07-15 | E180: =IF(A180="","",VLOOKUP(D180,Cenários!$B:$D,3,FALSE)) -> 4297.780986 | F180: =IF(A180="","",IF(A180=$C$2,$C$2,+IF(+VLOOKUP(+EOMONTH(+A180,-2)+15,Cenários!$A:$D,2,FALSE)>A180,+VLOOKUP(+EOMONTH(+A180,-2)+15,Cenários!$A:$D,2,FALSE),+VLOOKUP(+EOMONTH(+A180,-1)+15,Cenários!$A:$D,2,FALSE)))) -> 2024-08-15 | G180: =IF(A180="","",VLOOKUP(F180,Cenários!$B:$D,3,FALSE)) -> 4308.869261
A181: =IF(A180="","",IF(WORKDAY(+A180,1,Feriados!$A$2:$A$1071)<=$C$2,WORKDAY(+A180,1,Feriados!$A$2:$A$1071),"")) -> 2024-07-22 | B181: =IF(A181="","",+IF(+A181=D181,+E181,((+G181/E181)^+((NETWORKDAYS(+D181,A181,Feriados!$A$2:$A$1058)-1)/(NETWORKDAYS(+D181,F181,Feriados!$A$2:$A$1058)-1))*E181))) -> 4300.189051 | C181: =IF(A181="","",+IF(+A181=D181,+VLOOKUP(D181,Cenários!$B$7:$C$1000,2,FALSE),VLOOKUP(F181,Cenários!$B$7:$C$1000,2,FALSE))) -> 0.258 | D181: =IF(A181="","",+VLOOKUP(+EOMONTH(+F181,-3)+15,Cenários!$A:$D,2,FALSE)) -> 2024-07-15 | E181: =IF(A181="","",VLOOKUP(D181,Cenários!$B:$D,3,FALSE)) -> 4297.780986 | F181: =IF(A181="","",IF(A181=$C$2,$C$2,+IF(+VLOOKUP(+EOMONTH(+A181,-2)+15,Cenários!$A:$D,2,FALSE)>A181,+VLOOKUP(+EOMONTH(+A181,-2)+15,Cenários!$A:$D,2,FALSE),+VLOOKUP(+EOMONTH(+A181,-1)+15,Cenários!$A:$D,2,FALSE)))) -> 2024-08-15 | G181: =IF(A181="","",VLOOKUP(F181,Cenários!$B:$D,3,FALSE)) -> 4308.869261
A182: =IF(A181="","",IF(WORKDAY(+A181,1,Feriados!$A$2:$A$1071)<=$C$2,WORKDAY(+A181,1,Feriados!$A$2:$A$1071),"")) -> 2024-07-23 | B182: =IF(A182="","",+IF(+A182=D182,+E182,((+G182/E182)^+((NETWORKDAYS(+D182,A182,Feriados!$A$2:$A$1058)-1)/(NETWORKDAYS(+D182,F182,Feriados!$A$2:$A$1058)-1))*E182))) -> 4300.670826 | C182: =IF(A182="","",+IF(+A182=D182,+VLOOKUP(D182,Cenários!$B$7:$C$1000,2,FALSE),VLOOKUP(F182,Cenários!$B$7:$C$1000,2,FALSE))) -> 0.258 | D182: =IF(A182="","",+VLOOKUP(+EOMONTH(+F182,-3)+15,Cenários!$A:$D,2,FALSE)) -> 2024-07-15 | E182: =IF(A182="","",VLOOKUP(D182,Cenários!$B:$D,3,FALSE)) -> 4297.780986 | F182: =IF(A182="","",IF(A182=$C$2,$C$2,+IF(+VLOOKUP(+EOMONTH(+A182,-2)+15,Cenários!$A:$D,2,FALSE)>A182,+VLOOKUP(+EOMONTH(+A182,-2)+15,Cenários!$A:$D,2,FALSE),+VLOOKUP(+EOMONTH(+A182,-1)+15,Cenários!$A:$D,2,FALSE)))) -> 2024-08-15 | G182: =IF(A182="","",VLOOKUP(F182,Cenários!$B:$D,3,FALSE)) -> 4308.869261
A183: =IF(A182="","",IF(WORKDAY(+A182,1,Feriados!$A$2:$A$1071)<=$C$2,WORKDAY(+A182,1,Feriados!$A$2:$A$1071),"")) -> 2024-07-24 | B183: =IF(A183="","",+IF(+A183=D183,+E183,((+G183/E183)^+((NETWORKDAYS(+D183,A183,Feriados!$A$2:$A$1058)-1)/(NETWORKDAYS(+D183,F183,Feriados!$A$2:$A$1058)-1))*E183))) -> 4301.152654 | C183: =IF(A183="","",+IF(+A183=D183,+VLOOKUP(D183,Cenários!$B$7:$C$1000,2,FALSE),VLOOKUP(F183,Cenários!$B$7:$C$1000,2,FALSE))) -> 0.258 | D183: =IF(A183="","",+VLOOKUP(+EOMONTH(+F183,-3)+15,Cenários!$A:$D,2,FALSE)) -> 2024-07-15 | E183: =IF(A183="","",VLOOKUP(D183,Cenários!$B:$D,3,FALSE)) -> 4297.780986 | F183: =IF(A183="","",IF(A183=$C$2,$C$2,+IF(+VLOOKUP(+EOMONTH(+A183,-2)+15,Cenários!$A:$D,2,FALSE)>A183,+VLOOKUP(+EOMONTH(+A183,-2)+15,Cenários!$A:$D,2,FALSE),+VLOOKUP(+EOMONTH(+A183,-1)+15,Cenários!$A:$D,2,FALSE)))) -> 2024-08-15 | G183: =IF(A183="","",VLOOKUP(F183,Cenários!$B:$D,3,FALSE)) -> 4308.869261
A184: =IF(A183="","",IF(WORKDAY(+A183,1,Feriados!$A$2:$A$1071)<=$C$2,WORKDAY(+A183,1,Feriados!$A$2:$A$1071),"")) -> 2024-07-25 | B184: =IF(A184="","",+IF(+A184=D184,+E184,((+G184/E184)^+((NETWORKDAYS(+D184,A184,Feriados!$A$2:$A$1058)-1)/(NETWORKDAYS(+D184,F184,Feriados!$A$2:$A$1058)-1))*E184))) -> 4301.634537 | C184: =IF(A184="","",+IF(+A184=D184,+VLOOKUP(D184,Cenários!$B$7:$C$1000,2,FALSE),VLOOKUP(F184,Cenários!$B$7:$C$1000,2,FALSE))) -> 0.258 | D184: =IF(A184="","",+VLOOKUP(+EOMONTH(+F184,-3)+15,Cenários!$A:$D,2,FALSE)) -> 2024-07-15 | E184: =IF(A184="","",VLOOKUP(D184,Cenários!$B:$D,3,FALSE)) -> 4297.780986 | F184: =IF(A184="","",IF(A184=$C$2,$C$2,+IF(+VLOOKUP(+EOMONTH(+A184,-2)+15,Cenários!$A:$D,2,FALSE)>A184,+VLOOKUP(+EOMONTH(+A184,-2)+15,Cenários!$A:$D,2,FALSE),+VLOOKUP(+EOMONTH(+A184,-1)+15,Cenários!$A:$D,2,FALSE)))) -> 2024-08-15 | G184: =IF(A184="","",VLOOKUP(F184,Cenários!$B:$D,3,FALSE)) -> 4308.869261
A185: =IF(A184="","",IF(WORKDAY(+A184,1,Feriados!$A$2:$A$1071)<=$C$2,WORKDAY(+A184,1,Feriados!$A$2:$A$1071),"")) -> 2024-07-26 | B185: =IF(A185="","",+IF(+A185=D185,+E185,((+G185/E185)^+((NETWORKDAYS(+D185,A185,Feriados!$A$2:$A$1058)-1)/(NETWORKDAYS(+D185,F185,Feriados!$A$2:$A$1058)-1))*E185))) -> 4302.116474 | C185: =IF(A185="","",+IF(+A185=D185,+VLOOKUP(D185,Cenários!$B$7:$C$1000,2,FALSE),VLOOKUP(F185,Cenários!$B$7:$C$1000,2,FALSE))) -> 0.258 | D185: =IF(A185="","",+VLOOKUP(+EOMONTH(+F185,-3)+15,Cenários!$A:$D,2,FALSE)) -> 2024-07-15 | E185: =IF(A185="","",VLOOKUP(D185,Cenários!$B:$D,3,FALSE)) -> 4297.780986 | F185: =IF(A185="","",IF(A185=$C$2,$C$2,+IF(+VLOOKUP(+EOMONTH(+A185,-2)+15,Cenários!$A:$D,2,FALSE)>A185,+VLOOKUP(+EOMONTH(+A185,-2)+15,Cenários!$A:$D,2,FALSE),+VLOOKUP(+EOMONTH(+A185,-1)+15,Cenários!$A:$D,2,FALSE)))) -> 2024-08-15 | G185: =IF(A185="","",VLOOKUP(F185,Cenários!$B:$D,3,FALSE)) -> 4308.869261
A186: =IF(A185="","",IF(WORKDAY(+A185,1,Feriados!$A$2:$A$1071)<=$C$2,WORKDAY(+A185,1,Feriados!$A$2:$A$1071),"")) -> 2024-07-29 | B186: =IF(A186="","",+IF(+A186=D186,+E186,((+G186/E186)^+((NETWORKDAYS(+D186,A186,Feriados!$A$2:$A$1058)-1)/(NETWORKDAYS(+D186,F186,Feriados!$A$2:$A$1058)-1))*E186))) -> 4302.598465 | C186: =IF(A186="","",+IF(+A186=D186,+VLOOKUP(D186,Cenários!$B$7:$C$1000,2,FALSE),VLOOKUP(F186,Cenários!$B$7:$C$1000,2,FALSE))) -> 0.258 | D186: =IF(A186="","",+VLOOKUP(+EOMONTH(+F186,-3)+15,Cenários!$A:$D,2,FALSE)) -> 2024-07-15 | E186: =IF(A186="","",VLOOKUP(D186,Cenários!$B:$D,3,FALSE)) -> 4297.780986 | F186: =IF(A186="","",IF(A186=$C$2,$C$2,+IF(+VLOOKUP(+EOMONTH(+A186,-2)+15,Cenários!$A:$D,2,FALSE)>A186,+VLOOKUP(+EOMONTH(+A186,-2)+15,Cenários!$A:$D,2,FALSE),+VLOOKUP(+EOMONTH(+A186,-1)+15,Cenários!$A:$D,2,FALSE)))) -> 2024-08-15 | G186: =IF(A186="","",VLOOKUP(F186,Cenários!$B:$D,3,FALSE)) -> 4308.869261
A187: =IF(A186="","",IF(WORKDAY(+A186,1,Feriados!$A$2:$A$1071)<=$C$2,WORKDAY(+A186,1,Feriados!$A$2:$A$1071),"")) -> 2024-07-30 | B187: =IF(A187="","",+IF(+A187=D187,+E187,((+G187/E187)^+((NETWORKDAYS(+D187,A187,Feriados!$A$2:$A$1058)-1)/(NETWORKDAYS(+D187,F187,Feriados!$A$2:$A$1058)-1))*E187))) -> 4303.080509 | C187: =IF(A187="","",+IF(+A187=D187,+VLOOKUP(D187,Cenários!$B$7:$C$1000,2,FALSE),VLOOKUP(F187,Cenários!$B$7:$C$1000,2,FALSE))) -> 0.258 | D187: =IF(A187="","",+VLOOKUP(+EOMONTH(+F187,-3)+15,Cenários!$A:$D,2,FALSE)) -> 2024-07-15 | E187: =IF(A187="","",VLOOKUP(D187,Cenários!$B:$D,3,FALSE)) -> 4297.780986 | F187: =IF(A187="","",IF(A187=$C$2,$C$2,+IF(+VLOOKUP(+EOMONTH(+A187,-2)+15,Cenários!$A:$D,2,FALSE)>A187,+VLOOKUP(+EOMONTH(+A187,-2)+15,Cenários!$A:$D,2,FALSE),+VLOOKUP(+EOMONTH(+A187,-1)+15,Cenários!$A:$D,2,FALSE)))) -> 2024-08-15 | G187: =IF(A187="","",VLOOKUP(F187,Cenários!$B:$D,3,FALSE)) -> 4308.869261
A188: =IF(A187="","",IF(WORKDAY(+A187,1,Feriados!$A$2:$A$1071)<=$C$2,WORKDAY(+A187,1,Feriados!$A$2:$A$1071),"")) -> 2024-07-31 | B188: =IF(A188="","",+IF(+A188=D188,+E188,((+G188/E188)^+((NETWORKDAYS(+D188,A188,Feriados!$A$2:$A$1058)-1)/(NETWORKDAYS(+D188,F188,Feriados!$A$2:$A$1058)-1))*E188))) -> 4303.562608 | C188: =IF(A188="","",+IF(+A188=D188,+VLOOKUP(D188,Cenários!$B$7:$C$1000,2,FALSE),VLOOKUP(F188,Cenários!$B$7:$C$1000,2,FALSE))) -> 0.258 | D188: =IF(A188="","",+VLOOKUP(+EOMONTH(+F188,-3)+15,Cenários!$A:$D,2,FALSE)) -> 2024-07-15 | E188: =IF(A188="","",VLOOKUP(D188,Cenários!$B:$D,3,FALSE)) -> 4297.780986 | F188: =IF(A188="","",IF(A188=$C$2,$C$2,+IF(+VLOOKUP(+EOMONTH(+A188,-2)+15,Cenários!$A:$D,2,FALSE)>A188,+VLOOKUP(+EOMONTH(+A188,-2)+15,Cenários!$A:$D,2,FALSE),+VLOOKUP(+EOMONTH(+A188,-1)+15,Cenários!$A:$D,2,FALSE)))) -> 2024-08-15 | G188: =IF(A188="","",VLOOKUP(F188,Cenários!$B:$D,3,FALSE)) -> 4308.869261
A189: =IF(A188="","",IF(WORKDAY(+A188,1,Feriados!$A$2:$A$1071)<=$C$2,WORKDAY(+A188,1,Feriados!$A$2:$A$1071),"")) -> 2024-08-01 | B189: =IF(A189="","",+IF(+A189=D189,+E189,((+G189/E189)^+((NETWORKDAYS(+D189,A189,Feriados!$A$2:$A$1058)-1)/(NETWORKDAYS(+D189,F189,Feriados!$A$2:$A$1058)-1))*E189))) -> 4304.044761 | C189: =IF(A189="","",+IF(+A189=D189,+VLOOKUP(D189,Cenários!$B$7:$C$1000,2,FALSE),VLOOKUP(F189,Cenários!$B$7:$C$1000,2,FALSE))) -> 0.258 | D189: =IF(A189="","",+VLOOKUP(+EOMONTH(+F189,-3)+15,Cenários!$A:$D,2,FALSE)) -> 2024-07-15 | E189: =IF(A189="","",VLOOKUP(D189,Cenários!$B:$D,3,FALSE)) -> 4297.780986 | F189: =IF(A189="","",IF(A189=$C$2,$C$2,+IF(+VLOOKUP(+EOMONTH(+A189,-2)+15,Cenários!$A:$D,2,FALSE)>A189,+VLOOKUP(+EOMONTH(+A189,-2)+15,Cenários!$A:$D,2,FALSE),+VLOOKUP(+EOMONTH(+A189,-1)+15,Cenários!$A:$D,2,FALSE)))) -> 2024-08-15 | G189: =IF(A189="","",VLOOKUP(F189,Cenários!$B:$D,3,FALSE)) -> 4308.869261
A190: =IF(A189="","",IF(WORKDAY(+A189,1,Feriados!$A$2:$A$1071)<=$C$2,WORKDAY(+A189,1,Feriados!$A$2:$A$1071),"")) -> 2024-08-02 | B190: =IF(A190="","",+IF(+A190=D190,+E190,((+G190/E190)^+((NETWORKDAYS(+D190,A190,Feriados!$A$2:$A$1058)-1)/(NETWORKDAYS(+D190,F190,Feriados!$A$2:$A$1058)-1))*E190))) -> 4304.526968 | C190: =IF(A190="","",+IF(+A190=D190,+VLOOKUP(D190,Cenários!$B$7:$C$1000,2,FALSE),VLOOKUP(F190,Cenários!$B$7:$C$1000,2,FALSE))) -> 0.258 | D190: =IF(A190="","",+VLOOKUP(+EOMONTH(+F190,-3)+15,Cenários!$A:$D,2,FALSE)) -> 2024-07-15 | E190: =IF(A190="","",VLOOKUP(D190,Cenários!$B:$D,3,FALSE)) -> 4297.780986 | F190: =IF(A190="","",IF(A190=$C$2,$C$2,+IF(+VLOOKUP(+EOMONTH(+A190,-2)+15,Cenários!$A:$D,2,FALSE)>A190,+VLOOKUP(+EOMONTH(+A190,-2)+15,Cenários!$A:$D,2,FALSE),+VLOOKUP(+EOMONTH(+A190,-1)+15,Cenários!$A:$D,2,FALSE)))) -> 2024-08-15 | G190: =IF(A190="","",VLOOKUP(F190,Cenários!$B:$D,3,FALSE)) -> 4308.869261
A191: =IF(A190="","",IF(WORKDAY(+A190,1,Feriados!$A$2:$A$1071)<=$C$2,WORKDAY(+A190,1,Feriados!$A$2:$A$1071),"")) -> 2024-08-05 | B191: =IF(A191="","",+IF(+A191=D191,+E191,((+G191/E191)^+((NETWORKDAYS(+D191,A191,Feriados!$A$2:$A$1058)-1)/(NETWORKDAYS(+D191,F191,Feriados!$A$2:$A$1058)-1))*E191))) -> 4305.009229 | C191: =IF(A191="","",+IF(+A191=D191,+VLOOKUP(D191,Cenários!$B$7:$C$1000,2,FALSE),VLOOKUP(F191,Cenários!$B$7:$C$1000,2,FALSE))) -> 0.258 | D191: =IF(A191="","",+VLOOKUP(+EOMONTH(+F191,-3)+15,Cenários!$A:$D,2,FALSE)) -> 2024-07-15 | E191: =IF(A191="","",VLOOKUP(D191,Cenários!$B:$D,3,FALSE)) -> 4297.780986 | F191: =IF(A191="","",IF(A191=$C$2,$C$2,+IF(+VLOOKUP(+EOMONTH(+A191,-2)+15,Cenários!$A:$D,2,FALSE)>A191,+VLOOKUP(+EOMONTH(+A191,-2)+15,Cenários!$A:$D,2,FALSE),+VLOOKUP(+EOMONTH(+A191,-1)+15,Cenários!$A:$D,2,FALSE)))) -> 2024-08-15 | G191: =IF(A191="","",VLOOKUP(F191,Cenários!$B:$D,3,FALSE)) -> 4308.869261
A192: =IF(A191="","",IF(WORKDAY(+A191,1,Feriados!$A$2:$A$1071)<=$C$2,WORKDAY(+A191,1,Feriados!$A$2:$A$1071),"")) -> 2024-08-06 | B192: =IF(A192="","",+IF(+A192=D192,+E192,((+G192/E192)^+((NETWORKDAYS(+D192,A192,Feriados!$A$2:$A$1058)-1)/(NETWORKDAYS(+D192,F192,Feriados!$A$2:$A$1058)-1))*E192))) -> 4305.491544 | C192: =IF(A192="","",+IF(+A192=D192,+VLOOKUP(D192,Cenários!$B$7:$C$1000,2,FALSE),VLOOKUP(F192,Cenários!$B$7:$C$1000,2,FALSE))) -> 0.258 | D192: =IF(A192="","",+VLOOKUP(+EOMONTH(+F192,-3)+15,Cenários!$A:$D,2,FALSE)) -> 2024-07-15 | E192: =IF(A192="","",VLOOKUP(D192,Cenários!$B:$D,3,FALSE)) -> 4297.780986 | F192: =IF(A192="","",IF(A192=$C$2,$C$2,+IF(+VLOOKUP(+EOMONTH(+A192,-2)+15,Cenários!$A:$D,2,FALSE)>A192,+VLOOKUP(+EOMONTH(+A192,-2)+15,Cenários!$A:$D,2,FALSE),+VLOOKUP(+EOMONTH(+A192,-1)+15,Cenários!$A:$D,2,FALSE)))) -> 2024-08-15 | G192: =IF(A192="","",VLOOKUP(F192,Cenários!$B:$D,3,FALSE)) -> 4308.869261
A193: =IF(A192="","",IF(WORKDAY(+A192,1,Feriados!$A$2:$A$1071)<=$C$2,WORKDAY(+A192,1,Feriados!$A$2:$A$1071),"")) -> 2024-08-07 | B193: =IF(A193="","",+IF(+A193=D193,+E193,((+G193/E193)^+((NETWORKDAYS(+D193,A193,Feriados!$A$2:$A$1058)-1)/(NETWORKDAYS(+D193,F193,Feriados!$A$2:$A$1058)-1))*E193))) -> 4305.973912 | C193: =IF(A193="","",+IF(+A193=D193,+VLOOKUP(D193,Cenários!$B$7:$C$1000,2,FALSE),VLOOKUP(F193,Cenários!$B$7:$C$1000,2,FALSE))) -> 0.258 | D193: =IF(A193="","",+VLOOKUP(+EOMONTH(+F193,-3)+15,Cenários!$A:$D,2,FALSE)) -> 2024-07-15 | E193: =IF(A193="","",VLOOKUP(D193,Cenários!$B:$D,3,FALSE)) -> 4297.780986 | F193: =IF(A193="","",IF(A193=$C$2,$C$2,+IF(+VLOOKUP(+EOMONTH(+A193,-2)+15,Cenários!$A:$D,2,FALSE)>A193,+VLOOKUP(+EOMONTH(+A193,-2)+15,Cenários!$A:$D,2,FALSE),+VLOOKUP(+EOMONTH(+A193,-1)+15,Cenários!$A:$D,2,FALSE)))) -> 2024-08-15 | G193: =IF(A193="","",VLOOKUP(F193,Cenários!$B:$D,3,FALSE)) -> 4308.869261
A194: =IF(A193="","",IF(WORKDAY(+A193,1,Feriados!$A$2:$A$1071)<=$C$2,WORKDAY(+A193,1,Feriados!$A$2:$A$1071),"")) -> 2024-08-08 | B194: =IF(A194="","",+IF(+A194=D194,+E194,((+G194/E194)^+((NETWORKDAYS(+D194,A194,Feriados!$A$2:$A$1058)-1)/(NETWORKDAYS(+D194,F194,Feriados!$A$2:$A$1058)-1))*E194))) -> 4306.456335 | C194: =IF(A194="","",+IF(+A194=D194,+VLOOKUP(D194,Cenários!$B$7:$C$1000,2,FALSE),VLOOKUP(F194,Cenários!$B$7:$C$1000,2,FALSE))) -> 0.258 | D194: =IF(A194="","",+VLOOKUP(+EOMONTH(+F194,-3)+15,Cenários!$A:$D,2,FALSE)) -> 2024-07-15 | E194: =IF(A194="","",VLOOKUP(D194,Cenários!$B:$D,3,FALSE)) -> 4297.780986 | F194: =IF(A194="","",IF(A194=$C$2,$C$2,+IF(+VLOOKUP(+EOMONTH(+A194,-2)+15,Cenários!$A:$D,2,FALSE)>A194,+VLOOKUP(+EOMONTH(+A194,-2)+15,Cenários!$A:$D,2,FALSE),+VLOOKUP(+EOMONTH(+A194,-1)+15,Cenários!$A:$D,2,FALSE)))) -> 2024-08-15 | G194: =IF(A194="","",VLOOKUP(F194,Cenários!$B:$D,3,FALSE)) -> 4308.869261
A195: =IF(A194="","",IF(WORKDAY(+A194,1,Feriados!$A$2:$A$1071)<=$C$2,WORKDAY(+A194,1,Feriados!$A$2:$A$1071),"")) -> 2024-08-09 | B195: =IF(A195="","",+IF(+A195=D195,+E195,((+G195/E195)^+((NETWORKDAYS(+D195,A195,Feriados!$A$2:$A$1058)-1)/(NETWORKDAYS(+D195,F195,Feriados!$A$2:$A$1058)-1))*E195))) -> 4306.938812 | C195: =IF(A195="","",+IF(+A195=D195,+VLOOKUP(D195,Cenários!$B$7:$C$1000,2,FALSE),VLOOKUP(F195,Cenários!$B$7:$C$1000,2,FALSE))) -> 0.258 | D195: =IF(A195="","",+VLOOKUP(+EOMONTH(+F195,-3)+15,Cenários!$A:$D,2,FALSE)) -> 2024-07-15 | E195: =IF(A195="","",VLOOKUP(D195,Cenários!$B:$D,3,FALSE)) -> 4297.780986 | F195: =IF(A195="","",IF(A195=$C$2,$C$2,+IF(+VLOOKUP(+EOMONTH(+A195,-2)+15,Cenários!$A:$D,2,FALSE)>A195,+VLOOKUP(+EOMONTH(+A195,-2)+15,Cenários!$A:$D,2,FALSE),+VLOOKUP(+EOMONTH(+A195,-1)+15,Cenários!$A:$D,2,FALSE)))) -> 2024-08-15 | G195: =IF(A195="","",VLOOKUP(F195,Cenários!$B:$D,3,FALSE)) -> 4308.869261
A196: =IF(A195="","",IF(WORKDAY(+A195,1,Feriados!$A$2:$A$1071)<=$C$2,WORKDAY(+A195,1,Feriados!$A$2:$A$1071),"")) -> 2024-08-12 | B196: =IF(A196="","",+IF(+A196=D196,+E196,((+G196/E196)^+((NETWORKDAYS(+D196,A196,Feriados!$A$2:$A$1058)-1)/(NETWORKDAYS(+D196,F196,Feriados!$A$2:$A$1058)-1))*E196))) -> 4307.421343 | C196: =IF(A196="","",+IF(+A196=D196,+VLOOKUP(D196,Cenários!$B$7:$C$1000,2,FALSE),VLOOKUP(F196,Cenários!$B$7:$C$1000,2,FALSE))) -> 0.258 | D196: =IF(A196="","",+VLOOKUP(+EOMONTH(+F196,-3)+15,Cenários!$A:$D,2,FALSE)) -> 2024-07-15 | E196: =IF(A196="","",VLOOKUP(D196,Cenários!$B:$D,3,FALSE)) -> 4297.780986 | F196: =IF(A196="","",IF(A196=$C$2,$C$2,+IF(+VLOOKUP(+EOMONTH(+A196,-2)+15,Cenários!$A:$D,2,FALSE)>A196,+VLOOKUP(+EOMONTH(+A196,-2)+15,Cenários!$A:$D,2,FALSE),+VLOOKUP(+EOMONTH(+A196,-1)+15,Cenários!$A:$D,2,FALSE)))) -> 2024-08-15 | G196: =IF(A196="","",VLOOKUP(F196,Cenários!$B:$D,3,FALSE)) -> 4308.869261
A197: =IF(A196="","",IF(WORKDAY(+A196,1,Feriados!$A$2:$A$1071)<=$C$2,WORKDAY(+A196,1,Feriados!$A$2:$A$1071),"")) -> 2024-08-13 | B197: =IF(A197="","",+IF(+A197=D197,+E197,((+G197/E197)^+((NETWORKDAYS(+D197,A197,Feriados!$A$2:$A$1058)-1)/(NETWORKDAYS(+D197,F197,Feriados!$A$2:$A$1058)-1))*E197))) -> 4307.903929 | C197: =IF(A197="","",+IF(+A197=D197,+VLOOKUP(D197,Cenários!$B$7:$C$1000,2,FALSE),VLOOKUP(F197,Cenários!$B$7:$C$1000,2,FALSE))) -> 0.258 | D197: =IF(A197="","",+VLOOKUP(+EOMONTH(+F197,-3)+15,Cenários!$A:$D,2,FALSE)) -> 2024-07-15 | E197: =IF(A197="","",VLOOKUP(D197,Cenários!$B:$D,3,FALSE)) -> 4297.780986 | F197: =IF(A197="","",IF(A197=$C$2,$C$2,+IF(+VLOOKUP(+EOMONTH(+A197,-2)+15,Cenários!$A:$D,2,FALSE)>A197,+VLOOKUP(+EOMONTH(+A197,-2)+15,Cenários!$A:$D,2,FALSE),+VLOOKUP(+EOMONTH(+A197,-1)+15,Cenários!$A:$D,2,FALSE)))) -> 2024-08-15 | G197: =IF(A197="","",VLOOKUP(F197,Cenários!$B:$D,3,FALSE)) -> 4308.869261
A198: =IF(A197="","",IF(WORKDAY(+A197,1,Feriados!$A$2:$A$1071)<=$C$2,WORKDAY(+A197,1,Feriados!$A$2:$A$1071),"")) -> 2024-08-14 | B198: =IF(A198="","",+IF(+A198=D198,+E198,((+G198/E198)^+((NETWORKDAYS(+D198,A198,Feriados!$A$2:$A$1058)-1)/(NETWORKDAYS(+D198,F198,Feriados!$A$2:$A$1058)-1))*E198))) -> 4308.386568 | C198: =IF(A198="","",+IF(+A198=D198,+VLOOKUP(D198,Cenários!$B$7:$C$1000,2,FALSE),VLOOKUP(F198,Cenários!$B$7:$C$1000,2,FALSE))) -> 0.258 | D198: =IF(A198="","",+VLOOKUP(+EOMONTH(+F198,-3)+15,Cenários!$A:$D,2,FALSE)) -> 2024-07-15 | E198: =IF(A198="","",VLOOKUP(D198,Cenários!$B:$D,3,FALSE)) -> 4297.780986 | F198: =IF(A198="","",IF(A198=$C$2,$C$2,+IF(+VLOOKUP(+EOMONTH(+A198,-2)+15,Cenários!$A:$D,2,FALSE)>A198,+VLOOKUP(+EOMONTH(+A198,-2)+15,Cenários!$A:$D,2,FALSE),+VLOOKUP(+EOMONTH(+A198,-1)+15,Cenários!$A:$D,2,FALSE)))) -> 2024-08-15 | G198: =IF(A198="","",VLOOKUP(F198,Cenários!$B:$D,3,FALSE)) -> 4308.869261
A199: =IF(A198="","",IF(WORKDAY(+A198,1,Feriados!$A$2:$A$1071)<=$C$2,WORKDAY(+A198,1,Feriados!$A$2:$A$1071),"")) -> 2024-08-15 | B199: =IF(A199="","",+IF(+A199=D199,+E199,((+G199/E199)^+((NETWORKDAYS(+D199,A199,Feriados!$A$2:$A$1058)-1)/(NETWORKDAYS(+D199,F199,Feriados!$A$2:$A$1058)-1))*E199))) -> 4308.869261 | C199: =IF(A199="","",+IF(+A199=D199,+VLOOKUP(D199,Cenários!$B$7:$C$1000,2,FALSE),VLOOKUP(F199,Cenários!$B$7:$C$1000,2,FALSE))) -> 0.258 | D199: =IF(A199="","",+VLOOKUP(+EOMONTH(+F199,-3)+15,Cenários!$A:$D,2,FALSE)) -> 2024-08-15 | E199: =IF(A199="","",VLOOKUP(D199,Cenários!$B:$D,3,FALSE)) -> 4308.869261 | F199: =IF(A199="","",IF(A199=$C$2,$C$2,+IF(+VLOOKUP(+EOMONTH(+A199,-2)+15,Cenários!$A:$D,2,FALSE)>A199,+VLOOKUP(+EOMONTH(+A199,-2)+15,Cenários!$A:$D,2,FALSE),+VLOOKUP(+EOMONTH(+A199,-1)+15,Cenários!$A:$D,2,FALSE)))) -> 2024-09-16 | G199: =IF(A199="","",VLOOKUP(F199,Cenários!$B:$D,3,FALSE)) -> 4317.702443
A200: =IF(A199="","",IF(WORKDAY(+A199,1,Feriados!$A$2:$A$1071)<=$C$2,WORKDAY(+A199,1,Feriados!$A$2:$A$1071),"")) -> 2024-08-16 | B200: =IF(A200="","",+IF(+A200=D200,+E200,((+G200/E200)^+((NETWORKDAYS(+D200,A200,Feriados!$A$2:$A$1058)-1)/(NETWORKDAYS(+D200,F200,Feriados!$A$2:$A$1058)-1))*E200))) -> 4309.270377 | C200: =IF(A200="","",+IF(+A200=D200,+VLOOKUP(D200,Cenários!$B$7:$C$1000,2,FALSE),VLOOKUP(F200,Cenários!$B$7:$C$1000,2,FALSE))) -> 0.205 | D200: =IF(A200="","",+VLOOKUP(+EOMONTH(+F200,-3)+15,Cenários!$A:$D,2,FALSE)) -> 2024-08-15 | E200: =IF(A200="","",VLOOKUP(D200,Cenários!$B:$D,3,FALSE)) -> 4308.869261 | F200: =IF(A200="","",IF(A200=$C$2,$C$2,+IF(+VLOOKUP(+EOMONTH(+A200,-2)+15,Cenários!$A:$D,2,FALSE)>A200,+VLOOKUP(+EOMONTH(+A200,-2)+15,Cenários!$A:$D,2,FALSE),+VLOOKUP(+EOMONTH(+A200,-1)+15,Cenários!$A:$D,2,FALSE)))) -> 2024-09-16 | G200: =IF(A200="","",VLOOKUP(F200,Cenários!$B:$D,3,FALSE)) -> 4317.702443
A201: =IF(A200="","",IF(WORKDAY(+A200,1,Feriados!$A$2:$A$1071)<=$C$2,WORKDAY(+A200,1,Feriados!$A$2:$A$1071),"")) -> 2024-08-19 | B201: =IF(A201="","",+IF(+A201=D201,+E201,((+G201/E201)^+((NETWORKDAYS(+D201,A201,Feriados!$A$2:$A$1058)-1)/(NETWORKDAYS(+D201,F201,Feriados!$A$2:$A$1058)-1))*E201))) -> 4309.67153 | C201: =IF(A201="","",+IF(+A201=D201,+VLOOKUP(D201,Cenários!$B$7:$C$1000,2,FALSE),VLOOKUP(F201,Cenários!$B$7:$C$1000,2,FALSE))) -> 0.205 | D201: =IF(A201="","",+VLOOKUP(+EOMONTH(+F201,-3)+15,Cenários!$A:$D,2,FALSE)) -> 2024-08-15 | E201: =IF(A201="","",VLOOKUP(D201,Cenários!$B:$D,3,FALSE)) -> 4308.869261 | F201: =IF(A201="","",IF(A201=$C$2,$C$2,+IF(+VLOOKUP(+EOMONTH(+A201,-2)+15,Cenários!$A:$D,2,FALSE)>A201,+VLOOKUP(+EOMONTH(+A201,-2)+15,Cenários!$A:$D,2,FALSE),+VLOOKUP(+EOMONTH(+A201,-1)+15,Cenários!$A:$D,2,FALSE)))) -> 2024-09-16 | G201: =IF(A201="","",VLOOKUP(F201,Cenários!$B:$D,3,FALSE)) -> 4317.702443
A202: =IF(A201="","",IF(WORKDAY(+A201,1,Feriados!$A$2:$A$1071)<=$C$2,WORKDAY(+A201,1,Feriados!$A$2:$A$1071),"")) -> 2024-08-20 | B202: =IF(A202="","",+IF(+A202=D202,+E202,((+G202/E202)^+((NETWORKDAYS(+D202,A202,Feriados!$A$2:$A$1058)-1)/(NETWORKDAYS(+D202,F202,Feriados!$A$2:$A$1058)-1))*E202))) -> 4310.072721 | C202: =IF(A202="","",+IF(+A202=D202,+VLOOKUP(D202,Cenários!$B$7:$C$1000,2,FALSE),VLOOKUP(F202,Cenários!$B$7:$C$1000,2,FALSE))) -> 0.205 | D202: =IF(A202="","",+VLOOKUP(+EOMONTH(+F202,-3)+15,Cenários!$A:$D,2,FALSE)) -> 2024-08-15 | E202: =IF(A202="","",VLOOKUP(D202,Cenários!$B:$D,3,FALSE)) -> 4308.869261 | F202: =IF(A202="","",IF(A202=$C$2,$C$2,+IF(+VLOOKUP(+EOMONTH(+A202,-2)+15,Cenários!$A:$D,2,FALSE)>A202,+VLOOKUP(+EOMONTH(+A202,-2)+15,Cenários!$A:$D,2,FALSE),+VLOOKUP(+EOMONTH(+A202,-1)+15,Cenários!$A:$D,2,FALSE)))) -> 2024-09-16 | G202: =IF(A202="","",VLOOKUP(F202,Cenários!$B:$D,3,FALSE)) -> 4317.702443
... 9908 more rows

Sheet Curvas de Juros Anbima
C1: Pré | E1: Nível | F1: Inclinação | G1: Curvatura | H1: Curvatura | I1: Decaimento | J1: Decaimento | N1: IPCA+ | P1: Nível | Q1: Inclinação | R1: Curvatura | S1: Curvatura | T1: Decaimento | U1: Decaimento | W1: Inflação Implícita | Z1: Cenário
B3: 2023-08-21 | E3: Beta 1 | F3: Beta 2 | G3: Beta 3 | H3: Beta 4 | I3: Lambda 1 | J3: Lambda 2 | P3: Beta 1 | Q3: Beta 2 | R3: Beta 3 | S3: Beta 4 | T3: Lambda 1 | U3: Lambda 2
E4: 0.1218924776 | F4: 0.009793779118 | G4: 0.046590615 | H4: -0.09744190478 | I4: 2.782713265 | J4: 1.201918621 | P4: 0.0578287682 | Q4: 0.06035777466 | R4: -0.05548557119 | S4: -0.02812763099 | T4: 1.622131187 | U4: 0.4757102657
B5: Dias | C5: Anos | M5: Dias | N5: Anos
B6: 504 | C6: =B6/252 -> 2 | E6: =E4 -> 0.1218924776 | F6: =F4*((1-EXP(-1*$I$4*$C$6))/($I$4*$C$6)) -> 0.00175301731 | G6: =G4*((((1-EXP(-1*$I$4*$C$6))/($I$4*$C$6))-EXP(-1*$I$4*$C$6))) -> 0.008161044691 | H6: =H4*((((1-EXP(-1*$J$4*$C$6))/($J$4*$C$6))-EXP(-1*$J$4*$C$6))) -> -0.02806685012 | M6: =+B6 -> 504 | N6: =M6/252 -> 2 | P6: =P4 -> 0.0578287682 | Q6: =Q4*((1-EXP(-1*$T$4*$N$6))/($T$4*$N$6)) -> 0.01787894337 | R6: =R4*((((1-EXP(-1*$T$4*$N$6))/($T$4*$N$6))-EXP(-1*$T$4*$N$6))) -> -0.01427192983 | S6: =S4*((((1-EXP(-1*$U$4*$N$6))/($U$4*$N$6))-EXP(-1*$U$4*$N$6))) -> -0.007283844747
A7: Taxa | B7: =SUM(E6:H6)*100 -> 10.37396895 | L7: Taxa | M7: =SUM(P6:S6)*100 -> 5.415193699 | W7: =(((1+B7/100)/(1+M7/100))-1)*100 -> 4.704042255 | Y7: =IF(W10="","",WORKDAY($B$3,M6,Feriados!$A$2:$A$1037)) -> 2025-08-22 | Z7: =IF(Y7="","",((1+(+(+VLOOKUP(Y7,'Histórico + Projeção'!A:B,2,FALSE)/(VLOOKUP(WORKDAY(WORKDAY($B$3,-1,Feriados!$A$2:$A$10000),1,Feriados!$A$2:$A$10000),'Histórico + Projeção'!A:B,2,FALSE))-1)*100)/100)^(252/M6)-1)*100) -> 4.040612091
A9: Data | B9: 2031-01-01 | C9: =(NETWORKDAYS(B3,B9-1,Feriados!$A$2:$A$1037)/252) -> 7.341269841 | E9: =E4 -> 0.1218924776 | F9: =F4*((1-EXP(-1*$I$4*$C$9))/($I$4*$C$9)) -> 0.0004794139406 | G9: =G4*((((1-EXP(-1*$I$4*$C$9))/($I$4*$C$9))-EXP(-1*$I$4*$C$9))) -> 0.002280650753 | H9: =H4*((((1-EXP(-1*$J$4*$C$9))/($J$4*$C$9))-EXP(-1*$J$4*$C$9))) -> -0.01102734559 | M9: =+B9 -> 2031-01-01 | N9: =+C9 -> 7.341269841 | P9: =P6 -> 0.0578287682 | Q9: =Q4*((1-EXP(-1*$T$4*$N$9))/($T$4*$N$9)) -> 0.005068426273 | R9: =R4*((((1-EXP(-1*$T$4*$N$9))/($T$4*$N$9))-EXP(-1*$T$4*$N$9))) -> -0.004658918921 | S9: =S4*((((1-EXP(-1*$U$4*$N$9))/($U$4*$N$9))-EXP(-1*$U$4*$N$9))) -> -0.006953123784
A10: Taxa | B10: =SUM(E9:H9)*100 -> 11.36251968 | L10: Taxa | M10: =SUM(P9:S9)*100 -> 5.128515177 | W10: =(((1+B10/100)/(1+M10/100))-1)*100 -> 5.92988923 | Y10: =IF(W10="","",M9) -> 2031-01-01 | Z10: =IF(Y10="","",((1+(+(+VLOOKUP(WORKDAY(WORKDAY(Y10,-1,Feriados!$A$2:$A$10000),1,Feriados!$A$2:$A$10000),'Histórico + Projeção'!A:B,2,FALSE)/(VLOOKUP(WORKDAY(WORKDAY($B$3,-1,Feriados!$A$2:$A$10000),1,Feriados!$A$2:$A$10000),'Histórico + Projeção'!A:B,2,FALSE))-1)*100)/100)^(252/(NETWORKDAYS($B$3,Y10-1,Feriados!$A$2:$A$10000)))-1)*100) -> 3.774775361
A13: Ano | B13: D.U. | C13: Taxa Pré | L13: Ano | M13: D.U. | N13: Taxa IPCA+ | W13: Inflação Implícita
A14: =B14/252 -> 0.08333333333 | B14: 21 | C14: =SUM(E14:H14)*100 -> 13.07028881 | E14: =$E$4 -> 0.1218924776 | F14: =$F$4*((1-EXP(-1*$I$4*A14))/($I$4*A14)) -> 0.008741139905 | G14: =$G$4*((((1-EXP(-1*$I$4*A14))/($I$4*A14))-EXP(-1*$I$4*A14))) -> 0.004635228293 | H14: =$H$4*((((1-EXP(-1*$J$4*A14))/($J$4*A14))-EXP(-1*$J$4*A14))) -> -0.00456595775 | L14: =M14/252 -> 0.08333333333 | M14: 21 | N14: =SUM(P14:S14)*100 -> 11.03130254 | P14: =$P$4 -> 0.0578287682 | Q14: =$Q$4*((1-EXP(-1*$T$4*L14))/($T$4*L14)) -> 0.05645603673 | R14: =$R$4*((((1-EXP(-1*$T$4*L14))/($T$4*L14))-EXP(-1*$T$4*L14))) -> -0.003428772129 | S14: =$S$4*((((1-EXP(-1*$U$4*L14))/($U$4*L14))-EXP(-1*$U$4*L14))) -> -0.0005430073945 | W14: =IF(N14="","",(((1+C14/100)/(1+N14/100))-1)*100) -> 1.836406691 | Y14: =IF(W14="","",WORKDAY($B$3,M14,Feriados!$A$2:$A$1037)) -> 2023-09-20 | Z14: =IF(Y14="","",((1+(+(+VLOOKUP(Y14,'Histórico + Projeção'!A:B,2,FALSE)/(VLOOKUP(WORKDAY(WORKDAY($B$3,-1,Feriados!$A$2:$A$10000),1,Feriados!$A$2:$A$10000),'Histórico + Projeção'!A:B,2,FALSE))-1)*100)/100)^(252/(NETWORKDAYS($B$3,Y14-1,Feriados!$A$2:$A$1037)))-1)*100) -> 3.162144355
A15: =B15/252 -> 0.0873015873 | B15: =+B14+1 -> 22 | C15: =SUM(E15:H15)*100 -> 13.06401065 | E15: =$E$4 -> 0.1218924776 | F15: =$F$4*((1-EXP(-1*$I$4*A15))/($I$4*A15)) -> 0.00869490841 | G15: =$G$4*((((1-EXP(-1*$I$4*A15))/($I$4*A15))-EXP(-1*$I$4*A15))) -> 0.00482104976 | H15: =$H$4*((((1-EXP(-1*$J$4*A15))/($J$4*A15))-EXP(-1*$J$4*A15))) -> -0.004768329278 | L15: =M15/252 -> 0.0873015873 | M15: =+M14+1 -> 22 | N15: =SUM(P15:S15)*100 -> 10.99625733 | P15: =$P$4 -> 0.0578287682 | Q15: =$Q$4*((1-EXP(-1*$T$4*L15))/($T$4*L15)) -> 0.05627880082 | R15: =$R$4*((((1-EXP(-1*$T$4*L15))/($T$4*L15))-EXP(-1*$T$4*L15))) -> -0.003576843916 | S15: =$S$4*((((1-EXP(-1*$U$4*L15))/($U$4*L15))-EXP(-1*$U$4*L15))) -> -0.0005681518522 | W15: =IF(N15="","",(((1+C15/100)/(1+N15/100))-1)*100) -> 1.86290365 | Y15: =IF(W15="","",WORKDAY($B$3,M15,Feriados!$A$2:$A$1037)) -> 2023-09-21 | Z15: =IF(Y15="","",((1+(+(+VLOOKUP(Y15,'Histórico + Projeção'!A:B,2,FALSE)/(VLOOKUP(WORKDAY(WORKDAY($B$3,-1,Feriados!$A$2:$A$10000),1,Feriados!$A$2:$A$10000),'Histórico + Projeção'!A:B,2,FALSE))-1)*100)/100)^(252/(NETWORKDAYS($B$3,Y15-1,Feriados!$A$2:$A$1037)))-1)*100) -> 3.240283982
A16: 0.09126984127 | B16: =+B15+1 -> 23 | C16: 13.0576094 | E16: 0.1218924776 | F16: 0.008649009059 | G16: 0.005003995409 | H16: -0.004969388072 | L16: 0.09126984127 | M16: =+M15+1 -> 23 | N16: 10.96142409 | P16: 0.0578287682 | Q16: 0.05610231485 | R16: -0.003723609607 | S16: -0.0005932325409 | W16: 1.889111763 | Y16: =IF(W16="","",WORKDAY($B$3,M16,Feriados!$A$2:$A$1037)) -> 2023-09-22 | Z16: =IF(Y16="","",((1+(+(+VLOOKUP(Y16,'Histórico + Projeção'!A:B,2,FALSE)/(VLOOKUP(WORKDAY(WORKDAY($B$3,-1,Feriados!$A$2:$A$10000),1,Feriados!$A$2:$A$10000),'Histórico + Projeção'!A:B,2,FALSE))-1)*100)/100)^(252/(NETWORKDAYS($B$3,Y16-1,Feriados!$A$2:$A$1037)))-1)*100) -> 3.311680557
A17: 0.09523809524 | B17: 24 | C17: 13.05108769 | E17: 0.1218924776 | F17: 0.008603439146 | G17: 0.005184101307 | H17: -0.0051691412 | L17: 0.09523809524 | M17: 24 | N17: 10.92680151 | P17: 0.0578287682 | Q17: 0.05592657521 | R17: -0.003869078708 | S17: -0.0006182495961 | W17: 1.915034194 | Y17: =IF(W17="","",WORKDAY($B$3,M17,Feriados!$A$2:$A$1037)) -> 2023-09-25 | Z17: =IF(Y17="","",((1+(+(+VLOOKUP(Y17,'Histórico + Projeção'!A:B,2,FALSE)/(VLOOKUP(WORKDAY(WORKDAY($B$3,-1,Feriados!$A$2:$A$10000),1,Feriados!$A$2:$A$10000),'Histórico + Projeção'!A:B,2,FALSE))-1)*100)/100)^(252/(NETWORKDAYS($B$3,Y17-1,Feriados!$A$2:$A$1037)))-1)*100) -> 3.377170789
A18: 0.09920634921 | B18: 25 | C18: 13.0444481 | E18: 0.1218924776 | F18: 0.00855819599 | G18: 0.005361403095 | H18: -0.0053675957 | L18: 0.09920634921 | M18: 25 | N18: 10.89238827 | P18: 0.0578287682 | Q18: 0.05575157836 | R18: -0.004013260664 | S18: -0.0006432031531 | W18: 1.940674074 | Y18: =IF(W18="","",WORKDAY($B$3,M18,Feriados!$A$2:$A$1037)) -> 2023-09-26 | Z18: =IF(Y18="","",((1+(+(+VLOOKUP(Y18,'Histórico + Projeção'!A:B,2,FALSE)/(VLOOKUP(WORKDAY(WORKDAY($B$3,-1,Feriados!$A$2:$A$10000),1,Feriados!$A$2:$A$10000),'Histórico + Projeção'!A:B,2,FALSE))-1)*100)/100)^(252/(NETWORKDAYS($B$3,Y18-1,Feriados!$A$2:$A$1037)))-1)*100) -> 3.437458461
A19: 0.1031746032 | B19: 26 | C19: 13.0376932 | E19: 0.1218924776 | F19: 0.008513276934 | G19: 0.005535935993 | H19: -0.005564758568 | L19: 0.1031746032 | M19: 26 | N19: 10.85818307 | P19: 0.0578287682 | Q19: 0.05557732074 | R19: -0.004156164851 | S19: -0.0006680933472 | W19: 1.966034502 | Y19: =IF(W19="","",WORKDAY($B$3,M19,Feriados!$A$2:$A$1037)) -> 2023-09-27 | Z19: =IF(Y19="","",((1+(+(+VLOOKUP(Y19,'Histórico + Projeção'!A:B,2,FALSE)/(VLOOKUP(WORKDAY(WORKDAY($B$3,-1,Feriados!$A$2:$A$10000),1,Feriados!$A$2:$A$10000),'Histórico + Projeção'!A:B,2,FALSE))-1)*100)/100)^(252/(NETWORKDAYS($B$3,Y19-1,Feriados!$A$2:$A$1037)))-1)*100) -> 3.25351617
A20: 0.1071428571 | B20: 27 | C20: 13.0308255 | E20: 0.1218924776 | F20: 0.008468679342 | G20: 0.005707734807 | H20: -0.005760636768 | L20: 0.1071428571 | M20: 27 | N20: 10.82418461 | P20: 0.0578287682 | Q20: 0.05540379881 | R20: -0.004297800583 | S20: -0.0006929203129 | W20: 1.991118544 | Y20: =IF(W20="","",WORKDAY($B$3,M20,Feriados!$A$2:$A$1037)) -> 2023-09-28 | Z20: =IF(Y20="","",((1+(+(+VLOOKUP(Y20,'Histórico + Projeção'!A:B,2,FALSE)/(VLOOKUP(WORKDAY(WORKDAY($B$3,-1,Feriados!$A$2:$A$10000),1,Feriados!$A$2:$A$10000),'Histórico + Projeção'!A:B,2,FALSE))-1)*100)/100)^(252/(NETWORKDAYS($B$3,Y20-1,Feriados!$A$2:$A$1037)))-1)*100) -> 3.285026898
A21: 0.1111111111 | B21: 28 | C21: 13.0238475 | E21: 0.1218924776 | F21: 0.008424400603 | G21: 0.005876833931 | H21: -0.005955237227 | L21: 0.1111111111 | M21: 28 | N21: 10.7903916 | P21: 0.0578287682 | Q21: 0.05523100908 | R21: -0.004438177108 | S21: -0.000717684185 | W21: 2.015929238 | Y21: =IF(W21="","",WORKDAY($B$3,M21,Feriados!$A$2:$A$1037)) -> 2023-09-29 | Z21: =IF(Y21="","",((1+(+(+VLOOKUP(Y21,'Histórico + Projeção'!A:B,2,FALSE)/(VLOOKUP(WORKDAY(WORKDAY($B$3,-1,Feriados!$A$2:$A$10000),1,Feriados!$A$2:$A$10000),'Histórico + Projeção'!A:B,2,FALSE))-1)*100)/100)^(252/(NETWORKDAYS($B$3,Y21-1,Feriados!$A$2:$A$1037)))-1)*100) -> 3.314295296
A22: 0.1150793651 | B22: 29 | C22: 13.01676163 | E22: 0.1218924776 | F22: 0.008380438128 | G22: 0.006043267353 | H22: -0.006148566839 | L22: 0.1150793651 | M22: 29 | N22: 10.75680275 | P22: 0.0578287682 | Q22: 0.05505894803 | R22: -0.004577303613 | S22: -0.0007423850976 | W22: 2.040469588 | Y22: =IF(W22="","",WORKDAY($B$3,M22,Feriados!$A$2:$A$1037)) -> 2023-10-02 | Z22: =IF(Y22="","",((1+(+(+VLOOKUP(Y22,'Histórico + Projeção'!A:B,2,FALSE)/(VLOOKUP(WORKDAY(WORKDAY($B$3,-1,Feriados!$A$2:$A$10000),1,Feriados!$A$2:$A$10000),'Histórico + Projeção'!A:B,2,FALSE))-1)*100)/100)^(252/(NETWORKDAYS($B$3,Y22-1,Feriados!$A$2:$A$1037)))-1)*100) -> 3.341552683
A23: 0.119047619 | B23: 30 | C23: 13.00957032 | E23: 0.1218924776 | F23: 0.00833678935 | G23: 0.006207068661 | H23: -0.00634063246 | L23: 0.119047619 | M23: 30 | N23: 10.7234168 | P23: 0.0578287682 | Q23: 0.0548876122 | R23: -0.00471518922 | S23: -0.0007670231848 | W23: 2.064742569 | Y23: =IF(W23="","",WORKDAY($B$3,M23,Feriados!$A$2:$A$1037)) -> 2023-10-03 | Z23: =IF(Y23="","",((1+(+(+VLOOKUP(Y23,'Histórico + Projeção'!A:B,2,FALSE)/(VLOOKUP(WORKDAY(WORKDAY($B$3,-1,Feriados!$A$2:$A$10000),1,Feriados!$A$2:$A$10000),'Histórico + Projeção'!A:B,2,FALSE))-1)*100)/100)^(252/(NETWORKDAYS($B$3,Y23-1,Feriados!$A$2:$A$1037)))-1)*100) -> 3.366999439
A24: 0.123015873 | B24: 31 | C24: 13.00227595 | E24: 0.1218924776 | F24: 0.008293451726 | G24: 0.006368271045 | H24: -0.006531440913 | L24: 0.123015873 | M24: 31 | N24: 10.69023248 | P24: 0.0578287682 | Q24: 0.05471699813 | R24: -0.004851842989 | S24: -0.0007915985802 | W24: 2.088751124 | Y24: =IF(W24="","",WORKDAY($B$3,M24,Feriados!$A$2:$A$1037)) -> 2023-10-04 | Z24: =IF(Y24="","",((1+(+(+VLOOKUP(Y24,'Histórico + Projeção'!A:B,2,FALSE)/(VLOOKUP(WORKDAY(WORKDAY($B$3,-1,Feriados!$A$2:$A$10000),1,Feriados!$A$2:$A$10000),'Histórico + Projeção'!A:B,2,FALSE))-1)*100)/100)^(252/(NETWORKDAYS($B$3,Y24-1,Feriados!$A$2:$A$1037)))-1)*100) -> 3.390810176
A25: 0.126984127 | B25: 32 | C25: 12.99488087 | E25: 0.1218924776 | F25: 0.008250422733 | G25: 0.006526907304 | H25: -0.006720998985 | L25: 0.126984127 | M25: 32 | N25: 10.65724852 | P25: 0.0578287682 | Q25: 0.05454710237 | R25: -0.004987273916 | S25: -0.0008161114174 | W25: 2.112498167 | Y25: =IF(W25="","",WORKDAY($B$3,M25,Feriados!$A$2:$A$1037)) -> 2023-10-05 | Z25: =IF(Y25="","",((1+(+(+VLOOKUP(Y25,'Histórico + Projeção'!A:B,2,FALSE)/(VLOOKUP(WORKDAY(WORKDAY($B$3,-1,Feriados!$A$2:$A$10000),1,Feriados!$A$2:$A$10000),'Histórico + Projeção'!A:B,2,FALSE))-1)*100)/100)^(252/(NETWORKDAYS($B$3,Y25-1,Feriados!$A$2:$A$1037)))-1)*100) -> 3.413137557
A26: 0.130952381 | B26: 33 | C26: 12.98738739 | E26: 0.1218924776 | F26: 0.00820769987 | G26: 0.006683009848 | H26: -0.006909313429 | L26: 0.130952381 | M26: 33 | N26: 10.62446369 | P26: 0.0578287682 | Q26: 0.0543779215 | R26: -0.005121490939 | S26: -0.0008405618294 | W26: 2.135986582 | Y26: =IF(W26="","",WORKDAY($B$3,M26,Feriados!$A$2:$A$1037)) -> 2023-10-06 | Z26: =IF(Y26="","",((1+(+(+VLOOKUP(Y26,'Histórico + Projeção'!A:B,2,FALSE)/(VLOOKUP(WORKDAY(WORKDAY($B$3,-1,Feriados!$A$2:$A$10000),1,Feriados!$A$2:$A$10000),'Histórico + Projeção'!A:B,2,FALSE))-1)*100)/100)^(252/(NETWORKDAYS($B$3,Y26-1,Feriados!$A$2:$A$1037)))-1)*100) -> 3.434116373
A27: 0.1349206349 | B27: 34 | C27: 12.9797978 | E27: 0.1218924776 | F27: 0.008165280661 | G27: 0.006836610704 | H27: -0.007096390965 | L27: 0.1349206349 | M27: 34 | N27: 10.59187674 | P27: 0.0578287682 | Q27: 0.05420945212 | R27: -0.00525450293 | S27: -0.0008649499493 | W27: 2.159219223 | Y27: =IF(W27="","",WORKDAY($B$3,M27,Feriados!$A$2:$A$1037)) -> 2023-10-09 | Z27: =IF(Y27="","",((1+(+(+VLOOKUP(Y27,'Histórico + Projeção'!A:B,2,FALSE)/(VLOOKUP(WORKDAY(WORKDAY($B$3,-1,Feriados!$A$2:$A$10000),1,Feriados!$A$2:$A$10000),'Histórico + Projeção'!A:B,2,FALSE))-1)*100)/100)^(252/(NETWORKDAYS($B$3,Y27-1,Feriados!$A$2:$A$1037)))-1)*100) -> 3.453864865
A28: 0.1388888889 | B28: 35 | C28: 12.97211435 | E28: 0.1218924776 | F28: 0.008123162647 | G28: 0.006987741521 | H28: -0.007282238276 | L28: 0.1388888889 | M28: 35 | N28: 10.55948644 | P28: 0.0578287682 | Q28: 0.05404169083 | R28: -0.005386318703 | S28: -0.0008892759097 | W28: 2.182198914 | Y28: =IF(W28="","",WORKDAY($B$3,M28,Feriados!$A$2:$A$1037)) -> 2023-10-10 | Z28: =IF(Y28="","",((1+(+(+VLOOKUP(Y28,'Histórico + Projeção'!A:B,2,FALSE)/(VLOOKUP(WORKDAY(WORKDAY($B$3,-1,Feriados!$A$2:$A$10000),1,Feriados!$A$2:$A$10000),'Histórico + Projeção'!A:B,2,FALSE))-1)*100)/100)^(252/(NETWORKDAYS($B$3,Y28-1,Feriados!$A$2:$A$1037)))-1)*100) -> 3.472488344
A29: 0.1428571429 | B29: 36 | C29: 12.96433926 | E29: 0.1218924776 | F29: 0.008081343393 | G29: 0.007136433574 | H29: -0.007466862012 | L29: 0.1428571429 | M29: 36 | N29: 10.52729156 | P29: 0.0578287682 | Q29: 0.05387463426 | R29: -0.005516947011 | S29: -0.0009135398429 | W29: 2.204928453 | Y29: =IF(W29="","",WORKDAY($B$3,M29,Feriados!$A$2:$A$1037)) -> 2023-10-11 | Z29: =IF(Y29="","",((1+(+(+VLOOKUP(Y29,'Histórico + Projeção'!A:B,2,FALSE)/(VLOOKUP(WORKDAY(WORKDAY($B$3,-1,Feriados!$A$2:$A$10000),1,Feriados!$A$2:$A$10000),'Histórico + Projeção'!A:B,2,FALSE))-1)*100)/100)^(252/(NETWORKDAYS($B$3,Y29-1,Feriados!$A$2:$A$1037)))-1)*100) -> 3.101089672
A30: 0.1468253968 | B30: 37 | C30: 12.95647471 | E30: 0.1218924776 | F30: 0.008039820485 | G30: 0.007282717766 | H30: -0.007650268791 | L30: 0.1468253968 | M30: 37 | N30: 10.49529088 | P30: 0.0578287682 | Q30: 0.05370827906 | R30: -0.005646396544 | S30: -0.0009377418811 | W30: 2.227410605 | Y30: =IF(W30="","",WORKDAY($B$3,M30,Feriados!$A$2:$A$1037)) -> 2023-10-13 | Z30: =IF(Y30="","",((1+(+(+VLOOKUP(Y30,'Histórico + Projeção'!A:B,2,FALSE)/(VLOOKUP(WORKDAY(WORKDAY($B$3,-1,Feriados!$A$2:$A$10000),1,Feriados!$A$2:$A$10000),'Histórico + Projeção'!A:B,2,FALSE))-1)*100)/100)^(252/(NETWORKDAYS($B$3,Y30-1,Feriados!$A$2:$A$1037)))-1)*100) -> 3.107176378
A31: 0.1507936508 | B31: 38 | C31: 12.94852286 | E31: 0.1218924776 | F31: 0.00799859153 | G31: 0.007426624636 | H31: -0.007832465195 | L31: 0.1507936508 | M31: 38 | N31: 10.4634832 | P31: 0.0578287682 | Q31: 0.0535426219 | R31: -0.005774675937 | S31: -0.0009618821561 | W31: 2.24964811 | Y31: =IF(W31="","",WORKDAY($B$3,M31,Feriados!$A$2:$A$1037)) -> 2023-10-16 | Z31: =IF(Y31="","",((1+(+(+VLOOKUP(Y31,'Histórico + Projeção'!A:B,2,FALSE)/(VLOOKUP(WORKDAY(WORKDAY($B$3,-1,Feriados!$A$2:$A$10000),1,Feriados!$A$2:$A$10000),'Histórico + Projeção'!A:B,2,FALSE))-1)*100)/100)^(252/(NETWORKDAYS($B$3,Y31-1,Feriados!$A$2:$A$1037)))-1)*100) -> 3.112943067
A32: 0.1547619048 | B32: 39 | C32: 12.94048584 | E32: 0.1218924776 | F32: 0.007957654154 | G32: 0.00756818436 | H32: -0.008013457773 | L32: 0.1547619048 | M32: 39 | N32: 10.43186731 | P32: 0.0578287682 | Q32: 0.05337765944 | R32: -0.005901793761 | S32: -0.0009859607994 | W32: 2.271643677 | Y32: =IF(W32="","",WORKDAY($B$3,M32,Feriados!$A$2:$A$1037)) -> 2023-10-17 | Z32: =IF(Y32="","",((1+(+(+VLOOKUP(Y32,'Histórico + Projeção'!A:B,2,FALSE)/(VLOOKUP(WORKDAY(WORKDAY($B$3,-1,Feriados!$A$2:$A$10000),1,Feriados!$A$2:$A$10000),'Histórico + Projeção'!A:B,2,FALSE))-1)*100)/100)^(252/(NETWORKDAYS($B$3,Y32-1,Feriados!$A$2:$A$1037)))-1)*100) -> 3.13009747
A33: 0.1587301587 | B33: 40 | C33: 12.93236574 | E33: 0.1218924776 | F33: 0.007917006006 | G33: 0.007707426757 | H33: -0.008193253041 | L33: 0.1587301587 | M33: 40 | N33: 10.40044201 | P33: 0.0578287682 | Q33: 0.05321338839 | R33: -0.00602775853 | S33: -0.001009977943 | W33: 2.293399989 | Y33: =IF(W33="","",WORKDAY($B$3,M33,Feriados!$A$2:$A$1037)) -> 2023-10-18 | Z33: =IF(Y33="","",((1+(+(+VLOOKUP(Y33,'Histórico + Projeção'!A:B,2,FALSE)/(VLOOKUP(WORKDAY(WORKDAY($B$3,-1,Feriados!$A$2:$A$10000),1,Feriados!$A$2:$A$10000),'Histórico + Projeção'!A:B,2,FALSE))-1)*100)/100)^(252/(NETWORKDAYS($B$3,Y33-1,Feriados!$A$2:$A$1037)))-1)*100) -> 3.14639677
A34: 0.1626984127 | B34: 41 | C34: 12.92416462 | E34: 0.1218924776 | F34: 0.007876644753 | G34: 0.007844381293 | H34: -0.008371857481 | L34: 0.1626984127 | M34: 41 | N34: 10.36920612 | P34: 0.0578287682 | Q34: 0.05304980547 | R34: -0.006152578699 | S34: -0.001033933716 | W34: 2.314919701 | Y34: =IF(W34="","",WORKDAY($B$3,M34,Feriados!$A$2:$A$1037)) -> 2023-10-19 | Z34: =IF(Y34="","",((1+(+(+VLOOKUP(Y34,'Histórico + Projeção'!A:B,2,FALSE)/(VLOOKUP(WORKDAY(WORKDAY($B$3,-1,Feriados!$A$2:$A$10000),1,Feriados!$A$2:$A$10000),'Histórico + Projeção'!A:B,2,FALSE))-1)*100)/100)^(252/(NETWORKDAYS($B$3,Y34-1,Feriados!$A$2:$A$1037)))-1)*100) -> 3.161903498
A35: 0.1666666667 | B35: 42 | C35: 12.91588453 | E35: 0.1218924776 | F35: 0.007836568084 | G35: 0.007979077084 | H35: -0.008549277543 | L35: 0.1666666667 | M35: 42 | N35: 10.33815847 | P35: 0.0578287682 | Q35: 0.05288690739 | R35: -0.006276262666 | S35: -0.001057828252 | W35: 2.33620544 | Y35: =IF(W35="","",WORKDAY($B$3,M35,Feriados!$A$2:$A$1037)) -> 2023-10-20 | Z35: =IF(Y35="","",((1+(+(+VLOOKUP(Y35,'Histórico + Projeção'!A:B,2,FALSE)/(VLOOKUP(WORKDAY(WORKDAY($B$3,-1,Feriados!$A$2:$A$10000),1,Feriados!$A$2:$A$10000),'Histórico + Projeção'!A:B,2,FALSE))-1)*100)/100)^(252/(NETWORKDAYS($B$3,Y35-1,Feriados!$A$2:$A$1037)))-1)*100) -> 3.176673948
A36: 0.1706349206 | B36: 43 | C36: 12.90752746 | E36: 0.1218924776 | F36: 0.007796773709 | G36: 0.008111542901 | H36: -0.008725519643 | L36: 0.1706349206 | M36: 43 | N36: 10.30729787 | P36: 0.0578287682 | Q36: 0.05272469091 | R36: -0.006398818769 | S36: -0.001081661679 | W36: 2.357259806 | Y36: =IF(W36="","",WORKDAY($B$3,M36,Feriados!$A$2:$A$1037)) -> 2023-10-23 | Z36: =IF(Y36="","",((1+(+(+VLOOKUP(Y36,'Histórico + Projeção'!A:B,2,FALSE)/(VLOOKUP(WORKDAY(WORKDAY($B$3,-1,Feriados!$A$2:$A$10000),1,Feriados!$A$2:$A$10000),'Histórico + Projeção'!A:B,2,FALSE))-1)*100)/100)^(252/(NETWORKDAYS($B$3,Y36-1,Feriados!$A$2:$A$1037)))-1)*100) -> 3.19075934
A37: 0.1746031746 | B37: 44 | C37: 12.8990954 | E37: 0.1218924776 | F37: 0.007757259354 | G37: 0.008241807174 | H37: -0.008900590166 | L37: 0.1746031746 | M37: 44 | N37: 10.27662316 | P37: 0.0578287682 | Q37: 0.05256315278 | R37: -0.00652025529 | S37: -0.001105434129 | W37: 2.378085373 | Y37: =IF(W37="","",WORKDAY($B$3,M37,Feriados!$A$2:$A$1037)) -> 2023-10-24 | Z37: =IF(Y37="","",((1+(+(+VLOOKUP(Y37,'Histórico + Projeção'!A:B,2,FALSE)/(VLOOKUP(WORKDAY(WORKDAY($B$3,-1,Feriados!$A$2:$A$10000),1,Feriados!$A$2:$A$10000),'Histórico + Projeção'!A:B,2,FALSE))-1)*100)/100)^(252/(NETWORKDAYS($B$3,Y37-1,Feriados!$A$2:$A$1037)))-1)*100) -> 3.20420625
A38: 0.1785714286 | B38: 45 | C38: 12.89059029 | E38: 0.1218924776 | F38: 0.007718022767 | G38: 0.008369897994 | H38: -0.009074495462 | L38: 0.1785714286 | M38: 45 | N38: 10.24613318 | P38: 0.0578287682 | Q38: 0.0524022898 | R38: -0.006640580453 | S38: -0.001129145731 | W38: 2.398684686 | Y38: =IF(W38="","",WORKDAY($B$3,M38,Feriados!$A$2:$A$1037)) -> 2023-10-25 | Z38: =IF(Y38="","",((1+(+(+VLOOKUP(Y38,'Histórico + Projeção'!A:B,2,FALSE)/(VLOOKUP(WORKDAY(WORKDAY($B$3,-1,Feriados!$A$2:$A$10000),1,Feriados!$A$2:$A$10000),'Histórico + Projeção'!A:B,2,FALSE))-1)*100)/100)^(252/(NETWORKDAYS($B$3,Y38-1,Feriados!$A$2:$A$1037)))-1)*100) -> 3.217057263
A39: 0.1825396825 | B39: 46 | C39: 12.88201406 | E39: 0.1218924776 | F39: 0.007679061718 | G39: 0.008495843122 | H39: -0.00924724185 | L39: 0.1825396825 | M39: 46 | N39: 10.21582679 | P39: 0.0578287682 | Q39: 0.05224209876 | R39: -0.006759802427 | S39: -0.001152796616 | W39: 2.419060266 | Y39: =IF(W39="","",WORKDAY($B$3,M39,Feriados!$A$2:$A$1037)) -> 2023-10-26 | Z39: =IF(Y39="","",((1+(+(+VLOOKUP(Y39,'Histórico + Projeção'!A:B,2,FALSE)/(VLOOKUP(WORKDAY(WORKDAY($B$3,-1,Feriados!$A$2:$A$10000),1,Feriados!$A$2:$A$10000),'Histórico + Projeção'!A:B,2,FALSE))-1)*100)/100)^(252/(NETWORKDAYS($B$3,Y39-1,Feriados!$A$2:$A$1037)))-1)*100) -> 3.229350999
A40: 0.1865079365 | B40: 47 | C40: 12.8733686 | E40: 0.1218924776 | F40: 0.007640373991 | G40: 0.008619669986 | H40: -0.009418835618 | L40: 0.1865079365 | M40: 47 | N40: 10.18570284 | P40: 0.0578287682 | Q40: 0.05208257646 | R40: -0.006877929322 | S40: -0.001176386912 | W40: 2.439214607 | Y40: =IF(W40="","",WORKDAY($B$3,M40,Feriados!$A$2:$A$1037)) -> 2023-10-27 | Z40: =IF(Y40="","",((1+(+(+VLOOKUP(Y40,'Histórico + Projeção'!A:B,2,FALSE)/(VLOOKUP(WORKDAY(WORKDAY($B$3,-1,Feriados!$A$2:$A$10000),1,Feriados!$A$2:$A$10000),'Histórico + Projeção'!A:B,2,FALSE))-1)*100)/100)^(252/(NETWORKDAYS($B$3,Y40-1,Feriados!$A$2:$A$1037)))-1)*100) -> 3.1465467
A41: 0.1904761905 | B41: 48 | C41: 12.86465577 | E41: 0.1218924776 | F41: 0.007601957392 | G41: 0.008741405688 | H41: -0.009589283019 | L41: 0.1904761905 | M41: 48 | N41: 10.1557602 | P41: 0.0578287682 | Q41: 0.05192371973 | R41: -0.006994969194 | S41: -0.001199916748 | W41: 2.459150177 | Y41: =IF(W41="","",WORKDAY($B$3,M41,Feriados!$A$2:$A$1037)) -> 2023-10-30 | Z41: =IF(Y41="","",((1+(+(+VLOOKUP(Y41,'Histórico + Projeção'!A:B,2,FALSE)/(VLOOKUP(WORKDAY(WORKDAY($B$3,-1,Feriados!$A$2:$A$10000),1,Feriados!$A$2:$A$10000),'Histórico + Projeção'!A:B,2,FALSE))-1)*100)/100)^(252/(NETWORKDAYS($B$3,Y41-1,Feriados!$A$2:$A$1037)))-1)*100) -> 3.149503008
A42: 0.1944444444 | B42: 49 | C42: 12.85587741 | E42: 0.1218924776 | F42: 0.007563809748 | G42: 0.008861077011 | H42: -0.009758590277 | L42: 0.1944444444 | M42: 49 | N42: 10.12599773 | P42: 0.0578287682 | Q42: 0.05176552543 | R42: -0.007110930042 | S42: -0.001223386254 | W42: 2.478869419 | Y42: =IF(W42="","",WORKDAY($B$3,M42,Feriados!$A$2:$A$1037)) -> 2023-10-31 | Z42: =IF(Y42="","",((1+(+(+VLOOKUP(Y42,'Histórico + Projeção'!A:B,2,FALSE)/(VLOOKUP(WORKDAY(WORKDAY($B$3,-1,Feriados!$A$2:$A$10000),1,Feriados!$A$2:$A$10000),'Histórico + Projeção'!A:B,2,FALSE))-1)*100)/100)^(252/(NETWORKDAYS($B$3,Y42-1,Feriados!$A$2:$A$1037)))-1)*100) -> 3.152338922
A43: 0.1984126984 | B43: 50 | C43: 12.84703534 | E43: 0.1218924776 | F43: 0.0075259289 | G43: 0.008978710417 | H43: -0.009926763581 | L43: 0.1984126984 | M43: 50 | N43: 10.09641432 | P43: 0.0578287682 | Q43: 0.05160799041 | R43: -0.007225819813 | S43: -0.001246795559 | W43: 2.498374749 | Y43: =IF(W43="","",WORKDAY($B$3,M43,Feriados!$A$2:$A$1037)) -> 2023-11-01 | Z43: =IF(Y43="","",((1+(+(+VLOOKUP(Y43,'Histórico + Projeção'!A:B,2,FALSE)/(VLOOKUP(WORKDAY(WORKDAY($B$3,-1,Feriados!$A$2:$A$10000),1,Feriados!$A$2:$A$10000),'Histórico + Projeção'!A:B,2,FALSE))-1)*100)/100)^(252/(NETWORKDAYS($B$3,Y43-1,Feriados!$A$2:$A$1037)))-1)*100) -> 3.155061282
A44: 0.2023809524 | B44: 51 | C44: 12.83813133 | E44: 0.1218924776 | F44: 0.007488312712 | G44: 0.009094332054 | H44: -0.01009380909 | L44: 0.2023809524 | M44: 51 | N44: 10.06700886 | P44: 0.0578287682 | Q44: 0.05145111155 | R44: -0.007339646395 | S44: -0.001270144791 | W44: 2.517668559 | Y44: =IF(W44="","",WORKDAY($B$3,M44,Feriados!$A$2:$A$1037)) -> 2023-11-03 | Z44: =IF(Y44="","",((1+(+(+VLOOKUP(Y44,'Histórico + Projeção'!A:B,2,FALSE)/(VLOOKUP(WORKDAY(WORKDAY($B$3,-1,Feriados!$A$2:$A$10000),1,Feriados!$A$2:$A$10000),'Histórico + Projeção'!A:B,2,FALSE))-1)*100)/100)^(252/(NETWORKDAYS($B$3,Y44-1,Feriados!$A$2:$A$1037)))-1)*100) -> 3.157677132
A45: 0.2063492063 | B45: 52 | C45: 12.82916715 | E45: 0.1218924776 | F45: 0.007450959064 | G45: 0.009207967758 | H45: -0.01025973294 | L45: 0.2063492063 | M45: 52 | N45: 10.03778022 | P45: 0.0578287682 | Q45: 0.05129488574 | R45: -0.007452417624 | S45: -0.001293434077 | W45: 2.536753217 | Y45: =IF(W45="","",WORKDAY($B$3,M45,Feriados!$A$2:$A$1037)) -> 2023-11-06 | Z45: =IF(Y45="","",((1+(+(+VLOOKUP(Y45,'Histórico + Projeção'!A:B,2,FALSE)/(VLOOKUP(WORKDAY(WORKDAY($B$3,-1,Feriados!$A$2:$A$10000),1,Feriados!$A$2:$A$10000),'Histórico + Projeção'!A:B,2,FALSE))-1)*100)/100)^(252/(NETWORKDAYS($B$3,Y45-1,Feriados!$A$2:$A$1037)))-1)*100) -> 3.160192371
A46: 0.2103174603 | B46: 53 | C46: 12.82014454 | E46: 0.1218924776 | F46: 0.007413865854 | G46: 0.00931964306 | H46: -0.01042454121 | L46: 0.2103174603 | M46: 53 | N46: 10.00872733 | P46: 0.0578287682 | Q46: 0.05113930989 | R46: -0.007564141281 | S46: -0.001316663547 | W46: 2.555631064 | Y46: =IF(W46="","",WORKDAY($B$3,M46,Feriados!$A$2:$A$1037)) -> 2023-11-07 | Z46: =IF(Y46="","",((1+(+(+VLOOKUP(Y46,'Histórico + Projeção'!A:B,2,FALSE)/(VLOOKUP(WORKDAY(WORKDAY($B$3,-1,Feriados!$A$2:$A$10000),1,Feriados!$A$2:$A$10000),'Histórico + Projeção'!A:B,2,FALSE))-1)*100)/100)^(252/(NETWORKDAYS($B$3,Y46-1,Feriados!$A$2:$A$1037)))-1)*100) -> 3.16261269
A47: 0.2142857143 | B47: 54 | C47: 12.81106519 | E47: 0.1218924776 | F47: 0.007377031001 | G47: 0.009429383184 | H47: -0.01058823998 | L47: 0.2142857143 | M47: 54 | N47: 9.97984907 | P47: 0.0578287682 | Q47: 0.05098438092 | R47: -0.007674825094 | S47: -0.001339833327 | W47: 2.57430442 | Y47: =IF(W47="","",WORKDAY($B$3,M47,Feriados!$A$2:$A$1037)) -> 2023-11-08 | Z47: =IF(Y47="","",((1+(+(+VLOOKUP(Y47,'Histórico + Projeção'!A:B,2,FALSE)/(VLOOKUP(WORKDAY(WORKDAY($B$3,-1,Feriados!$A$2:$A$10000),1,Feriados!$A$2:$A$10000),'Histórico + Projeção'!A:B,2,FALSE))-1)*100)/100)^(252/(NETWORKDAYS($B$3,Y47-1,Feriados!$A$2:$A$1037)))-1)*100) -> 3.151584472
A48: 0.2182539683 | B48: 55 | C48: 12.80193079 | E48: 0.1218924776 | F48: 0.007340452438 | G48: 0.009537213055 | H48: -0.01075083528 | L48: 0.2182539683 | M48: 55 | N48: 9.951144369 | P48: 0.0578287682 | Q48: 0.05083009578 | R48: -0.007784476737 | S48: -0.001362943545 | W48: 2.592775576 | Y48: =IF(W48="","",WORKDAY($B$3,M48,Feriados!$A$2:$A$1037)) -> 2023-11-09 | Z48: =IF(Y48="","",((1+(+(+VLOOKUP(Y48,'Histórico + Projeção'!A:B,2,FALSE)/(VLOOKUP(WORKDAY(WORKDAY($B$3,-1,Feriados!$A$2:$A$10000),1,Feriados!$A$2:$A$10000),'Histórico + Projeção'!A:B,2,FALSE))-1)*100)/100)^(252/(NETWORKDAYS($B$3,Y48-1,Feriados!$A$2:$A$1037)))-1)*100) -> 3.153253404
A49: 0.2222222222 | B49: 56 | C49: 12.79274299 | E49: 0.1218924776 | F49: 0.007304128118 | G49: 0.009643157301 | H49: -0.01091233312 | L49: 0.2222222222 | M49: 56 | N49: 9.922612145 | P49: 0.0578287682 | Q49: 0.05067645141 | R49: -0.007893103831 | S49: -0.001385994329 | W49: 2.611046803 | Y49: =IF(W49="","",WORKDAY($B$3,M49,Feriados!$A$2:$A$1037)) -> 2023-11-10 | Z49: =IF(Y49="","",((1+(+(+VLOOKUP(Y49,'Histórico + Projeção'!A:B,2,FALSE)/(VLOOKUP(WORKDAY(WORKDAY($B$3,-1,Feriados!$A$2:$A$10000),1,Feriados!$A$2:$A$10000),'Histórico + Projeção'!A:B,2,FALSE))-1)*100)/100)^(252/(NETWORKDAYS($B$3,Y49-1,Feriados!$A$2:$A$1037)))-1)*100) -> 3.154862757
A50: 0.2261904762 | B50: 57 | C50: 12.78350345 | E50: 0.1218924776 | F50: 0.007268056013 | G50: 0.009747240256 | H50: -0.01107273946 | L50: 0.2261904762 | M50: 57 | N50: 9.894251324 | P50: 0.0578287682 | Q50: 0.05052344479 | R50: -0.008000713945 | S50: -0.001408985804 | W50: 2.629120347 | Y50: =IF(W50="","",WORKDAY($B$3,M50,Feriados!$A$2:$A$1037)) -> 2023-11-13 | Z50: =IF(Y50="","",((1+(+(+VLOOKUP(Y50,'Histórico + Projeção'!A:B,2,FALSE)/(VLOOKUP(WORKDAY(WORKDAY($B$3,-1,Feriados!$A$2:$A$10000),1,Feriados!$A$2:$A$10000),'Histórico + Projeção'!A:B,2,FALSE))-1)*100)/100)^(252/(NETWORKDAYS($B$3,Y50-1,Feriados!$A$2:$A$1037)))-1)*100) -> 3.156415665
A51: 0.2301587302 | B51: 58 | C51: 12.77421375 | E51: 0.1218924776 | F51: 0.007232234108 | G51: 0.009849485966 | H51: -0.01123206025 | L51: 0.2301587302 | M51: 58 | N51: 9.866060841 | P51: 0.0578287682 | Q51: 0.0503710729 | R51: -0.008107314595 | S51: -0.001431918098 | W51: 2.646998431 | Y51: =IF(W51="","",WORKDAY($B$3,M51,Feriados!$A$2:$A$1037)) -> 2023-11-14 | Z51: =IF(Y51="","",((1+(+(+VLOOKUP(Y51,'Histórico + Projeção'!A:B,2,FALSE)/(VLOOKUP(WORKDAY(WORKDAY($B$3,-1,Feriados!$A$2:$A$10000),1,Feriados!$A$2:$A$10000),'Histórico + Projeção'!A:B,2,FALSE))-1)*100)/100)^(252/(NETWORKDAYS($B$3,Y51-1,Feriados!$A$2:$A$1037)))-1)*100) -> 3.157915047
A52: 0.2341269841 | B52: 59 | C52: 12.76487548 | E52: 0.1218924776 | F52: 0.007196660411 | G52: 0.009949918186 | H52: -0.0113903014 | L52: 0.2341269841 | M52: 59 | N52: 9.838039637 | P52: 0.0578287682 | Q52: 0.05021933275 | R52: -0.008212913245 | S52: -0.001454791337 | W52: 2.664683253 | Y52: =IF(W52="","",WORKDAY($B$3,M52,Feriados!$A$2:$A$1037)) -> 2023-11-16 | Z52: =IF(Y52="","",((1+(+(+VLOOKUP(Y52,'Histórico + Projeção'!A:B,2,FALSE)/(VLOOKUP(WORKDAY(WORKDAY($B$3,-1,Feriados!$A$2:$A$10000),1,Feriados!$A$2:$A$10000),'Histórico + Projeção'!A:B,2,FALSE))-1)*100)/100)^(252/(NETWORKDAYS($B$3,Y52-1,Feriados!$A$2:$A$1037)))-1)*100) -> 3.159363623
A53: 0.2380952381 | B53: 60 | C53: 12.75549022 | E53: 0.1218924776 | F53: 0.007161332943 | G53: 0.01004856039 | H53: -0.0115474688 | L53: 0.2380952381 | M53: 60 | N53: 9.810186659 | P53: 0.0578287682 | Q53: 0.05006822135 | R53: -0.008317517309 | S53: -0.001477605647 | W53: 2.68217699 | Y53: =IF(W53="","",WORKDAY($B$3,M53,Feriados!$A$2:$A$1037)) -> 2023-11-17 | Z53: =IF(Y53="","",((1+(+(+VLOOKUP(Y53,'Histórico + Projeção'!A:B,2,FALSE)/(VLOOKUP(WORKDAY(WORKDAY($B$3,-1,Feriados!$A$2:$A$10000),1,Feriados!$A$2:$A$10000),'Histórico + Projeção'!A:B,2,FALSE))-1)*100)/100)^(252/(NETWORKDAYS($B$3,Y53-1,Feriados!$A$2:$A$1037)))-1)*100) -> 3.192362068
A54: 0.2420634921 | B54: 61 | C54: 12.74605949 | E54: 0.1218924776 | F54: 0.007126249742 | G54: 0.01014543577 | H54: -0.01170356828 | L54: 0.2420634921 | M54: 61 | N54: 9.782500863 | P54: 0.0578287682 | Q54: 0.04991773574 | R54: -0.008421134147 | S54: -0.001500361154 | W54: 2.699481795 | Y54: =IF(W54="","",WORKDAY($B$3,M54,Feriados!$A$2:$A$1037)) -> 2023-11-20 | Z54: =IF(Y54="","",((1+(+(+VLOOKUP(Y54,'Histórico + Projeção'!A:B,2,FALSE)/(VLOOKUP(WORKDAY(WORKDAY($B$3,-1,Feriados!$A$2:$A$10000),1,Feriados!$A$2:$A$10000),'Histórico + Projeção'!A:B,2,FALSE))-1)*100)/100)^(252/(NETWORKDAYS($B$3,Y54-1,Feriados!$A$2:$A$1037)))-1)*100) -> 3.224288638
A55: 0.246031746 | B55: 62 | C55: 12.73658481 | E55: 0.1218924776 | F55: 0.007091408867 | G55: 0.01024056725 | H55: -0.01185860569 | L55: 0.246031746 | M55: 62 | N55: 9.754981209 | P55: 0.0578287682 | Q55: 0.04976787295 | R55: -0.008523771069 | S55: -0.001523057984 | W55: 2.716599799 | Y55: =IF(W55="","",WORKDAY($B$3,M55,Feriados!$A$2:$A$1037)) -> 2023-11-21 | Z55: =IF(Y55="","",((1+(+(+VLOOKUP(Y55,'Histórico + Projeção'!A:B,2,FALSE)/(VLOOKUP(WORKDAY(WORKDAY($B$3,-1,Feriados!$A$2:$A$10000),1,Feriados!$A$2:$A$10000),'Histórico + Projeção'!A:B,2,FALSE))-1)*100)/100)^(252/(NETWORKDAYS($B$3,Y55-1,Feriados!$A$2:$A$1037)))-1)*100) -> 3.255194724
A56: 0.25 | B56: 63 | C56: 12.72706767 | E56: 0.1218924776 | F56: 0.007056808388 | G56: 0.01033397747 | H56: -0.0120125868 | L56: 0.25 | M56: 63 | N56: 9.727626665 | P56: 0.0578287682 | Q56: 0.04961863006 | R56: -0.008625435337 | S56: -0.001545696262 | W56: 2.73353311 | Y56: =IF(W56="","",WORKDAY($B$3,M56,Feriados!$A$2:$A$1037)) -> 2023-11-22 | Z56: =IF(Y56="","",((1+(+(+VLOOKUP(Y56,'Histórico + Projeção'!A:B,2,FALSE)/(VLOOKUP(WORKDAY(WORKDAY($B$3,-1,Feriados!$A$2:$A$10000),1,Feriados!$A$2:$A$10000),'Histórico + Projeção'!A:B,2,FALSE))-1)*100)/100)^(252/(NETWORKDAYS($B$3,Y56-1,Feriados!$A$2:$A$1037)))-1)*100) -> 3.285128482
A57: 0.253968254 | B57: 64 | C57: 12.71750955 | E57: 0.1218924776 | F57: 0.007022446396 | G57: 0.01042568879 | H57: -0.01216551738 | L57: 0.253968254 | M57: 64 | N57: 9.700436206 | P57: 0.0578287682 | Q57: 0.04947000413 | R57: -0.008726134159 | S57: -0.001568276113 | W57: 2.750283813 | Y57: =IF(W57="","",WORKDAY($B$3,M57,Feriados!$A$2:$A$1037)) -> 2023-11-23 | Z57: =IF(Y57="","",((1+(+(+VLOOKUP(Y57,'Histórico + Projeção'!A:B,2,FALSE)/(VLOOKUP(WORKDAY(WORKDAY($B$3,-1,Feriados!$A$2:$A$10000),1,Feriados!$A$2:$A$10000),'Histórico + Projeção'!A:B,2,FALSE))-1)*100)/100)^(252/(NETWORKDAYS($B$3,Y57-1,Feriados!$A$2:$A$1037)))-1)*100) -> 3.314135085
A58: 0.2579365079 | B58: 65 | C58: 12.70791188 | E58: 0.1218924776 | F58: 0.006988320996 | G58: 0.01051572333 | H58: -0.01231740316 | L58: 0.2579365079 | M58: 65 | N58: 9.67340881 | P58: 0.0578287682 | Q58: 0.04932199226 | R58: -0.008825874696 | S58: -0.001590797662 | W58: 2.766853975 | Y58: =IF(W58="","",WORKDAY($B$3,M58,Feriados!$A$2:$A$1037)) -> 2023-11-24 | Z58: =IF(Y58="","",((1+(+(+VLOOKUP(Y58,'Histórico + Projeção'!A:B,2,FALSE)/(VLOOKUP(WORKDAY(WORKDAY($B$3,-1,Feriados!$A$2:$A$10000),1,Feriados!$A$2:$A$10000),'Histórico + Projeção'!A:B,2,FALSE))-1)*100)/100)^(252/(NETWORKDAYS($B$3,Y58-1,Feriados!$A$2:$A$1037)))-1)*100) -> 3.342256951
A59: 0.2619047619 | B59: 66 | C59: 12.6982761 | E59: 0.1218924776 | F59: 0.006954430311 | G59: 0.01060410292 | H59: -0.01246824985 | L59: 0.2619047619 | M59: 66 | N59: 9.646543467 | P59: 0.0578287682 | Q59: 0.04917459156 | R59: -0.008924664057 | S59: -0.001613261034 | W59: 2.783245636 | Y59: =IF(W59="","",WORKDAY($B$3,M59,Feriados!$A$2:$A$1037)) -> 2023-11-27 | Z59: =IF(Y59="","",((1+(+(+VLOOKUP(Y59,'Histórico + Projeção'!A:B,2,FALSE)/(VLOOKUP(WORKDAY(WORKDAY($B$3,-1,Feriados!$A$2:$A$10000),1,Feriados!$A$2:$A$10000),'Histórico + Projeção'!A:B,2,FALSE))-1)*100)/100)^(252/(NETWORKDAYS($B$3,Y59-1,Feriados!$A$2:$A$1037)))-1)*100) -> 3.36953395
A60: 0.2658730159 | B60: 67 | C60: 12.68860362 | E60: 0.1218924776 | F60: 0.006920772478 | G60: 0.01069084915 | H60: -0.01261806313 | L60: 0.2658730159 | M60: 67 | N60: 9.619839169 | P60: 0.0578287682 | Q60: 0.04902779915 | R60: -0.009022509304 | S60: -0.001635666353 | W60: 2.799460818 | Y60: =IF(W60="","",WORKDAY($B$3,M60,Feriados!$A$2:$A$1037)) -> 2023-11-28 | Z60: =IF(Y60="","",((1+(+(+VLOOKUP(Y60,'Histórico + Projeção'!A:B,2,FALSE)/(VLOOKUP(WORKDAY(WORKDAY($B$3,-1,Feriados!$A$2:$A$10000),1,Feriados!$A$2:$A$10000),'Histórico + Projeção'!A:B,2,FALSE))-1)*100)/100)^(252/(NETWORKDAYS($B$3,Y60-1,Feriados!$A$2:$A$1037)))-1)*100) -> 3.39600359
A61: 0.2698412698 | B61: 68 | C61: 12.6788958 | E61: 0.1218924776 | F61: 0.006887345651 | G61: 0.01077598333 | H61: -0.01276684862 | L61: 0.2698412698 | M61: 68 | N61: 9.593294916 | P61: 0.0578287682 | Q61: 0.04888161215 | R61: -0.009119417449 | S61: -0.001658013742 | W61: 2.815501521 | Y61: =IF(W61="","",WORKDAY($B$3,M61,Feriados!$A$2:$A$1037)) -> 2023-11-29 | Z61: =IF(Y61="","",((1+(+(+VLOOKUP(Y61,'Histórico + Projeção'!A:B,2,FALSE)/(VLOOKUP(WORKDAY(WORKDAY($B$3,-1,Feriados!$A$2:$A$10000),1,Feriados!$A$2:$A$10000),'Histórico + Projeção'!A:B,2,FALSE))-1)*100)/100)^(252/(NETWORKDAYS($B$3,Y61-1,Feriados!$A$2:$A$1037)))-1)*100) -> 3.421701194
A62: 0.2738095238 | B62: 69 | C62: 12.66915402 | E62: 0.1218924776 | F62: 0.006854148 | G62: 0.01085952653 | H62: -0.01291461196 | L62: 0.2738095238 | M62: 69 | N62: 9.566909714 | P62: 0.0578287682 | Q62: 0.04873602773 | R62: -0.009215395456 | S62: -0.001680303327 | W62: 2.831369722 | Y62: =IF(W62="","",WORKDAY($B$3,M62,Feriados!$A$2:$A$1037)) -> 2023-11-30 | Z62: =IF(Y62="","",((1+(+(+VLOOKUP(Y62,'Histórico + Projeção'!A:B,2,FALSE)/(VLOOKUP(WORKDAY(WORKDAY($B$3,-1,Feriados!$A$2:$A$10000),1,Feriados!$A$2:$A$10000),'Histórico + Projeção'!A:B,2,FALSE))-1)*100)/100)^(252/(NETWORKDAYS($B$3,Y62-1,Feriados!$A$2:$A$1037)))-1)*100) -> 3.446660051
A63: 0.2777777778 | B63: 70 | C63: 12.65937962 | E63: 0.1218924776 | F63: 0.006821177711 | G63: 0.01094149955 | H63: -0.01306135873 | L63: 0.2777777778 | M63: 70 | N63: 9.540682577 | P63: 0.0578287682 | Q63: 0.04859104304 | R63: -0.009310450239 | S63: -0.001702535229 | W63: 2.84706738 | Y63: =IF(W63="","",WORKDAY($B$3,M63,Feriados!$A$2:$A$1037)) -> 2023-12-01 | Z63: =IF(Y63="","",((1+(+(+VLOOKUP(Y63,'Histórico + Projeção'!A:B,2,FALSE)/(VLOOKUP(WORKDAY(WORKDAY($B$3,-1,Feriados!$A$2:$A$10000),1,Feriados!$A$2:$A$10000),'Histórico + Projeção'!A:B,2,FALSE))-1)*100)/100)^(252/(NETWORKDAYS($B$3,Y63-1,Feriados!$A$2:$A$1037)))-1)*100) -> 3.470911566
A64: 0.2817460317 | B64: 71 | C64: 12.64957391 | E64: 0.1218924776 | F64: 0.006788432985 | G64: 0.01102192298 | H64: -0.01320709449 | L64: 0.2817460317 | M64: 71 | N64: 9.514612522 | P64: 0.0578287682 | Q64: 0.04844665526 | R64: -0.009404588666 | S64: -0.001724709574 | W64: 2.862596432 | Y64: =IF(W64="","",WORKDAY($B$3,M64,Feriados!$A$2:$A$1037)) -> 2023-12-04 | Z64: =IF(Y64="","",((1+(+(+VLOOKUP(Y64,'Histórico + Projeção'!A:B,2,FALSE)/(VLOOKUP(WORKDAY(WORKDAY($B$3,-1,Feriados!$A$2:$A$10000),1,Feriados!$A$2:$A$10000),'Histórico + Projeção'!A:B,2,FALSE))-1)*100)/100)^(252/(NETWORKDAYS($B$3,Y64-1,Feriados!$A$2:$A$1037)))-1)*100) -> 3.494485387
A65: 0.2857142857 | B65: 72 | C65: 12.6397382 | E65: 0.1218924776 | F65: 0.006755912039 | G65: 0.01110081711 | H65: -0.01335182477 | L65: 0.2857142857 | M65: 72 | N65: 9.488698575 | P65: 0.0578287682 | Q65: 0.04830286159 | R65: -0.009497817558 | S65: -0.001746826484 | W65: 2.877958793 | Y65: =IF(W65="","",WORKDAY($B$3,M65,Feriados!$A$2:$A$1037)) -> 2023-12-05 | Z65: =IF(Y65="","",((1+(+(+VLOOKUP(Y65,'Histórico + Projeção'!A:B,2,FALSE)/(VLOOKUP(WORKDAY(WORKDAY($B$3,-1,Feriados!$A$2:$A$10000),1,Feriados!$A$2:$A$10000),'Histórico + Projeção'!A:B,2,FALSE))-1)*100)/100)^(252/(NETWORKDAYS($B$3,Y65-1,Feriados!$A$2:$A$1037)))-1)*100) -> 3.517409528
A66: 0.2896825397 | B66: 73 | C66: 12.62987377 | E66: 0.1218924776 | F66: 0.006723613103 | G66: 0.01117820203 | H66: -0.01349555507 | L66: 0.2896825397 | M66: 73 | N66: 9.462939766 | P66: 0.0578287682 | Q66: 0.04815965923 | R66: -0.009590143686 | S66: -0.001768886081 | W66: 2.893156361 | Y66: =IF(W66="","",WORKDAY($B$3,M66,Feriados!$A$2:$A$1037)) -> 2023-12-06 | Z66: =IF(Y66="","",((1+(+(+VLOOKUP(Y66,'Histórico + Projeção'!A:B,2,FALSE)/(VLOOKUP(WORKDAY(WORKDAY($B$3,-1,Feriados!$A$2:$A$10000),1,Feriados!$A$2:$A$10000),'Histórico + Projeção'!A:B,2,FALSE))-1)*100)/100)^(252/(NETWORKDAYS($B$3,Y66-1,Feriados!$A$2:$A$1037)))-1)*100) -> 3.539710482
A67: 0.2936507937 | B67: 74 | C67: 12.61998188 | E67: 0.1218924776 | F67: 0.006691534425 | G67: 0.01125409756 | H67: -0.01363829086 | L67: 0.2936507937 | M67: 74 | N67: 9.437335134 | P67: 0.0578287682 | Q67: 0.04801704541 | R67: -0.009681573776 | S67: -0.001790888489 | W67: 2.908191011 | Y67: =IF(W67="","",WORKDAY($B$3,M67,Feriados!$A$2:$A$1037)) -> 2023-12-07 | Z67: =IF(Y67="","",((1+(+(+VLOOKUP(Y67,'Histórico + Projeção'!A:B,2,FALSE)/(VLOOKUP(WORKDAY(WORKDAY($B$3,-1,Feriados!$A$2:$A$10000),1,Feriados!$A$2:$A$10000),'Histórico + Projeção'!A:B,2,FALSE))-1)*100)/100)^(252/(NETWORKDAYS($B$3,Y67-1,Feriados!$A$2:$A$1037)))-1)*100) -> 3.561413319
A68: 0.2976190476 | B68: 75 | C68: 12.61006376 | E68: 0.1218924776 | F68: 0.006659674266 | G68: 0.0113285233 | H68: -0.0137800376 | L68: 0.2976190476 | M68: 75 | N68: 9.411883721 | P68: 0.0578287682 | Q68: 0.04787501735 | R68: -0.009772114508 | S68: -0.00181283383 | W68: 2.923064599 | Y68: =IF(W68="","",WORKDAY($B$3,M68,Feriados!$A$2:$A$1037)) -> 2023-12-08 | Z68: =IF(Y68="","",((1+(+(+VLOOKUP(Y68,'Histórico + Projeção'!A:B,2,FALSE)/(VLOOKUP(WORKDAY(WORKDAY($B$3,-1,Feriados!$A$2:$A$10000),1,Feriados!$A$2:$A$10000),'Histórico + Projeção'!A:B,2,FALSE))-1)*100)/100)^(252/(NETWORKDAYS($B$3,Y68-1,Feriados!$A$2:$A$1037)))-1)*100) -> 3.582541782
A69: 0.3015873016 | B69: 76 | C69: 12.60012065 | E69: 0.1218924776 | F69: 0.006628030903 | G69: 0.01140149861 | H69: -0.0139208007 | L69: 0.3015873016 | M69: 76 | N69: 9.386584578 | P69: 0.0578287682 | Q69: 0.04773357232 | R69: -0.009861772514 | S69: -0.001834722225 | W69: 2.937778962 | Y69: =IF(W69="","",WORKDAY($B$3,M69,Feriados!$A$2:$A$1037)) -> 2023-12-11 | Z69: =IF(Y69="","",((1+(+(+VLOOKUP(Y69,'Histórico + Projeção'!A:B,2,FALSE)/(VLOOKUP(WORKDAY(WORKDAY($B$3,-1,Feriados!$A$2:$A$10000),1,Feriados!$A$2:$A$10000),'Histórico + Projeção'!A:B,2,FALSE))-1)*100)/100)^(252/(NETWORKDAYS($B$3,Y69-1,Feriados!$A$2:$A$1037)))-1)*100) -> 3.603118375
A70: 0.3055555556 | B70: 77 | C70: 12.59015373 | E70: 0.1218924776 | F70: 0.006596602628 | G70: 0.01147304261 | H70: -0.01406058554 | L70: 0.3055555556 | M70: 77 | N70: 9.361436758 | P70: 0.0578287682 | Q70: 0.04759270756 | R70: -0.00995055438 | S70: -0.001856553797 | W70: 2.952335917 | Y70: =IF(W70="","",WORKDAY($B$3,M70,Feriados!$A$2:$A$1037)) -> 2023-12-12 | Z70: =IF(Y70="","",((1+(+(+VLOOKUP(Y70,'Histórico + Projeção'!A:B,2,FALSE)/(VLOOKUP(WORKDAY(WORKDAY($B$3,-1,Feriados!$A$2:$A$10000),1,Feriados!$A$2:$A$10000),'Histórico + Projeção'!A:B,2,FALSE))-1)*100)/100)^(252/(NETWORKDAYS($B$3,Y70-1,Feriados!$A$2:$A$1037)))-1)*100) -> 3.623164441
A71: 0.3095238095 | B71: 78 | C71: 12.58016421 | E71: 0.1218924776 | F71: 0.006565387746 | G71: 0.0115431742 | H71: -0.0141993975 | L71: 0.3095238095 | M71: 78 | N71: 9.336439325 | P71: 0.0578287682 | Q71: 0.04745242037 | R71: -0.01003846665 | S71: -0.001878328668 | W71: 2.966737261 | Y71: =IF(W71="","",WORKDAY($B$3,M71,Feriados!$A$2:$A$1037)) -> 2023-12-13 | Z71: =IF(Y71="","",((1+(+(+VLOOKUP(Y71,'Histórico + Projeção'!A:B,2,FALSE)/(VLOOKUP(WORKDAY(WORKDAY($B$3,-1,Feriados!$A$2:$A$10000),1,Feriados!$A$2:$A$10000),'Histórico + Projeção'!A:B,2,FALSE))-1)*100)/100)^(252/(NETWORKDAYS($B$3,Y71-1,Feriados!$A$2:$A$1037)))-1)*100) -> 3.642700235
A72: 0.3134920635 | B72: 79 | C72: 12.57015324 | E72: 0.1218924776 | F72: 0.006534384578 | G72: 0.01161191205 | H72: -0.01433724191 | L72: 0.3134920635 | M72: 79 | N72: 9.311591344 | P72: 0.0578287682 | Q72: 0.04731270802 | R72: -0.01012551581 | S72: -0.001900046958 | W72: 2.980984773 | Y72: =IF(W72="","",WORKDAY($B$3,M72,Feriados!$A$2:$A$1037)) -> 2023-12-14 | Z72: =IF(Y72="","",((1+(+(+VLOOKUP(Y72,'Histórico + Projeção'!A:B,2,FALSE)/(VLOOKUP(WORKDAY(WORKDAY($B$3,-1,Feriados!$A$2:$A$10000),1,Feriados!$A$2:$A$10000),'Histórico + Projeção'!A:B,2,FALSE))-1)*100)/100)^(252/(NETWORKDAYS($B$3,Y72-1,Feriados!$A$2:$A$1037)))-1)*100) -> 3.661744997
A73: 0.3174603175 | B73: 80 | C73: 12.56012196 | E73: 0.1218924776 | F73: 0.006503591458 | G73: 0.0116792746 | H73: -0.01447412407 | L73: 0.3174603175 | M73: 80 | N73: 9.28689189 | P73: 0.0578287682 | Q73: 0.04717356782 | R73: -0.01021170832 | S73: -0.001921708789 | W73: 2.995080212 | Y73: =IF(W73="","",WORKDAY($B$3,M73,Feriados!$A$2:$A$1037)) -> 2023-12-15 | Z73: =IF(Y73="","",((1+(+(+VLOOKUP(Y73,'Histórico + Projeção'!A:B,2,FALSE)/(VLOOKUP(WORKDAY(WORKDAY($B$3,-1,Feriados!$A$2:$A$10000),1,Feriados!$A$2:$A$10000),'Histórico + Projeção'!A:B,2,FALSE))-1)*100)/100)^(252/(NETWORKDAYS($B$3,Y73-1,Feriados!$A$2:$A$1037)))-1)*100) -> 3.68031701
A74: 0.3214285714 | B74: 81 | C74: 12.55007152 | E74: 0.1218924776 | F74: 0.006473006735 | G74: 0.01174528008 | H74: -0.01461004927 | L74: 0.3214285714 | M74: 81 | N74: 9.262340042 | P74: 0.0578287682 | Q74: 0.04703499709 | R74: -0.01029705059 | S74: -0.001943314282 | W74: 3.00902532 | Y74: =IF(W74="","",WORKDAY($B$3,M74,Feriados!$A$2:$A$1037)) -> 2023-12-18 | Z74: =IF(Y74="","",((1+(+(+VLOOKUP(Y74,'Histórico + Projeção'!A:B,2,FALSE)/(VLOOKUP(WORKDAY(WORKDAY($B$3,-1,Feriados!$A$2:$A$10000),1,Feriados!$A$2:$A$10000),'Histórico + Projeção'!A:B,2,FALSE))-1)*100)/100)^(252/(NETWORKDAYS($B$3,Y74-1,Feriados!$A$2:$A$1037)))-1)*100) -> 3.700137982
A75: 0.3253968254 | B75: 82 | C75: 12.54000301 | E75: 0.1218924776 | F75: 0.006442628773 | G75: 0.01180994648 | H75: -0.01474502276 | L75: 0.3253968254 | M75: 82 | N75: 9.237934884 | P75: 0.0578287682 | Q75: 0.04689699317 | R75: -0.01038154897 | S75: -0.001964863557 | W75: 3.022821819 | Y75: =IF(W75="","",WORKDAY($B$3,M75,Feriados!$A$2:$A$1037)) -> 2023-12-19 | Z75: =IF(Y75="","",((1+(+(+VLOOKUP(Y75,'Histórico + Projeção'!A:B,2,FALSE)/(VLOOKUP(WORKDAY(WORKDAY($B$3,-1,Feriados!$A$2:$A$10000),1,Feriados!$A$2:$A$10000),'Histórico + Projeção'!A:B,2,FALSE))-1)*100)/100)^(252/(NETWORKDAYS($B$3,Y75-1,Feriados!$A$2:$A$1037)))-1)*100) -> 3.719479167
A76: 0.3293650794 | B76: 83 | C76: 12.52991754 | E76: 0.1218924776 | F76: 0.006412455948 | G76: 0.01187329159 | H76: -0.01487904977 | L76: 0.3293650794 | M76: 83 | N76: 9.213675507 | P76: 0.0578287682 | Q76: 0.04675955339 | R76: -0.01046520978 | S76: -0.001986356735 | W76: 3.036471412 | Y76: =IF(W76="","",WORKDAY($B$3,M76,Feriados!$A$2:$A$1037)) -> 2023-12-20 | Z76: =IF(Y76="","",((1+(+(+VLOOKUP(Y76,'Histórico + Projeção'!A:B,2,FALSE)/(VLOOKUP(WORKDAY(WORKDAY($B$3,-1,Feriados!$A$2:$A$10000),1,Feriados!$A$2:$A$10000),'Histórico + Projeção'!A:B,2,FALSE))-1)*100)/100)^(252/(NETWORKDAYS($B$3,Y76-1,Feriados!$A$2:$A$1037)))-1)*100) -> 3.738357778
